Workbook

Sheet Application Form (hidden)
B1: =Development!A3&" Residential Rebate Application Form" -> 2023 Residential Rebate Application Form
C2: PSEG Long Island's Residential Central Air Conditioning Program, Central Air Conditioners, Heat Pumps, Ductless Mini Split Systems.
B4: REBATE OPTION 2: Choose any Central Air Conditioning (CAC) Contractor
B6: Directions:
B7: 1. | C7: Customer hires a contractor (at least three estimates are recommended prior to selection).
B8: 2. | C8: Customer has a qualifying system installed.
B9: 3. | C9: ="Customer fills out and signs the "&Development!A3&" Residential Rebate Application Form." -> Customer fills out and signs the 2023 Residential Rebate Application Form.
B10: 4. | C10: ="Customer submits "&Development!A3&" Residential Rebate Application Form and all required documentation listed below. Copy all forms prior to submission/keep a copy for your records." -> Customer submits 2023 Residential Rebate Application Form and all required documentation listed below. Copy all forms prior to submission/keep a copy for your records.
B11: 5. | C11: If all required paperwork is correct and all rebate requirements are fulfilled, a rebate check will be sent to the customer.
B13: Required Documents Checklist:
C18: ▪ | D18: Customer name and installation address matching electric account holder information
C19: ▪ | D19: Equipment manufacturer
C20: ▪ | D20: Condenser model number and serial number
C21: ▪ | D21: Coil/Air Handler model number and serial number
C22: ▪ | D22: Total Cost
C25: Eligible Equipment Table:
B40: Rebate Requirements / Terms and Conditions:
B41: 1. | C41: There must be a PSEG Long Island residential electric account at the installation site in the applicant’s name.
B42: 2. | C42: ="Unit(s) must be purchased and installed between "&TEXT(DATE(Development!A3,1,1),"M/D/YY")&" and "&TEXT(DATE(Development!A3,12,31),"M/D/YY")&"." -> Unit(s) must be purchased and installed between 1/1/23 and 12/31/23.
B43: 3. | C43: ="Rebate application must be submitted within 90 days of purchase and postmarked no later than "&TEXT(DATE(Development!A3,12,31),"M/D/YY")&"." -> Rebate application must be submitted within 90 days of purchase and postmarked no later than 12/31/23.
B44: 4. | C44: Please allow up to 60 days for delivery of the rebate check.
B45: 5. | C45: Some ENERGY STAR® qualified equipment may not be eligible for this rebate. Qualifying units must be listed in the AHRI directory.
B46: 6. | C46: It is the customer’s responsibility to ensure contractor has proper licenses, certifications and insurance. Installation is to be properly permitted (or received authorization). Documents, including but not limited to, permits and surveys are to be provided upon request.
B47: 7. | C47: Replacement of systems less than five years old, that were rebated, are not eligible for a rebate unless the SEER level of the replacement unit is higher than the existing unit by at least one full SEER level.
B48: 8. | C48: All units, including Ductless Mini Split Systems, must be installed with the matching pieces specified in the AHRI directory. These rebates apply to new and replacement total system installations performed during the term of this rebate program. The Condenser (outdoor), and Coil/ Air Handler (indoor) must be installed new and constitute one unit. Partial system replacements do not qualify.
B49: 9. | C49: PSEG Long Island reserves the right to inspect the equipment installation to ensure compliance with program requirements. Failure to allow PSEG Long Island access to the equipment will result in a denial of the rebate application.
B50: 10. | C50: PSEG Long Island is not responsible for any tax liability imposed as a result of rebate payments.
B51: 11. | C51: PSEG Long Island reserves the right to use the customer rebate to credit accounts in arrears.
B52: 12. | C52: PSEG Long Island is not responsible for lost or undeliverable mail or email.
B54: Submit Signed Application Form and all Required Documents:
C55: By Email: Preferred method for timely processing - coolhomesli@pseg.com
C56: By Mail: PSEG Long Island's Residential CAC Program
D57: 395 North Service Road, Suite 409, Melville, NY 11747
B61: Any Questions? Call PSEG Long Island's Infoline at 1-800-692-2626 or visit PSEG Long Island's website for more information at www.psegliny.com/efficiency
B66: =Development!A3&" Residential Rebate Application Form" -> 2023 Residential Rebate Application Form
C67: PSEG Long Island's Residential Central Air Conditioning Program, Central Air Conditioners, Heat Pumps, Ductless Mini Split Systems.
B69: Customer Information:
B71: Your PSEG Long Island Residential Account Number (found on the back of your bill):
B73: Your Name: | H73: E-Mail:
B75: Account/Installation Address:
B77: City: | G77: State: | I77: Zip:
B79: Home Telephone: | G79: Work Telephone:
B81: Mailing Address: (if different)
B83: City: | G83: State: | I83: Zip:
B85: Installation Contractor Name: | I85: Contractor Telephone:
B87: Installation Date:
B89: Product Information:
B91: Unit Number 1:
B93: New Equipment
B94: Manufacturer: | H94: AHRI Reference No:
B95: Condenser Model No. (outdoor): | H95: SEER Rating:
B96: Condenser Serial No. (outdoor): | H96: EER Rating:
B97: Coil/Air Handler Model No. (Indoor): | H97: HSPF Rating (Heat Pump Only):
B98: Coil/Air Handler Serial No. (Indoor): | H98: Tons:
B100: Existing Equipment
B101: Manufacturer: | H101: SEER Rating:
B102: Condenser Model No. (outdoor): | H102: EER Rating:
B103: Coil/Air Handler Model No. (Indoor): | H103: Tons:
B105: Unit Number 2: (if applicable)
B106: New Equipment
B107: Manufacturer: | H107: AHRI Reference No:
B108: Condenser Model No. (outdoor): | H108: SEER Rating:
B109: Condenser Serial No. (outdoor): | H109: EER Rating:
B110: Coil/Air Handler Model No. (Indoor): | H110: HSPF Rating (Heat Pump Only):
B111: Coil/Air Handler Serial No. (Indoor): | H111: Tons:
B113: Existing Equipment
B114: Manufacturer: | H114: SEER Rating:
B115: Condenser Model No. (outdoor): | H115: EER Rating:
B116: Coil/Air Handler Model No. (Indoor): | H116: Tons:
I118: Total Rebate Amount Expected: $
B120: I certify that I purchased the unit(s) on the enclosed invoice and /or contract and that they were installed at the location indicated. I agree to the terms and conditions stated on this application (see rebate requirements).
B122: Customer's Signature: | I122: Date:
B125: PSEG Long Island administrators the rebate program on behalf of the Long Island Power Authority, the rebate program sponsor. Please visit www.psegliny.com/efficiency for more details.
B127: Any Questions? Call PSEG Long Island's Infoline at 1-800-692-2626 or visit PSEG Long Island's website for more information at www.psegliny.com/efficiency

Sheet Customer Information
A1: =Development!A3&" "&Development!A5 -> 2023 Commercial Efficiency Program
A2: ="Commercial Weatherization Rebate Application, Version "&Development!$A$2 -> Commercial Weatherization Rebate Application, Version 1.0 | E2: =References!$C$24&References!#REF!&"Home Comfort and Home Performance Rebate Application, Version "&Development!$A$2 -> 
A3: The Commercial Efficiency Program offers rebates to commercial, industrial, institutional, educational, municipal or multi-family building customers who install qualifying energy efficient equipment. Customers must have an existing business to participate. Rebates require pre-approval.
A4: Customer Information
A5: Account No: | J5: Rate Code:
A6: Account Name: | J6: Tax ID:
A7: Facility Address: | H7: City: | K7: Zip:
A8: Mailing Address: (If different than above) | H8: City: | K8: Zip:
A9: DBA: | I9: Home Phone:
A10: Contact Name/Title: | I10: Cell Phone:
A11: E-Mail Address: | I11: Fax:
A14: Organization Type: | C14: …please select… | J14: Building Size (ft2):
A17: Building Type: | C17: … please select … | J17: Daily Facility Hours:
A19: Rebate Payment Method: | C19: …please select…
A22: Contractor Information
A23: Contractor Name:
A24: Contractor Address: | H24: City: | K24: Zip:
A25: Contact Name/Title: | J25: Business Phone:
A26: Tax ID #: | J26: Cell Phone:
A27: E-Mail Address: | J27: Fax:
A29: Disclaimer: Terms and conditions are subject to change without notice, including early termination of this promotion. No additional fees apply. The rebate will be issued in the form of a check unless otherwise indicated. PSEG Long Island administers the rebate program on behalf of the Long Island Power Authority, the rebate program sponsor. Please visit www.psegliny.com/efficiency for more details.
A30: Contact Name/Title: | C30: =IF($C$25="","",$C$25) ->  | H30: Signature:
A32: Rebate
J33: Total Estimated Customer Rebate Amount: | K33: =SUM(Worksheet!J48,Worksheet!J87,Worksheet!J107,Worksheet!J147,Worksheet!J165) -> 0
A34: *Disclaimer: Terms and conditions are subject to change without notice, including early termination of this promotion. No additional fees apply. The rebate may be issued in the form of a check. PSEG Long Island administers the rebate program on behalf of the Long Island Power Authority, the rebate program sponsor. Please visit https://www.PSEGLIny.com/Efficiency for more details.
A36: Certification Statement: Customer has read, understands and agrees to be bound by the Terms and Conditions set forth herein, and agrees to abide by them. By participating in this program, Customer agrees on behalf of itself and any successor in interest or assignee that PSEG Long Island obtains and/or retains ownership of all rights to existing and future emission credits, renewable energy rights to existing and future emissions credits, renewable energy green tags, tradable renewable certificates and/or any and all other environmental benefits associated with the installation of the ECMs. Customer certifies that the information provided in the herein is true and accurate. Customer further certifies that the energy saving products described herein have or will be installed in the facility indicated above and will not be resold. As specified herein, Customer agrees to permit PSEG Long Island to: (1) verify the purchase invoices and product installations and (2) upon request, install and remove load-monitoring equipment at the facility. Customer acknowledges that the rights and obligations in this application shall be binding upon assignees, successors and future owners of the facility. Customer agrees to include restrictions contained in this agreement in any leases, sales, contracts, or other similar documents relating to the use and ownership of the facility. Customer acknowledge that, consistent with PSEG Long Island’s Efficiency Long Island program policies and procedures, PSEG Long Island may pro-rate a rebate or incentive (the “Rebate”) if the Customer purchases less than its full electric requirements from PSEG Long Island. Customer further acknowledges that PSEG Long Island may require the Customer to repay all or a portion of the Rebate received if, within five (5) years of receipt of the Rebate, the Customer ceases purchasing its full electric requirements from PSEG Long Island or increases its use of electric power from non-PSEG Long Island sources at the facility, other than through the Long Island Choice Program.
A37: Account Holder Name: (Print)
A39: Customer Signature: Duly authorized representative | J39: Date:
J42: For PSEG Long Island use only: | K42: Application ID:
A44: Application Version: | B44: =Development!A2 -> 1.0 | K44: Effective: | L44: =Development!A4 -> 11.14.22

Sheet Ts and Cs
A1: ='Customer Information'!A1 -> 2023 Commercial Efficiency Program
A2: ='Customer Information'!A2:H2 -> Commercial Weatherization Rebate Application, Version 1.0
A3: Terms and Conditions
A4: 1. Rebates
A5: a) | B5: Subject to these Terms and Conditions, PSEG Long Island and/or its subsidiary, the Long Island Lighting Company d/b/a PSEG Long Island (hereinafter referred to individually or collectively as “PSEG Long Island”), will pay rebates to eligible Customers (hereinafter “Customers”) for the installation of Energy Conservation Measures (“ECMs”) listed on PSEG Long Island’s Commercial Weatherization application forms.
A6: b) | B6: ECMs are those electric conservation measures identified as such in program materials issued by PSEG Long Island and other site-specific Custom or Whole Building Design Measures that are approved by PSEG Long Island. The installation of ECMs and other site-specific Custom or Whole Building Design Measures will be referred to as (“Project”) in these Terms and Conditions.
A7: c) | B7: All ECMs must be new equipment and installed by licensed contractors where required by code and/or law.
A8: 2. Customer Eligibility
A9: a) | B9: The PSEG Long Island Commercial Weatherization Program (“Program”) is available to all non-residential electric customers in the PSEG Long Island “Service Area,” which includes Nassau and Suffolk counties and a portion of Queens County known as the Rockaways.
A10: b) | B10: By participating in this Program, Customer agrees that PSEG Long Island obtains and/or retains ownership of all rights to existing and future emissions credits, renewable energy rights to existing and future emissions credits, renewable energy green tags, tradable renewable certificates and/or any and all other environmental benefits associated with the installation of the eligible equipment.
A11: 3. Pre-Approval and Pre-Installation Survey
A12: a) | B12: PSEG Long Island will not pay any rebates unless PSEG Long Island pre-approves the ECMs proposed by the Customer and completes, to PSEG Long Island’s satisfaction, a pre-installation survey of the Customer’s facilities, unless PSEG Long Island has expressly waived such pre-approval/inspection requirement.
A13: b) | B13: PSEG Long Island reserves sole discretion to approve or disapprove of any proposed ECMs.
A14: 4. Post-Installation Verification
B15: PSEG Long Island will not pay any rebates until it has performed, to PSEG Long Island’s satisfaction a post-installation verification of the installation, unless PSEG Long Island has expressly waived such post-installation verification requirement. If PSEG Long Island determines that the ECMs were not installed in a manner that is consistent with the purpose of achieving energy savings, or if the installation was not consistent with generally accepted good engineering practices, PSEG Long Island reserves the right to require changes before making any rebate payments. PSEG Long Island will not pay rebates until it has been verified that the Customer has received, as appropriate, final drawings, operation and maintenance manuals, and operator training.
A16: 5. Customer Application and Analysis
A17: a) | B17: In addition to completing the application, the Customer may be required by PSEG Long Island to provide an analysis of the demand and energy reduction potential of the proposed ECMs. In some cases, a Professional Engineer licensed in the state of New York must prepare the analysis. Nameplate data may be required at PSEG Long Island’s discretion.
A18: b) | B18: PSEG Long Island may review the Customer’s application and analysis to make an independent determination of the energy saving and demand reduction potential. PSEG Long Island reserves the right to reject or modify any calculations, based on PSEG Long Island’s own analysis.
A19: 6. Site-Specific Custom Measures
B20: PSEG Long Island will only approve of those site-specific Custom ECMs that PSEG Long Island believes have cost-effective energy and/or demand reduction potential. In any case, PSEG Long Island reserves sole discretion to approve or disapprove of payment of rebates for any such proposed ECMs.
A21: 7. Rebate Amounts
A22: a) | B22: Before pre-approving any rebate amounts requested by the Customer, PSEG Long Island reserves the right to adjust the rebate amount.
A23: b) | B23: Once a rebate amount is pre-approved, PSEG Long Island will pay the customer no more than 80% of the installed cost of the ECM, or the pre-approved rebate amount, whichever is less.
A24: c) | B24: PSEG Long Island reserves the right to lower the rebate amount if the quantity and/or cost of ECMs actually installed by the Customer differ from the pre-approved amounts.
A25: d) | B25: Notwithstanding any other provision of these Terms and Conditions, PSEG Long Island reserves the right to a refund of any rebates paid if, at any time, it learns that any agreed to ECMs were not actually, or properly installed, or have subsequently been disconnected.
A26: e) | B26: Custom Applications – The approved rebate cannot exceed PSEG Long Island’s electric savings benefits, as determined by PSEG Long Island through its analysis of the project
A27: f) | B27: PSEG Long Island reserves the right to withhold payment or to award the rebate in the form of a bill credit. Customers in arrears at the time of rebate payment may not be eligible to receive a rebate.
A28: g) | B28: The UL classification of Energy Verification Services (EVS) for the appropriate product classification is required. PSEG Long Island reserves the right to withhold rebate payments for or disqualify any ECM’s that do not carry the Underwriter’s Laboratory (UL) Classification Mark or, with the written consent of PSEG Long Island, an equivalent independent efficiency and product safety certification organization.
A29: 8. ECM and Installation Proof of Payment
A30: a) | B30: The Customer must provide copies of all invoices (including itemization of all materials, labor, and equipment discounts) reflecting the costs of purchasing and installing the ECMs. The invoices shall include a breakdown of all ECMs purchased for installation under the Program. In addition, PSEG Long Island may require any other reasonable documentation or verification of the cost to the Customer of purchasing and installing the ECM. PSEG Long Island may require invoices from Customer’s contractor to determine the price paid by the contractor (including any discounts or rebates) for the ECMs. For custom ECMs, PSEG Long Island reserves the right to use the contractor’s reasonable costs in order to determine the correct rebate amount.
A31: b) | B31: PSEG Long Island may require copies of the construction specifications, including relevant ECMs, provided to the construction/installation contractors for certain Projects. PSEG Long Island may refuse to pay rebates if the specifications do not adequately provide for installation of the ECMs consistent with good engineering and energy-efficient design practices. Customer will, upon request by PSEG Long Island, provide a copy of the as-built drawings and equipment submittals for the facility.
A32: c) | B32: Title to all of the equipment purchased under this agreement shall rest with the Customer.
A33: 9. Installation Service Costs Recognized
B34: PSEG Long Island will recognize installation costs only to the extent that they are determined by PSEG Long Island to be reasonable and actually incurred by the Customer.
A35: 10. Contractor Shared Savings Arrangements
B36: If Custom ECMs are being installed by Customer’s contractor under a “shared savings” contract or other situation where the customer’s contract is not based upon the price of installed equipment, PSEG Long Island reserves the right to determine the cost of purchasing and installing the ECMs based on the reasonable retail costs in purchasing the equipment and installing the ECMs.
A37: 11. Date of Rebate Payments
B38: PSEG Long Island expects to pay the rebate within sixty (60) days after all of the following conditions are met: (1) construction/renovation of Customer’s facility is completed; (2) Customer has received an occupancy permit; and (3) PSEG Long Island has verified equipment and installation costs and satisfactory installation of the ECMs, all in accordance with the specifications. (4) All documents required by the application have been received by PSEG Long Island.
A41: 12. Monitoring and Evaluation Follow-up Visits
A42: a) | B42: PSEG Long Island reserves the right to make a reasonable number of installation follow-up visits to Customer’s Facility during the 24 months following the actual completion date noted on this application. Such visit(s) are not meant to inconvenience the Customer, PSEG Long Island, and the Customer agrees to provide access within a reasonable timeframe of receiving the request for a follow up visit.
A43: b) | B43: The purpose of the follow-up visit(s) is to provide PSEG Long Island with an opportunity to review the operation of the ECMs for program evaluation purposes.
A44: 13. Limited Scope of Review
B45: PSEG Long Island is under no obligation to: (1) make follow-up visits, (2) review the operation of the ECMs, or (3) make any suggestions of any kind to the Customer.
B46: The scope of review by PSEG Long Island of the design and installation of the ECMs is limited solely to determining whether Program conditions have been met. It does not include any kind of safety review.
A47: 14. Changes in the Program
A48: a) | B48: PSEG Long Island may change the program and the Terms & Conditions at any time without notice. PSEG Long Island, however, will process pre-approved applications, to completion under the Terms & Conditions in effect at the time of the pre-approval.
A49: b) | B49: PSEG Long Island reserves the right, for any reason, to stop pre-approving ECMs at any time without notice. In particular, PSEG Long Island is not obligated to pre-approve any application for an rebate that may result in PSEG Long Island exceeding its program budget
A50: c) | B50: The Program described in the application may be altered, suspended, or canceled by PSEG Long Island at any time without prior notice. Under such circumstances, the Customer is not entitled to any Program benefits in excess of those approved prior to such action by PSEG Long Island. Submission of a completed application does not entitle the Customer to program participation. Entitlement to Program participation can only occur after PSEG Long Island has signed a copy of the application and granted pre-approval
A51: 15. Payments Assignable to Contractors
B52: The Customer may direct that rebates be paid directly to the Customer’s contractor. This request must be made expressly in writing.
A53: 16. Publicity of Customer Participation
B54: PSEG Long Island may publicize the Customer’s participation in the Program, the results, the amount of rebates paid to the Customer, and any other information which reasonably relates to the Customer’s participation.
A55: 17. Installation Schedule Requirements
B56: Where there is no deadline indicating otherwise on the application, PSEG Long Island may terminate the application and any approved rebate if the Customer is not engaged in installation of the pre-approved ECMs by the end of 180 days from the date PSEG Long Island approves the Customer’s Retrofit application and One year for all Custom applications.
A57: 18. Limitation of Liability and Indemnification
B58: PSEG Long Island’s liability is limited to paying the approved rebates. . Neither PSEG Long Island, nor its affiliates, subsidiaries, Manager, employees, consultants, agents and contractors (“PSEG Long Island Parties”) shall be liable to the Customer for any consequential or incidental damages or for any damages in tort (including negligence) caused by any activities associated with this application or the Program.
B59: The Customer shall protect, indemnify, and hold harmless PSEG Long Island, and the PSEG Long Island Parties from and against all liabilities, losses, claims, damages, judgments, penalties, causes of action, costs and expenses (including, without limitation, attorney’s fees and expenses) imposed upon or incurred by or assessed against PSEG Long Island, and the PSEG Long Island Parties resulting from, arising out of, or relating to the Program.
A60: 19. No Warranties
A61: a) | B61: PSEG Long Island does not endorse, guarantee, or warrant any particular manufacturer or product, and PSEG Long Island provides no warranties, expressed or implied, for any product or services.
A62: b) | B62: The Customer acknowledges that neither PSEG Long Island nor any of the PSEG Long Island Parties are responsible for assuring that the design, engineering and construction of Customer’s Project or that the installation of the ECMs is proper or complies with any particular laws (including patent laws), codes, or industry standards. PSEG Long Island does not make any representations of any kind regarding the results to be achieved by the ECMs or the adequacy or safety of such measures.
A63: 20. Customer Must Pay All Taxes
B64: The benefits conferred upon the Customer through participation in this program may be taxable by the federal, state, and local government. The Customer is responsible for declaring any benefits and paying any associated taxes.
A65: 21. Pre-Approval Letter
B66: After an application is approved by PSEG Long Island’s authorized executive, the Customer will receive written notification of the pre-approved rebate amount and the date that the ECMs must be fully installed to qualify for rebate payments. Any ECMs installed prior to the issuance of PSEG Long Island’s written authorization will be deemed as an unauthorized installation and PSEG Long Island will have no obligation to pay rebates for those ECMs.
A67: 22. Vendor Selection
B68: It is the Customer’s responsibility to select a vendor to perform the work indicated on the Customer’s Application.
A69: 23. Removal of Equipment
B70: The Customer agrees, as a condition of participation in the Program, to remove and dispose of all equipment being replaced by the ECMs and further agrees to carry out such removal and disposal in accordance with all laws, rules, and regulations. The Customer agrees not to reinstall any of this equipment in the Service Area of PSEG Long Island.
A71: 24. Miscellaneous
A72: a) | B72: By providing a telephone number you are giving consent to be contacted at that number about matters that are closely related to the utility service.
A73: b) | B73: These Terms and Conditions and program requirements outline the conditions under which PSEG Long Island will pay rebates. These Terms and Conditions are subject to change at PSEG Long Island’s discretion.
A74: c) | B74: If any provision of the Terms and Conditions is deemed invalid by any court or administrative body having jurisdiction, such ruling shall not invalidate any other provision, and the remaining Terms and Conditions shall remain in full force and effect in accordance with their terms.
A75: d) | B75: The Customer’s acceptance of final payment releases PSEG Long Island from all claims and liabilities to the Customer, and its representatives or assigns.
B77: I have read and understand the terms and conditions detailed above. | G77: (initials)
A79: Application Version: | C79: =Development!$A$2 -> 1.0 | J79: Effective: | K79: =Development!$A$4 -> 11.14.22

Sheet Required Documents
A1: ='Customer Information'!A1 -> 2023 Commercial Efficiency Program
A2: ='Customer Information'!A2:H2 -> Commercial Weatherization Rebate Application, Version 1.0
B3: Required Documents for All Projects
B4: Document: | D4: Responsible Party | G4: Deliverable Timeline
D5: Customer | G5: Pre-Installation
D6: Customer/Applicant | G6: Pre-Installation
D7: Customer | G7: Pre-Installation
D8: Customer/Applicant | G8: Pre-Installation
D9: PSEG Long Island Project Manager | G9: Pre-Installation
D10: Customer | G10: Pre-Installation
D11: PSEG Long Island Project Manager | G11: Pre-Installation
D12: Customer/Applicant | G12: Pre-Installation
D13: Customer | G13: Post-Installation
D14: Customer | G14: Post-Installation
D15: PSEG Long Island Project Manager | G15: Post-Installation
D16: Customer/Applicant | G16: Post Installation
B18: Required Documents for Whole Building ccASHP Projects
B19: Document: | D19: Responsible Party | G19: Deliverable Timeline
D20: Contractor | G20: Pre-Installation
D21: Contractor | G21: Pre-Installation
B24: PSEG Long Island may require additional documentation not listed in the check boxes above as deemed necessary to properly process any rebates.
B26: I have read and understand the information listed above. | E26: (initials)
B28: PSEG Long Island may require additional documentation not listed above as deemed necessary to properly process any rebates.
B29: Any hard copy documents provided by Customer must be scanned and emailed to PSEG Long Island or uploaded to the Lead Partner Portal by a participating Partner
B33: Application Version: | C33: =Development!$A$2 -> 1.0 | G33: Effective: | H33: =Development!$A$4 -> 11.14.22

Sheet AssignmentForm (hidden)
A1: =Development!$A$3&" Residential Efficiency Program" -> 2023 Residential Efficiency Program
A2: Home Comfort Participating Contractors Assignment Form
A3: The Home Comfort Rebate Program offers rebates to PSEG Long Island customers who install an energy efficient, properly sized heating or air conditioning system. Projects are subject to post-inspection.
A4: Customer Information
A5: Customer Name: | C5: =IF('Customer Information'!C6="","",'Customer Information'!C6) -> 
A6: Installation Address: | C6: =IF('Customer Information'!C7="","",'Customer Information'!C7) ->  | H6: City: | I6: =IF('Customer Information'!I7="","",'Customer Information'!I7) ->  | K6: Zip: | L6: =IF('Customer Information'!L7="","",'Customer Information'!L7) -> 
A7: Mailing Address: (If different than above) | C7: =IF('Customer Information'!C8="","",'Customer Information'!C8) ->  | H7: City: | I7: =IF('Customer Information'!I8="","",'Customer Information'!I8) ->  | K7: Zip: | L7: =IF('Customer Information'!L8="","",'Customer Information'!L8) -> 
C8: =IF('Customer Information'!C9="","",'Customer Information'!C9) ->  | I8: Home Phone: | K8: =IF('Customer Information'!K9="","",'Customer Information'!K9) -> 
A9: Alternate Contact: | C9: =IF('Customer Information'!C10="","",'Customer Information'!C10) ->  | I9: Cell Phone: | K9: =IF('Customer Information'!K10="","",'Customer Information'!K10) -> 
A10: E-Mail Address: | C10: =IF('Customer Information'!C11="","",'Customer Information'!C11) -> 
A13: Contractor Information
A14: Contractor Name: | C14: =IF('Customer Information'!C23="","",'Customer Information'!C23) -> 
A15: Contractor Address: | C15: =IF('Customer Information'!C24="","",'Customer Information'!C24) ->  | H15: City: | I15: =IF('Customer Information'!I24="","",'Customer Information'!I24) ->  | K15: Zip: | L15: =IF('Customer Information'!L24="","",'Customer Information'!L24) -> 
A16: Contact Name/Title: | C16: =IF('Customer Information'!C25="","",'Customer Information'!C25) ->  | H16: Business Phone: | I16: =IF('Customer Information'!K25="","",'Customer Information'!K25) -> 
A17: Tax ID #: | C17: =IF('Customer Information'!C26="","",'Customer Information'!C26) ->  | H17: Cell Phone: | I17: =IF('Customer Information'!K26="","",'Customer Information'!K26) -> 
A18: E-Mail Address: | C18: =IF('Customer Information'!C27="","",'Customer Information'!C27) ->  | H18: Fax: | I18: =IF('Customer Information'!K27="","",'Customer Information'!K27) -> 
A21: Rebate
J22: Total Estimated Customer Rebate Amount (Calculated from Equipment Worksheet and Smart Thermostat Worksheet): | K22: =IF('Customer Information'!#REF!="","",'Customer Information'!#REF!) -> 
B24: As the payee of the above referenced Home Comfort Rebate, I, Customer, hereby assign my rights and interest in the payment of said rebate to Assignee as indicated below. I certify that the electric account listed above is not in arrears and that I have supplied the contractor with a copy of the latest PSEGLI bill for the listed account, showing that the account is active and that there is no previous balance owed on the account. Rebates can not be assigned to the contractor if the PSEGLI account is in arrears. If the PSEGLI account goes into arrears while the rebate is being processed, PSEGLI will apply the Home Comfort Rebate to those arrears before remitting the balance of the rebate, if any, to my Assignee. I also understand that PSEGLI’s application of all, or a portion of, the Rebate to any arrears on my PSEGLI account does not reduce the amount I am responsible to pay my Assignee (I will still owe my contractor the Rebate amount applied to my PSEGLI account). Please forward my rebate to the Assignee listed directly above. I also understand that I am responsible to inform PSEGLI (via email to homecomfortli@pseg.com or in writing to PSEG Long Island, Home Comfort Program, 395 N Service Rd, Melville, NY 11747) of any changes to this assignment.
A27: Customer Name: (Print)
A29: Accepted and Agreed To Payee: (Customer Signature) | J29: Date:
A31: Contractor Name (Print) | C31: =IF('Customer Information'!C25="","",'Customer Information'!C25) -> 
A33: Accepted and Agreed To Assignee: (Duly Authorized Representative Signature) | J33: Date:
A41: Application Version: | B41: =Development!$A$4&"_"&Development!$A$2 -> 11.14.22_1.0 | K41: Effective: | L41: =Development!$A$4 -> 11.14.22

Sheet Guidelines
A1: ='Customer Information'!A1 -> 2023 Commercial Efficiency Program
A2: ='Customer Information'!A2:H2 -> Commercial Weatherization Rebate Application, Version 1.0
A3: Rebate Guidelines
A4: * | B4: For Lighting and Standard rebates please visit:
B5: https://www.psegliny.com/businessandcontractorservices/businessandcommercialsavings/businessandcommercialrebates
A6: * | B6: Pre-approval is required.
A7: * | B7: If customer has participated in any other state or utility sponsored rebate program, related to the technology in this application, please contact a PSEG Long Island Representative to determine whether the project is also eligible under this program.
A8: * | B8: All projects are subject to a Pre-inspection. Existing buildings qualify only; New Construction buildings are not eligible.
A9: * | B9: Building must be 10,000 Square Feet or less to be eligible.
A10: * | B10: Both Insulation and Air Sealing must be installed for project to qualify for rebates.
A11: * | B11: ="Project must be started after "&Development!A4&" and completed within 180 days at time of application submittal." -> Project must be started after 11.14.22 and completed within 180 days at time of application submittal.
A12: * | B12: All projects are subject to Post-inspection.
A13: * | B13: If the proposed equipment is listed in the eligibility table, use the appropirate Worksheet to calculate the estimated rebate.
A14: * | B14: If the proposed equipment is not listed on the Worksheet tab, refer to the Custom/Custom Retrofit Eligibility requirements and documentation and contact a PSEG Long Island Representative or PSEG Long Island's Infoline at 1-800-692-2626. Rebate eligibility and amount will be calculated on a case by case basis.
A15: * | B15: Eligible equipment may be updated or modified regularly. For the most recent applications and worksheets please visit:
B16: https://www.psegliny.com/businessandcontractorservices/businessandcommercialsavings/businessandcommercialrebates
A17: * | B17: Only applications and worksheets in effect at the time of submittal will be accepted. Please visit our website for the most recent applications and worksheets:
B18: https://www.psegliny.com/businessandcontractorservices/businessandcommercialsavings/businessandcommercialrebates
A19: * | B19: Where eligible products are required to be listed with an approved rating agency (i.e. ENERGY STAR, CEE, UL, or other approved equivalent), products must be installed and used in accordance with the rating condition for which it was approved at the time such approval was given.
A20: * | B20: All installations must be installed in accordance with all applicable local, state and national codes and ordinances.
A21: * | B21: All eligibility requirements and deadlines apply. Eligibility is listed by measure on the Worksheet tab and Insulation Eligibility.
A22: * | B22: Total rebates will be capped at 80% of total project cost.
A23: * | B23: If submitting electronically, applicant must either submit an e-mail in lieu of signature or provide a hard copy with signature (fax, pdf, printed original, etc.).
A25: Program Requirements/Steps to Participate
A26: * | B26: Before you purchase and install equipment, send the following to PSEG Long Island to receive your Pre-Approval Letter:
A27: * | B27: Completed Customer Information section of application and appropriate worksheets. (Incomplete applications will not be accepted.)
A28: * | B28: Submit required documents (see Required Documents check sheet)
C29: For Electronic Submissions e-mail documents to:
D30: CEPLI@pseg.com | F30: or via Lead Partner Portal Online Application
D31: Each required document must be a separate file (no zipped files)
D32: Applications must be saved as: 23ComWeaWor_<<<customer Name>>MMDDYYYY.xls
C33: For Online Submissions: | D33: www.pseglinyportal.com
C34: For hardcopy submissions: PSEG Long Island CEP, 395 North Service Rd, Suite 409, Melville, NY 11747
A36: * | B36: AFTER you receive your Pre-Approval Letter, complete the project.
A37: * | B37: Once Project is Complete:
A38: * | B38: Submit copies of customer validated proof of payment (e.g. itemized invoice) showing the facility address, date and place of purchase and the model/part numbers of installed equipment.
A39: * | B39: A PSEG Long Island representative will contact you to schedule a post-inspection.
A40: * | B40: After verification that all necessary requirements have been met, a PSEG Long Island representative will authorize payment and either mail a check to the applicant/assignee or apply a bill credit to the applicant’s account.
B47: I have read and understand the Guidelines listed above. | G47: (initials)
A49: Application Version: | C49: =Development!$A$2 -> 1.0 | K49: Effective: | L49: =Development!$A$4 -> 11.14.22

Sheet Smart T-Stats (hidden)
B2: =Development!$A$3&" Residential Efficiency Program" -> 2023 Residential Efficiency Program
B3: ="Smart Thermostat Eligibility Table & Worksheet, Version "&Development!A2 -> Smart Thermostat Eligibility Table & Worksheet, Version 1.0
B4: Smart thermostat incentives are limited to one thermostat per unit and cannot replace an existing Smart thermostat. Smart thermostat must control the installed unit in order to be eligible for an incentive.Thermostats must be installed by a QIV contractor or by a Home Performance with ENERGY STAR contractor.
B6: Instructions:
B8: 1. | C8: Enter Manufacturer, Approved Thermostat, Model Number and Serial Number.
B9: 2. | C9: If new thermostat is to be connected to a unit identified on the Worksheet tab, please indicate the unit number from Column B. of the Worksheet tab in Column G under "Unit Controlled".
B10: 3. | C10: If thermostat was installed during a Home Performance with ENERGY STAR project, please check the appropriate check box
C12: Eligible Equipment | E12: Customer Incentive (per unit)
C13: Wi-Fi Enabled Smart Thermostat | E13: 35
C14: Learning Smart Thermostat | E14: 50
B18: In order to qualify for an incentive, Smart thermostats must be listed at. | E18: https://enrollmythermostat.com/faqs/pseg-long-island-faq/
B20: Manufacturer | D20: Approved Thermostat | E20: Model Number | F20: Serial Number | G20: Unit Controlled | H20: Primary Cooling | I20: Heating Type | K20: Customer Incentive
A21: 1 | J21: =IF(H21="","",IF(References!#REF!=TRUE,"HP Thermostat",IF(OR(RIGHT(H21,2)="HP",I21="Electric Heat"),"CH Thermostat Heating Cooling","CH Thermostat Cooling"))) ->  | K21: =IF(OR(B21="",D21="",F21="",,H21="",I21=""),"",Qualifying_Index!Y42) -> 
A22: 2 | J22: =IF(H22="","",IF(References!#REF!=TRUE,"HP Thermostat",IF(OR(RIGHT(H22,2)="HP",I22="Electric Heat"),"CH Thermostat Heating Cooling","CH Thermostat Cooling"))) ->  | K22: =IF(OR(B22="",D22="",F22="",,H22="",I22=""),"",Qualifying_Index!Y43) -> 
A23: 3 | J23: =IF(H23="","",IF(References!#REF!=TRUE,"HP Thermostat",IF(OR(RIGHT(H23,2)="HP",I23="Electric Heat"),"CH Thermostat Heating Cooling","CH Thermostat Cooling"))) ->  | K23: =IF(OR(B23="",D23="",F23="",,H23="",I23=""),"",Qualifying_Index!Y44) -> 
A24: 4 | J24: =IF(H24="","",IF(References!#REF!=TRUE,"HP Thermostat",IF(OR(RIGHT(H24,2)="HP",I24="Electric Heat"),"CH Thermostat Heating Cooling","CH Thermostat Cooling"))) ->  | K24: =IF(OR(B24="",D24="",F24="",,H24="",I24=""),"",Qualifying_Index!Y45) -> 
A25: 5 | J25: =IF(H25="","",IF(References!#REF!=TRUE,"HP Thermostat",IF(OR(RIGHT(H25,2)="HP",I25="Electric Heat"),"CH Thermostat Heating Cooling","CH Thermostat Cooling"))) ->  | K25: =IF(OR(B25="",D25="",F25="",,H25="",I25=""),"",Qualifying_Index!Y46) -> 
A26: 6 | J26: =IF(H26="","",IF(References!#REF!=TRUE,"HP Thermostat",IF(OR(RIGHT(H26,2)="HP",I26="Electric Heat"),"CH Thermostat Heating Cooling","CH Thermostat Cooling"))) ->  | K26: =IF(OR(B26="",D26="",F26="",,H26="",I26=""),"",Qualifying_Index!Y47) -> 
A27: 7 | J27: =IF(H27="","",IF(References!#REF!=TRUE,"HP Thermostat",IF(OR(RIGHT(H27,2)="HP",I27="Electric Heat"),"CH Thermostat Heating Cooling","CH Thermostat Cooling"))) ->  | K27: =IF(OR(B27="",D27="",F27="",,H27="",I27=""),"",Qualifying_Index!Y48) -> 
A28: 8 | J28: =IF(H28="","",IF(References!#REF!=TRUE,"HP Thermostat",IF(OR(RIGHT(H28,2)="HP",I28="Electric Heat"),"CH Thermostat Heating Cooling","CH Thermostat Cooling"))) ->  | K28: =IF(OR(B28="",D28="",F28="",,H28="",I28=""),"",Qualifying_Index!Y49) -> 
A29: 9 | J29: =IF(H29="","",IF(References!#REF!=TRUE,"HP Thermostat",IF(OR(RIGHT(H29,2)="HP",I29="Electric Heat"),"CH Thermostat Heating Cooling","CH Thermostat Cooling"))) ->  | K29: =IF(OR(B29="",D29="",F29="",,H29="",I29=""),"",Qualifying_Index!Y50) -> 
A30: 10 | J30: =IF(H30="","",IF(References!#REF!=TRUE,"HP Thermostat",IF(OR(RIGHT(H30,2)="HP",I30="Electric Heat"),"CH Thermostat Heating Cooling","CH Thermostat Cooling"))) ->  | K30: =IF(OR(B30="",D30="",F30="",,H30="",I30=""),"",Qualifying_Index!Y51) -> 
J31: =IF(H31="","",IF(References!#REF!=TRUE,"HP Thermostat",IF(OR(RIGHT(H31,2)="HP",I31="Electric Heat"),"CH Thermostat Heating Cooling","CH Thermostat Cooling"))) ->  | K31: =IF(OR(B31="",D31="",F31="",,H31="",I31=""),"",Qualifying_Index!Y52) -> 
H33: Smart Thermostat Rebate Amount: | K33: =SUM(K21:K31) -> 0
B43: Application Version: | D43: =Development!$A$2 -> 1.0 | H43: Effective: | K43: =Development!$A$4 -> 11.14.22

Sheet Worksheet
B1: ='Customer Information'!A1 -> 2023 Commercial Efficiency Program
B3: Commercial Weatherization
B4: Commercial Weatherization rebates are available to all PSEG Long Island commercial customers.
B5: Instructions:
B6: 1) | C6: Enter applicable Heating and Cooling System information
B7: 2) | C7: Check the box of each measure being installed
B8: 3) | C8: Enter all data inputs fields for installed measures
B9: 4) | C9: Rebates will be capped based on the total cost of the project
C11: Primary Heating System: | I11: Primary Cooling System:
C13: Heating Source: | I13: Cooling Source:
C15: Heating Capacity: | E15: (btu) | I15: Cooling Capacity: | K15: (tons)
C17: Efficiency: | I17: SEER:
C19: HSPF: | I19: EER:
C21: % of Heating Load | I21: % of Cooling Load
C24: Secondary Heating System: | I24: Secondary Cooling System:
C26: Heating Source: | I26: Cooling Source:
C28: Heating Capacity: | E28: (btu) | I28: Cooling Capacity: | K28: (tons)
C30: Efficiency: | I30: SEER:
C32: HSPF: | I32: EER:
C34: COP: | I34: % of Cooling Load
C36: % of Heating Load
C38: Don't forget to check out PSEG Long Island's Commercial HVAC Rebates:
C39: https://www.psegliny.com/businessandcontractorservices/businessandcommercialsavings/rebates
F41: 1) | G41: A Total Duct Leakage Test should be preformed both before and after sealing
F42: 2) | G42: If resealing duct work as part of an HVAC replacement, the duct sealing rebate is not eligible
F43: 3) | G43: Test results are in CFM @ 25 Pascals
F44: 4) | G44: Ducts in unconditioned areas should be insulated with a minimum R-6
F45: 5) | G45: All ducts outside the building must be insulated with a minimum R-8
F46: 6) | G46: Post installation must be compliant with State code ECCCNYS
K47: =IF(D48="","",IF(Qualifying_Index!U96=1,"","*Please note the rebate cannot be higher than the Total Project Cost")) -> 
C48: Total Cost: | I48: Rebate: | J48: =IF(OR(D48="",SUM(Qualifying_Index!AE103:AE105)=0),"",SUM(Qualifying_Index!AF103:AF105)) -> 
C50: Location 1: | I50: Location 2:
C52: Duct Location: | I52: Duct Location:
C54: Location Attribute: | I54: Location Attribute:
C56: Pre CFM(25) | I56: Pre CFM(25)
C58: Post CFM(25) | I58: Post CFM(25)
C60: Conditioned Floor Area: | E60: (Square Footage) | I60: Conditioned Floor Area: | K60: (Square Footage)
C62: System Impacted: | I62: System Impacted:
C64: Location 3:
C66: Duct Location:
C68: Location Attribute:
C70: Pre CFM(25)
C72: Post CFM(25)
C74: Conditioned Floor Area: | E74: (Square Footage)
C76: System Impacted:
F80: 1) | G80: Air Sealing must be installed for all projects
F81: 2) | G81: A Blower Door Test must be conducted before and after air sealing is performed
F82: 3) | G82: Post Blower Door Test CFM results must be less than the Pre Air Sealing test results
F83: 4) | G83: Post Blower Door Test CFM must meet IECC 2018 criteria
F84: 5) | G84: Air Sealing square footage entered should match the square footage of insulation
K85: =IF(D87="","",IF(Qualifying_Index!U96=1,"","*Please note the rebate cannot be higher than the Total Project Cost")) -> 
C87: Total Cost: | I87: Rebate: | J87: =IF(OR(D87="",SUM(Qualifying_Index!AB114)=0),"",Qualifying_Index!AC114) -> 
C88: Location 1:
C90: Shielding Class
C92: Pre CFM75:
C94: Post CFM75:
C96: Total Air Sealing Square Footage:
F101: 1) | G101: Insulation must be installed for all projects
F102: 2) | G102: Minimum required R-Value ASHRAE 90.1 2016; See reference table on the Insulation Eligibility tab | K102: here
F103: 3) | G103: Insulation rebates are available for ceiling and wall insulation
F104: 4) | G104: New Insulation R-Value must exceed existing insulation R-Value
K106: =IF(D107="","",IF(Qualifying_Index!U96=1,"","*Please note the rebate cannot be higher than the Total Project Cost")) -> 
C107: Total Cost: | I107: Rebate: | J107: =IF(OR(D107="",SUM(Qualifying_Index!W120:W124)=0),"",SUM(Qualifying_Index!X120:X124)) -> 
C108: Location 1: | I108: Location 2:
C110: Location: | I110: Location:
C112: Installed Square Footage: | I112: Installed Square Footage:
C114: Existing R-Value: | I114: Existing R-Value:
C116: R-Value Installed: | I116: R-Value Installed:
C118: Location 3: | I118: Location 4:
C120: Location: | I120: Location:
C122: Installed Square Footage: | I122: Installed Square Footage:
C124: Existing R-Value: | I124: Existing R-Value:
C126: R-Value Installed: | I126: R-Value Installed:
C128: Location 5:
C130: Location:
C132: Installed Square Footage:
C134: Existing R-Value:
C136: R-Value Installed:
F141: 1) | G141: Cannot be installed in place of an existing Air Curtain
F142: 2) | G142: Must be installed between a conditioned indoor space and unconditioned space
F143: 3) | G143: Must carry the designated Underwriters Laboratory (UL) or Electrical Testing Laboratory (ETL) label
K145: =IF(D147="","",IF(Qualifying_Index!U96=1,"","*Please note the rebate cannot be higher than the Total Project Cost")) -> 
C147: Total Cost: | I147: Rebate: | J147: =IF(OR(D147="",SUM(Qualifying_Index!AR135)=0),"",Qualifying_Index!AS135) -> 
C148: Location 1 | J148: =IF(AND(D147<>"",OR('Customer Information'!L17="",'Customer Information'!L17=0)),"*Please Enter the Daily Facility Hours on the Customer Information tab*","") -> 
C150: Horsepower:
C152: Length: | E152: (Feet)
C154: Height: | E154: (Feet)
F159: 1) | G159: A minimum of 0.5 inches of insulation should be installed
F160: 2) | G160: Only Electric Domestic Hot Water Heating is eligible for pipe insulation rebate
F161: 3) | G161: The thickness of the pipe insulation installed must exceed the thickness of the existing pipe insulation
F162: 4) | G162: If the exact diameter or thickness is not available, please select the closest value
K163: =IF(D165="","",IF(Qualifying_Index!U96=1,"","*Please note the rebate cannot be higher than the Total Project Cost")) -> 
C165: Total Cost: | I165: Rebate: | J165: =IF(OR(D165="",SUM(Qualifying_Index!Z142)=0),"",Qualifying_Index!AA142) -> 
C166: Location 1
C168: Water Heating Source:
C170: Length of Pipe: | E170: (Linear Feet)
C172: Diameter of Pipe: | E172: (Inches)
C174: Thickness of Insulation: | E174: (Inches)

Sheet Insulation Eligibility
A1: ='Customer Information'!A1 -> 2023 Commercial Efficiency Program
A2: ='Customer Information'!A2:H2 -> Commercial Weatherization Rebate Application, Version 1.0
A3: Duct Sealing
A11: Air Sealing
A19: Insulation
B21: Table 5.5-4 Building Envelope Requirements for Climate Zone 4 (A,B,C)
B24: Opaque Elements | E24: Nonresidential
E25: Assembly Maximum | G25: Insulation Min. R-Value
B27: Roofs
B28: Insulation entirely above deck | E28: U-0.032 | G28: R-30 c.i.
B30: Metal building | E30: U-0.037 | G30: R-19 + R-11 Ls or R-25 + R-8 Ls
B32: Attic and other | E32: U-0.021 | G32: R-49
B34: Wall, above Grade
B35: Mass | E35: U-0.104 | G35: R-9.5 c.i.
B37: Metal building | E37: U-.060 | G37: R-0 +R-15.8 c.i.
B39: Steel-framed | E39: U-0.064 | G39: R-13 + R-7.5 c.i.
B41: Wood-framed and other | E41: U-0.064 | G41: R-13 + R-3.8 c.i. or R-20
B43: Wall, below Grade
B44: Below-grade wall | E44: C-0.119 | G44: R-7.5 c.i.
B46: Floors
B47: Mass | E47: U-0.057 | G47: R-14.6 c.i.
B49: Steel joist | E49: U-0.038 | G49: R-30
B51: Wood-framed and other | E51: U-0.033 | G51: R-30
B53: Slab-on-Grade Floors
B54: Unheated | E54: F-0.520 | G54: R-15 for 24in.
B56: Heated | E56: F-0.843 | G56: R-20 for 24in.
B58: Opaque Doors
B59: Swinging | E59: U-0.370
B61: Nonswinging | E61: U-0.310
B63: Fenestration | E63: Assembly Max. U | F63: Assembly Max. SHGC | H63: Assembly Min. VTISHGC
B65: Vertical Fenestration, 0% to 40% of Wall | F65: for all frame types
B67: Nnmetal framing, all | E67: 0.31 | F67: 0.36 | H67: 1.1
B69: Metal framing, fixed | E69: 0.38
B71: Metal framing, operable | E71: 0.46
B73: Metal framing, entrance door | E73: 0.68
B75: Skylight, 0% to 3% of Roof
B76: All types | E76: 0.5 | F76: 0.4 | H76: NR
A82: Application Version: | C82: =Development!$A$2 -> 1.0 | K82: Effective: | L82: =Development!$A$4 -> 11.14.22

Sheet HPwES H&S (hidden)
B1: ='Customer Information'!A1 -> 2023 Commercial Efficiency Program
C2: Health & Safety: Heating and Air Conditioning
C5: Project Number
C6: Date
C8: CAZ Pressure Diagnostics
H9: Test In | K9: Test Out
C10: Baseline Pressure WRTO: | I10: Pa | L10: Pa
C11: Worst Case Pressure WRTO: | I11: Pa | L11: Pa
C12: Pressure Difference: | I12: Pa | L12: Pa
C14: Notes:
C17: Combustion Safety test in (Tested at worst case)
H18: Test In | K18: Test Out
C19: CAZ Ambient CO: | I19: ppm | L19: ppm
C20: Worst Case Pressure WRTO: | I20: ppm | L20: ppm
C22: Gas Leak:
C24: Notes:
C27: Combustion Appliance No. 1
C28: Location: | I28: Detail:
C29: Type: | I29: Venting:
C30: B.T.U.: | I30: Distribution:
C31: Fuel: | I31: Year of Mfg.:
D32: Test In | K32: Test Out
C33: CO Flue: | E33: ppm | K33: ppm
C34: CO Ambient: | E34: ppm | K34: ppm
C35: Draft: | E35: Pa | K35: Pa
E37: Test In | K37: Test Out
D38: Spillage:
C40: Notes:
C43: Combustion Appliance No. 2
C44: Location: | I44: Detail:
C45: Type: | I45: Venting:
C46: B.T.U.: | I46: Distribution:
C47: Fuel: | I47: Year of Mfg.:
D48: Test In | K48: Test Out
C49: CO Flue: | E49: ppm | K49: ppm
C50: CO Ambient: | E50: ppm | K50: ppm
C51: Draft: | E51: Pa | K51: Pa
E53: Test In | K53: Test Out
D54: Spillage:
C56: Notes:
C59: DHW
C60: Location: | I60: Detail:
C61: Type: | I61: Venting:
C62: B.T.U.: | I62: Distribution:
C63: Fuel: | I63: Year of Mfg.:
C64: Size(gallons): | I64: Energy Factor:
D65: Test In | K65: Test Out
C66: CO Flue: | E66: ppm | K66: ppm
C67: CO Ambient: | E67: ppm | K67: ppm
C68: Draft: | E68: Pa | K68: Pa
E70: Test In | K70: Test Out
D71: Spillage:
C73: Notes:
B78: Application Version: | D78: =Development!A2 -> 1.0 | M78: Effective: | N78: =Development!A4 -> 11.14.22

Sheet Glossary
A1: ='Customer Information'!A1 -> 2023 Commercial Efficiency Program
A2: ='Customer Information'!A2:H2 -> Commercial Weatherization Rebate Application, Version 1.0
A3: Duct Sealing
A11: Air Sealing
A19: Insulation
A20: Glossary
A23: Blower Door Test: A test is performed to measure the leakage rate by depressurizing the building to a standard pressure difference of 75 Pascals or 0.3 inches of water. The flowrate indicates the leakage rate, or infiltration and exfiltration rate, of the building shell.
A26: Manometer: A tool that measures both air pressure, velocity, and air volume for a blower door test
A28: Primary Cooling System: The main, or larger cooling systems used to cool the majority of the indoor space indoor space.
A30: Primary Heating System: The main, or larger heating systems used to heat the majority of the indoor space.
A32: Secondary Cooling System: The smaller cooling system, used in cases where additional cooling is needed
A34: Secondary Heating System: The smaller heating system, used in cases where additional heat is needed
A36: Sheilding Class: Used to determine the surrounding area of the building being weatherized. The sheilding class notes if there are many surrounding buildings, trees and structures, or not.
A39: Total Duct Leakage Test: Measures how much air leakage there is for all of the ductwork connected to the HVAC system, including ducts located both outdoors and indoors. A Duct Blaster fan is used to pressurize (or depressurize) the ductwork to 25 pascals. Leave at least one door or window open between the building and outside to prevent changes in building pressure. Once a steady 25 pascals of pressure is reached in the duct system, note the manometer reading for CFM.
A89: Application Version: | C89: =Development!$A$2 -> 1.0 | K89: Effective: | L89: =Development!$A$4 -> 11.14.22

Sheet Inspection Form (hidden)
B1: ='Customer Information'!A1 -> 2023 Commercial Efficiency Program
B4: ="Inspection Form, Version "&Development!A2 -> Inspection Form, Version 1.0
B7: Performed By: | H7: Account No: | I7: =IF('Customer Information'!C5="","",'Customer Information'!C5) -> 
B10: Customer Information
B11: Account Holder Name: | C11: =IF('Customer Information'!C6="","",'Customer Information'!C6) ->  | H11: Address: | I11: =IF('Customer Information'!C7="","",'Customer Information'!C7) -> 
B13: Town: | C13: =IF('Customer Information'!I7="","",'Customer Information'!I7) ->  | H13: Phone: | I13: =IF('Customer Information'!K9="","",'Customer Information'!K9) -> 
B15: Inspector: | H15: Date:
B18: Contractor Information
B19: Company: | C19: =IF('Customer Information'!C24="","",'Customer Information'!C24) ->  | H19: Contact Name: | I19: =IF('Customer Information'!C25="","",'Customer Information'!C25) -> 
B21: Phone: | C21: =IF('Customer Information'!K26="","",'Customer Information'!K26) ->  | H21: Application ID: | I21: =IF('Customer Information'!L42="","",'Customer Information'!L42) -> 
B23: New Equipment Details
B25: Duct Sealing
B27: Location | C27: System | E27: Test In (CFM 25) | G27: Test Out (CFM 25) | I27: Notes
B28: =IF(Worksheet!D52="","",Worksheet!D52) ->  | C28: =IF(Worksheet!D62="","",IF(Qualifying_Index!F103=0,"",Qualifying_Index!H103)&IF(Qualifying_Index!G103=0,"",IF(Qualifying_Index!F103=0,Qualifying_Index!I103," & "&Qualifying_Index!I103))) -> 
B29: =IF(Worksheet!J52="","",Worksheet!J52) ->  | C29: =IF(Worksheet!J62="","",IF(Qualifying_Index!F104=0,"",Qualifying_Index!H104)&IF(Qualifying_Index!G104=0,"",IF(Qualifying_Index!F104=0,Qualifying_Index!I104," & "&Qualifying_Index!I104))) -> 
B30: =IF(Worksheet!D66="","",Worksheet!D66) ->  | C30: =IF(Worksheet!D76="","",IF(Qualifying_Index!F105=0,"",Qualifying_Index!H105)&IF(Qualifying_Index!G105=0,"",IF(Qualifying_Index!F105=0,Qualifying_Index!I105," & "&Qualifying_Index!I105))) -> 
B32: Air Sealing
B33: Enter "Yes" for areas that have been sealed between conditioned and unconditioned spaces:
B34: Windows: | F34: Flue: | J34: Kitchen Vent:
B35: Chimney: | F35: Dryer Vent: | J35: HVAC Vents:
B36: Plumbing: | F36: Wire Penetrations:
B38: Blower Door Test: | C38: Test in (CFM75): | G38: Test out (CFM75):
B40: Insulation
B42: Location | C42: Square Footage | E42: R-Value | G42: Insulation Material | I42: Notes*
B43: =IF(Worksheet!D110="","",Worksheet!D110) ->  | C43: =IF(Worksheet!D112="","",Worksheet!D112) ->  | E43: =IF(Worksheet!D116="","",Worksheet!D116) -> 
B44: =IF(Worksheet!J110="","",Worksheet!J110) ->  | C44: =IF(Worksheet!J112="","",Worksheet!J112) ->  | E44: =IF(Worksheet!J116="","",Worksheet!J116) -> 
B45: =IF(Worksheet!D120="","",Worksheet!D120) ->  | C45: =IF(Worksheet!D122="","",Worksheet!D122) ->  | E45: =IF(Worksheet!D126="","",Worksheet!D126) -> 
B46: =IF(Worksheet!J120="","",Worksheet!J120) ->  | C46: =IF(Worksheet!J122="","",Worksheet!J122) ->  | E46: =IF(Worksheet!J126="","",Worksheet!J126) -> 
B47: =IF(Worksheet!D130="","",Worksheet!D130) ->  | C47: =IF(Worksheet!D132="","",Worksheet!D132) ->  | E47: =IF(Worksheet!D136="","",Worksheet!D136) -> 
B48: *If Spray Foam is used, please not if thermal barrier or ignition is used
B50: Air Curtain
B52: New Air Curtain Installed? | D52: Length of Doorway | G52: Height of Doorway | I52: Notes
B53: =IF(Worksheet!J147="","","Yes") ->  | D53: =IF(Worksheet!D152="","",Worksheet!D152&" feet") ->  | G53: =IF(Worksheet!D154="","",Worksheet!D154&" feet") -> 
B55: Pipe Insulation
B57: Water Heater Type | C57: Length of Insulation | E57: Pipe Diameter | G57: Insulation Thickness | I57: Notes
B58: =IF(Worksheet!D168="","",Worksheet!D168) ->  | C58: =IF(Worksheet!D170="","",Worksheet!D170&" feet") ->  | E58: =IF(Worksheet!D172="","",Worksheet!D172&" inches") ->  | G58: =IF(Worksheet!D174="","",Worksheet!D174&" inches") -> 
B60: Are there breaks in the insulation, gaps between lengths, or uninsulated corners?
B61: Is the insulation fastend down with zip ties or othermeans?
B64: Notes:
B68: Customer Signature: | J68: Date:

Sheet Qualifying_Index (hidden)
A24: Worksheet tab- ASHP
C25: Cold Climate | E25: Baseline | I25: Displacement Factor | K25: New Equipment + Tier | L25: New or Retrofit | M25: Whole House Scenario? | N25: Proposed | Q25: SEER | T25: EER | V25: COP/HSPF | X25: Tier Requirements | AC25: Incentives | AF25: Contractor Incentive | AI25: Manual J btu Range | AM25: Pass/Fail | AQ25: Missing Info Lookups | AT25: QI Savings Calculations | AY25: Named Range | AZ25: Conditional Formatting | BB25: Cooling Hours | BC25: Heating hours | BE25: Savings and Beneficial Electrification Calculation
A26: Unit Number | C26: Lookup | E26: EER | F26: SEER | G26: HSPF | N26: SEER | O26: EER | P26: HSPF | Q26: Tier I | R26: Tier II | S26: Tier III | T26: Tier I | U26: Tier II | V26: Tier I | W26: Tier II | X26: SEER | Y26: EER | Z26: COP/HSPF | AC26: LMI Y/N | AD26: Customer | AE26: Contractor | AF26: Logic | AI26: Cooling | AK26: Heating | AM26: Cooling | AN26: Heating | AO26: Final | AQ26: PTHP | AR26: QIV | AS26: EO | AT26: kW C&A | AU26: kW RS | AV26: Cooling kWh | AW26: Heating kWh | BE26: Cooling kW Savings | BF26: Cooling kWh Savings | BG26: Cooling MMBTU Savings | BH26: Cooling CO2 savings (lbs) | BI26: Heating kW Savings | BJ26: Heating kWh Savings | BK26: Heating BE kW | BL26: Heating BE kWh | BM26: Heating MMBTU Savings (kWh) | BN26: Heating MMBTU Savings (fuel) | BO26: Heating MMBTU Savings Total | BP26: Heating kWh CO2 Savings (lbs) | BQ26: Heating ff CO2 Savings (lbs) | BR26: Heating CO2 Savings (lbs)
A27: 1 | C27: =IF(OR(#REF!="Ducted ccASHP",#REF!="Ductless Mini Split - ccASHP"),"Cold Climate","") ->  | E27: =IF(OR(#REF!="",#REF!="",NOT(ISNUMBER(#REF!))),IF(Qualifying_Index!AY27="PTHP",References!#REF!,IF(ISERROR(SEARCH("HP",#REF!,1)),References!#REF!,References!#REF!)),#REF!) ->  | F27: =IF(OR(#REF!="",#REF!="",NOT(ISNUMBER(#REF!))),IF(Qualifying_Index!AY27="PTHP",References!$M$12,IF(ISERROR(SEARCH("HP",#REF!,1)),References!$M$10,References!$M$9)),#REF!) ->  | G27: =IF(AND(OR(References!$H$14="Electric",References!$H$14="Air Source HP",#REF!="Air Source HP"),#REF!<>""),IF(OR(#REF!="",NOT(ISNUMBER(#REF!))),IF(Qualifying_Index!AY27="PTHP",References!$M$40,References!$M$42),#REF!),0) ->  | I27: =IF(#REF!="","",IF(OR(WholeHouse_TF=FALSE,References!H4=TRUE),References!#REF!,1)) ->  | K27: =IF(AND(References!$H$4=TRUE,OR(AY27<>"PTHP",AY27<>"Ductless",AY27<>"CAC")),#REF!&" EH"&" "&#REF!,L27&" "&#REF!&" "&#REF!&M27) ->  | L27: =IF(References!#REF!=TRUE,"Whole House",IF(RIGHT(References!#REF!,2)="HP","Retrofit","New")) ->  | M27: =IF(References!#REF!<>TRUE,"",IF(References!#REF!=2,1,IF(AND(#REF!<>"Central Air Conditioner",#REF!<>"Ducted Air Source HP",References!$H$14="Oil"),2,3))) ->  | N27: =IF(#REF!="","",#REF!) ->  | O27: =IF(#REF!="","",#REF!) ->  | P27: =IF(#REF!="","",#REF!) ->  | Q27: =IF(#REF!="","",IF(References!$H$4=TRUE,INDEX(References!#REF!,MATCH(#REF!&" EH",References!$W$7:$W$15,0)),INDEX(References!#REF!,MATCH(#REF!,References!$W$7:$W$23,0)))) ->  | R27: =IF(#REF!="","",IF(References!$H$4=TRUE,INDEX(References!#REF!,MATCH(#REF!&" EH",References!$W$7:$W$15,0)),INDEX(References!#REF!,MATCH(#REF!,References!$W$7:$W$23,0)))) ->  | S27: =IF(#REF!="","",IF(References!$H$4=TRUE,INDEX(References!#REF!,MATCH(#REF!&" EH",References!$W$7:$W$15,0)),INDEX(References!#REF!,MATCH(#REF!,References!$W$7:$W$23,0)))) ->  | T27: =IF(#REF!="","",INDEX(References!$AC$12:$AC$12,MATCH(#REF!,References!$W$7:$W$23,0))) ->  | U27: =IF(#REF!="","",INDEX(References!$AD$7:$AD$23,MATCH(#REF!,References!$W$7:$W$23,0))) ->  | V27: =IF(#REF!="","",IF(References!$H$4=TRUE,INDEX(References!$X$24:$X$24,MATCH(#REF!&" EH",References!$W$7:$W$15,0)),INDEX(References!$X$24:$X$24,MATCH(#REF!,References!$W$7:$W$23,0)))) ->  | W27: =IF(#REF!="","",IF(References!$H$4=TRUE,INDEX(References!$AB$12:$AB$12,MATCH(#REF!&" EH",References!$W$7:$W$15,0)),INDEX(References!$AB$12:$AB$12,MATCH(#REF!,References!$W$7:$W$23,0)))) ->  | X27: =IF(OR(N27="",AY27="PTHP"),"",IF(AND(N27<Q27,N27<R27),"DNQ",IF(N27>=S27,"Tier III",IF(N27>=R27,"Tier II","Tier I")))) ->  | Y27: =IF(O27="","",IF(AND(AY27="PTHP",O27<T27),"DNQ",X27)) ->  | Z27: =IF(#REF!="","",IF(V27=0,"",IF(AND(P27<V27,P27<W27),"DNQ",IF(P27>=W27,"Tier II","Tier I")))) ->  | AB27: =IF(OR(X27="DNQ",Y27="DNQ",Z27="DNQ",#REF!="FAIL"),"DNQ",IF(OR(X27="Tier I",Z27="Tier I"),"Tier I",IF(OR(X27="Tier II",Z27="Tier II"),"Tier II","Tier III"))) ->  | AC27: =References!$C$24 -> 0 | AD27: =IF(#REF!="","",IF(AB27="DNQ","DNQ",INDEX(IF(AC27="Income Eligible ",References!$AO$3:$AO$36,References!$AN$3:$AN$36),MATCH(K27,References!$AI$3:$AI$36,0))*(#REF!/12000))) ->  | AE27: =IF(#REF!="","",IF(AD27="DNQ",0,INDEX(References!$AP$3:$AP$36,MATCH(Qualifying_Index!K27,References!$AI$3:$AI$36,0)))) ->  | AF27: =IF(AE27>0,1,2) ->  | AG27: =AE27 ->  | AI27: =((#REF!*0.65)) ->  | AJ27: =((#REF!*1.35)) ->  | AK27: =IF(AND(References!#REF!=TRUE,References!$H$4=FALSE),(#REF!*1),#REF!*0.65) ->  | AL27: =IF(AND(References!#REF!=TRUE,References!$H$4=FALSE),(#REF!*1.3),#REF!*1.35) ->  | AM27: =IF(AND(#REF!>=Qualifying_Index!AI27,#REF!<=Qualifying_Index!AJ27),"PASS","FAIL") ->  | AN27: =IF(OR(AK27=0,AL27=0),"FAIL",IF(AND(IF(AND(References!#REF!=TRUE,References!$H$4=FALSE),#REF!,#REF!)>=AK27,IF(References!#REF!=TRUE,#REF!,#REF!)<=AL27),"PASS","FAIL")) ->  | AO27: =IF(References!#REF!=TRUE,IF(AND(#REF!="",#REF!=""),"Missing Info",IF(AN27="PASS","PASS","FAIL")),IF(AND(#REF!="",#REF!="",LEFT(#REF!,6)="Ducted"),"Missing Info",IF(OR(AM27="PASS",AN27="PASS",LEFT(#REF!,6)<>"Ducted"),"PASS","FAIL"))) ->  | AQ27: =IF(OR(#REF!="",#REF!="",#REF!="",#REF!="",#REF!="",#REF!="",#REF!="",#REF!="",#REF!="",#REF!=""),"Missing Info","") ->  | AR27: =IF(AND(AZ27=1,#REF!=""),"Missing Info",IF(AY27="PTHP",AQ27,IF(OR(#REF!="",#REF!="",#REF!="",#REF!="",#REF!="",#REF!="",#REF!="",#REF!="",#REF!="",AO27="Missing Info"),"Missing Info",""))) ->  | AS27: =IF(AND(AZ27=1,#REF!=""),"Missing Info",IF(AY27="PTHP",AQ27,IF(OR(#REF!="",#REF!="",#REF!="",#REF!="",#REF!="",#REF!="",#REF!="",#REF!=""),"Missing Info",""))) ->  | AT27: =IF(OR(#REF!="",#REF!=""),"",IF(OR(#REF!="Ducted ASHP",#REF!="Ducted ccASHP"),#REF!/12000*(12/#REF!)*kW_CA,0)) ->  | AU27: =IF(#REF!="","",IF(OR(#REF!=""),"",#REF!*(12/#REF!)*kW_RS)) ->  | AV27: =IF(OR(#REF!="",#REF!="",#REF!=""),"",IF(OR(#REF!="Ducted ASHP",#REF!="Ducted ccASHP"),#REF!/12000*(12/#REF!*FLH_Cool)*QI_kWh,0)) ->  | AW27: =IF(OR(#REF!="",#REF!="",#REF!=""),"",IF(OR(#REF!="Ducted ASHP",#REF!="Ducted ccASHP"),#REF!/12000*(12/#REF!*FLH_Heat)*QI_kWh,0)) ->  | AY27: =IF(#REF!="","",INDEX(References!$AF$7:$AF$23,MATCH(#REF!,Equipment_Type,0))) ->  | AZ27: =IF(#REF!="","",INDEX(References!$AE$7:$AE$23,MATCH(#REF!,Equipment_Type,0))) ->  | BB27: =IF(WholeHouse_TF=FALSE,References!#REF!,IF(References!$H$14="New Construction",FLH_Cool,IF(References!$H$14="",0,References!#REF!))) ->  | BC27: =IF(WholeHouse_TF=FALSE,References!#REF!,IF(References!$H$14="New Construction",FLH_Heat,IF(References!$H$14="",0,References!#REF!))) ->  | BE27: =IF(OR($AO27="FAIL",#REF!="",AO27="Missing Info",AB27="DNQ"),0,((#REF!/12000)*((12/E27)-(12/O27)))+SUM(AT27:AU27)) ->  | BF27: =IF(OR($AO27="FAIL",#REF!="",AO27="Missing Info",AB27="DNQ"),0,IF(AY27="PTHP",((#REF!/12000)*(12/E27-12/O27)*BB27),(((#REF!/12000)*((12/F27)-(12/N27))*BB27))+AV27)) ->  | BG27: =IF(OR($AO27="FAIL",#REF!="",AO27="Missing Info",AB27="DNQ"),0,BF27*References!$E$12/1000) ->  | BH27: =BF27*References!$A$12 ->  | BI27: =IF(OR($AO27="FAIL",#REF!="",AO27="Missing Info",AB27="DNQ",References!#REF!=FALSE),0,((#REF!/12000)*((1/(G27/3.412))-(1/(P27/3.412))))+SUM(AT27:AU27)) ->  | BJ27: =IF(OR($AO27="FAIL",#REF!="",AO27="Missing Info",AB27="DNQ"),0,IF(References!#REF!=FALSE,AW27,((#REF!/12000)*((12/G27)-(12/P27))*BC27*I27)+AW27)) ->  | BK27: =IF(OR($AO27="FAIL",#REF!="",AO27="Missing Info",AB27="DNQ",References!#REF!=FALSE),0,-((#REF!/12000)*(1/(P27/3.412)))) ->  | BL27: =IF(OR($AO27="FAIL",#REF!="",AO27="Missing Info",AB27="DNQ",References!#REF!=FALSE),0,((#REF!/12000)*(12/P27)*(BC27*I27))-(#REF!*BC27/1000000)*References!#REF!*I27) ->  | BM27: =IF(OR($AO27="FAIL",AO27="Missing Info",#REF!=""),0,IF(References!#REF!=TRUE,BJ27*References!$E$12/1000,((BJ27-BL27)*References!$E$12/1000))) ->  | BN27: =IF(OR($AO27="FAIL",AO27="Missing Info",#REF!=""),0,IF(References!#REF!=TRUE,((#REF!*BC27/References!$M$42)/1000000)*I27,0)) ->  | BO27: =BM27+BN27 ->  | BP27: =(BJ27-BL27)*References!$A$12 ->  | BQ27: =BN27*References!$N$42*References!$A$15 ->  | BR27: =IF(References!#REF!=TRUE,(BN27*References!$N$42*References!$A$15)-(BL27*References!$A$12),BJ27*References!$A$12) -> 
A28: =A27+1 -> 2 | C28: =IF(OR(#REF!="Ducted ccASHP",#REF!="Ductless Mini Split - ccASHP"),"Cold Climate","") ->  | E28: =IF(OR(#REF!="",#REF!="",NOT(ISNUMBER(#REF!))),IF(Qualifying_Index!AY28="PTHP",References!#REF!,IF(ISERROR(SEARCH("HP",#REF!,1)),References!#REF!,References!#REF!)),#REF!) ->  | F28: =IF(OR(#REF!="",#REF!="",NOT(ISNUMBER(#REF!))),IF(Qualifying_Index!AY28="PTHP",References!$M$12,IF(ISERROR(SEARCH("HP",#REF!,1)),References!$M$10,References!$M$9)),#REF!) ->  | G28: =IF(AND(OR(References!$H$14="Electric",References!$H$14="Air Source HP",#REF!="Air Source HP"),#REF!<>""),IF(OR(#REF!="",NOT(ISNUMBER(#REF!))),IF(Qualifying_Index!AY28="PTHP",References!$M$40,References!$M$42),#REF!),0) ->  | I28: =IF(#REF!="","",IF(OR(WholeHouse_TF=FALSE,References!H5=TRUE),References!#REF!,1)) ->  | K28: =IF(AND(References!$H$4=TRUE,OR(AY28<>"PTHP",AY28<>"Ductless",AY28<>"CAC")),#REF!&" EH"&" "&#REF!,L28&" "&#REF!&" "&#REF!&M28) ->  | L28: =IF(References!#REF!=TRUE,"Whole House",IF(RIGHT(References!#REF!,2)="HP","Retrofit","New")) ->  | M28: =IF(References!#REF!<>TRUE,"",IF(References!#REF!=2,1,IF(AND(#REF!<>"Central Air Conditioner",#REF!<>"Ducted Air Source HP",References!$H$14="Oil"),2,3))) ->  | N28: =IF(#REF!="","",#REF!) ->  | O28: =IF(#REF!="","",#REF!) ->  | P28: =IF(#REF!="","",#REF!) ->  | Q28: =IF(#REF!="","",IF(References!$H$4=TRUE,INDEX(References!#REF!,MATCH(#REF!&" EH",References!$W$7:$W$15,0)),INDEX(References!#REF!,MATCH(#REF!,References!$W$7:$W$23,0)))) ->  | R28: =IF(#REF!="","",IF(References!$H$4=TRUE,INDEX(References!#REF!,MATCH(#REF!&" EH",References!$W$7:$W$15,0)),INDEX(References!#REF!,MATCH(#REF!,References!$W$7:$W$23,0)))) ->  | S28: =IF(#REF!="","",IF(References!$H$4=TRUE,INDEX(References!#REF!,MATCH(#REF!&" EH",References!$W$7:$W$15,0)),INDEX(References!#REF!,MATCH(#REF!,References!$W$7:$W$23,0)))) ->  | T28: =IF(#REF!="","",INDEX(References!$AC$12:$AC$12,MATCH(#REF!,References!$W$7:$W$23,0))) ->  | U28: =IF(#REF!="","",INDEX(References!$AD$7:$AD$23,MATCH(#REF!,References!$W$7:$W$23,0))) ->  | V28: =IF(#REF!="","",IF(References!$H$4=TRUE,INDEX(References!$X$24:$X$24,MATCH(#REF!&" EH",References!$W$7:$W$15,0)),INDEX(References!$X$24:$X$24,MATCH(#REF!,References!$W$7:$W$23,0)))) ->  | W28: =IF(#REF!="","",IF(References!$H$4=TRUE,INDEX(References!$AB$12:$AB$12,MATCH(#REF!&" EH",References!$W$7:$W$15,0)),INDEX(References!$AB$12:$AB$12,MATCH(#REF!,References!$W$7:$W$23,0)))) ->  | Z28: =IF(#REF!="","",IF(V28=0,"",IF(AND(P28<V28,P28<W28),"DNQ",IF(P28>=W28,"Tier II","Tier I")))) ->  | AB28: =IF(OR(X28="DNQ",Y28="DNQ",Z28="DNQ",#REF!="FAIL"),"DNQ",IF(OR(X28="Tier I",Z28="Tier I"),"Tier I",IF(OR(X28="Tier II",Z28="Tier II"),"Tier II","Tier III"))) ->  | AC28: =References!$C$24 -> 0 | AD28: =IF(#REF!="","",IF(AB28="DNQ","DNQ",INDEX(IF(AC28="Income Eligible ",References!$AO$3:$AO$36,References!$AN$3:$AN$36),MATCH(K28,References!$AI$3:$AI$36,0))*(#REF!/12000))) ->  | AE28: =IF(#REF!="","",IF(AD28="DNQ",0,INDEX(References!$AP$3:$AP$36,MATCH(Qualifying_Index!K28,References!$AI$3:$AI$36,0)))) ->  | AG28: =IF(COUNTIF(AF27,1),0,AE28) ->  | AI28: =((#REF!*0.65)) ->  | AJ28: =((#REF!*1.35)) ->  | AK28: =IF(AND(References!#REF!=TRUE,References!$H$4=FALSE),(#REF!*1),#REF!*0.65) ->  | AL28: =IF(AND(References!#REF!=TRUE,References!$H$4=FALSE),(#REF!*1.3),#REF!*1.35) ->  | AM28: =IF(AND(#REF!>=Qualifying_Index!AI28,#REF!<=Qualifying_Index!AJ28),"PASS","FAIL") ->  | AN28: =IF(OR(AK28=0,AL28=0),"FAIL",IF(AND(IF(AND(References!#REF!=TRUE,References!$H$4=FALSE),#REF!,#REF!)>=AK28,IF(References!#REF!=TRUE,#REF!,#REF!)<=AL28),"PASS","FAIL")) ->  | AO28: =IF(References!#REF!=TRUE,IF(AND(#REF!="",#REF!=""),"Missing Info",IF(AN28="PASS","PASS","FAIL")),IF(AND(#REF!="",#REF!="",LEFT(#REF!,6)="Ducted"),"Missing Info",IF(OR(AM28="PASS",AN28="PASS",LEFT(#REF!,6)<>"Ducted"),"PASS","FAIL"))) ->  | AQ28: =IF(OR(#REF!="",#REF!="",#REF!="",#REF!="",#REF!="",#REF!="",#REF!="",#REF!="",#REF!="",#REF!=""),"Missing Info","") ->  | AR28: =IF(AND(AZ28=1,#REF!=""),"Missing Info",IF(AY28="PTHP",AQ28,IF(OR(#REF!="",#REF!="",#REF!="",#REF!="",#REF!="",#REF!="",#REF!="",#REF!="",#REF!="",AO28="Missing Info"),"Missing Info",""))) ->  | AS28: =IF(AND(AZ28=1,#REF!=""),"Missing Info",IF(AY28="PTHP",AQ28,IF(OR(#REF!="",#REF!="",#REF!="",#REF!="",#REF!="",#REF!="",#REF!="",#REF!=""),"Missing Info",""))) ->  | AT28: =IF(OR(#REF!="",#REF!=""),"",IF(OR(#REF!="Ducted ASHP",#REF!="Ducted ccASHP"),#REF!/12000*(12/#REF!)*kW_CA,0)) ->  | AU28: =IF(#REF!="","",IF(OR(#REF!=""),"",#REF!*(12/#REF!)*kW_RS)) ->  | AV28: =IF(OR(#REF!="",#REF!="",#REF!=""),"",IF(OR(#REF!="Ducted ASHP",#REF!="Ducted ccASHP"),#REF!/12000*(12/#REF!*FLH_Cool)*QI_kWh,0)) ->  | AW28: =IF(OR(#REF!="",#REF!="",#REF!=""),"",IF(OR(#REF!="Ducted ASHP",#REF!="Ducted ccASHP"),#REF!/12000*(12/#REF!*FLH_Heat)*QI_kWh,0)) ->  | AY28: =IF(#REF!="","",INDEX(References!$AF$7:$AF$23,MATCH(#REF!,Equipment_Type,0))) ->  | AZ28: =IF(#REF!="","",INDEX(References!$AE$7:$AE$23,MATCH(#REF!,Equipment_Type,0))) ->  | BB28: =IF(WholeHouse_TF=FALSE,References!#REF!,IF(References!$H$14="New Construction",FLH_Cool,IF(References!$H$14="",0,References!#REF!))) ->  | BC28: =IF(WholeHouse_TF=FALSE,References!#REF!,IF(References!$H$14="New Construction",FLH_Heat,IF(References!$H$14="",0,References!#REF!))) ->  | BE28: =IF(OR($AO28="FAIL",#REF!="",AO28="Missing Info",AB28="DNQ"),0,((#REF!/12000)*((12/E28)-(12/O28)))+SUM(AT28:AU28)) ->  | BF28: =IF(OR($AO28="FAIL",#REF!="",AO28="Missing Info",AB28="DNQ"),0,IF(AY28="PTHP",((#REF!/12000)*(12/E28-12/O28)*BB28),(((#REF!/12000)*((12/F28)-(12/N28))*BB28))+AV28)) ->  | BG28: =IF(OR($AO28="FAIL",#REF!="",AO28="Missing Info",AB28="DNQ"),0,BF28*References!$E$12/1000) ->  | BH28: =BF28*References!$A$12 ->  | BI28: =IF(OR($AO28="FAIL",#REF!="",AO28="Missing Info",AB28="DNQ",References!#REF!=FALSE),0,((#REF!/12000)*((1/(G28/3.412))-(1/(P28/3.412))))+SUM(AT28:AU28)) ->  | BJ28: =IF(OR($AO28="FAIL",#REF!="",AO28="Missing Info",AB28="DNQ"),0,IF(References!#REF!=FALSE,AW28,((#REF!/12000)*((12/G28)-(12/P28))*BC28*I28)+AW28)) ->  | BK28: =IF(OR($AO28="FAIL",#REF!="",AO28="Missing Info",AB28="DNQ",References!#REF!=FALSE),0,-((#REF!/12000)*(1/(P28/3.412)))) ->  | BL28: =IF(OR($AO28="FAIL",#REF!="",AO28="Missing Info",AB28="DNQ",References!#REF!=FALSE),0,((#REF!/12000)*(12/P28)*(BC28*I28))-(#REF!*BC28/1000000)*References!#REF!*I28) ->  | BM28: =IF(OR($AO28="FAIL",AO28="Missing Info",#REF!=""),0,IF(References!#REF!=TRUE,BJ28*References!$E$12/1000,((BJ28-BL28)*References!$E$12/1000))) ->  | BN28: =IF(OR($AO28="FAIL",AO28="Missing Info",#REF!=""),0,IF(References!#REF!=TRUE,((#REF!*BC28/References!$M$42)/1000000)*I28,0)) ->  | BO28: =BM28+BN28 ->  | BP28: =(BJ28-BL28)*References!$A$12 ->  | BQ28: =BN28*References!$N$42*References!$A$15 ->  | BR28: =IF(References!#REF!=TRUE,(BN28*References!$N$42*References!$A$15)-(BL28*References!$A$12),BJ28*References!$A$12) -> 
A29: =A28+1 -> 3 | C29: =IF(OR(#REF!="Ducted ccASHP",#REF!="Ductless Mini Split - ccASHP"),"Cold Climate","") ->  | E29: =IF(OR(#REF!="",#REF!="",NOT(ISNUMBER(#REF!))),IF(Qualifying_Index!AY29="PTHP",References!#REF!,IF(ISERROR(SEARCH("HP",#REF!,1)),References!#REF!,References!#REF!)),#REF!) ->  | F29: =IF(OR(#REF!="",#REF!="",NOT(ISNUMBER(#REF!))),IF(Qualifying_Index!AY29="PTHP",References!$M$12,IF(ISERROR(SEARCH("HP",#REF!,1)),References!$M$10,References!$M$9)),#REF!) ->  | G29: =IF(AND(OR(References!$H$14="Electric",References!$H$14="Air Source HP",#REF!="Air Source HP"),#REF!<>""),IF(OR(#REF!="",NOT(ISNUMBER(#REF!))),IF(Qualifying_Index!AY29="PTHP",References!$M$40,References!$M$42),#REF!),0) ->  | I29: =IF(#REF!="","",IF(OR(WholeHouse_TF=FALSE,References!H6=TRUE),References!#REF!,1)) ->  | K29: =IF(AND(References!$H$4=TRUE,OR(AY29<>"PTHP",AY29<>"Ductless",AY29<>"CAC")),#REF!&" EH"&" "&#REF!,L29&" "&#REF!&" "&#REF!&M29) ->  | L29: =IF(References!#REF!=TRUE,"Whole House",IF(RIGHT(References!#REF!,2)="HP","Retrofit","New")) ->  | M29: =IF(References!#REF!<>TRUE,"",IF(References!#REF!=2,1,IF(AND(#REF!<>"Central Air Conditioner",#REF!<>"Ducted Air Source HP",References!$H$14="Oil"),2,3))) ->  | N29: =IF(#REF!="","",#REF!) ->  | O29: =IF(#REF!="","",#REF!) ->  | P29: =IF(#REF!="","",#REF!) ->  | Q29: =IF(#REF!="","",IF(References!$H$4=TRUE,INDEX(References!#REF!,MATCH(#REF!&" EH",References!$W$7:$W$15,0)),INDEX(References!#REF!,MATCH(#REF!,References!$W$7:$W$23,0)))) ->  | R29: =IF(#REF!="","",IF(References!$H$4=TRUE,INDEX(References!#REF!,MATCH(#REF!&" EH",References!$W$7:$W$15,0)),INDEX(References!#REF!,MATCH(#REF!,References!$W$7:$W$23,0)))) ->  | S29: =IF(#REF!="","",IF(References!$H$4=TRUE,INDEX(References!#REF!,MATCH(#REF!&" EH",References!$W$7:$W$15,0)),INDEX(References!#REF!,MATCH(#REF!,References!$W$7:$W$23,0)))) ->  | T29: =IF(#REF!="","",INDEX(References!$AC$12:$AC$12,MATCH(#REF!,References!$W$7:$W$23,0))) ->  | U29: =IF(#REF!="","",INDEX(References!$AD$7:$AD$23,MATCH(#REF!,References!$W$7:$W$23,0))) ->  | V29: =IF(#REF!="","",IF(References!$H$4=TRUE,INDEX(References!$X$24:$X$24,MATCH(#REF!&" EH",References!$W$7:$W$15,0)),INDEX(References!$X$24:$X$24,MATCH(#REF!,References!$W$7:$W$23,0)))) ->  | W29: =IF(#REF!="","",IF(References!$H$4=TRUE,INDEX(References!$AB$12:$AB$12,MATCH(#REF!&" EH",References!$W$7:$W$15,0)),INDEX(References!$AB$12:$AB$12,MATCH(#REF!,References!$W$7:$W$23,0)))) ->  | Z29: =IF(#REF!="","",IF(V29=0,"",IF(AND(P29<V29,P29<W29),"DNQ",IF(P29>=W29,"Tier II","Tier I")))) ->  | AB29: =IF(OR(X29="DNQ",Y29="DNQ",Z29="DNQ",#REF!="FAIL"),"DNQ",IF(OR(X29="Tier I",Z29="Tier I"),"Tier I",IF(OR(X29="Tier II",Z29="Tier II"),"Tier II","Tier III"))) ->  | AC29: =References!$C$24 -> 0 | AD29: =IF(#REF!="","",IF(AB29="DNQ","DNQ",INDEX(IF(AC29="Income Eligible ",References!$AO$3:$AO$36,References!$AN$3:$AN$36),MATCH(K29,References!$AI$3:$AI$36,0))*(#REF!/12000))) ->  | AE29: =IF(#REF!="","",IF(AD29="DNQ",0,INDEX(References!$AP$3:$AP$36,MATCH(Qualifying_Index!K29,References!$AI$3:$AI$36,0)))) ->  | AG29: =IF(COUNTIF(AF27:AF28,1),0,AE29) ->  | AI29: =((#REF!*0.65)) ->  | AJ29: =((#REF!*1.35)) ->  | AK29: =IF(AND(References!#REF!=TRUE,References!$H$4=FALSE),(#REF!*1),#REF!*0.65) ->  | AL29: =IF(AND(References!#REF!=TRUE,References!$H$4=FALSE),(#REF!*1.3),#REF!*1.35) ->  | AM29: =IF(AND(#REF!>=Qualifying_Index!AI29,#REF!<=Qualifying_Index!AJ29),"PASS","FAIL") ->  | AN29: =IF(OR(AK29=0,AL29=0),"FAIL",IF(AND(IF(AND(References!#REF!=TRUE,References!$H$4=FALSE),#REF!,#REF!)>=AK29,IF(References!#REF!=TRUE,#REF!,#REF!)<=AL29),"PASS","FAIL")) ->  | AO29: =IF(References!#REF!=TRUE,IF(AND(#REF!="",#REF!=""),"Missing Info",IF(AN29="PASS","PASS","FAIL")),IF(AND(#REF!="",#REF!="",LEFT(#REF!,6)="Ducted"),"Missing Info",IF(OR(AM29="PASS",AN29="PASS",LEFT(#REF!,6)<>"Ducted"),"PASS","FAIL"))) ->  | AQ29: =IF(OR(#REF!="",#REF!="",#REF!="",#REF!="",#REF!="",#REF!="",#REF!="",#REF!="",#REF!="",#REF!=""),"Missing Info","") ->  | AR29: =IF(AND(AZ29=1,#REF!=""),"Missing Info",IF(AY29="PTHP",AQ29,IF(OR(#REF!="",#REF!="",#REF!="",#REF!="",#REF!="",#REF!="",#REF!="",#REF!="",#REF!="",AO29="Missing Info"),"Missing Info",""))) ->  | AS29: =IF(AND(AZ29=1,#REF!=""),"Missing Info",IF(AY29="PTHP",AQ29,IF(OR(#REF!="",#REF!="",#REF!="",#REF!="",#REF!="",#REF!="",#REF!="",#REF!=""),"Missing Info",""))) ->  | AT29: =IF(OR(#REF!="",#REF!=""),"",IF(OR(#REF!="Ducted ASHP",#REF!="Ducted ccASHP"),#REF!/12000*(12/#REF!)*kW_CA,0)) ->  | AU29: =IF(#REF!="","",IF(OR(#REF!=""),"",#REF!*(12/#REF!)*kW_RS)) ->  | AV29: =IF(OR(#REF!="",#REF!="",#REF!=""),"",IF(OR(#REF!="Ducted ASHP",#REF!="Ducted ccASHP"),#REF!/12000*(12/#REF!*FLH_Cool)*QI_kWh,0)) ->  | AW29: =IF(OR(#REF!="",#REF!="",#REF!=""),"",IF(OR(#REF!="Ducted ASHP",#REF!="Ducted ccASHP"),#REF!/12000*(12/#REF!*FLH_Heat)*QI_kWh,0)) ->  | AY29: =IF(#REF!="","",INDEX(References!$AF$7:$AF$23,MATCH(#REF!,Equipment_Type,0))) ->  | AZ29: =IF(#REF!="","",INDEX(References!$AE$7:$AE$23,MATCH(#REF!,Equipment_Type,0))) ->  | BB29: =IF(WholeHouse_TF=FALSE,References!#REF!,IF(References!$H$14="New Construction",FLH_Cool,IF(References!$H$14="",0,References!#REF!))) ->  | BC29: =IF(WholeHouse_TF=FALSE,References!#REF!,IF(References!$H$14="New Construction",FLH_Heat,IF(References!$H$14="",0,References!#REF!))) ->  | BE29: =IF(OR($AO29="FAIL",#REF!="",AO29="Missing Info",AB29="DNQ"),0,((#REF!/12000)*((12/E29)-(12/O29)))+SUM(AT29:AU29)) ->  | BF29: =IF(OR($AO29="FAIL",#REF!="",AO29="Missing Info",AB29="DNQ"),0,IF(AY29="PTHP",((#REF!/12000)*(12/E29-12/O29)*BB29),(((#REF!/12000)*((12/F29)-(12/N29))*BB29))+AV29)) ->  | BG29: =IF(OR($AO29="FAIL",#REF!="",AO29="Missing Info",AB29="DNQ"),0,BF29*References!$E$12/1000) ->  | BH29: =BF29*References!$A$12 ->  | BI29: =IF(OR($AO29="FAIL",#REF!="",AO29="Missing Info",AB29="DNQ",References!#REF!=FALSE),0,((#REF!/12000)*((1/(G29/3.412))-(1/(P29/3.412))))+SUM(AT29:AU29)) ->  | BJ29: =IF(OR($AO29="FAIL",#REF!="",AO29="Missing Info",AB29="DNQ"),0,IF(References!#REF!=FALSE,AW29,((#REF!/12000)*((12/G29)-(12/P29))*BC29*I29)+AW29)) ->  | BK29: =IF(OR($AO29="FAIL",#REF!="",AO29="Missing Info",AB29="DNQ",References!#REF!=FALSE),0,-((#REF!/12000)*(1/(P29/3.412)))) ->  | BL29: =IF(OR($AO29="FAIL",#REF!="",AO29="Missing Info",AB29="DNQ",References!#REF!=FALSE),0,((#REF!/12000)*(12/P29)*(BC29*I29))-(#REF!*BC29/1000000)*References!#REF!*I29) ->  | BM29: =IF(OR($AO29="FAIL",AO29="Missing Info",#REF!=""),0,IF(References!#REF!=TRUE,BJ29*References!$E$12/1000,((BJ29-BL29)*References!$E$12/1000))) ->  | BN29: =IF(OR($AO29="FAIL",AO29="Missing Info",#REF!=""),0,IF(References!#REF!=TRUE,((#REF!*BC29/References!$M$42)/1000000)*I29,0)) ->  | BP29: =(BJ29-BL29)*References!$A$12 ->  | BQ29: =BN29*References!$N$42*References!$A$15 ->  | BR29: =IF(References!#REF!=TRUE,(BN29*References!$N$42*References!$A$15)-(BL29*References!$A$12),BJ29*References!$A$12) -> 
A30: 4 | C30: =IF(OR(#REF!="Ducted ccASHP",#REF!="Ductless Mini Split - ccASHP"),"Cold Climate","") ->  | E30: =IF(OR(#REF!="",#REF!="",NOT(ISNUMBER(#REF!))),IF(Qualifying_Index!AY30="PTHP",References!#REF!,IF(ISERROR(SEARCH("HP",#REF!,1)),References!#REF!,References!#REF!)),#REF!) ->  | F30: =IF(OR(#REF!="",#REF!="",NOT(ISNUMBER(#REF!))),IF(Qualifying_Index!AY30="PTHP",References!$M$12,IF(ISERROR(SEARCH("HP",#REF!,1)),References!$M$10,References!$M$9)),#REF!) ->  | G30: =IF(AND(OR(References!$H$14="Electric",References!$H$14="Air Source HP",#REF!="Air Source HP"),#REF!<>""),IF(OR(#REF!="",NOT(ISNUMBER(#REF!))),IF(Qualifying_Index!AY30="PTHP",References!$M$40,References!$M$42),#REF!),0) ->  | I30: =IF(#REF!="","",IF(OR(WholeHouse_TF=FALSE,References!H7=TRUE),References!#REF!,1)) ->  | K30: =IF(AND(References!$H$4=TRUE,OR(AY30<>"PTHP",AY30<>"Ductless",AY30<>"CAC")),#REF!&" EH"&" "&#REF!,L30&" "&#REF!&" "&#REF!&M30) ->  | L30: =IF(References!#REF!=TRUE,"Whole House",IF(RIGHT(References!#REF!,2)="HP","Retrofit","New")) ->  | M30: =IF(References!#REF!<>TRUE,"",IF(References!#REF!=2,1,IF(AND(#REF!<>"Central Air Conditioner",#REF!<>"Ducted Air Source HP",References!$H$14="Oil"),2,3))) ->  | N30: =IF(#REF!="","",#REF!) ->  | O30: =IF(#REF!="","",#REF!) ->  | P30: =IF(#REF!="","",#REF!) ->  | Q30: =IF(#REF!="","",IF(References!$H$4=TRUE,INDEX(References!#REF!,MATCH(#REF!&" EH",References!$W$7:$W$15,0)),INDEX(References!#REF!,MATCH(#REF!,References!$W$7:$W$23,0)))) ->  | R30: =IF(#REF!="","",IF(References!$H$4=TRUE,INDEX(References!#REF!,MATCH(#REF!&" EH",References!$W$7:$W$15,0)),INDEX(References!#REF!,MATCH(#REF!,References!$W$7:$W$23,0)))) ->  | S30: =IF(#REF!="","",IF(References!$H$4=TRUE,INDEX(References!#REF!,MATCH(#REF!&" EH",References!$W$7:$W$15,0)),INDEX(References!#REF!,MATCH(#REF!,References!$W$7:$W$23,0)))) ->  | T30: =IF(#REF!="","",INDEX(References!$AC$12:$AC$12,MATCH(#REF!,References!$W$7:$W$23,0))) ->  | U30: =IF(#REF!="","",INDEX(References!$AD$7:$AD$23,MATCH(#REF!,References!$W$7:$W$23,0))) ->  | V30: =IF(#REF!="","",IF(References!$H$4=TRUE,INDEX(References!$X$24:$X$24,MATCH(#REF!&" EH",References!$W$7:$W$15,0)),INDEX(References!$X$24:$X$24,MATCH(#REF!,References!$W$7:$W$23,0)))) ->  | W30: =IF(#REF!="","",IF(References!$H$4=TRUE,INDEX(References!$AB$12:$AB$12,MATCH(#REF!&" EH",References!$W$7:$W$15,0)),INDEX(References!$AB$12:$AB$12,MATCH(#REF!,References!$W$7:$W$23,0)))) ->  | Z30: =IF(#REF!="","",IF(V30=0,"",IF(AND(P30<V30,P30<W30),"DNQ",IF(P30>=W30,"Tier II","Tier I")))) ->  | AB30: =IF(OR(X30="DNQ",Y30="DNQ",Z30="DNQ",#REF!="FAIL"),"DNQ",IF(OR(X30="Tier I",Z30="Tier I"),"Tier I",IF(OR(X30="Tier II",Z30="Tier II"),"Tier II","Tier III"))) ->  | AC30: =References!$C$24 -> 0 | AD30: =IF(#REF!="","",IF(AB30="DNQ","DNQ",INDEX(IF(AC30="Income Eligible ",References!$AO$3:$AO$36,References!$AN$3:$AN$36),MATCH(K30,References!$AI$3:$AI$36,0))*(#REF!/12000))) ->  | AE30: =IF(#REF!="","",IF(AD30="DNQ",0,INDEX(References!$AP$3:$AP$36,MATCH(Qualifying_Index!K30,References!$AI$3:$AI$36,0)))) ->  | AG30: =IF(COUNTIF(AF27:AF29,1),0,AE30) ->  | AI30: =((#REF!*0.65)) ->  | AJ30: =((#REF!*1.35)) ->  | AK30: =IF(AND(References!#REF!=TRUE,References!$H$4=FALSE),(#REF!*1),#REF!*0.65) ->  | AL30: =IF(AND(References!#REF!=TRUE,References!$H$4=FALSE),(#REF!*1.3),#REF!*1.35) ->  | AM30: =IF(AND(#REF!>=Qualifying_Index!AI30,#REF!<=Qualifying_Index!AJ30),"PASS","FAIL") ->  | AN30: =IF(OR(AK30=0,AL30=0),"FAIL",IF(AND(IF(AND(References!#REF!=TRUE,References!$H$4=FALSE),#REF!,#REF!)>=AK30,IF(References!#REF!=TRUE,#REF!,#REF!)<=AL30),"PASS","FAIL")) ->  | AO30: =IF(References!#REF!=TRUE,IF(AND(#REF!="",#REF!=""),"Missing Info",IF(AN30="PASS","PASS","FAIL")),IF(AND(#REF!="",#REF!="",LEFT(#REF!,6)="Ducted"),"Missing Info",IF(OR(AM30="PASS",AN30="PASS",LEFT(#REF!,6)<>"Ducted"),"PASS","FAIL"))) ->  | AQ30: =IF(OR(#REF!="",#REF!="",#REF!="",#REF!="",#REF!="",#REF!="",#REF!="",#REF!="",#REF!="",#REF!=""),"Missing Info","") ->  | AR30: =IF(AND(AZ30=1,#REF!=""),"Missing Info",IF(AY30="PTHP",AQ30,IF(OR(#REF!="",#REF!="",#REF!="",#REF!="",#REF!="",#REF!="",#REF!="",#REF!="",#REF!="",AO30="Missing Info"),"Missing Info",""))) ->  | AS30: =IF(AND(AZ30=1,#REF!=""),"Missing Info",IF(AY30="PTHP",AQ30,IF(OR(#REF!="",#REF!="",#REF!="",#REF!="",#REF!="",#REF!="",#REF!="",#REF!=""),"Missing Info",""))) ->  | AT30: =IF(OR(#REF!="",#REF!=""),"",IF(OR(#REF!="Ducted ASHP",#REF!="Ducted ccASHP"),#REF!/12000*(12/#REF!)*kW_CA,0)) ->  | AU30: =IF(#REF!="","",IF(OR(#REF!=""),"",#REF!*(12/#REF!)*kW_RS)) ->  | AV30: =IF(OR(#REF!="",#REF!="",#REF!=""),"",IF(OR(#REF!="Ducted ASHP",#REF!="Ducted ccASHP"),#REF!/12000*(12/#REF!*FLH_Cool)*QI_kWh,0)) ->  | AW30: =IF(OR(#REF!="",#REF!="",#REF!=""),"",IF(OR(#REF!="Ducted ASHP",#REF!="Ducted ccASHP"),#REF!/12000*(12/#REF!*FLH_Heat)*QI_kWh,0)) ->  | AY30: =IF(#REF!="","",INDEX(References!$AF$7:$AF$23,MATCH(#REF!,Equipment_Type,0))) ->  | AZ30: =IF(#REF!="","",INDEX(References!$AE$7:$AE$23,MATCH(#REF!,Equipment_Type,0))) ->  | BB30: =IF(WholeHouse_TF=FALSE,References!#REF!,IF(References!$H$14="New Construction",FLH_Cool,IF(References!$H$14="",0,References!#REF!))) ->  | BC30: =IF(WholeHouse_TF=FALSE,References!#REF!,IF(References!$H$14="New Construction",FLH_Heat,IF(References!$H$14="",0,References!#REF!))) ->  | BE30: =IF(OR($AO30="FAIL",#REF!="",AO30="Missing Info",AB30="DNQ"),0,((#REF!/12000)*((12/E30)-(12/O30)))+SUM(AT30:AU30)) ->  | BF30: =IF(OR($AO30="FAIL",#REF!="",AO30="Missing Info",AB30="DNQ"),0,IF(AY30="PTHP",((#REF!/12000)*(12/E30-12/O30)*BB30),(((#REF!/12000)*((12/F30)-(12/N30))*BB30))+AV30)) ->  | BG30: =IF(OR($AO30="FAIL",#REF!="",AO30="Missing Info",AB30="DNQ"),0,BF30*References!$E$12/1000) ->  | BH30: =BF30*References!$A$12 ->  | BI30: =IF(OR($AO30="FAIL",#REF!="",AO30="Missing Info",AB30="DNQ",References!#REF!=FALSE),0,((#REF!/12000)*((1/(G30/3.412))-(1/(P30/3.412))))+SUM(AT30:AU30)) ->  | BJ30: =IF(OR($AO30="FAIL",#REF!="",AO30="Missing Info",AB30="DNQ"),0,IF(References!#REF!=FALSE,AW30,((#REF!/12000)*((12/G30)-(12/P30))*BC30*I30)+AW30)) ->  | BK30: =IF(OR($AO30="FAIL",#REF!="",AO30="Missing Info",AB30="DNQ",References!#REF!=FALSE),0,-((#REF!/12000)*(1/(P30/3.412)))) ->  | BL30: =IF(OR($AO30="FAIL",#REF!="",AO30="Missing Info",AB30="DNQ",References!#REF!=FALSE),0,((#REF!/12000)*(12/P30)*(BC30*I30))-(#REF!*BC30/1000000)*References!#REF!*I30) ->  | BM30: =IF(OR($AO30="FAIL",AO30="Missing Info",#REF!=""),0,IF(References!#REF!=TRUE,BJ30*References!$E$12/1000,((BJ30-BL30)*References!$E$12/1000))) ->  | BN30: =IF(OR($AO30="FAIL",AO30="Missing Info",#REF!=""),0,IF(References!#REF!=TRUE,((#REF!*BC30/References!$M$42)/1000000)*I30,0)) ->  | BP30: =(BJ30-BL30)*References!$A$12 ->  | BQ30: =BN30*References!$N$42*References!$A$15 ->  | BR30: =IF(References!#REF!=TRUE,(BN30*References!$N$42*References!$A$15)-(BL30*References!$A$12),BJ30*References!$A$12) -> 
A31: 5 | C31: =IF(OR(#REF!="Ducted ccASHP",#REF!="Ductless Mini Split - ccASHP"),"Cold Climate","") ->  | E31: =IF(OR(#REF!="",#REF!="",NOT(ISNUMBER(#REF!))),IF(Qualifying_Index!AY31="PTHP",References!#REF!,IF(ISERROR(SEARCH("HP",#REF!,1)),References!#REF!,References!#REF!)),#REF!) ->  | F31: =IF(OR(#REF!="",#REF!="",NOT(ISNUMBER(#REF!))),IF(Qualifying_Index!AY31="PTHP",References!$M$12,IF(ISERROR(SEARCH("HP",#REF!,1)),References!$M$10,References!$M$9)),#REF!) ->  | G31: =IF(AND(OR(References!$H$14="Electric",References!$H$14="Air Source HP",#REF!="Air Source HP"),#REF!<>""),IF(OR(#REF!="",NOT(ISNUMBER(#REF!))),IF(Qualifying_Index!AY31="PTHP",References!$M$40,References!$M$42),#REF!),0) ->  | I31: =IF(#REF!="","",IF(OR(WholeHouse_TF=FALSE,References!H8=TRUE),References!#REF!,1)) ->  | K31: =IF(AND(References!$H$4=TRUE,OR(AY31<>"PTHP",AY31<>"Ductless",AY31<>"CAC")),#REF!&" EH"&" "&#REF!,L31&" "&#REF!&" "&#REF!&M31) ->  | L31: =IF(References!#REF!=TRUE,"Whole House",IF(RIGHT(References!#REF!,2)="HP","Retrofit","New")) ->  | M31: =IF(References!#REF!<>TRUE,"",IF(References!#REF!=2,1,IF(AND(#REF!<>"Central Air Conditioner",#REF!<>"Ducted Air Source HP",References!$H$14="Oil"),2,3))) ->  | N31: =IF(#REF!="","",#REF!) ->  | O31: =IF(#REF!="","",#REF!) ->  | P31: =IF(#REF!="","",#REF!) ->  | Q31: =IF(#REF!="","",IF(References!$H$4=TRUE,INDEX(References!#REF!,MATCH(#REF!&" EH",References!$W$7:$W$15,0)),INDEX(References!#REF!,MATCH(#REF!,References!$W$7:$W$23,0)))) ->  | R31: =IF(#REF!="","",IF(References!$H$4=TRUE,INDEX(References!#REF!,MATCH(#REF!&" EH",References!$W$7:$W$15,0)),INDEX(References!#REF!,MATCH(#REF!,References!$W$7:$W$23,0)))) ->  | S31: =IF(#REF!="","",IF(References!$H$4=TRUE,INDEX(References!#REF!,MATCH(#REF!&" EH",References!$W$7:$W$15,0)),INDEX(References!#REF!,MATCH(#REF!,References!$W$7:$W$23,0)))) ->  | T31: =IF(#REF!="","",INDEX(References!$AC$12:$AC$12,MATCH(#REF!,References!$W$7:$W$23,0))) ->  | U31: =IF(#REF!="","",INDEX(References!$AD$7:$AD$23,MATCH(#REF!,References!$W$7:$W$23,0))) ->  | V31: =IF(#REF!="","",IF(References!$H$4=TRUE,INDEX(References!$X$24:$X$24,MATCH(#REF!&" EH",References!$W$7:$W$15,0)),INDEX(References!$X$24:$X$24,MATCH(#REF!,References!$W$7:$W$23,0)))) ->  | W31: =IF(#REF!="","",IF(References!$H$4=TRUE,INDEX(References!$AB$12:$AB$12,MATCH(#REF!&" EH",References!$W$7:$W$15,0)),INDEX(References!$AB$12:$AB$12,MATCH(#REF!,References!$W$7:$W$23,0)))) ->  | Z31: =IF(#REF!="","",IF(V31=0,"",IF(AND(P31<V31,P31<W31),"DNQ",IF(P31>=W31,"Tier II","Tier I")))) ->  | AB31: =IF(OR(X31="DNQ",Y31="DNQ",Z31="DNQ",#REF!="FAIL"),"DNQ",IF(OR(X31="Tier I",Z31="Tier I"),"Tier I",IF(OR(X31="Tier II",Z31="Tier II"),"Tier II","Tier III"))) ->  | AC31: =References!$C$24 -> 0 | AD31: =IF(#REF!="","",IF(AB31="DNQ","DNQ",INDEX(IF(AC31="Income Eligible ",References!$AO$3:$AO$36,References!$AN$3:$AN$36),MATCH(K31,References!$AI$3:$AI$36,0))*(#REF!/12000))) ->  | AE31: =IF(#REF!="","",IF(AD31="DNQ",0,INDEX(References!$AP$3:$AP$36,MATCH(Qualifying_Index!K31,References!$AI$3:$AI$36,0)))) ->  | AG31: =IF(COUNTIF(AF27:AF30,1),0,AE31) ->  | AI31: =((#REF!*0.65)) ->  | AJ31: =((#REF!*1.35)) ->  | AK31: =IF(AND(References!#REF!=TRUE,References!$H$4=FALSE),(#REF!*1),#REF!*0.65) ->  | AL31: =IF(AND(References!#REF!=TRUE,References!$H$4=FALSE),(#REF!*1.3),#REF!*1.35) ->  | AM31: =IF(AND(#REF!>=Qualifying_Index!AI31,#REF!<=Qualifying_Index!AJ31),"PASS","FAIL") ->  | AN31: =IF(OR(AK31=0,AL31=0),"FAIL",IF(AND(IF(AND(References!#REF!=TRUE,References!$H$4=FALSE),#REF!,#REF!)>=AK31,IF(References!#REF!=TRUE,#REF!,#REF!)<=AL31),"PASS","FAIL")) ->  | AO31: =IF(References!#REF!=TRUE,IF(AND(#REF!="",#REF!=""),"Missing Info",IF(AN31="PASS","PASS","FAIL")),IF(AND(#REF!="",#REF!="",LEFT(#REF!,6)="Ducted"),"Missing Info",IF(OR(AM31="PASS",AN31="PASS",LEFT(#REF!,6)<>"Ducted"),"PASS","FAIL"))) ->  | AQ31: =IF(OR(#REF!="",#REF!="",#REF!="",#REF!="",#REF!="",#REF!="",#REF!="",#REF!="",#REF!="",#REF!=""),"Missing Info","") ->  | AR31: =IF(AND(AZ31=1,#REF!=""),"Missing Info",IF(AY31="PTHP",AQ31,IF(OR(#REF!="",#REF!="",#REF!="",#REF!="",#REF!="",#REF!="",#REF!="",#REF!="",#REF!="",AO31="Missing Info"),"Missing Info",""))) ->  | AS31: =IF(AND(AZ31=1,#REF!=""),"Missing Info",IF(AY31="PTHP",AQ31,IF(OR(#REF!="",#REF!="",#REF!="",#REF!="",#REF!="",#REF!="",#REF!="",#REF!=""),"Missing Info",""))) ->  | AT31: =IF(OR(#REF!="",#REF!=""),"",IF(OR(#REF!="Ducted ASHP",#REF!="Ducted ccASHP"),#REF!/12000*(12/#REF!)*kW_CA,0)) ->  | AU31: =IF(#REF!="","",IF(OR(#REF!=""),"",#REF!*(12/#REF!)*kW_RS)) ->  | AV31: =IF(OR(#REF!="",#REF!="",#REF!=""),"",IF(OR(#REF!="Ducted ASHP",#REF!="Ducted ccASHP"),#REF!/12000*(12/#REF!*FLH_Cool)*QI_kWh,0)) ->  | AW31: =IF(OR(#REF!="",#REF!="",#REF!=""),"",IF(OR(#REF!="Ducted ASHP",#REF!="Ducted ccASHP"),#REF!/12000*(12/#REF!*FLH_Heat)*QI_kWh,0)) ->  | AY31: =IF(#REF!="","",INDEX(References!$AF$7:$AF$23,MATCH(#REF!,Equipment_Type,0))) ->  | AZ31: =IF(#REF!="","",INDEX(References!$AE$7:$AE$23,MATCH(#REF!,Equipment_Type,0))) ->  | BB31: =IF(WholeHouse_TF=FALSE,References!#REF!,IF(References!$H$14="New Construction",FLH_Cool,IF(References!$H$14="",0,References!#REF!))) ->  | BC31: =IF(WholeHouse_TF=FALSE,References!#REF!,IF(References!$H$14="New Construction",FLH_Heat,IF(References!$H$14="",0,References!#REF!))) ->  | BE31: =IF(OR($AO31="FAIL",#REF!="",AO31="Missing Info",AB31="DNQ"),0,((#REF!/12000)*((12/E31)-(12/O31)))+SUM(AT31:AU31)) ->  | BF31: =IF(OR($AO31="FAIL",#REF!="",AO31="Missing Info",AB31="DNQ"),0,IF(AY31="PTHP",((#REF!/12000)*(12/E31-12/O31)*BB31),(((#REF!/12000)*((12/F31)-(12/N31))*BB31))+AV31)) ->  | BG31: =IF(OR($AO31="FAIL",#REF!="",AO31="Missing Info",AB31="DNQ"),0,BF31*References!$E$12/1000) ->  | BH31: =BF31*References!$A$12 ->  | BI31: =IF(OR($AO31="FAIL",#REF!="",AO31="Missing Info",AB31="DNQ",References!#REF!=FALSE),0,((#REF!/12000)*((1/(G31/3.412))-(1/(P31/3.412))))+SUM(AT31:AU31)) ->  | BJ31: =IF(OR($AO31="FAIL",#REF!="",AO31="Missing Info",AB31="DNQ"),0,IF(References!#REF!=FALSE,AW31,((#REF!/12000)*((12/G31)-(12/P31))*BC31*I31)+AW31)) ->  | BK31: =IF(OR($AO31="FAIL",#REF!="",AO31="Missing Info",AB31="DNQ",References!#REF!=FALSE),0,-((#REF!/12000)*(1/(P31/3.412)))) ->  | BL31: =IF(OR($AO31="FAIL",#REF!="",AO31="Missing Info",AB31="DNQ",References!#REF!=FALSE),0,((#REF!/12000)*(12/P31)*(BC31*I31))-(#REF!*BC31/1000000)*References!#REF!*I31) ->  | BM31: =IF(OR($AO31="FAIL",AO31="Missing Info",#REF!=""),0,IF(References!#REF!=TRUE,BJ31*References!$E$12/1000,((BJ31-BL31)*References!$E$12/1000))) ->  | BN31: =IF(OR($AO31="FAIL",AO31="Missing Info",#REF!=""),0,IF(References!#REF!=TRUE,((#REF!*BC31/References!$M$42)/1000000)*I31,0)) ->  | BP31: =(BJ31-BL31)*References!$A$12 ->  | BQ31: =BN31*References!$N$42*References!$A$15 ->  | BR31: =IF(References!#REF!=TRUE,(BN31*References!$N$42*References!$A$15)-(BL31*References!$A$12),BJ31*References!$A$12) -> 
A32: 6 | C32: =IF(OR(#REF!="Ducted ccASHP",#REF!="Ductless Mini Split - ccASHP"),"Cold Climate","") ->  | E32: =IF(OR(#REF!="",#REF!="",NOT(ISNUMBER(#REF!))),IF(Qualifying_Index!AY32="PTHP",References!#REF!,IF(ISERROR(SEARCH("HP",#REF!,1)),References!#REF!,References!#REF!)),#REF!) ->  | F32: =IF(OR(#REF!="",#REF!="",NOT(ISNUMBER(#REF!))),IF(Qualifying_Index!AY32="PTHP",References!$M$12,IF(ISERROR(SEARCH("HP",#REF!,1)),References!$M$10,References!$M$9)),#REF!) ->  | G32: =IF(AND(OR(References!$H$14="Electric",References!$H$14="Air Source HP",#REF!="Air Source HP"),#REF!<>""),IF(OR(#REF!="",NOT(ISNUMBER(#REF!))),IF(Qualifying_Index!AY32="PTHP",References!$M$40,References!$M$42),#REF!),0) ->  | I32: =IF(#REF!="","",IF(OR(WholeHouse_TF=FALSE,References!H9=TRUE),References!#REF!,1)) ->  | K32: =IF(AND(References!$H$4=TRUE,OR(AY32<>"PTHP",AY32<>"Ductless",AY32<>"CAC")),#REF!&" EH"&" "&#REF!,L32&" "&#REF!&" "&#REF!&M32) ->  | L32: =IF(References!#REF!=TRUE,"Whole House",IF(RIGHT(References!#REF!,2)="HP","Retrofit","New")) ->  | M32: =IF(References!#REF!<>TRUE,"",IF(References!#REF!=2,1,IF(AND(#REF!<>"Central Air Conditioner",#REF!<>"Ducted Air Source HP",References!$H$14="Oil"),2,3))) ->  | N32: =IF(#REF!="","",#REF!) ->  | O32: =IF(#REF!="","",#REF!) ->  | P32: =IF(#REF!="","",#REF!) ->  | Q32: =IF(#REF!="","",IF(References!$H$4=TRUE,INDEX(References!#REF!,MATCH(#REF!&" EH",References!$W$7:$W$15,0)),INDEX(References!#REF!,MATCH(#REF!,References!$W$7:$W$23,0)))) ->  | R32: =IF(#REF!="","",IF(References!$H$4=TRUE,INDEX(References!#REF!,MATCH(#REF!&" EH",References!$W$7:$W$15,0)),INDEX(References!#REF!,MATCH(#REF!,References!$W$7:$W$23,0)))) ->  | S32: =IF(#REF!="","",IF(References!$H$4=TRUE,INDEX(References!#REF!,MATCH(#REF!&" EH",References!$W$7:$W$15,0)),INDEX(References!#REF!,MATCH(#REF!,References!$W$7:$W$23,0)))) ->  | T32: =IF(#REF!="","",INDEX(References!$AC$12:$AC$12,MATCH(#REF!,References!$W$7:$W$23,0))) ->  | U32: =IF(#REF!="","",INDEX(References!$AD$7:$AD$23,MATCH(#REF!,References!$W$7:$W$23,0))) ->  | V32: =IF(#REF!="","",IF(References!$H$4=TRUE,INDEX(References!$X$24:$X$24,MATCH(#REF!&" EH",References!$W$7:$W$15,0)),INDEX(References!$X$24:$X$24,MATCH(#REF!,References!$W$7:$W$23,0)))) ->  | W32: =IF(#REF!="","",IF(References!$H$4=TRUE,INDEX(References!$AB$12:$AB$12,MATCH(#REF!&" EH",References!$W$7:$W$15,0)),INDEX(References!$AB$12:$AB$12,MATCH(#REF!,References!$W$7:$W$23,0)))) ->  | Z32: =IF(#REF!="","",IF(V32=0,"",IF(AND(P32<V32,P32<W32),"DNQ",IF(P32>=W32,"Tier II","Tier I")))) ->  | AB32: =IF(OR(X32="DNQ",Y32="DNQ",Z32="DNQ",#REF!="FAIL"),"DNQ",IF(OR(X32="Tier I",Z32="Tier I"),"Tier I",IF(OR(X32="Tier II",Z32="Tier II"),"Tier II","Tier III"))) ->  | AC32: =References!$C$24 -> 0 | AD32: =IF(#REF!="","",IF(AB32="DNQ","DNQ",INDEX(IF(AC32="Income Eligible ",References!$AO$3:$AO$36,References!$AN$3:$AN$36),MATCH(K32,References!$AI$3:$AI$36,0))*(#REF!/12000))) ->  | AE32: =IF(#REF!="","",IF(AD32="DNQ",0,INDEX(References!$AP$3:$AP$36,MATCH(Qualifying_Index!K32,References!$AI$3:$AI$36,0)))) ->  | AG32: =IF(COUNTIF(AF27:AF31,1),0,AE32) ->  | AI32: =((#REF!*0.65)) ->  | AJ32: =((#REF!*1.35)) ->  | AK32: =IF(AND(References!#REF!=TRUE,References!$H$4=FALSE),(#REF!*1),#REF!*0.65) ->  | AL32: =IF(AND(References!#REF!=TRUE,References!$H$4=FALSE),(#REF!*1.3),#REF!*1.35) ->  | AM32: =IF(AND(#REF!>=Qualifying_Index!AI32,#REF!<=Qualifying_Index!AJ32),"PASS","FAIL") ->  | AN32: =IF(OR(AK32=0,AL32=0),"FAIL",IF(AND(IF(AND(References!#REF!=TRUE,References!$H$4=FALSE),#REF!,#REF!)>=AK32,IF(References!#REF!=TRUE,#REF!,#REF!)<=AL32),"PASS","FAIL")) ->  | AO32: =IF(References!#REF!=TRUE,IF(AND(#REF!="",#REF!=""),"Missing Info",IF(AN32="PASS","PASS","FAIL")),IF(AND(#REF!="",#REF!="",LEFT(#REF!,6)="Ducted"),"Missing Info",IF(OR(AM32="PASS",AN32="PASS",LEFT(#REF!,6)<>"Ducted"),"PASS","FAIL"))) ->  | AQ32: =IF(OR(#REF!="",#REF!="",#REF!="",#REF!="",#REF!="",#REF!="",#REF!="",#REF!="",#REF!="",#REF!=""),"Missing Info","") ->  | AR32: =IF(AND(AZ32=1,#REF!=""),"Missing Info",IF(AY32="PTHP",AQ32,IF(OR(#REF!="",#REF!="",#REF!="",#REF!="",#REF!="",#REF!="",#REF!="",#REF!="",#REF!="",AO32="Missing Info"),"Missing Info",""))) ->  | AS32: =IF(AND(AZ32=1,#REF!=""),"Missing Info",IF(AY32="PTHP",AQ32,IF(OR(#REF!="",#REF!="",#REF!="",#REF!="",#REF!="",#REF!="",#REF!="",#REF!=""),"Missing Info",""))) ->  | AT32: =IF(OR(#REF!="",#REF!=""),"",IF(OR(#REF!="Ducted ASHP",#REF!="Ducted ccASHP"),#REF!/12000*(12/#REF!)*kW_CA,0)) ->  | AU32: =IF(#REF!="","",IF(OR(#REF!=""),"",#REF!*(12/#REF!)*kW_RS)) ->  | AV32: =IF(OR(#REF!="",#REF!="",#REF!=""),"",IF(OR(#REF!="Ducted ASHP",#REF!="Ducted ccASHP"),#REF!/12000*(12/#REF!*FLH_Cool)*QI_kWh,0)) ->  | AW32: =IF(OR(#REF!="",#REF!="",#REF!=""),"",IF(OR(#REF!="Ducted ASHP",#REF!="Ducted ccASHP"),#REF!/12000*(12/#REF!*FLH_Heat)*QI_kWh,0)) ->  | AY32: =IF(#REF!="","",INDEX(References!$AF$7:$AF$23,MATCH(#REF!,Equipment_Type,0))) ->  | AZ32: =IF(#REF!="","",INDEX(References!$AE$7:$AE$23,MATCH(#REF!,Equipment_Type,0))) ->  | BB32: =IF(WholeHouse_TF=FALSE,References!#REF!,IF(References!$H$14="New Construction",FLH_Cool,IF(References!$H$14="",0,References!#REF!))) ->  | BC32: =IF(WholeHouse_TF=FALSE,References!#REF!,IF(References!$H$14="New Construction",FLH_Heat,IF(References!$H$14="",0,References!#REF!))) ->  | BE32: =IF(OR($AO32="FAIL",#REF!="",AO32="Missing Info",AB32="DNQ"),0,((#REF!/12000)*((12/E32)-(12/O32)))+SUM(AT32:AU32)) ->  | BF32: =IF(OR($AO32="FAIL",#REF!="",AO32="Missing Info",AB32="DNQ"),0,IF(AY32="PTHP",((#REF!/12000)*(12/E32-12/O32)*BB32),(((#REF!/12000)*((12/F32)-(12/N32))*BB32))+AV32)) ->  | BG32: =IF(OR($AO32="FAIL",#REF!="",AO32="Missing Info",AB32="DNQ"),0,BF32*References!$E$12/1000) ->  | BH32: =BF32*References!$A$12 ->  | BI32: =IF(OR($AO32="FAIL",#REF!="",AO32="Missing Info",AB32="DNQ",References!#REF!=FALSE),0,((#REF!/12000)*((1/(G32/3.412))-(1/(P32/3.412))))+SUM(AT32:AU32)) ->  | BJ32: =IF(OR($AO32="FAIL",#REF!="",AO32="Missing Info",AB32="DNQ"),0,IF(References!#REF!=FALSE,AW32,((#REF!/12000)*((12/G32)-(12/P32))*BC32*I32)+AW32)) ->  | BK32: =IF(OR($AO32="FAIL",#REF!="",AO32="Missing Info",AB32="DNQ",References!#REF!=FALSE),0,-((#REF!/12000)*(1/(P32/3.412)))) ->  | BL32: =IF(OR($AO32="FAIL",#REF!="",AO32="Missing Info",AB32="DNQ",References!#REF!=FALSE),0,((#REF!/12000)*(12/P32)*(BC32*I32))-(#REF!*BC32/1000000)*References!#REF!*I32) ->  | BM32: =IF(OR($AO32="FAIL",AO32="Missing Info",#REF!=""),0,IF(References!#REF!=TRUE,BJ32*References!$E$12/1000,((BJ32-BL32)*References!$E$12/1000))) ->  | BN32: =IF(OR($AO32="FAIL",AO32="Missing Info",#REF!=""),0,IF(References!#REF!=TRUE,((#REF!*BC32/References!$M$42)/1000000)*I32,0)) ->  | BP32: =(BJ32-BL32)*References!$A$12 ->  | BQ32: =BN32*References!$N$42*References!$A$15 ->  | BR32: =IF(References!#REF!=TRUE,(BN32*References!$N$42*References!$A$15)-(BL32*References!$A$12),BJ32*References!$A$12) -> 
A33: 7 | C33: =IF(OR(#REF!="Ducted ccASHP",#REF!="Ductless Mini Split - ccASHP"),"Cold Climate","") ->  | E33: =IF(OR(#REF!="",#REF!="",NOT(ISNUMBER(#REF!))),IF(Qualifying_Index!AY33="PTHP",References!#REF!,IF(ISERROR(SEARCH("HP",#REF!,1)),References!#REF!,References!#REF!)),#REF!) ->  | F33: =IF(OR(#REF!="",#REF!="",NOT(ISNUMBER(#REF!))),IF(Qualifying_Index!AY33="PTHP",References!$M$12,IF(ISERROR(SEARCH("HP",#REF!,1)),References!$M$10,References!$M$9)),#REF!) ->  | G33: =IF(AND(OR(References!$H$14="Electric",References!$H$14="Air Source HP",#REF!="Air Source HP"),#REF!<>""),IF(OR(#REF!="",NOT(ISNUMBER(#REF!))),IF(Qualifying_Index!AY33="PTHP",References!$M$40,References!$M$42),#REF!),0) ->  | I33: =IF(#REF!="","",IF(OR(WholeHouse_TF=FALSE,References!H10=TRUE),References!#REF!,1)) ->  | K33: =IF(AND(References!$H$4=TRUE,OR(AY33<>"PTHP",AY33<>"Ductless",AY33<>"CAC")),#REF!&" EH"&" "&#REF!,L33&" "&#REF!&" "&#REF!&M33) ->  | L33: =IF(References!#REF!=TRUE,"Whole House",IF(RIGHT(References!#REF!,2)="HP","Retrofit","New")) ->  | M33: =IF(References!#REF!<>TRUE,"",IF(References!#REF!=2,1,IF(AND(#REF!<>"Central Air Conditioner",#REF!<>"Ducted Air Source HP",References!$H$14="Oil"),2,3))) ->  | N33: =IF(#REF!="","",#REF!) ->  | O33: =IF(#REF!="","",#REF!) ->  | P33: =IF(#REF!="","",#REF!) ->  | Q33: =IF(#REF!="","",IF(References!$H$4=TRUE,INDEX(References!#REF!,MATCH(#REF!&" EH",References!$W$7:$W$15,0)),INDEX(References!#REF!,MATCH(#REF!,References!$W$7:$W$23,0)))) ->  | R33: =IF(#REF!="","",IF(References!$H$4=TRUE,INDEX(References!#REF!,MATCH(#REF!&" EH",References!$W$7:$W$15,0)),INDEX(References!#REF!,MATCH(#REF!,References!$W$7:$W$23,0)))) ->  | S33: =IF(#REF!="","",IF(References!$H$4=TRUE,INDEX(References!#REF!,MATCH(#REF!&" EH",References!$W$7:$W$15,0)),INDEX(References!#REF!,MATCH(#REF!,References!$W$7:$W$23,0)))) ->  | T33: =IF(#REF!="","",INDEX(References!$AC$12:$AC$12,MATCH(#REF!,References!$W$7:$W$23,0))) ->  | U33: =IF(#REF!="","",INDEX(References!$AD$7:$AD$23,MATCH(#REF!,References!$W$7:$W$23,0))) ->  | V33: =IF(#REF!="","",IF(References!$H$4=TRUE,INDEX(References!$X$24:$X$24,MATCH(#REF!&" EH",References!$W$7:$W$15,0)),INDEX(References!$X$24:$X$24,MATCH(#REF!,References!$W$7:$W$23,0)))) ->  | W33: =IF(#REF!="","",IF(References!$H$4=TRUE,INDEX(References!$AB$12:$AB$12,MATCH(#REF!&" EH",References!$W$7:$W$15,0)),INDEX(References!$AB$12:$AB$12,MATCH(#REF!,References!$W$7:$W$23,0)))) ->  | Z33: =IF(#REF!="","",IF(V33=0,"",IF(AND(P33<V33,P33<W33),"DNQ",IF(P33>=W33,"Tier II","Tier I")))) ->  | AB33: =IF(OR(X33="DNQ",Y33="DNQ",Z33="DNQ",#REF!="FAIL"),"DNQ",IF(OR(X33="Tier I",Z33="Tier I"),"Tier I",IF(OR(X33="Tier II",Z33="Tier II"),"Tier II","Tier III"))) ->  | AC33: =References!$C$24 -> 0 | AD33: =IF(#REF!="","",IF(AB33="DNQ","DNQ",INDEX(IF(AC33="Income Eligible ",References!$AO$3:$AO$36,References!$AN$3:$AN$36),MATCH(K33,References!$AI$3:$AI$36,0))*(#REF!/12000))) ->  | AE33: =IF(#REF!="","",IF(AD33="DNQ",0,INDEX(References!$AP$3:$AP$36,MATCH(Qualifying_Index!K33,References!$AI$3:$AI$36,0)))) ->  | AG33: =IF(COUNTIF(AF27:AF32,1),0,AE33) ->  | AI33: =((#REF!*0.65)) ->  | AJ33: =((#REF!*1.35)) ->  | AK33: =IF(AND(References!#REF!=TRUE,References!$H$4=FALSE),(#REF!*1),#REF!*0.65) ->  | AL33: =IF(AND(References!#REF!=TRUE,References!$H$4=FALSE),(#REF!*1.3),#REF!*1.35) ->  | AM33: =IF(AND(#REF!>=Qualifying_Index!AI33,#REF!<=Qualifying_Index!AJ33),"PASS","FAIL") ->  | AN33: =IF(OR(AK33=0,AL33=0),"FAIL",IF(AND(IF(AND(References!#REF!=TRUE,References!$H$4=FALSE),#REF!,#REF!)>=AK33,IF(References!#REF!=TRUE,#REF!,#REF!)<=AL33),"PASS","FAIL")) ->  | AO33: =IF(References!#REF!=TRUE,IF(AND(#REF!="",#REF!=""),"Missing Info",IF(AN33="PASS","PASS","FAIL")),IF(AND(#REF!="",#REF!="",LEFT(#REF!,6)="Ducted"),"Missing Info",IF(OR(AM33="PASS",AN33="PASS",LEFT(#REF!,6)<>"Ducted"),"PASS","FAIL"))) ->  | AQ33: =IF(OR(#REF!="",#REF!="",#REF!="",#REF!="",#REF!="",#REF!="",#REF!="",#REF!="",#REF!="",#REF!=""),"Missing Info","") ->  | AR33: =IF(AND(AZ33=1,#REF!=""),"Missing Info",IF(AY33="PTHP",AQ33,IF(OR(#REF!="",#REF!="",#REF!="",#REF!="",#REF!="",#REF!="",#REF!="",#REF!="",#REF!="",AO33="Missing Info"),"Missing Info",""))) ->  | AS33: =IF(AND(AZ33=1,#REF!=""),"Missing Info",IF(AY33="PTHP",AQ33,IF(OR(#REF!="",#REF!="",#REF!="",#REF!="",#REF!="",#REF!="",#REF!="",#REF!=""),"Missing Info",""))) ->  | AT33: =IF(OR(#REF!="",#REF!=""),"",IF(OR(#REF!="Ducted ASHP",#REF!="Ducted ccASHP"),#REF!/12000*(12/#REF!)*kW_CA,0)) ->  | AU33: =IF(#REF!="","",IF(OR(#REF!=""),"",#REF!*(12/#REF!)*kW_RS)) ->  | AV33: =IF(OR(#REF!="",#REF!="",#REF!=""),"",IF(OR(#REF!="Ducted ASHP",#REF!="Ducted ccASHP"),#REF!/12000*(12/#REF!*FLH_Cool)*QI_kWh,0)) ->  | AW33: =IF(OR(#REF!="",#REF!="",#REF!=""),"",IF(OR(#REF!="Ducted ASHP",#REF!="Ducted ccASHP"),#REF!/12000*(12/#REF!*FLH_Heat)*QI_kWh,0)) ->  | AY33: =IF(#REF!="","",INDEX(References!$AF$7:$AF$23,MATCH(#REF!,Equipment_Type,0))) ->  | AZ33: =IF(#REF!="","",INDEX(References!$AE$7:$AE$23,MATCH(#REF!,Equipment_Type,0))) ->  | BB33: =IF(WholeHouse_TF=FALSE,References!#REF!,IF(References!$H$14="New Construction",FLH_Cool,IF(References!$H$14="",0,References!#REF!))) ->  | BC33: =IF(WholeHouse_TF=FALSE,References!#REF!,IF(References!$H$14="New Construction",FLH_Heat,IF(References!$H$14="",0,References!#REF!))) ->  | BE33: =IF(OR($AO33="FAIL",#REF!="",AO33="Missing Info",AB33="DNQ"),0,((#REF!/12000)*((12/E33)-(12/O33)))+SUM(AT33:AU33)) ->  | BF33: =IF(OR($AO33="FAIL",#REF!="",AO33="Missing Info",AB33="DNQ"),0,IF(AY33="PTHP",((#REF!/12000)*(12/E33-12/O33)*BB33),(((#REF!/12000)*((12/F33)-(12/N33))*BB33))+AV33)) ->  | BG33: =IF(OR($AO33="FAIL",#REF!="",AO33="Missing Info",AB33="DNQ"),0,BF33*References!$E$12/1000) ->  | BH33: =BF33*References!$A$12 ->  | BI33: =IF(OR($AO33="FAIL",#REF!="",AO33="Missing Info",AB33="DNQ",References!#REF!=FALSE),0,((#REF!/12000)*((1/(G33/3.412))-(1/(P33/3.412))))+SUM(AT33:AU33)) ->  | BJ33: =IF(OR($AO33="FAIL",#REF!="",AO33="Missing Info",AB33="DNQ"),0,IF(References!#REF!=FALSE,AW33,((#REF!/12000)*((12/G33)-(12/P33))*BC33*I33)+AW33)) ->  | BK33: =IF(OR($AO33="FAIL",#REF!="",AO33="Missing Info",AB33="DNQ",References!#REF!=FALSE),0,-((#REF!/12000)*(1/(P33/3.412)))) ->  | BL33: =IF(OR($AO33="FAIL",#REF!="",AO33="Missing Info",AB33="DNQ",References!#REF!=FALSE),0,((#REF!/12000)*(12/P33)*(BC33*I33))-(#REF!*BC33/1000000)*References!#REF!*I33) ->  | BM33: =IF(OR($AO33="FAIL",AO33="Missing Info",#REF!=""),0,IF(References!#REF!=TRUE,BJ33*References!$E$12/1000,((BJ33-BL33)*References!$E$12/1000))) ->  | BN33: =IF(OR($AO33="FAIL",AO33="Missing Info",#REF!=""),0,IF(References!#REF!=TRUE,((#REF!*BC33/References!$M$42)/1000000)*I33,0)) ->  | BP33: =(BJ33-BL33)*References!$A$12 ->  | BQ33: =BN33*References!$N$42*References!$A$15 ->  | BR33: =IF(References!#REF!=TRUE,(BN33*References!$N$42*References!$A$15)-(BL33*References!$A$12),BJ33*References!$A$12) -> 
A34: 8 | C34: =IF(OR(#REF!="Ducted ccASHP",#REF!="Ductless Mini Split - ccASHP"),"Cold Climate","") ->  | E34: =IF(OR(#REF!="",#REF!="",NOT(ISNUMBER(#REF!))),IF(Qualifying_Index!AY34="PTHP",References!#REF!,IF(ISERROR(SEARCH("HP",#REF!,1)),References!#REF!,References!#REF!)),#REF!) ->  | F34: =IF(OR(#REF!="",#REF!="",NOT(ISNUMBER(#REF!))),IF(Qualifying_Index!AY34="PTHP",References!$M$12,IF(ISERROR(SEARCH("HP",#REF!,1)),References!$M$10,References!$M$9)),#REF!) ->  | G34: =IF(AND(OR(References!$H$14="Electric",References!$H$14="Air Source HP",#REF!="Air Source HP"),#REF!<>""),IF(OR(#REF!="",NOT(ISNUMBER(#REF!))),IF(Qualifying_Index!AY34="PTHP",References!$M$40,References!$M$42),#REF!),0) ->  | I34: =IF(#REF!="","",IF(OR(WholeHouse_TF=FALSE,References!H11=TRUE),References!#REF!,1)) ->  | K34: =IF(AND(References!$H$4=TRUE,OR(AY34<>"PTHP",AY34<>"Ductless",AY34<>"CAC")),#REF!&" EH"&" "&#REF!,L34&" "&#REF!&" "&#REF!&M34) ->  | L34: =IF(References!#REF!=TRUE,"Whole House",IF(RIGHT(References!#REF!,2)="HP","Retrofit","New")) ->  | M34: =IF(References!#REF!<>TRUE,"",IF(References!#REF!=2,1,IF(AND(#REF!<>"Central Air Conditioner",#REF!<>"Ducted Air Source HP",References!$H$14="Oil"),2,3))) ->  | N34: =IF(#REF!="","",#REF!) ->  | O34: =IF(#REF!="","",#REF!) ->  | P34: =IF(#REF!="","",#REF!) ->  | Q34: =IF(#REF!="","",IF(References!$H$4=TRUE,INDEX(References!#REF!,MATCH(#REF!&" EH",References!$W$7:$W$15,0)),INDEX(References!#REF!,MATCH(#REF!,References!$W$7:$W$23,0)))) ->  | R34: =IF(#REF!="","",IF(References!$H$4=TRUE,INDEX(References!#REF!,MATCH(#REF!&" EH",References!$W$7:$W$15,0)),INDEX(References!#REF!,MATCH(#REF!,References!$W$7:$W$23,0)))) ->  | S34: =IF(#REF!="","",IF(References!$H$4=TRUE,INDEX(References!#REF!,MATCH(#REF!&" EH",References!$W$7:$W$15,0)),INDEX(References!#REF!,MATCH(#REF!,References!$W$7:$W$23,0)))) ->  | T34: =IF(#REF!="","",INDEX(References!$AC$12:$AC$12,MATCH(#REF!,References!$W$7:$W$23,0))) ->  | U34: =IF(#REF!="","",INDEX(References!$AD$7:$AD$23,MATCH(#REF!,References!$W$7:$W$23,0))) ->  | V34: =IF(#REF!="","",IF(References!$H$4=TRUE,INDEX(References!$X$24:$X$24,MATCH(#REF!&" EH",References!$W$7:$W$15,0)),INDEX(References!$X$24:$X$24,MATCH(#REF!,References!$W$7:$W$23,0)))) ->  | W34: =IF(#REF!="","",IF(References!$H$4=TRUE,INDEX(References!$AB$12:$AB$12,MATCH(#REF!&" EH",References!$W$7:$W$15,0)),INDEX(References!$AB$12:$AB$12,MATCH(#REF!,References!$W$7:$W$23,0)))) ->  | Z34: =IF(#REF!="","",IF(V34=0,"",IF(AND(P34<V34,P34<W34),"DNQ",IF(P34>=W34,"Tier II","Tier I")))) ->  | AB34: =IF(OR(X34="DNQ",Y34="DNQ",Z34="DNQ",#REF!="FAIL"),"DNQ",IF(OR(X34="Tier I",Z34="Tier I"),"Tier I",IF(OR(X34="Tier II",Z34="Tier II"),"Tier II","Tier III"))) ->  | AC34: =References!$C$24 -> 0 | AD34: =IF(#REF!="","",IF(AB34="DNQ","DNQ",INDEX(IF(AC34="Income Eligible ",References!$AO$3:$AO$36,References!$AN$3:$AN$36),MATCH(K34,References!$AI$3:$AI$36,0))*(#REF!/12000))) ->  | AE34: =IF(#REF!="","",IF(AD34="DNQ",0,INDEX(References!$AP$3:$AP$36,MATCH(Qualifying_Index!K34,References!$AI$3:$AI$36,0)))) ->  | AG34: =IF(COUNTIF(AF27:AF33,1),0,AE34) ->  | AI34: =((#REF!*0.65)) ->  | AJ34: =((#REF!*1.35)) ->  | AK34: =IF(AND(References!#REF!=TRUE,References!$H$4=FALSE),(#REF!*1),#REF!*0.65) ->  | AL34: =IF(AND(References!#REF!=TRUE,References!$H$4=FALSE),(#REF!*1.3),#REF!*1.35) ->  | AM34: =IF(AND(#REF!>=Qualifying_Index!AI34,#REF!<=Qualifying_Index!AJ34),"PASS","FAIL") ->  | AN34: =IF(OR(AK34=0,AL34=0),"FAIL",IF(AND(IF(AND(References!#REF!=TRUE,References!$H$4=FALSE),#REF!,#REF!)>=AK34,IF(References!#REF!=TRUE,#REF!,#REF!)<=AL34),"PASS","FAIL")) ->  | AO34: =IF(References!#REF!=TRUE,IF(AND(#REF!="",#REF!=""),"Missing Info",IF(AN34="PASS","PASS","FAIL")),IF(AND(#REF!="",#REF!="",LEFT(#REF!,6)="Ducted"),"Missing Info",IF(OR(AM34="PASS",AN34="PASS",LEFT(#REF!,6)<>"Ducted"),"PASS","FAIL"))) ->  | AQ34: =IF(OR(#REF!="",#REF!="",#REF!="",#REF!="",#REF!="",#REF!="",#REF!="",#REF!="",#REF!="",#REF!=""),"Missing Info","") ->  | AR34: =IF(AND(AZ34=1,#REF!=""),"Missing Info",IF(AY34="PTHP",AQ34,IF(OR(#REF!="",#REF!="",#REF!="",#REF!="",#REF!="",#REF!="",#REF!="",#REF!="",#REF!="",AO34="Missing Info"),"Missing Info",""))) ->  | AS34: =IF(AND(AZ34=1,#REF!=""),"Missing Info",IF(AY34="PTHP",AQ34,IF(OR(#REF!="",#REF!="",#REF!="",#REF!="",#REF!="",#REF!="",#REF!="",#REF!=""),"Missing Info",""))) ->  | AT34: =IF(OR(#REF!="",#REF!=""),"",IF(OR(#REF!="Ducted ASHP",#REF!="Ducted ccASHP"),#REF!/12000*(12/#REF!)*kW_CA,0)) ->  | AU34: =IF(#REF!="","",IF(OR(#REF!=""),"",#REF!*(12/#REF!)*kW_RS)) ->  | AV34: =IF(OR(#REF!="",#REF!="",#REF!=""),"",IF(OR(#REF!="Ducted ASHP",#REF!="Ducted ccASHP"),#REF!/12000*(12/#REF!*FLH_Cool)*QI_kWh,0)) ->  | AW34: =IF(OR(#REF!="",#REF!="",#REF!=""),"",IF(OR(#REF!="Ducted ASHP",#REF!="Ducted ccASHP"),#REF!/12000*(12/#REF!*FLH_Heat)*QI_kWh,0)) ->  | AY34: =IF(#REF!="","",INDEX(References!$AF$7:$AF$23,MATCH(#REF!,Equipment_Type,0))) ->  | AZ34: =IF(#REF!="","",INDEX(References!$AE$7:$AE$23,MATCH(#REF!,Equipment_Type,0))) ->  | BB34: =IF(WholeHouse_TF=FALSE,References!#REF!,IF(References!$H$14="New Construction",FLH_Cool,IF(References!$H$14="",0,References!#REF!))) ->  | BC34: =IF(WholeHouse_TF=FALSE,References!#REF!,IF(References!$H$14="New Construction",FLH_Heat,IF(References!$H$14="",0,References!#REF!))) ->  | BE34: =IF(OR($AO34="FAIL",#REF!="",AO34="Missing Info",AB34="DNQ"),0,((#REF!/12000)*((12/E34)-(12/O34)))+SUM(AT34:AU34)) ->  | BF34: =IF(OR($AO34="FAIL",#REF!="",AO34="Missing Info",AB34="DNQ"),0,IF(AY34="PTHP",((#REF!/12000)*(12/E34-12/O34)*BB34),(((#REF!/12000)*((12/F34)-(12/N34))*BB34))+AV34)) ->  | BG34: =IF(OR($AO34="FAIL",#REF!="",AO34="Missing Info",AB34="DNQ"),0,BF34*References!$E$12/1000) ->  | BH34: =BF34*References!$A$12 ->  | BI34: =IF(OR($AO34="FAIL",#REF!="",AO34="Missing Info",AB34="DNQ",References!#REF!=FALSE),0,((#REF!/12000)*((1/(G34/3.412))-(1/(P34/3.412))))+SUM(AT34:AU34)) ->  | BJ34: =IF(OR($AO34="FAIL",#REF!="",AO34="Missing Info",AB34="DNQ"),0,IF(References!#REF!=FALSE,AW34,((#REF!/12000)*((12/G34)-(12/P34))*BC34*I34)+AW34)) ->  | BK34: =IF(OR($AO34="FAIL",#REF!="",AO34="Missing Info",AB34="DNQ",References!#REF!=FALSE),0,-((#REF!/12000)*(1/(P34/3.412)))) ->  | BL34: =IF(OR($AO34="FAIL",#REF!="",AO34="Missing Info",AB34="DNQ",References!#REF!=FALSE),0,((#REF!/12000)*(12/P34)*(BC34*I34))-(#REF!*BC34/1000000)*References!#REF!*I34) ->  | BM34: =IF(OR($AO34="FAIL",AO34="Missing Info",#REF!=""),0,IF(References!#REF!=TRUE,BJ34*References!$E$12/1000,((BJ34-BL34)*References!$E$12/1000))) ->  | BN34: =IF(OR($AO34="FAIL",AO34="Missing Info",#REF!=""),0,IF(References!#REF!=TRUE,((#REF!*BC34/References!$M$42)/1000000)*I34,0)) ->  | BP34: =(BJ34-BL34)*References!$A$12 ->  | BQ34: =BN34*References!$N$42*References!$A$15 ->  | BR34: =IF(References!#REF!=TRUE,(BN34*References!$N$42*References!$A$15)-(BL34*References!$A$12),BJ34*References!$A$12) -> 
A35: 9 | C35: =IF(OR(#REF!="Ducted ccASHP",#REF!="Ductless Mini Split - ccASHP"),"Cold Climate","") ->  | E35: =IF(OR(#REF!="",#REF!="",NOT(ISNUMBER(#REF!))),IF(Qualifying_Index!AY35="PTHP",References!#REF!,IF(ISERROR(SEARCH("HP",#REF!,1)),References!#REF!,References!#REF!)),#REF!) ->  | F35: =IF(OR(#REF!="",#REF!="",NOT(ISNUMBER(#REF!))),IF(Qualifying_Index!AY35="PTHP",References!$M$12,IF(ISERROR(SEARCH("HP",#REF!,1)),References!$M$10,References!$M$9)),#REF!) ->  | G35: =IF(AND(OR(References!$H$14="Electric",References!$H$14="Air Source HP",#REF!="Air Source HP"),#REF!<>""),IF(OR(#REF!="",NOT(ISNUMBER(#REF!))),IF(Qualifying_Index!AY35="PTHP",References!$M$40,References!$M$42),#REF!),0) ->  | I35: =IF(#REF!="","",IF(OR(WholeHouse_TF=FALSE,References!H12=TRUE),References!#REF!,1)) ->  | K35: =IF(AND(References!$H$4=TRUE,OR(AY35<>"PTHP",AY35<>"Ductless",AY35<>"CAC")),#REF!&" EH"&" "&#REF!,L35&" "&#REF!&" "&#REF!&M35) ->  | L35: =IF(References!#REF!=TRUE,"Whole House",IF(RIGHT(References!#REF!,2)="HP","Retrofit","New")) ->  | M35: =IF(References!#REF!<>TRUE,"",IF(References!#REF!=2,1,IF(AND(#REF!<>"Central Air Conditioner",#REF!<>"Ducted Air Source HP",References!$H$14="Oil"),2,3))) ->  | N35: =IF(#REF!="","",#REF!) ->  | O35: =IF(#REF!="","",#REF!) ->  | P35: =IF(#REF!="","",#REF!) ->  | Q35: =IF(#REF!="","",IF(References!$H$4=TRUE,INDEX(References!#REF!,MATCH(#REF!&" EH",References!$W$7:$W$15,0)),INDEX(References!#REF!,MATCH(#REF!,References!$W$7:$W$23,0)))) ->  | R35: =IF(#REF!="","",IF(References!$H$4=TRUE,INDEX(References!#REF!,MATCH(#REF!&" EH",References!$W$7:$W$15,0)),INDEX(References!#REF!,MATCH(#REF!,References!$W$7:$W$23,0)))) ->  | S35: =IF(#REF!="","",IF(References!$H$4=TRUE,INDEX(References!#REF!,MATCH(#REF!&" EH",References!$W$7:$W$15,0)),INDEX(References!#REF!,MATCH(#REF!,References!$W$7:$W$23,0)))) ->  | T35: =IF(#REF!="","",INDEX(References!$AC$12:$AC$12,MATCH(#REF!,References!$W$7:$W$23,0))) ->  | U35: =IF(#REF!="","",INDEX(References!$AD$7:$AD$23,MATCH(#REF!,References!$W$7:$W$23,0))) ->  | V35: =IF(#REF!="","",IF(References!$H$4=TRUE,INDEX(References!$X$24:$X$24,MATCH(#REF!&" EH",References!$W$7:$W$15,0)),INDEX(References!$X$24:$X$24,MATCH(#REF!,References!$W$7:$W$23,0)))) ->  | W35: =IF(#REF!="","",IF(References!$H$4=TRUE,INDEX(References!$AB$12:$AB$12,MATCH(#REF!&" EH",References!$W$7:$W$15,0)),INDEX(References!$AB$12:$AB$12,MATCH(#REF!,References!$W$7:$W$23,0)))) ->  | Z35: =IF(#REF!="","",IF(V35=0,"",IF(AND(P35<V35,P35<W35),"DNQ",IF(P35>=W35,"Tier II","Tier I")))) ->  | AB35: =IF(OR(X35="DNQ",Y35="DNQ",Z35="DNQ",#REF!="FAIL"),"DNQ",IF(OR(X35="Tier I",Z35="Tier I"),"Tier I",IF(OR(X35="Tier II",Z35="Tier II"),"Tier II","Tier III"))) ->  | AC35: =References!$C$24 -> 0 | AD35: =IF(#REF!="","",IF(AB35="DNQ","DNQ",INDEX(IF(AC35="Income Eligible ",References!$AO$3:$AO$36,References!$AN$3:$AN$36),MATCH(K35,References!$AI$3:$AI$36,0))*(#REF!/12000))) ->  | AE35: =IF(#REF!="","",IF(AD35="DNQ",0,INDEX(References!$AP$3:$AP$36,MATCH(Qualifying_Index!K35,References!$AI$3:$AI$36,0)))) ->  | AG35: =IF(COUNTIF(AF27:AF34,1),0,AE35) ->  | AI35: =((#REF!*0.65)) ->  | AJ35: =((#REF!*1.35)) ->  | AK35: =IF(AND(References!#REF!=TRUE,References!$H$4=FALSE),(#REF!*1),#REF!*0.65) ->  | AL35: =IF(AND(References!#REF!=TRUE,References!$H$4=FALSE),(#REF!*1.3),#REF!*1.35) ->  | AM35: =IF(AND(#REF!>=Qualifying_Index!AI35,#REF!<=Qualifying_Index!AJ35),"PASS","FAIL") ->  | AN35: =IF(OR(AK35=0,AL35=0),"FAIL",IF(AND(IF(AND(References!#REF!=TRUE,References!$H$4=FALSE),#REF!,#REF!)>=AK35,IF(References!#REF!=TRUE,#REF!,#REF!)<=AL35),"PASS","FAIL")) ->  | AO35: =IF(References!#REF!=TRUE,IF(AND(#REF!="",#REF!=""),"Missing Info",IF(AN35="PASS","PASS","FAIL")),IF(AND(#REF!="",#REF!="",LEFT(#REF!,6)="Ducted"),"Missing Info",IF(OR(AM35="PASS",AN35="PASS",LEFT(#REF!,6)<>"Ducted"),"PASS","FAIL"))) ->  | AQ35: =IF(OR(#REF!="",#REF!="",#REF!="",#REF!="",#REF!="",#REF!="",#REF!="",#REF!="",#REF!="",#REF!=""),"Missing Info","") ->  | AR35: =IF(AND(AZ35=1,#REF!=""),"Missing Info",IF(AY35="PTHP",AQ35,IF(OR(#REF!="",#REF!="",#REF!="",#REF!="",#REF!="",#REF!="",#REF!="",#REF!="",#REF!="",AO35="Missing Info"),"Missing Info",""))) ->  | AS35: =IF(AND(AZ35=1,#REF!=""),"Missing Info",IF(AY35="PTHP",AQ35,IF(OR(#REF!="",#REF!="",#REF!="",#REF!="",#REF!="",#REF!="",#REF!="",#REF!=""),"Missing Info",""))) ->  | AT35: =IF(OR(#REF!="",#REF!=""),"",IF(OR(#REF!="Ducted ASHP",#REF!="Ducted ccASHP"),#REF!/12000*(12/#REF!)*kW_CA,0)) ->  | AU35: =IF(#REF!="","",IF(OR(#REF!=""),"",#REF!*(12/#REF!)*kW_RS)) ->  | AV35: =IF(OR(#REF!="",#REF!="",#REF!=""),"",IF(OR(#REF!="Ducted ASHP",#REF!="Ducted ccASHP"),#REF!/12000*(12/#REF!*FLH_Cool)*QI_kWh,0)) ->  | AW35: =IF(OR(#REF!="",#REF!="",#REF!=""),"",IF(OR(#REF!="Ducted ASHP",#REF!="Ducted ccASHP"),#REF!/12000*(12/#REF!*FLH_Heat)*QI_kWh,0)) ->  | AY35: =IF(#REF!="","",INDEX(References!$AF$7:$AF$23,MATCH(#REF!,Equipment_Type,0))) ->  | AZ35: =IF(#REF!="","",INDEX(References!$AE$7:$AE$23,MATCH(#REF!,Equipment_Type,0))) ->  | BB35: =IF(WholeHouse_TF=FALSE,References!#REF!,IF(References!$H$14="New Construction",FLH_Cool,IF(References!$H$14="",0,References!#REF!))) ->  | BC35: =IF(WholeHouse_TF=FALSE,References!#REF!,IF(References!$H$14="New Construction",FLH_Heat,IF(References!$H$14="",0,References!#REF!))) ->  | BE35: =IF(OR($AO35="FAIL",#REF!="",AO35="Missing Info",AB35="DNQ"),0,((#REF!/12000)*((12/E35)-(12/O35)))+SUM(AT35:AU35)) ->  | BF35: =IF(OR($AO35="FAIL",#REF!="",AO35="Missing Info",AB35="DNQ"),0,IF(AY35="PTHP",((#REF!/12000)*(12/E35-12/O35)*BB35),(((#REF!/12000)*((12/F35)-(12/N35))*BB35))+AV35)) ->  | BG35: =IF(OR($AO35="FAIL",#REF!="",AO35="Missing Info",AB35="DNQ"),0,BF35*References!$E$12/1000) ->  | BH35: =BF35*References!$A$12 ->  | BI35: =IF(OR($AO35="FAIL",#REF!="",AO35="Missing Info",AB35="DNQ",References!#REF!=FALSE),0,((#REF!/12000)*((1/(G35/3.412))-(1/(P35/3.412))))+SUM(AT35:AU35)) ->  | BJ35: =IF(OR($AO35="FAIL",#REF!="",AO35="Missing Info",AB35="DNQ"),0,IF(References!#REF!=FALSE,AW35,((#REF!/12000)*((12/G35)-(12/P35))*BC35*I35)+AW35)) ->  | BK35: =IF(OR($AO35="FAIL",#REF!="",AO35="Missing Info",AB35="DNQ",References!#REF!=FALSE),0,-((#REF!/12000)*(1/(P35/3.412)))) ->  | BL35: =IF(OR($AO35="FAIL",#REF!="",AO35="Missing Info",AB35="DNQ",References!#REF!=FALSE),0,((#REF!/12000)*(12/P35)*(BC35*I35))-(#REF!*BC35/1000000)*References!#REF!*I35) ->  | BM35: =IF(OR($AO35="FAIL",AO35="Missing Info",#REF!=""),0,IF(References!#REF!=TRUE,BJ35*References!$E$12/1000,((BJ35-BL35)*References!$E$12/1000))) ->  | BN35: =IF(OR($AO35="FAIL",AO35="Missing Info",#REF!=""),0,IF(References!#REF!=TRUE,((#REF!*BC35/References!$M$42)/1000000)*I35,0)) ->  | BP35: =(BJ35-BL35)*References!$A$12 ->  | BQ35: =BN35*References!$N$42*References!$A$15 ->  | BR35: =IF(References!#REF!=TRUE,(BN35*References!$N$42*References!$A$15)-(BL35*References!$A$12),BJ35*References!$A$12) -> 
A36: 10 | C36: =IF(OR(#REF!="Ducted ccASHP",#REF!="Ductless Mini Split - ccASHP"),"Cold Climate","") ->  | E36: =IF(OR(#REF!="",#REF!="",NOT(ISNUMBER(#REF!))),IF(Qualifying_Index!AY36="PTHP",References!#REF!,IF(ISERROR(SEARCH("HP",#REF!,1)),References!#REF!,References!#REF!)),#REF!) ->  | F36: =IF(OR(#REF!="",#REF!="",NOT(ISNUMBER(#REF!))),IF(Qualifying_Index!AY36="PTHP",References!$M$12,IF(ISERROR(SEARCH("HP",#REF!,1)),References!$M$10,References!$M$9)),#REF!) ->  | G36: =IF(AND(OR(References!$H$14="Electric",References!$H$14="Air Source HP",#REF!="Air Source HP"),#REF!<>""),IF(OR(#REF!="",NOT(ISNUMBER(#REF!))),IF(Qualifying_Index!AY36="PTHP",References!$M$40,References!$M$42),#REF!),0) ->  | I36: =IF(#REF!="","",IF(OR(WholeHouse_TF=FALSE,References!H13=TRUE),References!#REF!,1)) ->  | K36: =IF(AND(References!$H$4=TRUE,OR(AY36<>"PTHP",AY36<>"Ductless",AY36<>"CAC")),#REF!&" EH"&" "&#REF!,L36&" "&#REF!&" "&#REF!&M36) ->  | L36: =IF(References!#REF!=TRUE,"Whole House",IF(RIGHT(References!#REF!,2)="HP","Retrofit","New")) ->  | M36: =IF(References!#REF!<>TRUE,"",IF(References!#REF!=2,1,IF(AND(#REF!<>"Central Air Conditioner",#REF!<>"Ducted Air Source HP",References!$H$14="Oil"),2,3))) ->  | N36: =IF(#REF!="","",#REF!) ->  | O36: =IF(#REF!="","",#REF!) ->  | P36: =IF(#REF!="","",#REF!) ->  | Q36: =IF(#REF!="","",IF(References!$H$4=TRUE,INDEX(References!#REF!,MATCH(#REF!&" EH",References!$W$7:$W$15,0)),INDEX(References!#REF!,MATCH(#REF!,References!$W$7:$W$23,0)))) ->  | R36: =IF(#REF!="","",IF(References!$H$4=TRUE,INDEX(References!#REF!,MATCH(#REF!&" EH",References!$W$7:$W$15,0)),INDEX(References!#REF!,MATCH(#REF!,References!$W$7:$W$23,0)))) ->  | S36: =IF(#REF!="","",IF(References!$H$4=TRUE,INDEX(References!#REF!,MATCH(#REF!&" EH",References!$W$7:$W$15,0)),INDEX(References!#REF!,MATCH(#REF!,References!$W$7:$W$23,0)))) ->  | T36: =IF(#REF!="","",INDEX(References!$AC$12:$AC$12,MATCH(#REF!,References!$W$7:$W$23,0))) ->  | U36: =IF(#REF!="","",INDEX(References!$AD$7:$AD$23,MATCH(#REF!,References!$W$7:$W$23,0))) ->  | V36: =IF(#REF!="","",IF(References!$H$4=TRUE,INDEX(References!$X$24:$X$24,MATCH(#REF!&" EH",References!$W$7:$W$15,0)),INDEX(References!$X$24:$X$24,MATCH(#REF!,References!$W$7:$W$23,0)))) ->  | W36: =IF(#REF!="","",IF(References!$H$4=TRUE,INDEX(References!$AB$12:$AB$12,MATCH(#REF!&" EH",References!$W$7:$W$15,0)),INDEX(References!$AB$12:$AB$12,MATCH(#REF!,References!$W$7:$W$23,0)))) ->  | Z36: =IF(#REF!="","",IF(V36=0,"",IF(AND(P36<V36,P36<W36),"DNQ",IF(P36>=W36,"Tier II","Tier I")))) ->  | AB36: =IF(OR(X36="DNQ",Y36="DNQ",Z36="DNQ",#REF!="FAIL"),"DNQ",IF(OR(X36="Tier I",Z36="Tier I"),"Tier I",IF(OR(X36="Tier II",Z36="Tier II"),"Tier II","Tier III"))) ->  | AC36: =References!$C$24 -> 0 | AD36: =IF(#REF!="","",IF(AB36="DNQ","DNQ",INDEX(IF(AC36="Income Eligible ",References!$AO$3:$AO$36,References!$AN$3:$AN$36),MATCH(K36,References!$AI$3:$AI$36,0))*(#REF!/12000))) ->  | AE36: =IF(#REF!="","",IF(AD36="DNQ",0,INDEX(References!$AP$3:$AP$36,MATCH(Qualifying_Index!K36,References!$AI$3:$AI$36,0)))) ->  | AG36: =IF(COUNTIF(AF27:AF35,1),0,AE36) ->  | AI36: =((#REF!*0.65)) ->  | AJ36: =((#REF!*1.35)) ->  | AK36: =IF(AND(References!#REF!=TRUE,References!$H$4=FALSE),(#REF!*1),#REF!*0.65) ->  | AL36: =IF(AND(References!#REF!=TRUE,References!$H$4=FALSE),(#REF!*1.3),#REF!*1.35) ->  | AM36: =IF(AND(#REF!>=Qualifying_Index!AI36,#REF!<=Qualifying_Index!AJ36),"PASS","FAIL") ->  | AN36: =IF(OR(AK36=0,AL36=0),"FAIL",IF(AND(IF(AND(References!#REF!=TRUE,References!$H$4=FALSE),#REF!,#REF!)>=AK36,IF(References!#REF!=TRUE,#REF!,#REF!)<=AL36),"PASS","FAIL")) ->  | AO36: =IF(References!#REF!=TRUE,IF(AND(#REF!="",#REF!=""),"Missing Info",IF(AN36="PASS","PASS","FAIL")),IF(AND(#REF!="",#REF!="",LEFT(#REF!,6)="Ducted"),"Missing Info",IF(OR(AM36="PASS",AN36="PASS",LEFT(#REF!,6)<>"Ducted"),"PASS","FAIL"))) ->  | AQ36: =IF(OR(#REF!="",#REF!="",#REF!="",#REF!="",#REF!="",#REF!="",#REF!="",#REF!="",#REF!="",#REF!=""),"Missing Info","") ->  | AR36: =IF(AND(AZ36=1,#REF!=""),"Missing Info",IF(AY36="PTHP",AQ36,IF(OR(#REF!="",#REF!="",#REF!="",#REF!="",#REF!="",#REF!="",#REF!="",#REF!="",#REF!="",AO36="Missing Info"),"Missing Info",""))) ->  | AS36: =IF(AND(AZ36=1,#REF!=""),"Missing Info",IF(AY36="PTHP",AQ36,IF(OR(#REF!="",#REF!="",#REF!="",#REF!="",#REF!="",#REF!="",#REF!="",#REF!=""),"Missing Info",""))) ->  | AT36: =IF(OR(#REF!="",#REF!=""),"",IF(OR(#REF!="Ducted ASHP",#REF!="Ducted ccASHP"),#REF!/12000*(12/#REF!)*kW_CA,0)) ->  | AU36: =IF(#REF!="","",IF(OR(#REF!=""),"",#REF!*(12/#REF!)*kW_RS)) ->  | AV36: =IF(OR(#REF!="",#REF!="",#REF!=""),"",IF(OR(#REF!="Ducted ASHP",#REF!="Ducted ccASHP"),#REF!/12000*(12/#REF!*FLH_Cool)*QI_kWh,0)) ->  | AW36: =IF(OR(#REF!="",#REF!="",#REF!=""),"",IF(OR(#REF!="Ducted ASHP",#REF!="Ducted ccASHP"),#REF!/12000*(12/#REF!*FLH_Heat)*QI_kWh,0)) ->  | AY36: =IF(#REF!="","",INDEX(References!$AF$7:$AF$23,MATCH(#REF!,Equipment_Type,0))) ->  | AZ36: =IF(#REF!="","",INDEX(References!$AE$7:$AE$23,MATCH(#REF!,Equipment_Type,0))) ->  | BB36: =IF(WholeHouse_TF=FALSE,References!#REF!,IF(References!$H$14="New Construction",FLH_Cool,IF(References!$H$14="",0,References!#REF!))) ->  | BC36: =IF(WholeHouse_TF=FALSE,References!#REF!,IF(References!$H$14="New Construction",FLH_Heat,IF(References!$H$14="",0,References!#REF!))) ->  | BE36: =IF(OR($AO36="FAIL",#REF!="",AO36="Missing Info",AB36="DNQ"),0,((#REF!/12000)*((12/E36)-(12/O36)))+SUM(AT36:AU36)) ->  | BF36: =IF(OR($AO36="FAIL",#REF!="",AO36="Missing Info",AB36="DNQ"),0,IF(AY36="PTHP",((#REF!/12000)*(12/E36-12/O36)*BB36),(((#REF!/12000)*((12/F36)-(12/N36))*BB36))+AV36)) ->  | BG36: =IF(OR($AO36="FAIL",#REF!="",AO36="Missing Info",AB36="DNQ"),0,BF36*References!$E$12/1000) ->  | BH36: =BF36*References!$A$12 ->  | BI36: =IF(OR($AO36="FAIL",#REF!="",AO36="Missing Info",AB36="DNQ",References!#REF!=FALSE),0,((#REF!/12000)*((1/(G36/3.412))-(1/(P36/3.412))))+SUM(AT36:AU36)) ->  | BJ36: =IF(OR($AO36="FAIL",#REF!="",AO36="Missing Info",AB36="DNQ"),0,IF(References!#REF!=FALSE,AW36,((#REF!/12000)*((12/G36)-(12/P36))*BC36*I36)+AW36)) ->  | BK36: =IF(OR($AO36="FAIL",#REF!="",AO36="Missing Info",AB36="DNQ",References!#REF!=FALSE),0,-((#REF!/12000)*(1/(P36/3.412)))) ->  | BL36: =IF(OR($AO36="FAIL",#REF!="",AO36="Missing Info",AB36="DNQ",References!#REF!=FALSE),0,((#REF!/12000)*(12/P36)*(BC36*I36))-(#REF!*BC36/1000000)*References!#REF!*I36) ->  | BM36: =IF(OR($AO36="FAIL",AO36="Missing Info",#REF!=""),0,IF(References!#REF!=TRUE,BJ36*References!$E$12/1000,((BJ36-BL36)*References!$E$12/1000))) ->  | BN36: =IF(OR($AO36="FAIL",AO36="Missing Info",#REF!=""),0,IF(References!#REF!=TRUE,((#REF!*BC36/References!$M$42)/1000000)*I36,0)) ->  | BP36: =(BJ36-BL36)*References!$A$12 ->  | BQ36: =BN36*References!$N$42*References!$A$15 ->  | BR36: =IF(References!#REF!=TRUE,(BN36*References!$N$42*References!$A$15)-(BL36*References!$A$12),BJ36*References!$A$12) -> 
A39: Smart T-Stats tab- Thermostats
A41: Unit Number | C41: Model | E41: Learning vs. Connected | G41: Controlled Unit | I41: Cooling BTUH | K41: Heating BTUH | L41: SEER | M41: HSPF | N41: Cooling Hours | O41: Heating Hours | P41: kWh Savings | Q41: MMBTU savings | R41: CO2 savings (lbs) | Y41: Rebate | Z41: kW
A42: 1 | C42: ='Smart T-Stats'!D21 -> 0 | E42: =IF(C42<>0,INDEX(References!$C$95:$D$127,MATCH(C42,References!$C$95:$C$127,0),2),"") ->  | G42: ='Smart T-Stats'!G21 -> 0 | I42: =IF(C42<>0,IF(G42<>0,INDEX(#REF!,MATCH('Smart T-Stats'!G21,#REF!,0),5),36000),0) -> 0 | K42: =IF(C42<>0,IF(G42<>0,INDEX(#REF!,MATCH('Smart T-Stats'!G21,#REF!,0),7),36000),0) -> 0 | L42: =IF(C42<>0,IF(G42<>0,INDEX(#REF!,MATCH('Smart T-Stats'!G21,#REF!,0),9),References!$M$9),0) -> 0 | M42: =IF(C42<>0,IF(G42<>0,INDEX(#REF!,MATCH('Smart T-Stats'!G21,#REF!,0),11),References!$M$35),0) -> 0 | N42: =BB27 ->  | O42: =BC27 ->  | P42: =IF(E42<>"",IF(E42="Learning",((I42/12000)*(12/L42)*N42*References!#REF!)+((K42/12000)*(12/M42)*O42*References!#REF!),INDEX(References!$E$50:$E$52,MATCH('Smart T-Stats'!J21,References!$D$50:$D$52,0))),0) -> 0 | Q42: =P42*References!$E$12/1000 -> 0 | R42: =P42*References!$A$12 -> 0 | S42: =IF('Smart T-Stats'!H21="","",IF(References!#REF!=TRUE,"HP Thermostat",IF(OR(RIGHT('Smart T-Stats'!H21,2)="HP",'Smart T-Stats'!I21="Electric Heat"),"CH Thermostat Heating Cooling","CH Thermostat Cooling"))) ->  | V42: =IF(S42="","",IF(LEFT(S42)="HP",S42,IF(RIGHT(S42,9)="t Cooling",IF(E42="Learning","Learning for Cooling","Connected for Cooling"),IF(E42="Learning","Learning for Heating and Cooling","Connected for Heating and Cooling")))) ->  | Y42: =IF(V42="","",INDEX(References!$AN$33:$AN$45,MATCH(V42,References!$AI$33:$AI$49,0))) ->  | Z42: =IF(E42="","",IF(E42="Learning",0,INDEX(References!#REF!,MATCH('Smart T-Stats'!J21,References!$D$50:$D$52,0)))) -> 
A43: 2 | C43: ='Smart T-Stats'!D22 -> 0 | E43: =IF(C43<>0,INDEX(References!$C$95:$D$127,MATCH(C43,References!$C$95:$C$127,0),2),"") ->  | G43: ='Smart T-Stats'!G22 -> 0 | I43: =IF(C43<>0,IF(G43<>0,INDEX(#REF!,MATCH('Smart T-Stats'!G22,#REF!,0),5),36000),0) -> 0 | K43: =IF(C43<>0,IF(G43<>0,INDEX(#REF!,MATCH('Smart T-Stats'!G22,#REF!,0),7),36000),0) -> 0 | L43: =IF(C43<>0,IF(G43<>0,INDEX(#REF!,MATCH('Smart T-Stats'!G22,#REF!,0),9),References!$M$9),0) -> 0 | M43: =IF(C43<>0,IF(G43<>0,INDEX(#REF!,MATCH('Smart T-Stats'!G22,#REF!,0),11),References!$M$35),0) -> 0 | P43: =IF(E43<>"",IF(E43="Learning",((I43/12000)*(12/L43)*N43*References!#REF!)+((K43/12000)*(12/M43)*O43*References!#REF!),INDEX(References!$E$50:$E$52,MATCH('Smart T-Stats'!J22,References!$D$50:$D$52,0))),0) -> 0 | Q43: =P43*References!$E$12/1000 -> 0 | R43: =P43*References!$A$12 -> 0 | S43: =IF('Smart T-Stats'!H22="","",IF(References!#REF!=TRUE,"HP Thermostat",IF(OR(RIGHT('Smart T-Stats'!H22,2)="HP",'Smart T-Stats'!I22="Electric Heat"),"CH Thermostat Heating Cooling","CH Thermostat Cooling"))) ->  | V43: =IF(S43="","",IF(LEFT(S43)="HP",S43,IF(RIGHT(S43,9)="t Cooling",IF(E43="Learning","Learning for Cooling","Connected for Cooling"),IF(E43="Learning","Learning for Heating and Cooling","Connected for Heating and Cooling")))) ->  | Y43: =IF(V43="","",INDEX(References!$AN$33:$AN$45,MATCH(V43,References!$AI$33:$AI$49,0))) ->  | Z43: =IF(E43="","",IF(E43="Learning",0,INDEX(References!#REF!,MATCH('Smart T-Stats'!J22,References!$D$50:$D$52,0)))) -> 
A44: 3 | C44: ='Smart T-Stats'!D23 -> 0 | E44: =IF(C44<>0,INDEX(References!$C$95:$D$127,MATCH(C44,References!$C$95:$C$127,0),2),"") ->  | G44: ='Smart T-Stats'!G23 -> 0 | I44: =IF(C44<>0,IF(G44<>0,INDEX(#REF!,MATCH('Smart T-Stats'!G23,#REF!,0),5),36000),0) -> 0 | K44: =IF(C44<>0,IF(G44<>0,INDEX(#REF!,MATCH('Smart T-Stats'!G23,#REF!,0),7),36000),0) -> 0 | L44: =IF(C44<>0,IF(G44<>0,INDEX(#REF!,MATCH('Smart T-Stats'!G23,#REF!,0),9),References!$M$9),0) -> 0 | M44: =IF(C44<>0,IF(G44<>0,INDEX(#REF!,MATCH('Smart T-Stats'!G23,#REF!,0),11),References!$M$35),0) -> 0 | P44: =IF(E44<>"",IF(E44="Learning",((I44/12000)*(12/L44)*N44*References!#REF!)+((K44/12000)*(12/M44)*O44*References!#REF!),INDEX(References!$E$50:$E$52,MATCH('Smart T-Stats'!J23,References!$D$50:$D$52,0))),0) -> 0 | Q44: =P44*References!$E$12/1000 -> 0 | R44: =P44*References!$A$12 -> 0 | S44: =IF('Smart T-Stats'!H23="","",IF(References!#REF!=TRUE,"HP Thermostat",IF(OR(RIGHT('Smart T-Stats'!H23,2)="HP",'Smart T-Stats'!I23="Electric Heat"),"CH Thermostat Heating Cooling","CH Thermostat Cooling"))) ->  | Y44: =IF(V44="","",INDEX(References!$AN$33:$AN$45,MATCH(V44,References!$AI$33:$AI$49,0))) ->  | Z44: =IF(E44="","",IF(E44="Learning",0,INDEX(References!#REF!,MATCH('Smart T-Stats'!J23,References!$D$50:$D$52,0)))) -> 
A45: 4 | C45: ='Smart T-Stats'!D24 -> 0 | E45: =IF(C45<>0,INDEX(References!$C$95:$D$127,MATCH(C45,References!$C$95:$C$127,0),2),"") ->  | G45: ='Smart T-Stats'!G24 -> 0 | I45: =IF(C45<>0,IF(G45<>0,INDEX(#REF!,MATCH('Smart T-Stats'!G24,#REF!,0),5),36000),0) -> 0 | K45: =IF(C45<>0,IF(G45<>0,INDEX(#REF!,MATCH('Smart T-Stats'!G24,#REF!,0),7),36000),0) -> 0 | L45: =IF(C45<>0,IF(G45<>0,INDEX(#REF!,MATCH('Smart T-Stats'!G24,#REF!,0),9),References!$M$9),0) -> 0 | M45: =IF(C45<>0,IF(G45<>0,INDEX(#REF!,MATCH('Smart T-Stats'!G24,#REF!,0),11),References!$M$35),0) -> 0 | P45: =IF(E45<>"",IF(E45="Learning",((I45/12000)*(12/L45)*N45*References!#REF!)+((K45/12000)*(12/M45)*O45*References!#REF!),INDEX(References!$E$50:$E$52,MATCH('Smart T-Stats'!J24,References!$D$50:$D$52,0))),0) -> 0 | Q45: =P45*References!$E$12/1000 -> 0 | R45: =P45*References!$A$12 -> 0 | S45: =IF('Smart T-Stats'!H24="","",IF(References!#REF!=TRUE,"HP Thermostat",IF(OR(RIGHT('Smart T-Stats'!H24,2)="HP",'Smart T-Stats'!I24="Electric Heat"),"CH Thermostat Heating Cooling","CH Thermostat Cooling"))) ->  | Y45: =IF(V45="","",INDEX(References!$AN$33:$AN$45,MATCH(V45,References!$AI$33:$AI$49,0))) ->  | Z45: =IF(E45="","",IF(E45="Learning",0,INDEX(References!#REF!,MATCH('Smart T-Stats'!J24,References!$D$50:$D$52,0)))) -> 
A46: 5 | C46: ='Smart T-Stats'!D25 -> 0 | E46: =IF(C46<>0,INDEX(References!$C$95:$D$127,MATCH(C46,References!$C$95:$C$127,0),2),"") ->  | G46: ='Smart T-Stats'!G25 -> 0 | I46: =IF(C46<>0,IF(G46<>0,INDEX(#REF!,MATCH('Smart T-Stats'!G25,#REF!,0),5),36000),0) -> 0 | K46: =IF(C46<>0,IF(G46<>0,INDEX(#REF!,MATCH('Smart T-Stats'!G25,#REF!,0),7),36000),0) -> 0 | L46: =IF(C46<>0,IF(G46<>0,INDEX(#REF!,MATCH('Smart T-Stats'!G25,#REF!,0),9),References!$M$9),0) -> 0 | M46: =IF(C46<>0,IF(G46<>0,INDEX(#REF!,MATCH('Smart T-Stats'!G25,#REF!,0),11),References!$M$35),0) -> 0 | P46: =IF(E46<>"",IF(E46="Learning",((I46/12000)*(12/L46)*N46*References!#REF!)+((K46/12000)*(12/M46)*O46*References!#REF!),INDEX(References!$E$50:$E$52,MATCH('Smart T-Stats'!J25,References!$D$50:$D$52,0))),0) -> 0 | Q46: =P46*References!$E$12/1000 -> 0 | R46: =P46*References!$A$12 -> 0 | S46: =IF('Smart T-Stats'!H25="","",IF(References!#REF!=TRUE,"HP Thermostat",IF(OR(RIGHT('Smart T-Stats'!H25,2)="HP",'Smart T-Stats'!I25="Electric Heat"),"CH Thermostat Heating Cooling","CH Thermostat Cooling"))) ->  | Y46: =IF(V46="","",INDEX(References!$AN$33:$AN$45,MATCH(V46,References!$AI$33:$AI$49,0))) ->  | Z46: =IF(E46="","",IF(E46="Learning",0,INDEX(References!#REF!,MATCH('Smart T-Stats'!J25,References!$D$50:$D$52,0)))) -> 
A47: 6 | C47: ='Smart T-Stats'!D26 -> 0 | E47: =IF(C47<>0,INDEX(References!$C$95:$D$127,MATCH(C47,References!$C$95:$C$127,0),2),"") ->  | G47: ='Smart T-Stats'!G26 -> 0 | I47: =IF(C47<>0,IF(G47<>0,INDEX(#REF!,MATCH('Smart T-Stats'!G26,#REF!,0),5),36000),0) -> 0 | K47: =IF(C47<>0,IF(G47<>0,INDEX(#REF!,MATCH('Smart T-Stats'!G26,#REF!,0),7),36000),0) -> 0 | L47: =IF(C47<>0,IF(G47<>0,INDEX(#REF!,MATCH('Smart T-Stats'!G26,#REF!,0),9),References!$M$9),0) -> 0 | M47: =IF(C47<>0,IF(G47<>0,INDEX(#REF!,MATCH('Smart T-Stats'!G26,#REF!,0),11),References!$M$35),0) -> 0 | P47: =IF(E47<>"",IF(E47="Learning",((I47/12000)*(12/L47)*N47*References!#REF!)+((K47/12000)*(12/M47)*O47*References!#REF!),INDEX(References!$E$50:$E$52,MATCH('Smart T-Stats'!J26,References!$D$50:$D$52,0))),0) -> 0 | Q47: =P47*References!$E$12/1000 -> 0 | R47: =P47*References!$A$12 -> 0 | S47: =IF('Smart T-Stats'!H26="","",IF(References!#REF!=TRUE,"HP Thermostat",IF(OR(RIGHT('Smart T-Stats'!H26,2)="HP",'Smart T-Stats'!I26="Electric Heat"),"CH Thermostat Heating Cooling","CH Thermostat Cooling"))) ->  | Y47: =IF(V47="","",INDEX(References!$AN$33:$AN$45,MATCH(V47,References!$AI$33:$AI$49,0))) ->  | Z47: =IF(E47="","",IF(E47="Learning",0,INDEX(References!#REF!,MATCH('Smart T-Stats'!J26,References!$D$50:$D$52,0)))) -> 
A48: 7 | C48: ='Smart T-Stats'!D27 -> 0 | E48: =IF(C48<>0,INDEX(References!$C$95:$D$127,MATCH(C48,References!$C$95:$C$127,0),2),"") ->  | G48: ='Smart T-Stats'!G27 -> 0 | I48: =IF(C48<>0,IF(G48<>0,INDEX(#REF!,MATCH('Smart T-Stats'!G27,#REF!,0),5),36000),0) -> 0 | K48: =IF(C48<>0,IF(G48<>0,INDEX(#REF!,MATCH('Smart T-Stats'!G27,#REF!,0),7),36000),0) -> 0 | L48: =IF(C48<>0,IF(G48<>0,INDEX(#REF!,MATCH('Smart T-Stats'!G27,#REF!,0),9),References!$M$9),0) -> 0 | M48: =IF(C48<>0,IF(G48<>0,INDEX(#REF!,MATCH('Smart T-Stats'!G27,#REF!,0),11),References!$M$35),0) -> 0 | P48: =IF(E48<>"",IF(E48="Learning",((I48/12000)*(12/L48)*N48*References!#REF!)+((K48/12000)*(12/M48)*O48*References!#REF!),INDEX(References!$E$50:$E$52,MATCH('Smart T-Stats'!J27,References!$D$50:$D$52,0))),0) -> 0 | Q48: =P48*References!$E$12/1000 -> 0 | R48: =P48*References!$A$12 -> 0 | S48: =IF('Smart T-Stats'!H27="","",IF(References!#REF!=TRUE,"HP Thermostat",IF(OR(RIGHT('Smart T-Stats'!H27,2)="HP",'Smart T-Stats'!I27="Electric Heat"),"CH Thermostat Heating Cooling","CH Thermostat Cooling"))) ->  | Y48: =IF(V48="","",INDEX(References!$AN$33:$AN$45,MATCH(V48,References!$AI$33:$AI$49,0))) ->  | Z48: =IF(E48="","",IF(E48="Learning",0,INDEX(References!#REF!,MATCH('Smart T-Stats'!J27,References!$D$50:$D$52,0)))) -> 
A49: 8 | C49: ='Smart T-Stats'!D28 -> 0 | E49: =IF(C49<>0,INDEX(References!$C$95:$D$127,MATCH(C49,References!$C$95:$C$127,0),2),"") ->  | G49: ='Smart T-Stats'!G28 -> 0 | I49: =IF(C49<>0,IF(G49<>0,INDEX(#REF!,MATCH('Smart T-Stats'!G28,#REF!,0),5),36000),0) -> 0 | K49: =IF(C49<>0,IF(G49<>0,INDEX(#REF!,MATCH('Smart T-Stats'!G28,#REF!,0),7),36000),0) -> 0 | L49: =IF(C49<>0,IF(G49<>0,INDEX(#REF!,MATCH('Smart T-Stats'!G28,#REF!,0),9),References!$M$9),0) -> 0 | M49: =IF(C49<>0,IF(G49<>0,INDEX(#REF!,MATCH('Smart T-Stats'!G28,#REF!,0),11),References!$M$35),0) -> 0 | P49: =IF(E49<>"",IF(E49="Learning",((I49/12000)*(12/L49)*N49*References!#REF!)+((K49/12000)*(12/M49)*O49*References!#REF!),INDEX(References!$E$50:$E$52,MATCH('Smart T-Stats'!J28,References!$D$50:$D$52,0))),0) -> 0 | Q49: =P49*References!$E$12/1000 -> 0 | R49: =P49*References!$A$12 -> 0 | S49: =IF('Smart T-Stats'!H28="","",IF(References!#REF!=TRUE,"HP Thermostat",IF(OR(RIGHT('Smart T-Stats'!H28,2)="HP",'Smart T-Stats'!I28="Electric Heat"),"CH Thermostat Heating Cooling","CH Thermostat Cooling"))) ->  | Y49: =IF(V49="","",INDEX(References!$AN$33:$AN$45,MATCH(V49,References!$AI$33:$AI$49,0))) ->  | Z49: =IF(E49="","",IF(E49="Learning",0,INDEX(References!#REF!,MATCH('Smart T-Stats'!J28,References!$D$50:$D$52,0)))) -> 
A50: 9 | C50: ='Smart T-Stats'!D29 -> 0 | E50: =IF(C50<>0,INDEX(References!$C$95:$D$127,MATCH(C50,References!$C$95:$C$127,0),2),"") ->  | G50: ='Smart T-Stats'!G29 -> 0 | I50: =IF(C50<>0,IF(G50<>0,INDEX(#REF!,MATCH('Smart T-Stats'!G29,#REF!,0),5),36000),0) -> 0 | K50: =IF(C50<>0,IF(G50<>0,INDEX(#REF!,MATCH('Smart T-Stats'!G29,#REF!,0),7),36000),0) -> 0 | L50: =IF(C50<>0,IF(G50<>0,INDEX(#REF!,MATCH('Smart T-Stats'!G29,#REF!,0),9),References!$M$9),0) -> 0 | M50: =IF(C50<>0,IF(G50<>0,INDEX(#REF!,MATCH('Smart T-Stats'!G29,#REF!,0),11),References!$M$35),0) -> 0 | P50: =IF(E50<>"",IF(E50="Learning",((I50/12000)*(12/L50)*N50*References!#REF!)+((K50/12000)*(12/M50)*O50*References!#REF!),INDEX(References!$E$50:$E$52,MATCH('Smart T-Stats'!J29,References!$D$50:$D$52,0))),0) -> 0 | Q50: =P50*References!$E$12/1000 -> 0 | R50: =P50*References!$A$12 -> 0 | S50: =IF('Smart T-Stats'!H29="","",IF(References!#REF!=TRUE,"HP Thermostat",IF(OR(RIGHT('Smart T-Stats'!H29,2)="HP",'Smart T-Stats'!I29="Electric Heat"),"CH Thermostat Heating Cooling","CH Thermostat Cooling"))) ->  | Y50: =IF(V50="","",INDEX(References!$AN$33:$AN$45,MATCH(V50,References!$AI$33:$AI$49,0))) ->  | Z50: =IF(E50="","",IF(E50="Learning",0,INDEX(References!#REF!,MATCH('Smart T-Stats'!J29,References!$D$50:$D$52,0)))) -> 
A51: 10 | C51: ='Smart T-Stats'!D30 -> 0 | E51: =IF(C51<>0,INDEX(References!$C$95:$D$127,MATCH(C51,References!$C$95:$C$127,0),2),"") ->  | G51: ='Smart T-Stats'!G30 -> 0 | I51: =IF(C51<>0,IF(G51<>0,INDEX(#REF!,MATCH('Smart T-Stats'!G30,#REF!,0),5),36000),0) -> 0 | K51: =IF(C51<>0,IF(G51<>0,INDEX(#REF!,MATCH('Smart T-Stats'!G30,#REF!,0),7),36000),0) -> 0 | L51: =IF(C51<>0,IF(G51<>0,INDEX(#REF!,MATCH('Smart T-Stats'!G30,#REF!,0),9),References!$M$9),0) -> 0 | M51: =IF(C51<>0,IF(G51<>0,INDEX(#REF!,MATCH('Smart T-Stats'!G30,#REF!,0),11),References!$M$35),0) -> 0 | P51: =IF(E51<>"",IF(E51="Learning",((I51/12000)*(12/L51)*N51*References!#REF!)+((K51/12000)*(12/M51)*O51*References!#REF!),INDEX(References!$E$50:$E$52,MATCH('Smart T-Stats'!J30,References!$D$50:$D$52,0))),0) -> 0 | Q51: =P51*References!$E$12/1000 -> 0 | R51: =P51*References!$A$12 -> 0 | S51: =IF('Smart T-Stats'!H30="","",IF(References!#REF!=TRUE,"HP Thermostat",IF(OR(RIGHT('Smart T-Stats'!H30,2)="HP",'Smart T-Stats'!I30="Electric Heat"),"CH Thermostat Heating Cooling","CH Thermostat Cooling"))) ->  | Y51: =IF(V51="","",INDEX(References!$AN$33:$AN$45,MATCH(V51,References!$AI$33:$AI$49,0))) ->  | Z51: =IF(E51="","",IF(E51="Learning",0,INDEX(References!#REF!,MATCH('Smart T-Stats'!J30,References!$D$50:$D$52,0)))) -> 
A53: Integrated Controls
A55: Unit Number | C55: Model | E55: Dual Fuel vs. Kit | G55: Controlled Unit | I55: Cooling BTUH | K55: Heating BTUH | L55: SEER | M55: HSPF | N55: Cooling Hours | O55: Heating Hours | P55: kWh Savings | Q55: MMBTU savings | R55: CO2 savings (lbs) | W55: Rebate
A56: 11 | C56: ='Smart T-Stats'!D35 -> 0 | E56: =IF(#REF!="","",#REF!) ->  | G56: ='Smart T-Stats'!G35 -> 0 | K56: =IF(C56<>0,IF(G56<>0,INDEX(#REF!,MATCH(A56,#REF!,0),7),36000),0) -> 0 | L56: =IF(C56<>0,IF(G56<>0,INDEX(#REF!,MATCH(A56,#REF!,0),9),References!$M$9),0) -> 0 | M56: =IF(C56<>0,IF(G56<>0,INDEX(#REF!,MATCH(A56,#REF!,0),11),References!$M$35),0) -> 0 | N56: =BA41 -> 0 | O56: =BB41 -> 0 | P56: 0 | Q56: 0 | R56: =P56*References!$A$12 -> 0 | W56: =_xlfn.IFNA(INDEX(IF(References!$C$23=FALSE,References!$AN$38:$AN$40,References!$AO$38:$AO$40),MATCH(E56,References!$AI$38:$AI$40,0)),0) -> 
A57: 12 | C57: ='Smart T-Stats'!D36 -> 0 | E57: =IF(#REF!="","",#REF!) ->  | G57: ='Smart T-Stats'!G36 -> 0 | K57: =IF(C57<>0,IF(G57<>0,INDEX(#REF!,MATCH(A57,#REF!,0),7),36000),0) -> 0 | L57: =IF(C57<>0,IF(G57<>0,INDEX(#REF!,MATCH(A57,#REF!,0),9),References!$M$9),0) -> 0 | M57: =IF(C57<>0,IF(G57<>0,INDEX(#REF!,MATCH(A57,#REF!,0),11),References!$M$35),0) -> 0 | N57: =BA42 -> 0 | O57: =BB42 -> 0 | P57: 0 | Q57: 0 | R57: =P57*References!$A$12 -> 0 | W57: =IF(W56>0,0,_xlfn.IFNA(INDEX(IF(References!$C$23=FALSE,References!$AN$38:$AN$40,References!$AO$38:$AO$40),MATCH(E57,References!$AI$38:$AI$40,0)),0)) -> 
A59: HPwES tab - Duct Sealing
C60: HVAC Info | AA60: EFLH Heating | AB60: Displacement Factor | AU60: Measure Codes | AV60: kW Savings Cooling | AW60: kW Savings Heating | AX60: kWh Savings Cooling | AY60: MMBTU Savings Cooling | AZ60: kWh Savings Heating | BA60: MMBTU Savings Heating (kWh) | BB60: MMBTU Savings Heating (FF) | BC60: Total kWh Savings | BD60: Total MMBTU Savings
A61: Unit Number | C61: Cooling 1 Capacity | E61: Cooling 1 EER | F61: Cooling 1 SEER | G61: Cooling 1 % | I61: Cooling 2 Capacity | K61: Cooling 2 EER | L61: Cooling 2 SEER | M61: Cooling 2 % | N61: Heating 1 Capacity | O61: Heating 1 HSPF | P61: Heating 1 COP | Q61: Heating 1 Efficiency | R61: Heating 1 Fuel | S61: Heating 1 % | T61: Heating 2 Capacity | U61: Heating 2 HSPF | V61: Heating 2 COP | W61: Heating 2 Efficiency | X61: Heating 2 Fuel | Y61: Heating 2 % | Z61: EFLH Cooling
A62: 1 | E62: =Worksheet!$J$19 -> 0 | F62: =Worksheet!$J$17 -> 0 | G62: =Worksheet!$J$21 -> 0 | K62: =Worksheet!$J$32 -> 0 | L62: =Worksheet!$J$30 -> 0 | M62: =Worksheet!$J$34 -> 0 | N62: =Worksheet!$D$15 -> 0 | O62: =IF(Worksheet!$D$19="",Worksheet!#REF!*3.412,Worksheet!$D$19) ->  | P62: =IF(Worksheet!#REF!="",Worksheet!$D$19/3.412,Worksheet!#REF!) ->  | Q62: =Worksheet!$D$17 -> 0 | R62: =Worksheet!$D$13 -> 0 | S62: =Worksheet!$D$21 -> 0 | T62: =Worksheet!$D$28 -> 0 | U62: =IF(Worksheet!$D$32="",Worksheet!$D$34*3.412,Worksheet!$D$32) -> 0 | V62: =IF(Worksheet!$D$34="",Worksheet!$D$32/3.412,Worksheet!$D$34) -> 0 | W62: =Worksheet!$D$30 -> 0 | X62: =Worksheet!$D$26 -> 0 | Y62: =Worksheet!$D$36 -> 0 | Z62: =$BB$27 ->  | AA62: =$BC$27 ->  | AU62: =IF(OR(AG103="",#REF!="",#REF!=0,#REF!="",#REF!=0,AR103=0,AR103="- Please Select -"),"",INDEX(References!$BM$15:$BM$25,MATCH(AG103,References!$BL$15:$BL$25,0))) ->  | AV62: =IF(OR(AR103=0,LEFT(AR103,9)="Heating ("),0,IF(OR(AR103="Cooling (1)",AR103="Heating & Cooling (1)"),(#REF!/#REF!)*((C62/1000)*(1/E62)),IF(OR(AR103="Cooling (2)",AR103="Heating & Cooling (2)"),(#REF!/#REF!)*(I62/1000)*(1/K62),(#REF!/#REF!)*((C62/1000)*(1/E62)*G62+(I62/1000)*(1/K62)*M62))))*(1-(AN103/AP103))*(1-AJ103) ->  | AW62: =IF(OR(AR103=0,AX103=0),0,IF(OR(AR103="Heating (1)",AR103="Heating & Cooling (1)"),(#REF!/#REF!)*((N62/1000)*(1/P62)),IF(OR(AR103="Heating (2)",AR103="Heating & Cooling (2)"),(#REF!/#REF!)*(T62/1000)*(1/V62),(#REF!/#REF!)*((N62/1000)*(1/P62)*S62+(T62/1000)*(1/V62)*Y62))))*(1-(AN103/AP103))*(1-AJ103) ->  | AX62: =(#REF!/#REF!)*AW103*(1-(AN103/AP103))*(1-AJ103) ->  | AY62: =AX62*References!$D$12 ->  | AZ62: =(#REF!/#REF!)*AX103*(1-(AO103/AQ103))*(1-AK103) ->  | BA62: =AZ62*References!$D$12 ->  | BB62: =((#REF!/#REF!)*AY103*(1-(AO103/AQ103))*(1-AK103))/10 ->  | BC62: =AX62+AZ62 ->  | BD62: =AY62+BA62+BB62 -> 
A63: =A62+1 -> 2 | E63: =Worksheet!$J$19 -> 0 | F63: =Worksheet!$J$17 -> 0 | G63: =Worksheet!$J$21 -> 0 | K63: =Worksheet!$J$32 -> 0 | L63: =Worksheet!$J$30 -> 0 | M63: =Worksheet!$J$34 -> 0 | N63: =Worksheet!$D$15 -> 0 | O63: =IF(Worksheet!$D$19="",Worksheet!#REF!*3.412,Worksheet!$D$19) ->  | P63: =IF(Worksheet!#REF!="",Worksheet!$D$19/3.412,Worksheet!#REF!) ->  | Q63: =Worksheet!$D$17 -> 0 | R63: =Worksheet!$D$13 -> 0 | S63: =Worksheet!$D$21 -> 0 | T63: =Worksheet!$D$28 -> 0 | U63: =IF(Worksheet!$D$32="",Worksheet!$D$34*3.412,Worksheet!$D$32) -> 0 | V63: =IF(Worksheet!$D$34="",Worksheet!$D$32/3.412,Worksheet!$D$34) -> 0 | W63: =Worksheet!$D$30 -> 0 | X63: =Worksheet!$D$26 -> 0 | Y63: =Worksheet!$D$36 -> 0 | Z63: =$BB$27 ->  | AA63: =$BC$27 ->  | AU63: =IF(OR(AG104="",#REF!="",#REF!=0,#REF!="",#REF!=0,AR104=0,AR104="- Please Select -"),"",INDEX(References!$BM$15:$BM$25,MATCH(AG104,References!$BL$15:$BL$25,0))) ->  | AV63: =IF(OR(AR104=0,LEFT(AR104,9)="Heating ("),0,IF(OR(AR104="Cooling (1)",AR104="Heating & Cooling (1)"),(#REF!/#REF!)*((C63/1000)*(1/E63)),IF(OR(AR104="Cooling (2)",AR104="Heating & Cooling (2)"),(#REF!/#REF!)*(I63/1000)*(1/K63),(#REF!/#REF!)*((C63/1000)*(1/E63)*G63+(I63/1000)*(1/K63)*M63))))*(1-(AN104/AP104))*(1-AJ104) ->  | AW63: =IF(OR(AR104=0,AX104=0),0,IF(OR(AR104="Heating (1)",AR104="Heating & Cooling (1)"),(#REF!/#REF!)*((N63/1000)*(1/P63)),IF(OR(AR104="Heating (2)",AR104="Heating & Cooling (2)"),(#REF!/#REF!)*(T63/1000)*(1/V63),(#REF!/#REF!)*((N63/1000)*(1/P63)*S63+(T63/1000)*(1/V63)*Y63))))*(1-(AN104/AP104))*(1-AJ104) ->  | AX63: =(#REF!/#REF!)*AW104*(1-(AN104/AP104))*(1-AJ104) ->  | AY63: =AX63*References!$D$12 ->  | AZ63: =(#REF!/#REF!)*AX104*(1-(AO104/AQ104))*(1-AK104) ->  | BA63: =AZ63*References!$D$12 ->  | BB63: =((#REF!/#REF!)*AY104*(1-(AO104/AQ104))*(1-AK104))/10 ->  | BC63: =AX63+AZ63 ->  | BD63: =AY63+BA63+BB63 -> 
A64: =A63+1 -> 3 | E64: =Worksheet!$J$19 -> 0 | F64: =Worksheet!$J$17 -> 0 | G64: =Worksheet!$J$21 -> 0 | K64: =Worksheet!$J$32 -> 0 | L64: =Worksheet!$J$30 -> 0 | M64: =Worksheet!$J$34 -> 0 | N64: =Worksheet!$D$15 -> 0 | O64: =IF(Worksheet!$D$19="",Worksheet!#REF!*3.412,Worksheet!$D$19) ->  | P64: =IF(Worksheet!#REF!="",Worksheet!$D$19/3.412,Worksheet!#REF!) ->  | Q64: =Worksheet!$D$17 -> 0 | R64: =Worksheet!$D$13 -> 0 | S64: =Worksheet!$D$21 -> 0 | T64: =Worksheet!$D$28 -> 0 | U64: =IF(Worksheet!$D$32="",Worksheet!$D$34*3.412,Worksheet!$D$32) -> 0 | V64: =IF(Worksheet!$D$34="",Worksheet!$D$32/3.412,Worksheet!$D$34) -> 0 | W64: =Worksheet!$D$30 -> 0 | X64: =Worksheet!$D$26 -> 0 | Y64: =Worksheet!$D$36 -> 0 | Z64: =$BB$27 ->  | AA64: =$BC$27 ->  | AU64: =IF(OR(AG105="",#REF!="",#REF!=0,#REF!="",#REF!=0,AR105=0,AR105="- Please Select -"),"",INDEX(References!$BM$15:$BM$25,MATCH(AG105,References!$BL$15:$BL$25,0))) ->  | AV64: =IF(OR(AR105=0,LEFT(AR105,9)="Heating ("),0,IF(OR(AR105="Cooling (1)",AR105="Heating & Cooling (1)"),(#REF!/#REF!)*((C64/1000)*(1/E64)),IF(OR(AR105="Cooling (2)",AR105="Heating & Cooling (2)"),(#REF!/#REF!)*(I64/1000)*(1/K64),(#REF!/#REF!)*((C64/1000)*(1/E64)*G64+(I64/1000)*(1/K64)*M64))))*(1-(AN105/AP105))*(1-AJ105) ->  | AW64: =IF(OR(AR105=0,AX105=0),0,IF(OR(AR105="Heating (1)",AR105="Heating & Cooling (1)"),(#REF!/#REF!)*((N64/1000)*(1/P64)),IF(OR(AR105="Heating (2)",AR105="Heating & Cooling (2)"),(#REF!/#REF!)*(T64/1000)*(1/V64),(#REF!/#REF!)*((N64/1000)*(1/P64)*S64+(T64/1000)*(1/V64)*Y64))))*(1-(AN105/AP105))*(1-AJ105) ->  | AX64: =(#REF!/#REF!)*AW105*(1-(AN105/AP105))*(1-AJ105) ->  | AY64: =AX64*References!$D$12 ->  | AZ64: =(#REF!/#REF!)*AX105*(1-(AO105/AQ105))*(1-AK105) ->  | BA64: =AZ64*References!$D$12 ->  | BB64: =((#REF!/#REF!)*AY105*(1-(AO105/AQ105))*(1-AK105))/10 -> 
A65: 4
A66: 5
A67: 6
BC68: Rebate: | BD68: =IF(AND(AU62="",AU63="",AU64=""),0,IF(References!$C$23=TRUE,MIN(References!$BN$5,Worksheet!$D$48),MIN(References!$BM$5,Worksheet!$D$48))) -> 
A69: HPwES tab - Air Sealing
C70: HVAC Info | AA70: EFLH Heating | AB70: Displacement Factor | AU70: Measure Codes | AV70: kW Savings Cooling | AW70: kW Savings Heating | AX70: kWh Savings | AY70: MMBTU (kWh) Savings | AZ70: MMBTU (FF) Savings | BA70: Total MMBTU Savings
A71: Unit Number | C71: Cooling 1 Capacity | E71: Cooling 1 EER | F71: Cooling 1 SEER | G71: Cooling 1 % | I71: Cooling 2 Capacity | K71: Cooling 2 EER | L71: Cooling 2 SEER | M71: Cooling 2 % | N71: Heating 1 Capacity | O71: Heating 1 HSPF | P71: Heating 1 COP | Q71: Heating 1 Efficiency | R71: Heating 1 Fuel | S71: Heating 1 % | T71: Heating 2 Capacity | U71: Heating 2 HSPF | V71: Heating 2 COP | W71: Heating 2 Efficiency | X71: Heating 2 Fuel | Y71: Heating 2 % | Z71: EFLH Cooling
A72: 1 | E72: =Worksheet!$J$19 -> 0 | F72: =Worksheet!$J$17 -> 0 | G72: =Worksheet!$J$21 -> 0 | K72: =Worksheet!$J$32 -> 0 | L72: =Worksheet!$J$30 -> 0 | M72: =Worksheet!$J$34 -> 0 | N72: =Worksheet!$D$15 -> 0 | O72: =Worksheet!$D$19 -> 0 | P72: =Worksheet!#REF! ->  | Q72: =Worksheet!$D$17 -> 0 | R72: =Worksheet!$D$13 -> 0 | S72: =Worksheet!$D$21 -> 0 | T72: =Worksheet!$D$28 -> 0 | U72: =Worksheet!$D$32 -> 0 | V72: =Worksheet!$D$34 -> 0 | W72: =Worksheet!$D$30 -> 0 | X72: =Worksheet!$D$26 -> 0 | Y72: =Worksheet!$D$36 -> 0 | Z72: =$BB$27 ->  | AA72: =$BC$27 ->  | AU72: =IF(OR(B114="",C114="",B114=0,C114=0),"",References!$BM$26) ->  | AV72: =(D114/(G114*H114))*(#REF!*G72+#REF!*M72) ->  | AW72: =(D114/(G114*H114))*(IF(RIGHT(I114,4)="Only",0,#REF!*S72)+IF(RIGHT(J114,4)="Only",0,#REF!*Y72)) ->  | AX72: =(D114/(G114*H114))*(IF(LEFT(I114,4)="Only",0,#REF!*S72)+IF(LEFT(J114,4)="Only",0,#REF!*Y72)) ->  | AY72: =AX72*References!$D$12 ->  | AZ72: =(D114/(G114*H114))*(#REF!*G72+#REF!*Y72)/10 ->  | BA72: =AY72+AZ72 -> 
A73: =A72+1 -> 2
AZ74: Rebate: | BA74: =IF(AU72="",0,IF(References!$C$23=TRUE,MIN(References!$BN$6,Worksheet!$D$87),MIN(References!$BM$6,Worksheet!$D$87))) -> 0
A75: HPwES tab - Insulation
C76: HVAC Info | AA76: EFLH Heating | AB76: Displacement Factor
A77: Unit Number | C77: Cooling 1 Capacity | E77: Cooling 1 EER | F77: Cooling 1 SEER | G77: Cooling 1 % | I77: Cooling 2 Capacity | K77: Cooling 2 EER | L77: Cooling 2 SEER | M77: Cooling 2 % | N77: Heating 1 Capacity | O77: Heating 1 HSPF | P77: Heating 1 COP | Q77: Heating 1 Efficiency | R77: Heating 1 Fuel | S77: Heating 1 % | T77: Heating 2 Capacity | U77: Heating 2 HSPF | V77: Heating 2 COP | W77: Heating 2 Efficiency | X77: Heating 2 Fuel | Y77: Heating 2 % | Z77: EFLH Cooling | BF77: Delta kW/1000sqft | BG77: Delta kWh/1000sqft | BH77: Delta therm/1000sqft | BJ77: Measure Code | BK77: Summer kW Savings | BL77: kW Savings Heating | BM77: kWh Savings | BN77: MMBTU (kWh) Savings | BO77: MMBTU (FF) Savings | BP77: Total MMBTU Savings
A78: 1 | E78: =Worksheet!$J$19 -> 0 | F78: =Worksheet!$J$17 -> 0 | G78: =Worksheet!$J$21 -> 0 | K78: =Worksheet!$J$32 -> 0 | L78: =Worksheet!$J$30 -> 0 | M78: =Worksheet!$J$34 -> 0 | N78: =Worksheet!$D$15 -> 0 | O78: =Worksheet!$D$19 -> 0 | P78: =Worksheet!#REF! ->  | Q78: =Worksheet!$D$17 -> 0 | R78: =Worksheet!$D$13 -> 0 | S78: =Worksheet!$D$21 -> 0 | T78: =Worksheet!$D$28 -> 0 | U78: =Worksheet!$D$32 -> 0 | V78: =Worksheet!$D$34 -> 0 | W78: =Worksheet!$D$30 -> 0 | X78: =Worksheet!$D$26 -> 0 | Y78: =Worksheet!$D$36 -> 0 | Z78: =$BB$27 ->  | AA78: =$BC$27 ->  | BF78: =AQ120*G78+AT120*M78 -> 0 | BG78: =IF(AF120="AC w/ Fossil Fuel",AK120*G78+AN120*M78,AK120*S78+AN120*Y78) -> 0 | BH78: =AW120*S78+AZ120*Y78 -> 0 | BJ78: =IF(OR(B120="",C120="",D120="",AC120=0,AC120=""),"",INDEX(References!$BM$27:$BM$30,MATCH(IF(AC120="Attic 2","Attic",AC120),References!$BL$27:$BL$30,0))) ->  | BK78: =BF78*$D120/1000 -> 0 | BL78: =BF78*$D120/1000 -> 0 | BM78: 0 | BN78: =BM78*References!$D$12 -> 0 | BO78: =BH78/10*$D120/1000 -> 0 | BP78: =BN78+BO78 -> 0
A79: =A78+1 -> 2 | E79: =Worksheet!$J$19 -> 0 | F79: =Worksheet!$J$17 -> 0 | G79: =Worksheet!$J$21 -> 0 | K79: =Worksheet!$J$32 -> 0 | L79: =Worksheet!$J$30 -> 0 | M79: =Worksheet!$J$34 -> 0 | N79: =Worksheet!$D$15 -> 0 | O79: =Worksheet!$D$19 -> 0 | P79: =Worksheet!#REF! ->  | Q79: =Worksheet!$D$17 -> 0 | R79: =Worksheet!$D$13 -> 0 | S79: =Worksheet!$D$21 -> 0 | T79: =Worksheet!$D$28 -> 0 | U79: =Worksheet!$D$32 -> 0 | V79: =Worksheet!$D$34 -> 0 | W79: =Worksheet!$D$30 -> 0 | X79: =Worksheet!$D$26 -> 0 | Y79: =Worksheet!$D$36 -> 0 | Z79: =$BB$27 ->  | AA79: =$BC$27 ->  | BF79: =AQ121*G79+AT121*M79 -> 0 | BG79: =IF(AF121="AC w/ Fossil Fuel",AK121*G79+AN121*M79,AK121*S79+AN121*Y79) -> 0 | BH79: =AW121*S79+AZ121*Y79 -> 0 | BJ79: =IF(OR(B121="",C121="",D121="",AC121=0,AC121=""),"",INDEX(References!$BM$27:$BM$30,MATCH(IF(AC121="Attic 2","Attic",AC121),References!$BL$27:$BL$30,0))) ->  | BK79: =BF79*$D121/1000 -> 0 | BL79: 0 | BM79: 0 | BN79: =BM79*References!$D$12 -> 0 | BO79: =BH79/10*$D121/1000 -> 0 | BP79: =BN79+BO79 -> 0
A80: =A79+1 -> 3 | E80: =Worksheet!$J$19 -> 0 | F80: =Worksheet!$J$17 -> 0 | G80: =Worksheet!$J$21 -> 0 | K80: =Worksheet!$J$32 -> 0 | L80: =Worksheet!$J$30 -> 0 | M80: =Worksheet!$J$34 -> 0 | N80: =Worksheet!$D$15 -> 0 | O80: =Worksheet!$D$19 -> 0 | P80: =Worksheet!#REF! ->  | Q80: =Worksheet!$D$17 -> 0 | R80: =Worksheet!$D$13 -> 0 | S80: =Worksheet!$D$21 -> 0 | T80: =Worksheet!$D$28 -> 0 | U80: =Worksheet!$D$32 -> 0 | V80: =Worksheet!$D$34 -> 0 | W80: =Worksheet!$D$30 -> 0 | X80: =Worksheet!$D$26 -> 0 | Y80: =Worksheet!$D$36 -> 0 | Z80: =$BB$27 ->  | AA80: =$BC$27 ->  | BF80: =AQ122*G80+AT122*M80 -> 0 | BG80: =IF(AF122="AC w/ Fossil Fuel",AK122*G80+AN122*M80,AK122*S80+AN122*Y80) -> 0 | BH80: =AW122*S80+AZ122*Y80 -> 0 | BJ80: =IF(OR(B122="",C122="",D122="",AC122=0,AC122=""),"",INDEX(References!$BM$27:$BM$30,MATCH(IF(AC122="Attic 2","Attic",AC122),References!$BL$27:$BL$30,0))) ->  | BK80: =BF80*$D122/1000 -> 0 | BL80: 0 | BM80: 0 | BN80: =BM80*References!$D$12 -> 0 | BO80: =BH80/10*$D122/1000 -> 0 | BP80: 0
A81: 4 | E81: =Worksheet!$J$19 -> 0 | F81: =Worksheet!$J$17 -> 0 | G81: =Worksheet!$J$21 -> 0 | K81: =Worksheet!$J$32 -> 0 | L81: =Worksheet!$J$30 -> 0 | M81: =Worksheet!$J$34 -> 0 | N81: =Worksheet!$D$15 -> 0 | O81: =Worksheet!$D$19 -> 0 | P81: =Worksheet!#REF! ->  | Q81: =Worksheet!$D$17 -> 0 | R81: =Worksheet!$D$13 -> 0 | S81: =Worksheet!$D$21 -> 0 | T81: =Worksheet!$D$28 -> 0 | U81: =Worksheet!$D$32 -> 0 | V81: =Worksheet!$D$34 -> 0 | W81: =Worksheet!$D$30 -> 0 | X81: =Worksheet!$D$26 -> 0 | Y81: =Worksheet!$D$36 -> 0 | Z81: =$BB$27 ->  | AA81: =$BC$27 ->  | BF81: =AQ123*G81+AT123*M81 -> 0 | BG81: =IF(AF123="AC w/ Fossil Fuel",AK123*G81+AN123*M81,AK123*S81+AN123*Y81) -> 0 | BH81: =AW123*S81+AZ123*Y81 -> 0 | BJ81: =IF(OR(B123="",C123="",D123="",AC123=0,AC123=""),"",INDEX(References!$BM$27:$BM$30,MATCH(IF(AC123="Attic 2","Attic",AC123),References!$BL$27:$BL$30,0))) ->  | BK81: =BF81*$D123/1000 -> 0 | BL81: 0 | BM81: 0 | BN81: =BM81*References!$D$12 -> 0 | BO81: =BH81/10*$D123/1000 -> 0 | BP81: 0
A82: 5 | E82: =Worksheet!$J$19 -> 0 | F82: =Worksheet!$J$17 -> 0 | G82: =Worksheet!$J$21 -> 0 | K82: =Worksheet!$J$32 -> 0 | L82: =Worksheet!$J$30 -> 0 | M82: =Worksheet!$J$34 -> 0 | N82: =Worksheet!$D$15 -> 0 | O82: =Worksheet!$D$19 -> 0 | P82: =Worksheet!#REF! ->  | Q82: =Worksheet!$D$17 -> 0 | R82: =Worksheet!$D$13 -> 0 | S82: =Worksheet!$D$21 -> 0 | T82: =Worksheet!$D$28 -> 0 | U82: =Worksheet!$D$32 -> 0 | V82: =Worksheet!$D$34 -> 0 | W82: =Worksheet!$D$30 -> 0 | X82: =Worksheet!$D$26 -> 0 | Y82: =Worksheet!$D$36 -> 0 | Z82: =$BB$27 ->  | AA82: =$BC$27 ->  | BF82: =AQ124*G82+AT124*M82 -> 0 | BG82: =IF(AF124="AC w/ Fossil Fuel",AK124*G82+AN124*M82,AK124*S82+AN124*Y82) -> 0 | BH82: =AW124*S82+AZ124*Y82 -> 0 | BJ82: =IF(OR(B124="",C124="",D124="",AC124=0,AC124=""),"",INDEX(References!$BM$27:$BM$30,MATCH(IF(AC124="Attic 2","Attic",AC124),References!$BL$27:$BL$30,0))) ->  | BK82: =BF82*$D124/1000 -> 0 | BL82: 0 | BM82: 0 | BN82: =BM82*References!$D$12 -> 0 | BO82: =BH82/10*$D124/1000 -> 0 | BP82: 0
A83: 6
A84: 7
A85: 8
A86: 9
A87: 10
BO88: Rebate: | BP88: =IF(AND(BJ78="",BJ79="",BJ80="",BJ81="",BJ82=""),0,IF(References!$C$23=TRUE,MIN(References!$BN$7,Worksheet!$D$107),MIN(References!$BM$7,Worksheet!$D$107))) -> 0
B91: HVAC Info
B92: Cooling Type | C92: Cooling Capacity | D92: Cooling Equipment Efficiency Look Up | E92: Cooling EER | F92: Cooling SEER/IEER | G92: Cooling % | H92: Cooling CO2 | I92: Heating Type | J92: Heating Capacity | K92: Heating Equipment Efficiency Look Up | L92: Heating HSPF | M92: Heating COP/Efficiency | N92: Fossil Fuel Source T/F | O92: Heating % | P92: Heating CO2 | Q92: EFLH Cooling | R92: EFLH Heating
A93: System 1 | B93: =IF(Worksheet!$J$13="","",Worksheet!$J$13) ->  | C93: =IF(Worksheet!$J$15="",0,Worksheet!$J$15*12000) -> 0 | D93: =IF(OR(B93="",C93=0),"",B93&" "&INDEX(References!$C$27:$M$46,MATCH(Qualifying_Index!B93,References!$A$27:$A$46,0),MATCH(Qualifying_Index!C93,References!$B$26:$M$26,1))) ->  | E93: =IF(D93="","",INDEX(References!$K$51:$K$104,MATCH(D93,References!$J$51:$J$104,0))) ->  | F93: =IF(D93="","",INDEX(References!$L$51:$L$104,MATCH(D93,References!$J$51:$J$104,0))) ->  | G93: =IF(D93="",0,C93/(C93+C94)) -> 0 | H93: =IF(D93="",0,INDEX(References!$O$51:$O$104,MATCH(D93,References!$J$51:$J$104,0))) -> 0 | I93: =IF(Worksheet!$D$13="","",Worksheet!$D$13) ->  | J93: =Worksheet!$D$15 -> 0 | K93: =IF(OR(I93="",J93=0),"",I93&" "&INDEX(References!$C$27:$M$47,MATCH(I93,References!$A$27:$A$47,0),MATCH(J93,References!$B$26:$M$26,1))) ->  | L93: =IF(K93="","",INDEX(References!$M$51:$M$104,MATCH(K93,References!$J$51:$J$104,0))) ->  | M93: =IF(K93="","",INDEX(References!$N$51:$N$104,MATCH(K93,References!$J$51:$J$104,0))) ->  | N93: =IF(K93="","",INDEX(References!$P$51:$P$104,MATCH(K93,References!$J$51:$J$104,0))) ->  | O93: =IF(K93="","",J93/(J93+J94)) ->  | P93: =IF(K93="",0,INDEX(References!$O$51:$O$104,MATCH(K93,References!$J$51:$J$104,0))) -> 0 | Q93: =References!C$74 ->  | R93: =References!D$74 ->  | T93: Total Rebate | U93: =SUM(AE103:AE105,AB114,W120:W124,AR135,Z142) -> 0
A94: System 2 | B94: =IF(Worksheet!$J$26="","",Worksheet!$J$26) ->  | C94: =IF(Worksheet!$J$28="",0,Worksheet!$J$28*12000) -> 0 | D94: =IF(OR(B94="",C94=0),"",B94&" "&INDEX(References!$C$27:$M$46,MATCH(Qualifying_Index!B94,References!$A$27:$A$46,0),MATCH(Qualifying_Index!C94,References!$B$26:$M$26,1))) ->  | E94: =IF(D94="",0,INDEX(References!$K$51:$K$104,MATCH(D94,References!$J$51:$J$104,0))) -> 0 | F94: =IF(D94="",0,INDEX(References!$L$51:$L$104,MATCH(D94,References!$J$51:$J$104,0))) -> 0 | G94: =IF(D94="",0,C94/(C94+C93)) -> 0 | H94: =IF(D94="",0,INDEX(References!$O$51:$O$104,MATCH(D94,References!$J$51:$J$104,0))) -> 0 | I94: =IF(Worksheet!$D$26="","",Worksheet!$D$26) ->  | J94: =Worksheet!$D$28 -> 0 | K94: =IF(OR(I94="",J94=0),"",I94&" "&INDEX(References!$C$27:$M$47,MATCH(I94,References!$A$27:$A$47,0),MATCH(J94,References!$B$26:$M$26,1))) ->  | L94: =IF(K94="","",INDEX(References!$M$51:$M$104,MATCH(K94,References!$J$51:$J$104,0))) ->  | M94: =IF(K94="","",INDEX(References!$N$51:$N$104,MATCH(K94,References!$J$51:$J$104,0))) ->  | N94: =IF(K94="",FALSE,INDEX(References!$P$51:$P$104,MATCH(K94,References!$J$51:$J$104,0))) -> FALSE | O94: =IF(K94="",0,J94/(J94+J93)) -> 0 | P94: =IF(K94="",0,INDEX(References!$O$51:$O$104,MATCH(K94,References!$J$51:$J$104,0))) -> 0 | Q94: =References!C$74 ->  | R94: =References!D$74 ->  | T94: Total Cost | U94: =SUM(Worksheet!D48,Worksheet!D87,Worksheet!D107,Worksheet!D147,Worksheet!D165) -> 0
A95: Electric Average: | E95: =IFERROR((E93*G93)+(E94*G94),"") ->  | F95: =IFERROR((F93*G93)+(F94*G94),"") ->  | G95: =IF(SUM(G93:G94)=0,"",SUM(G93:G94)) ->  | H95: =(H93*G93)+(H94*G94) -> 0 | L95: =IFERROR(IF(NOT(N93),L93*(O93/O95))+IF(AND(NOT(N94),L94=0),L94*(O94/O95)),0) -> 0 | M95: =IFERROR(IF(NOT(N93),M93*(O93/O95))+IF(AND(NOT(N94)),M94*(O94/O95)),0) -> 0 | O95: =SUMIF(N93:N94,FALSE,O93:O94) -> 0 | P95: =IF(O95=0,0,IF(N93=FALSE,P93*(O93/O95))+IF(N94=FALSE,P94*(O94/O95))) -> 0 | R95: =IF(N93=FALSE,R93*(O93/O95))+IF(N94=FALSE,R94*(O94/O95)) ->  | T95: Calculated Rebate | U95: =U94*References!$A$20 -> 0
A96: FF Average: | M96: =IFERROR(IF(N93,M93*(O93/O96))+IF(N94,M94*(O94/O96)),0) -> 0 | O96: =SUMIF(N93:N94,TRUE,O93:O94) -> 0 | P96: =IF(O96=0,0,IF(N93,P93*(O93/O96))+IF(N94,P94*(O94/O96))) -> 0 | R96: =IF(N93=TRUE,R93*(O93/O96))+IF(N94=TRUE,R94*(O94/O96)) -> 0 | T96: Calculated rebate to expected rebate percentage | U96: =IF(U95>U93,100%,U95/U93) -> 
A100: Duct Sealing
B101: Duct Sealing Information | AG101: Duct Information
B102: Pre CFM | C102: Post CFM | D102: Delta CFM | E102: Heating and Cooling Selection | F102: Cooling System | G102: Heating System | H102: Cooling System Name | I102: Heating System Name | J102: Delta Temp, cooling | K102: Delta Temp, heating | L102: SEER | M102: Heating HSPF | N102: Heating COP/Thermal Efficiency | O102: EFLH Cooling | P102: ELH Heating | R102: Cooling kWh | S102: Heating kWh | T102: Fossil Fuel MMBTUs | U102: Summer kW | V102: Winter kW | W102: EE MMBTU Savings | X102: BE MMBTU Savings | Y102: Total MMBTU Savings | Z102: EE CO2 Savings | AA102: BE CO2 Savings | AB102: Total CO2 Savings | AD102: Measure Code | AE102: Rebate | AF102: Calculated Rebate | AG102: Duct Location | AH102: Additional Attribute | AI102: Duct Info | AJ102: Thermal Regain Factor cooling | AK102: Thermal Regain Factor heating | AL102: Duct Leakage Pre | AM102: Duct Leakage Post | AN102: Cooling Distribution Efficiency Baseline | AO102: Heating Distribution Efficiency Baseline | AP102: Cooling Distribution Efficiency ee | AQ102: Heating Distribution Efficiency ee | AR102: HVAC System | AS102: Cooling 1 Y/N | AT102: Cooling 2 Y/N | AU102: Heating 1 Y/N | AV102: Heating 2 Y/N | AW102: HVAC Cooling Load | AX102: HVAC Electric Heating Load | AY102: HVAC FF Heating Load | BB102: Measure Code | BC102: Cooling kWh | BD102: Heating kWh | BE102: Heating MMBTUs | BF102: Summer kW | BG102: Winter kW | BH102: EE MMBTU Savings | BI102: BE MMBTU Savings | BJ102: Total MMBTU Savings | BK102: EE CO2 Savings | BL102: BE CO2 Savings | BM102: Total CO2 Savings
B103: =Worksheet!D56 -> 0 | C103: =Worksheet!D58 -> 0 | D103: =B103-C103 -> 0 | E103: =Worksheet!D62 -> 0 | F103: =IF(E103=0,0,IF(OR(E103=References!$X$4,E103=References!$X$7),"Cooling (1)",IF(OR(E103=References!$X$5,E103=References!$X$9),"Cooling (2)",0))) -> 0 | G103: =IF(E103=0,0,IF(OR(E103=References!$X$4,E103=References!$X$6),"Heating (1)",IF(OR(E103=References!$X$5,E103=References!$X$8),"Heating (2)",0))) -> 0 | H103: =IF(F103=0,"",IF(F103="Cooling (1)",$D$93,IF(F103="Cooling (2)",$D$94,""))) ->  | I103: =IF(G103=0,"",IF(G103="Heating (1)",$K$93,IF(G103="Heating (2)",$K$94,""))) ->  | J103: =IF(H103="",0,References!$AB$17) -> 0 | K103: =IF(I103="",0,References!$AB$18) -> 0 | L103: =IF(F103=0,0,INDEX($F$93:$F$94,MATCH(H103,$D$93:$D$94,0))) -> 0 | M103: =IF(G103=0,0,INDEX($L$93:$L$94,MATCH(I103,$K$93:$K$94,0))) -> 0 | N103: =IF(G103=0,0,INDEX($M$93:$M$94,MATCH(I103,$K$93:$K$94,0))) -> 0 | O103: =IF(F103=0,0,INDEX($Q$93:$Q$94,MATCH(H103,$D$93:$D$94,0))) -> 0 | P103: =IF(G103=0,0,INDEX($R$93:$R$94,MATCH(I103,$K$93:$K$94,0))) -> 0 | R103: =IF(OR(B103=0,C103=0,H103=""),0,60*D103*J103*References!$AB$19*References!$AB$20*O103/(1000*Qualifying_Index!L103)) -> 0 | S103: =IF(OR(B103=0,C103=0,I103=""),0,IF(INDEX($N$93:$N$94,MATCH(I103,$K$93:$K$94,0))=TRUE,0,IF(M103=0,60*D103*K103*References!$AB$19*References!$AB$20*P103/(3412*N103),60*D103*K103*References!$AB$19*References!$AB$20*P103/(1000*M103)))) -> 0 | T103: =IF(OR(B103=0,C103=0,I103=""),0,IF(INDEX($N$93:$N$94,MATCH(I103,$K$93:$K$94,0))=FALSE,0,60*D103*K103*References!$AB$19*P103/(1000000*Qualifying_Index!N103))) -> 0 | U103: =IF(OR(B103=0,C103=0,H103=""),0,R103/O103) -> 0 | V103: =IF(OR(B103=0,C103=0,I103=""),0,S103/P103) -> 0 | W103: =R103*References!$A$17+S103*References!$A$17+T103 -> 0 | X103: =0 -> 0 | Y103: =W103+X103 -> 0 | Z103: =IF(K103=0,"",R103*$H$95+S103*$P$95+T103*$P$96) ->  | AA103: =0 -> 0 | AB103: =IF(K103=0,"",Z103+AA103) ->  | AE103: =IF(OR(Y103=0,Y103=""),0,200) -> 0 | AF103: =IF(OR(AE103="",AE103=0),0,$U$96*AE103) -> 0 | AG103: =Worksheet!$D$52 -> 0 | AH103: =IF(OR(Worksheet!$D$54="",RIGHT(Worksheet!$D$52,5)="Attic",RIGHT(Worksheet!$D$52,6)="Garage"),"",Worksheet!$D$54) ->  | AI103: =AG103&" "&AH103 -> 0 | AJ103: =IF(OR($AG103="",$AG103=0),0,INDEX(References!$AB$4:$AB$11,MATCH($AI103,References!$AA$4:$AA$11,0))) -> 0 | AK103: =IF(OR($AG103="",$AG103=0),0,INDEX(References!$AC$4:$AC$11,MATCH($AI103,References!$AA$4:$AA$11,0))) -> 0 | AL103: =IF(Worksheet!D60=0,0,ROUND(Worksheet!$D$56/Worksheet!D60,2)) -> 0 | AM103: =IF(Worksheet!D60=0,0,ROUND(Worksheet!$D$58/Worksheet!D60,2)) -> 0 | AN103: =IF(OR($AG103="",$AG103=0),"",INDEX(IF(References!$B$74=References!$B$52,References!$Z$35:$Z$58,IF(References!$B$74=References!$B$57,References!$Y$83:$Y$106,IF(References!$B$74=References!$B$69,References!$Y$107:$Y$130,References!$Y$131:$Y$154))),MATCH(AL103,References!$Y$35:$Y$58,1))) ->  | AO103: =IF(OR($AG103="",$AG103=0),"",INDEX(IF(References!$B$74=References!$B$52,References!$AA$35:$AA$58,IF(References!$B$74=References!$B$57,References!$AA$83:$AA$106,IF(References!$B$74=References!$B$69,References!$AA$107:$AA$130,References!$AA$131:$AA$154))),MATCH(AL103,References!$Y$35:$Y$58,1))) ->  | AP103: =IF(OR($AG103="",$AG103=0),"",INDEX(IF(References!$B$74=References!$B$52,References!$AB$35:$AB$58,IF(References!$B$74=References!$B$57,References!$AB$83:$AB$106,IF(References!$B$74=References!$B$69,References!$AB$107:$AB$130,References!$AB$131:$AB$154))),MATCH(AM103,References!$Y$35:$Y$58,1))) ->  | AQ103: =IF(OR($AG103="",$AG103=0),"",INDEX(IF(References!$B$74=References!$B$52,References!$AC$35:$AC$58,IF(References!$B$74=References!$B$57,References!$AC$83:$AC$106,IF(References!$B$74=References!$B$69,References!$AC$107:$AC$130,References!$AC$131:$AC$154))),MATCH(AM103,References!$Y$35:$Y$58,1))) ->  | AR103: =Worksheet!$D$62 -> 0 | AS103: =IF(OR(AR103=References!$X$4,AR103=References!$X$10,AR103=References!$X$7,AR103=References!$X$12),TRUE) -> FALSE | AT103: =IF(OR(AR103=References!$X$10,AR103=References!$X$5,AR103=References!$X$9,AR103=References!$X$12),TRUE) -> FALSE | AU103: =IF(OR(AR103=References!$X$4,AR103=References!$X$10,AR103=References!$X$6,AR103=References!$X$11),TRUE) -> FALSE | AV103: =IF(OR(AR103=References!$X$5,AR103=References!$X$10,AR103=References!$X$6,AR103=References!$X$11),TRUE) -> FALSE | AW103: =IF(AS103,($C$93/1000)*(1/$F$93)*$Q$93,0)+IF(AT103,($C$94/1000)*(1/$F$94)*$Q$94,0) -> 0 | AX103: =IF(AND(AU103=TRUE,$N$93=FALSE),($J$93/1000)*(1/$L$93)*$R$93,0)+IF(AND(AV103=TRUE,$N$94=FALSE),($J$94/1000)*(1/$L$94)*$R$94,0) -> 0 | AY103: =IF(AND(AU103=TRUE,$N$93=TRUE),($J$93/1000000)*(1/$M$93)*$R$93,0)+IF(AND(AV103=TRUE,$N$94=TRUE),($J$94/1000000)*(1/$M$94)*$R$94,0) -> 0 | BB103: =IF(OR(AG103=0,AH103=0,AL103=0,AM103=0,AR103=0),"",References!$G$3) ->  | BC103: =IF(OR(AR103=0,AI103=0),0,AW103*(1-(AN103/AP103))*(1-AJ103)) -> 0 | BD103: =IF(OR(AR103=0,AI103=0),0,AX103*(1-(AO103/AQ103))*(1-AK103)) -> 0 | BE103: =IF(OR(AR103=0,AI103=0),0,AY103*(1-(AO103/AQ103))*(1-AK103)) -> 0 | BF103: =IF(OR(AR103=0,AI103=0),0,(IF(AS103,($C$93/1000)*(1/$E$93),0)+IF(AT103,($C$94/1000)*(1/$E$94),0))*(1-(AN103/AP103))*(1-AJ103)) -> 0 | BG103: =IF(OR(AR103=0,AI103=0),0,(IF(AND(AU103=TRUE,$N$93=FALSE),($J$93/1000)*(1/$M$93),0)+IF(AND(AV103=TRUE,$N$94=FALSE),($J$94/1000)*(1/$M$94),0))*(1-(AO103/AQ103))*(1-AK103)) -> 0 | BH103: =BC103*References!$A$17+BD103*References!$A$17+BE103 -> 0 | BI103: =0 -> 0 | BJ103: =BH103+BI103 -> 0 | BK103: =(BC103*IF(AS103,$H$93,IF(AT103,$H$94,0)))+(BD103*IF(AND(AU103,NOT($N$93)),$P$93,IF(AND(AV103,NOT($N$94)),$P$94,0)))+BE103*IF(AND(AU103,$N$93),$P$93,IF(AND(AV103,$N$94),$P$94,0)) ->  | BL103: =0 -> 0 | BM103: =BK103+BL103 -> 
B104: =Worksheet!J56 -> 0 | C104: =Worksheet!J58 -> 0 | D104: =B104-C104 -> 0 | E104: =Worksheet!J62 -> 0 | F104: =IF(E104=0,0,IF(OR(E104=References!$X$4,E104=References!$X$7),"Cooling (1)",IF(OR(E104=References!$X$5,E104=References!$X$9),"Cooling (2)",0))) -> 0 | G104: =IF(E104=0,0,IF(OR(E104=References!$X$4,E104=References!$X$6),"Heating (1)",IF(OR(E104=References!$X$5,E104=References!$X$8),"Heating (2)",0))) -> 0 | H104: =IF(F104=0,"",IF(F104="Cooling (1)",$D$93,IF(F104="Cooling (2)",$D$94,""))) ->  | I104: =IF(G104=0,"",IF(G104="Heating (1)",$K$93,IF(G104="Heating (2)",$K$94,""))) ->  | J104: =IF(H104="",0,References!$AB$17) -> 0 | K104: =IF(I104="",0,References!$AB$18) -> 0 | L104: =IF(F104=0,0,INDEX($F$93:$F$94,MATCH(H104,$D$93:$D$94,0))) -> 0 | M104: =IF(G104=0,0,INDEX($L$93:$L$94,MATCH(I104,$K$93:$K$94,0))) -> 0 | N104: =IF(G104=0,0,INDEX($M$93:$M$94,MATCH(I104,$K$93:$K$94,0))) -> 0 | O104: =IF(F104=0,0,INDEX($Q$93:$Q$94,MATCH(H104,$D$93:$D$94,0))) -> 0 | P104: =IF(G104=0,0,INDEX($R$93:$R$94,MATCH(I104,$K$93:$K$94,0))) -> 0 | R104: =IF(OR(B104=0,C104=0,H104=""),0,60*D104*J104*References!$AB$19*References!$AB$20*O104/(1000*Qualifying_Index!L104)) -> 0 | S104: =IF(OR(B104=0,C104=0,I104=""),0,IF(INDEX($N$93:$N$94,MATCH(I104,$K$93:$K$94,0))=TRUE,0,IF(M104=0,60*D104*K104*References!$AB$19*References!$AB$20*P104/(3412*N104),60*D104*K104*References!$AB$19*References!$AB$20*P104/(1000*M104)))) -> 0 | T104: =IF(OR(B104=0,C104=0,I104=""),0,IF(INDEX($N$93:$N$94,MATCH(I104,$K$93:$K$94,0))=FALSE,0,60*D104*K104*References!$AB$19*P104/(1000000*Qualifying_Index!N104))) -> 0 | U104: =IF(OR(B104=0,C104=0,H104=""),0,R104/O104) -> 0 | V104: =IF(OR(B104=0,C104=0,I104=""),0,S104/P104) -> 0 | W104: =R104*References!$A$17+S104*References!$A$17+T104 -> 0 | X104: =0 -> 0 | Y104: =W104+X104 -> 0 | Z104: =IF(K104=0,"",R104*$H$95+S104*$P$95+T104*$P$96) ->  | AA104: =0 -> 0 | AB104: =IF(K104=0,"",Z104+AA104) ->  | AE104: =IF(OR(Y104=0,Y104=""),0,200) -> 0 | AF104: =IF(OR(AE104="",AE104=0),0,$U$96*AE104) -> 0 | AG104: =Worksheet!$J$52 -> 0 | AH104: =IF(OR(Worksheet!J54="",RIGHT(Worksheet!J52,5)="Attic",RIGHT(Worksheet!J52,6)="Garage"),"",Worksheet!$J$54) ->  | AI104: =AG104&" "&AH104 -> 0 | AJ104: =IF(OR($AG104="",$AG104=0),0,INDEX(References!$AB$4:$AB$11,MATCH($AI104,References!$AA$4:$AA$11,0))) -> 0 | AK104: =IF(OR($AG104="",$AG104=0),0,INDEX(References!$AC$4:$AC$11,MATCH($AI104,References!$AA$4:$AA$11,0))) -> 0 | AL104: =IF(Worksheet!J60=0,0,ROUND(Worksheet!$J$56/Worksheet!J60,2)) -> 0 | AM104: =IF(Worksheet!J60=0,0,ROUND(Worksheet!$J$58/Worksheet!J60,2)) -> 0 | AN104: =IF(OR($AG104="",$AG104=0),"",INDEX(IF(References!$B$74=References!$B$52,References!$Z$35:$Z$58,IF(References!$B$74=References!$B$57,References!$Y$83:$Y$106,IF(References!$B$74=References!$B$69,References!$Y$107:$Y$130,References!$Y$131:$Y$154))),MATCH(AL104,References!$Y$35:$Y$58,1))) ->  | AO104: =IF(OR($AG104="",$AG104=0),"",INDEX(IF(References!$B$74=References!$B$52,References!$AA$35:$AA$58,IF(References!$B$74=References!$B$57,References!$AA$83:$AA$106,IF(References!$B$74=References!$B$69,References!$AA$107:$AA$130,References!$AA$131:$AA$154))),MATCH(AL104,References!$Y$35:$Y$58,1))) ->  | AP104: =IF(OR($AG104="",$AG104=0),"",INDEX(IF(References!$B$74=References!$B$52,References!$AB$35:$AB$58,IF(References!$B$74=References!$B$57,References!$AB$83:$AB$106,IF(References!$B$74=References!$B$69,References!$AB$107:$AB$130,References!$AB$131:$AB$154))),MATCH(AM104,References!$Y$35:$Y$58,1))) ->  | AQ104: =IF(OR($AG104="",$AG104=0),"",INDEX(IF(References!$B$74=References!$B$52,References!$AC$35:$AC$58,IF(References!$B$74=References!$B$57,References!$AC$83:$AC$106,IF(References!$B$74=References!$B$69,References!$AC$107:$AC$130,References!$AC$131:$AC$154))),MATCH(AM104,References!$Y$35:$Y$58,1))) ->  | AR104: =Worksheet!$J$62 -> 0 | AS104: =IF(OR(AR104=References!$X$4,AR104=References!$X$10,AR104=References!$X$7,AR104=References!$X$12),TRUE) -> FALSE | AT104: =IF(OR(AR104=References!$X$10,AR104=References!$X$5,AR104=References!$X$9,AR104=References!$X$12),TRUE) -> FALSE | AU104: =IF(OR(AR104=References!$X$4,AR104=References!$X$10,AR104=References!$X$6,AR104=References!$X$11),TRUE) -> FALSE | AV104: =IF(OR(AR104=References!$X$5,AR104=References!$X$10,AR104=References!$X$6,AR104=References!$X$11),TRUE) -> FALSE | AW104: =IF(AS104,($C$93/1000)*(1/$F$93)*$Q$93,0)+IF(AT104,($C$94/1000)*(1/$F$94)*$Q$94,0) -> 0 | AX104: =IF(AND(AU104=TRUE,$N$93=FALSE),($J$93/1000)*(1/$L$93)*$R$93,0)+IF(AND(AV104=TRUE,$N$94=FALSE),($J$94/1000)*(1/$L$94)*$R$94,0) -> 0 | AY104: =IF(AND(AU104=TRUE,$N$93=TRUE),($J$93/1000000)*(1/$M$93)*$R$93,0)+IF(AND(AV104=TRUE,$N$94=TRUE),($J$94/1000000)*(1/$M$94)*$R$94,0) -> 0 | BB104: =IF(OR(AG104=0,AH104=0,AL104=0,AM104=0,AR104=0),"",References!$G$3) ->  | BC104: =IF(OR(AR104=0,AI104=0),0,AW104*(1-(AN104/AP104))*(1-AJ104)) -> 0 | BD104: =IF(OR(AR104=0,AI104=0),0,AX104*(1-(AO104/AQ104))*(1-AK104)) -> 0 | BE104: =IF(OR(AR104=0,AI104=0),0,AY104*(1-(AO104/AQ104))*(1-AK104)) -> 0 | BF104: =IF(OR(AR104=0,AI104=0),0,(IF(AS104,($C$93/1000)*(1/$E$93),0)+IF(AT104,($C$94/1000)*(1/$E$94),0))*(1-(AN104/AP104))*(1-AJ104)) -> 0 | BG104: =IF(OR(AR104=0,AI104=0),0,(IF(AND(AU104=TRUE,$N$93=FALSE),($J$93/1000)*(1/$M$93),0)+IF(AND(AV104=TRUE,$N$94=FALSE),($J$94/1000)*(1/$M$94),0))*(1-(AO104/AQ104))*(1-AK104)) -> 0 | BH104: =BC104*References!$A$17+BD104*References!$A$17+BE104 -> 0 | BI104: =0 -> 0 | BJ104: =BH104+BI104 -> 0 | BK104: =(BC104*IF(AS104,$H$93,IF(AT104,$H$94,0)))+(BD104*IF(AND(AU104,NOT($N$93)),$P$93,IF(AND(AV104,NOT($N$94)),$P$94,0)))+BE104*IF(AND(AU104,$N$93),$P$93,IF(AND(AV104,$N$94),$P$94,0)) ->  | BL104: =0 -> 0 | BM104: =BK104+BL104 -> 
B105: =Worksheet!D70 -> 0 | C105: =Worksheet!D72 -> 0 | D105: 0 | E105: =Worksheet!D76 -> 0 | F105: =IF(E105=0,0,IF(OR(E105=References!$X$4,E105=References!$X$7),"Cooling (1)",IF(OR(E105=References!$X$5,E105=References!$X$9),"Cooling (2)",0))) -> 0 | G105: =IF(E105=0,0,IF(OR(E105=References!$X$4,E105=References!$X$6),"Heating (1)",IF(OR(E105=References!$X$5,E105=References!$X$8),"Heating (2)",0))) -> 0 | J105: =IF(H105="",0,References!$AB$17) -> 0 | K105: =IF(I105="",0,References!$AB$18) -> 0 | L105: 0 | M105: 0 | N105: 0 | O105: 0 | P105: 0 | R105: =IF(OR(B105=0,C105=0,H105=""),0,60*D105*J105*References!$AB$19*References!$AB$20*O105/(1000*Qualifying_Index!L105)) -> 0 | S105: =IF(OR(B105=0,C105=0,I105=""),0,IF(INDEX($N$93:$N$94,MATCH(I105,$K$93:$K$94,0))=TRUE,0,IF(M105=0,60*D105*K105*References!$AB$19*References!$AB$20*P105/(3412*N105),60*D105*K105*References!$AB$19*References!$AB$20*P105/(1000*M105)))) -> 0 | T105: =IF(OR(B105=0,C105=0,I105=""),0,IF(INDEX($N$93:$N$94,MATCH(I105,$K$93:$K$94,0))=FALSE,0,60*D105*K105*References!$AB$19*P105/(1000000*Qualifying_Index!N105))) -> 0 | U105: 0 | V105: 0 | W105: =R105*References!$A$17+S105*References!$A$17+T105 -> 0 | X105: =0 -> 0 | Y105: 0 | Z105: =IF(K105=0,"",R105*$H$95+S105*$P$95+T105*$P$96) ->  | AA105: =0 -> 0 | AB105: =IF(K105=0,"",Z105+AA105) ->  | AE105: 0 | AF105: 0 | AG105: =Worksheet!$D$66 -> 0 | AH105: =IF(OR(Worksheet!D68="",RIGHT(Worksheet!$D$66,5)="Attic",RIGHT(Worksheet!$D$66,6)="Garage"),"",Worksheet!$D$68) ->  | AI105: =AG105&" "&AH105 -> 0 | AJ105: =IF(OR($AG105="",$AG105=0),0,INDEX(References!$AB$4:$AB$11,MATCH($AI105,References!$AA$4:$AA$11,0))) -> 0 | AK105: =IF(OR($AG105="",$AG105=0),0,INDEX(References!$AC$4:$AC$11,MATCH($AI105,References!$AA$4:$AA$11,0))) -> 0 | AL105: =IF(Worksheet!D74=0,0,ROUND(Worksheet!$D$70/Worksheet!D74,2)) -> 0 | AM105: =IF(Worksheet!D74=0,0,ROUND(Worksheet!$D$72*100/Worksheet!D74,2)) -> 0 | AN105: =IF(OR($AG105="",$AG105=0),"",INDEX(IF(References!$B$74=References!$B$52,References!$Z$35:$Z$58,IF(References!$B$74=References!$B$57,References!$Y$83:$Y$106,IF(References!$B$74=References!$B$69,References!$Y$107:$Y$130,References!$Y$131:$Y$154))),MATCH(AL105,References!$Y$35:$Y$58,1))) ->  | AO105: =IF(OR($AG105="",$AG105=0),"",INDEX(IF(References!$B$74=References!$B$52,References!$AA$35:$AA$58,IF(References!$B$74=References!$B$57,References!$AA$83:$AA$106,IF(References!$B$74=References!$B$69,References!$AA$107:$AA$130,References!$AA$131:$AA$154))),MATCH(AL105,References!$Y$35:$Y$58,1))) ->  | AP105: =IF(OR($AG105="",$AG105=0),"",INDEX(IF(References!$B$74=References!$B$52,References!$AB$35:$AB$58,IF(References!$B$74=References!$B$57,References!$AB$83:$AB$106,IF(References!$B$74=References!$B$69,References!$AB$107:$AB$130,References!$AB$131:$AB$154))),MATCH(AM105,References!$Y$35:$Y$58,1))) ->  | AQ105: =IF(OR($AG105="",$AG105=0),"",INDEX(IF(References!$B$74=References!$B$52,References!$AC$35:$AC$58,IF(References!$B$74=References!$B$57,References!$AC$83:$AC$106,IF(References!$B$74=References!$B$69,References!$AC$107:$AC$130,References!$AC$131:$AC$154))),MATCH(AM105,References!$Y$35:$Y$58,1))) ->  | AR105: =Worksheet!$D$76 -> 0 | AS105: =IF(OR(AR105=References!$X$4,AR105=References!$X$10,AR105=References!$X$7,AR105=References!$X$12),TRUE) -> FALSE | AT105: =IF(OR(AR105=References!$X$10,AR105=References!$X$5,AR105=References!$X$9,AR105=References!$X$12),TRUE) -> FALSE | AU105: =IF(OR(AR105=References!$X$4,AR105=References!$X$10,AR105=References!$X$6,AR105=References!$X$11),TRUE) -> FALSE | AV105: =IF(OR(AR105=References!$X$5,AR105=References!$X$10,AR105=References!$X$6,AR105=References!$X$11),TRUE) -> FALSE | AW105: =IF(AS105,($C$93/1000)*(1/$F$93)*$Q$93,0)+IF(AT105,($C$94/1000)*(1/$F$94)*$Q$94,0) -> 0 | AX105: =IF(AND(AU105=TRUE,$N$93=FALSE),($J$93/1000)*(1/$L$93)*$R$93,0)+IF(AND(AV105=TRUE,$N$94=FALSE),($J$94/1000)*(1/$L$94)*$R$94,0) -> 0 | AY105: =IF(AND(AU105=TRUE,$N$93=TRUE),($J$93/1000000)*(1/$M$93)*$R$93,0)+IF(AND(AV105=TRUE,$N$94=TRUE),($J$94/1000000)*(1/$M$94)*$R$94,0) -> 0 | BB105: =IF(OR(AG105=0,AH105=0,AL105=0,AM105=0,AR105=0),"",References!$G$3) ->  | BC105: =IF(OR(AR105=0,AI105=0),0,AW105*(1-(AN105/AP105))*(1-AJ105)) -> 0 | BD105: =IF(OR(AR105=0,AI105=0),0,AX105*(1-(AO105/AQ105))*(1-AK105)) -> 0 | BE105: =IF(OR(AR105=0,AI105=0),0,AY105*(1-(AO105/AQ105))*(1-AK105)) -> 0 | BF105: 0 | BG105: 0 | BH105: =BC105*References!$A$17+BD105*References!$A$17+BE105 -> 0 | BI105: =0 -> 0 | BJ105: 0 | BL105: =0 -> 0
AH106: =IF(OR(Worksheet!$D$54="",RIGHT(Worksheet!$D$52,5)<>"Space",RIGHT(Worksheet!$D$52,8)<>"Basement"),"",Worksheet!$D$54) -> 
AH107: =IF(OR(Worksheet!$D$54="",RIGHT(Worksheet!$D$52,5)<>"Space",RIGHT(Worksheet!$D$52,8)<>"Basement"),"",Worksheet!$D$54) -> 
AH108: =IF(OR(Worksheet!$D$54="",RIGHT(Worksheet!$D$52,5)<>"Space",RIGHT(Worksheet!$D$52,8)<>"Basement"),"",Worksheet!$D$54) -> 
A111: Air Sealing
B112: Air Sealing Information
B113: Pre CFM50 | C113: Post CFM50 | D113: Delta CFM50 | E113: Shielding Class | F113: SF | G113: CDD | H113: HDD | I113: Fn,cooling | J113: Fn,heating | O113: Cooling kWh | P113: Heating kWh | Q113: Fossil Fuel MMBTUs | R113: Summer kW | S113: Winter kW | T113: EE MMBTU Savings | U113: BE MMBTU Savings | V113: Total MMBTU Savings | W113: EE CO2 Savings | X113: BE CO2 Savings | Y113: Total CO2 Savings | AA113: Measure Code | AB113: Rebate | AC113: Calculated Rebate
B114: =Worksheet!D92 -> 0 | C114: =Worksheet!D94 -> 0 | D114: =B114-C114 -> 0 | E114: =Worksheet!D90 -> 0 | F114: =Worksheet!D97 -> 0 | G114: =References!$AB$23 -> 1160 | H114: =References!$AB$24 -> 4671 | I114: =IF(OR(E114="",E114=0),0,INDEX(References!$AF$4:$AF$8,MATCH(E114,References!$AE$4:$AE$8,0))) -> 0 | J114: =IF(OR(E114="",E114=0),0,INDEX(References!$AG$4:$AG$8,MATCH(E114,References!$AE$4:$AE$8,0))) -> 0 | O114: =IF(OR(B114=0,C114=0,G95=""),0,D114/(I114*References!$AB$21)*F114*1.08*References!AB22*G114*24/(F95*1000)) -> 0 | P114: =IF(OR(B114=0,C114=0,$O$95=0),0,IF(AND(N93=TRUE,N94=TRUE),0,IF(OR(L95=0,L95=""),D114/(J114*References!$AB$21)*F114*1.08*References!AB22*G114*24/(M95*3412)*$O$95,D114/(J114*References!$AB$21)*F114*1.08*References!AB22*G114*24/(L95*1000)*$O$95))) -> 0 | Q114: =IF(OR(B114=0,C114=0,O96=0),0,D114/(J114*References!$AB$21)*F114*1.08*References!AB22*G114*24/(M96*1000000)*$O$96) -> 0 | R114: =IF(OR(B114=0,C114=0),0,D114/(I114*References!$AB$21)*F114*1.08*References!AB22/(E95*1000)) -> 0 | S114: =IF(OR(B114=0,C114=0),0,IF(O95=0,0,D114/(J114*References!$AB$21)*F114*1.08*References!AB22/(M95*3412)*$O$95)) -> 0 | T114: =O114*References!$A$17+P114*References!$A$17+Q114 -> 0 | U114: =0 -> 0 | V114: =T114+U114 -> 0 | W114: =IF(AND(O114=0,P114=0,Q114=0),0,O114*H95+P114*P95+Q114*P96) -> 0 | X114: =0 -> 0 | Y114: =IF(W114=0,"",W114+X114) ->  | AB114: =IF(T114=0,0,Worksheet!D97*References!$N$4) -> 0 | AC114: =IF(OR(AB114="",AB114=0),0,$U$96*AB114) -> 0
A118: Insulation
B119: Existing R-Value | C119: Installed R-Value | D119: Square Foot of Insulation Installed | E119: CDD | F119: HDD | G119: F,framing | I119: Cooling kWh | J119: Heating kWh | K119: Fossil Fuel MMBTUs | L119: Summer kW | M119: Winter kW | N119: EE MMBTU Savings | O119: BE MMBTU Savings | P119: Total MMBTU Savings | Q119: EE CO2 Savings | R119: BE CO2 Savings | S119: Total CO2 Savings | V119: Measure Code | W119: Rebate | X119: Calculated Rebate
B120: =Worksheet!D114 -> 0 | C120: =IF(AND(Worksheet!D110="Exterior Walls",Worksheet!D116>References!$BN$94),References!$BN$94,IF(Worksheet!D116>References!$BN$98,References!$BN$98,Worksheet!D116)) -> 0 | D120: =Worksheet!D112 -> 0 | E120: =References!$AB$23 -> 1160 | F120: =References!$AB$24 -> 4671 | G120: =IF(OR(Worksheet!D110="",Worksheet!D110=0),0,INDEX(References!$BG$4:$BG$7,MATCH(Worksheet!D110,References!$BF$4:$BF$7,0))) -> 0 | I120: =IF(OR(B120=0,C120=0,D120=0,$G$95=""),0,((1/B120)-(1/C120))*D120*(1-G120)*E120*24/(1000*$F$95)) -> 0 | J120: =IF(OR(B120=0,C120=0,D120=0,$O$95=0),0,((1/B120)-(1/C120))*D120*(1-G120)*F120*24/(3412*$M$95)*$O$95) -> 0 | K120: =IF(OR(B120=0,C120=0,D120=0,$O$96=0),0,((1/B120)-(1/C120))*D120*(1-G120)*F120*24/(1000000*$M$96)*$O$96) -> 0 | L120: =IF(OR(B120=0,C120=0,D120=0),0,((1/B120)-(1/C120))*D120*(1-G120)/(1000*$E$95)) -> 0 | M120: =IF(OR(B120=0,C120=0,D120=0,$O$95=0),0,((1/B120)-(1/C120))*D120*(1-G120)/(3412*$M$95)*$O$95) -> 0 | N120: =I120*References!$A$17+J120*References!$A$17+K120 -> 0 | O120: =0 -> 0 | P120: =N120+O120 -> 0 | Q120: =IF(D120=0,"",I120*$H$95+J120*$P$95+K120*$P$96) ->  | R120: =0 -> 0 | S120: =IF(D120=0,"",Q120+R120) ->  | W120: =IFERROR(IF(N120=0,0,D120*References!$N$5),0) -> 0 | X120: =IF(OR(W120="",W120=0),0,$U$96*W120) -> 0
B121: =Worksheet!J114 -> 0 | C121: =IF(AND(Worksheet!J110="Exterior Walls",Worksheet!J116>References!$BN$94),References!$BN$94,IF(Worksheet!J116>References!$BN$98,References!$BN$98,Worksheet!J116)) -> 0 | D121: =Worksheet!J112 -> 0 | E121: =References!$AB$23 -> 1160 | F121: =References!$AB$24 -> 4671 | G121: =IF(OR(Worksheet!J110="",Worksheet!J110=0),0,INDEX(References!$BG$4:$BG$7,MATCH(Worksheet!J110,References!$BF$4:$BF$7,0))) -> 0 | I121: =IF(OR(B121=0,C121=0,D121=0,$G$95=""),0,((1/B121)-(1/C121))*D121*(1-G121)*E121*24/(1000*$F$95)) -> 0 | J121: =IF(OR(B121=0,C121=0,D121=0,$O$95=0),0,((1/B121)-(1/C121))*D121*(1-G121)*F121*24/(3412*$M$95)*$O$95) -> 0 | K121: =IF(OR(B121=0,C121=0,D121=0,$O$96=0),0,((1/B121)-(1/C121))*D121*(1-G121)*F121*24/(1000000*$M$96)*$O$96) -> 0 | L121: =IF(OR(B121=0,C121=0,D121=0),0,((1/B121)-(1/C121))*D121*(1-G121)/(1000*$E$95)) -> 0 | M121: =IF(OR(B121=0,C121=0,D121=0,$O$95=0),0,((1/B121)-(1/C121))*D121*(1-G121)/(3412*$M$95)*$O$95) -> 0 | N121: =I121*References!$A$17+J121*References!$A$17+K121 -> 0 | O121: =0 -> 0 | P121: =N121+O121 -> 0 | Q121: =IF(D121=0,"",I121*$H$95+J121*$P$95+K121*$P$96) ->  | R121: =0 -> 0 | S121: =IF(D121=0,"",Q121+R121) ->  | W121: =IFERROR(IF(N121=0,0,D121*References!$N$5),0) -> 0 | X121: =IF(OR(W121="",W121=0),0,$U$96*W121) -> 0
B122: =Worksheet!D124 -> 0 | C122: =IF(AND(Worksheet!D120="Exterior Walls",Worksheet!D126>References!$BN$94),References!$BN$94,IF(Worksheet!D126>References!$BN$98,References!$BN$98,Worksheet!D126)) -> 0 | D122: =Worksheet!D122 -> 0 | E122: =References!$AB$23 -> 1160 | F122: =References!$AB$24 -> 4671 | G122: =IF(OR(Worksheet!D120="",Worksheet!D120=0),0,INDEX(References!$BG$4:$BG$7,MATCH(Worksheet!D120,References!$BF$4:$BF$7,0))) -> 0 | I122: 0 | J122: 0 | K122: 0 | L122: 0 | M122: 0 | N122: =I122*References!$A$17+J122*References!$A$17+K122 -> 0 | O122: =0 -> 0 | P122: 0 | R122: =0 -> 0 | W122: =IFERROR(IF(N122=0,0,D122*References!$N$5),0) -> 0 | X122: 0
B123: =Worksheet!J124 -> 0 | C123: =IF(AND(Worksheet!J120="Exterior Walls",Worksheet!J126>References!$BN$94),References!$BN$94,IF(Worksheet!J126>References!$BN$98,References!$BN$98,Worksheet!J126)) -> 0 | D123: =Worksheet!J122 -> 0 | E123: =References!$AB$23 -> 1160 | F123: =References!$AB$24 -> 4671 | G123: =IF(OR(Worksheet!J120="",Worksheet!J120=0),0,INDEX(References!$BG$4:$BG$7,MATCH(Worksheet!J120,References!$BF$4:$BF$7,0))) -> 0 | I123: 0 | J123: 0 | K123: 0 | L123: 0 | M123: 0 | N123: =I123*References!$A$17+J123*References!$A$17+K123 -> 0 | O123: =0 -> 0 | P123: 0 | R123: =0 -> 0 | W123: =IFERROR(IF(N123=0,0,D123*References!$N$5),0) -> 0 | X123: 0
B124: =Worksheet!D134 -> 0 | C124: =IF(AND(Worksheet!D130="Exterior Walls",Worksheet!D136>References!$BN$94),References!$BN$94,IF(Worksheet!D136>References!$BN$98,References!$BN$98,Worksheet!D136)) -> 0 | D124: =Worksheet!D132 -> 0 | E124: =References!$AB$23 -> 1160 | F124: =References!$AB$24 -> 4671 | G124: =IF(OR(Worksheet!D130="",Worksheet!D130=0),0,INDEX(References!$BG$4:$BG$7,MATCH(Worksheet!D130,References!$BF$4:$BF$7,0))) -> 0 | I124: 0 | J124: 0 | K124: 0 | L124: 0 | M124: 0 | N124: =I124*References!$A$17+J124*References!$A$17+K124 -> 0 | O124: =0 -> 0 | P124: 0 | R124: =0 -> 0 | W124: =IFERROR(IF(N124=0,0,D124*References!$N$5),0) -> 0 | X124: 0
A132: Air Curtain
B133: Air Curtain Information
B134: Horsepower | C134: Efficiency Curtain | D134: Length | E134: Height | F134: Fdischarge | G134: Fopening | H134: Toutdoor,cooling | I134: Tindoor,cooling | J134: MPHcooling | K134: Houtdoor,cooling | L134: Hindoor,cooling | M134: Toutdoor,heating | N134: Tindoor,heating | O134: MPHheating | P134: Hours | Q134: Days,cooling | R134: Days,heating | T134: Qwind,cooling | U134: Qthermal,cooling | V134: QA,cooling | W134: Qwind,heating | X134: Qthermal,heating | Y134: QA,heating | Z134: kBTU/h,cooling | AA134: kBTU/h,heating | AD134: kWh cooling | AE134: kWh heating | AF134: Heating MMBTUs | AG134: EE MMBTU Savings | AH134: BE MMBTU Savings | AI134: Total MMBTU Savings | AJ134: Summer kW | AK134: Winter kW | AL134: EE CO2 Savings | AM134: BE CO2 Savings | AN134: Total CO2 Savings | AQ134: Measure Code | AR134: Rebate | AS134: Calculated Rebate
B135: =Worksheet!D150 -> 0 | C135: 0.7 | D135: =Worksheet!D152 -> 0 | E135: =Worksheet!D154 -> 0 | F135: 0.4 | G135: 0.3 | H135: 88.7 | I135: 85 | J135: 9.7 | K135: 37.3 | L135: 34.6 | M135: 50.1 | N135: 60 | O135: 12.09 | P135: ='Customer Information'!L17*References!$AY$4 -> 0 | Q135: 98 | R135: 180 | T135: =J135*E135*D135*G135*88 -> 0 | U135: =60*E135*D135*F135*SQRT(32.2*E135*((H135-I135)/(H135+459.67))) -> 0 | V135: =SQRT((T135^2)+(U135^2)) -> 0 | W135: =O135*E135*D135*G135*88 -> 0 | X135: =60*E135*D135*F135*SQRT(32.2*E135*((N135-M135)/(N135+459.67))) -> 0 | Y135: =SQRT((W135^2)+(X135^2)) -> 0 | Z135: =4.5*V135*(K135-L135)*C135/1000 -> 0 | AA135: =1.08*Y135*(N135-M135)*C135/1000 -> 0 | AD135: =IF(OR(B135=0,D135=0,G95=""),0,((Z135/E95)-(B135*0.746))*P135*Q135) -> 0 | AE135: =IF(O95=0,-(B135*0.746)*P135*R135,((AA135/M95)*O95-(B135*0.746))*P135*R135) -> 0 | AF135: =IF(O96>0,(AA135/(M96*1000))*O96*P135*R135,0) -> 0 | AG135: =AD135*References!$A$17+AE135*References!$A$17+AF135 -> 0 | AH135: =0 -> 0 | AI135: =AG135+AH135 -> 0 | AJ135: =AD135/(Q135*24) -> 0 | AK135: =AE135/(R135*24) -> 0 | AL135: =IF(B135=0,0,AD135*H95+AE135*P95+AF135*P96) -> 0 | AM135: =0 -> 0 | AN135: =AL135+AM135 -> 0 | AR135: =IFERROR(IF(AG135<=0,0,References!$N$6),0) -> 0 | AS135: =IF(OR(AR135="",AR135=0),0,$U$96*AR135) -> 0
A139: Pipe Insulation
B140: Pipe Insulation Information
B141: Water Heater Source | C141: Length | D141: Pipe Diameter | E141: Insulation thickness | F141: Baseline UA/L | G141: Efficient UA/L | H141: Water Heater Efficiency | I141: T pipe | J141: T amb | K141: Delta Temp | L141: hours | M141: Elec SF | O141: kWh Savings | P141: EE MMBTU Savings | Q141: BE MMBTU Savings | R141: Total MMBTUs | S141: Summer kW | T141: Winter kW | U141: EE CO2 Savings | V141: BE CO2 Savings | W141: Total CO2 Savings | Y141: Measure Code | Z141: Rebates
B142: =Worksheet!D168 -> 0 | C142: =Worksheet!$D$170 -> 0 | D142: =Worksheet!$D$172 -> 0 | E142: =Worksheet!D174 -> 0 | F142: =INDEX(References!$AK$4:$AK$16,MATCH(D142,References!$AJ$4:$AJ$16,0)) ->  | G142: =INDEX(References!$AJ$3:$AQ$16,MATCH(D142,References!$AJ$3:$AJ$16,0),MATCH(E142,References!$AJ$3:$AQ$3,0)) ->  | H142: =INDEX(References!$AL$25:$AL$27,MATCH(B142,References!$AK$25:$AK$27,0)) ->  | I142: =References!$AP$26 -> 125 | J142: =References!$AP$27 -> 70 | K142: =I142-J142 -> 55 | L142: =References!$AP$25 -> 8760 | M142: =References!$AP$28 -> 1 | O142: =IF(OR(B142=0,C142=0,D142=0,E142=0),0,((F142-G142)/(H142*3412))*C142*K142*L142*M142) -> 0 | P142: =IF(O142="","",O142*References!A17) -> 0 | Q142: =IF(B142="","",0) -> 0 | R142: =IF(P142="","",P142+Q142) -> 0 | S142: =IF(O142="","",O142/8760) -> 0 | T142: =IF(O142="","",O142/8760) -> 0 | U142: =O142*References!$A$12 -> 0 | V142: =0 -> 0 | W142: =U142+V142 -> 0 | Z142: =IF(P142=0,0,C142*References!$N$7) -> 0 | AA142: =IF(OR(Z142="",Z142=0),0,$U$96*Z142) -> 0

Sheet References (hidden)
A1: Basic References | X1: Duct Sealing | AE1: Air Sealing | AJ1: Pipie Insulation | AK1: * NYS TRM v7 | AY1: Air Curtain | BB1: Home Performance
D2: Product Line | E2: Product Class | F2: Product Name | G2: Measure Code | H2: Coincidence Factor | I2: Free Ridership | J2: Spillover | K2: Line Loss Demand | L2: Line Loss Energy | M2: In Sevice Rate | N2: Rebate | X2: Duct_Heating_Cooling System | AA2: Duct Location | AB2: TRF cooling | AC2: TRF heating | AE2: Shielding Class | AF2: Fn,cooling | AG2: Fn,heating | AL2: Fiberglass | AR2: Rigid Foam/Cellular Glass
A3: Value | B3: Decimal Places | D3: CEP Weatherization | E3: CEP Duct Sealing | G3: CW100 | H3: 0.8 | K3: 0.085 | L3: 0.06 | M3: 1 | N3: 1.3 | X3: - Please Select - | AJ3: Pipe Diameter | AK3: Baseline | AL3: 0.5 | AM3: 1 | AN3: 1.5 | AO3: 2 | AP3: 2.5 | AQ3: 3 | AR3: 0.5 | AS3: 1 | AT3: 1.5 | AU3: 2 | AV3: 2.5 | AW3: 3 | AY3: % Hours Operation | BF3: Location | BG3: F,framing | BL3: Rebates
A4: kW | B4: 7 | D4: CEP Weatherization | E4: CEP Air Sealing | G4: CW200 | H4: 0.798 | K4: 0.085 | L4: 0.06 | M4: 1 | N4: 0.15 | X4: Heating & Cooling (1) | AA4: Unconditioned Attic | AB4: 0.1 | AC4: 0.1 | AE4: No shielding on any side | AF4: 9 | AG4: 8 | AJ4: 0.5 | AK4: 0.44 | AL4: 0.13 | AM4: 0.09 | AN4: 0.08 | AO4: 0.07 | AP4: 0.06 | AQ4: 0.06 | AR4: 0.15 | AS4: 0.12 | AT4: 0.1 | AU4: 0.09 | AV4: 0.09 | AW4: 0.08 | AY4: 0.2 | BB4: Yes_No | BC4: YES | BD4: NO | BF4: Attic | BG4: 0.07 | BL4: Measure | BM4: Regular Offering | BN4: Income Eligible
A5: kWh | B5: 5 | D5: CEP Weatherization | E5: CEP Insulation | G5: CW300 | K5: 0.085 | L5: 0.06 | M5: 1 | N5: 0.5 | X5: Heating & Cooling (2) | AA5: Unconditioned Garage | AB5: 0.1 | AC5: 0.1 | AE5: A few nearby obstruction | AF5: 10 | AG5: 9 | AJ5: 0.75 | AK5: 0.54 | AL5: 0.14 | AM5: 0.11 | AN5: 0.09 | AO5: 0.08 | AP5: 0.07 | AQ5: 0.07 | AR5: 0.17 | AS5: 0.13 | AT5: 0.11 | AU5: 0.1 | AV5: 0.1 | AW5: 0.09 | BB5: Select… | BC5: - Please Select - | BF5: Attic 2 | BG5: 0.07 | BJ5: Select… | BL5: Duct Sealing | BM5: 250 | BN5: 500
D6: CEP Weatherization | E6: CEP Air Curtain | G6: CW400 | H6: 0.8 | K6: 0.085 | L6: 0.06 | M6: 1 | N6: 500 | X6: Heating (1) | AA6: Unconditioned Crawl Space Uninsulated | AB6: 0.6 | AC6: 0.6 | AE6: A collection of obstructions within 25 feet | AF6: 12 | AG6: 10 | AJ6: 1 | AK6: 0.65 | AL6: 0.17 | AM6: 0.12 | AN6: 0.1 | AO6: 0.09 | AP6: 0.08 | AQ6: 0.07 | AR6: 0.19 | AS6: 0.15 | AT6: 0.13 | AU6: 0.12 | AV6: 0.11 | AW6: 0.1 | BB6: YES | BC6: Heating & Cooling (1) | BF6: Exterior Walls | BG6: 0.25 | BJ6: 1 | BL6: Air Sealing | BM6: 250 | BN6: 500
A7: Yes_No | D7: CEP Weatherization | E7: CEP Pipe Insulation | G7: CW500 | H7: 1 | K7: 0.085 | L7: 0.06 | M7: 1 | N7: 10 | X7: Cooling (1) | AA7: Unconditioned Crawl Space Insulated Floor | AB7: 0.63 | AC7: 0.6 | AE7: Substantial number of obstructions shield most of the perimeter - typical suburban setting | AF7: 16 | AG7: 13 | AJ7: 1.25 | AK7: 0.8 | AL7: 0.2 | AM7: 0.14 | AN7: 0.11 | AO7: 0.1 | AP7: 0.09 | AQ7: 0.08 | AR7: 0.23 | AS7: 0.17 | AT7: 0.15 | AU7: 0.13 | AV7: 0.12 | AW7: 0.11 | BB7: NO | BC7: Heating & Cooling (1&2) | BF7: Garage/Overhang | BG7: 0.07 | BJ7: =BJ6+1 -> 2 | BL7: Insulation | BM7: 500 | BN7: 3000
A8: YES | X8: Heating (2) | AA8: Unconditioned Crawl Space Insulated Floor & Walls | AB8: 0.3 | AC8: 0.3 | AE8: Building surrounded by large structures - typical urban setting | AF8: 27 | AG8: 22 | AJ8: 1.5 | AK8: 0.9 | AL8: 0.22 | AM8: 0.15 | AN8: 0.12 | AO8: 0.11 | AP8: 0.1 | AQ8: 0.09 | AR8: 0.25 | AS8: 0.19 | AT8: 0.16 | AU8: 0.14 | AV8: 0.13 | AW8: 0.12 | BB8: DECLINED | BJ8: =BJ7+1 -> 3
A9: NO | X9: Cooling (2) | AA9: Unconditioned Basement Insulated | AB9: 0.6 | AC9: 0.6 | AJ9: 2 | AK9: 1.1 | AL9: 0.26 | AM9: 0.18 | AN9: 0.14 | AO9: 0.12 | AP9: 0.11 | AQ9: 0.1 | AR9: 0.29 | AS9: 0.22 | AT9: 0.18 | AU9: 0.16 | AV9: 0.14 | AW9: 0.13 | BJ9: 4
X10: Heating & Cooling (1&2) | AA10: Unconditioned Basement Uninsulated | AB10: 0.5 | AC10: 0.5 | AJ10: 2.5 | AK10: 1.31 | AL10: 0.3 | AM10: 0.2 | AN10: 0.16 | AO10: 0.14 | AP10: 0.12 | AQ10: 0.11 | AR10: 0.34 | AS10: 0.25 | AT10: 0.2 | AU10: 0.18 | AV10: 0.16 | AW10: 0.15 | BB10: Location | BJ10: 5
A11: Emission Factor (lb CO2 / kWh) | X11: Heating (1&2) | AA11: Under-slab | AB11: 0.2 | AC11: 0.2 | AJ11: 3 | AK11: 1.57 | AL11: 0.35 | AM11: 0.24 | AN11: 0.18 | AO11: 0.16 | AP11: 0.14 | AQ11: 0.12 | AR11: 0.39 | AS11: 0.29 | AT11: 0.23 | AU11: 0.2 | AV11: 0.18 | AW11: 0.16 | BB11: Attic | BJ11: 6
A12: 1.1962 | X12: Cooling (1&2) | AJ12: 3.5 | AK12: 1.77 | AL12: 0.4 | AM12: 0.26 | AN12: 0.2 | AO12: 0.17 | AP12: 0.15 | AQ12: 0.13 | AR12: 0.44 | AS12: 0.32 | AT12: 0.26 | AU12: 0.22 | AV12: 0.2 | AW12: 0.18 | BB12: Attic 2 | BJ12: 7
AJ13: 4 | AK13: 1.98 | AL13: 0.44 | AM13: 0.29 | AN13: 0.22 | AO13: 0.18 | AP13: 0.16 | AQ13: 0.14 | AR13: 0.48 | AS13: 0.35 | AT13: 0.28 | AU13: 0.24 | AV13: 0.21 | AW13: 0.19 | BB13: Exterior Walls | BJ13: 8
A14: ConversionFactors | D14: Organization Type | E14: Rebate Payment Method | AJ14: 5 | AK14: 2.41 | AL14: 0.52 | AM14: 0.34 | AN14: 0.26 | AO14: 0.22 | AP14: 0.19 | AQ14: 0.17 | AR14: 0.58 | AS14: 0.41 | AT14: 0.33 | AU14: 0.28 | AV14: 0.25 | AW14: 0.22 | BB14: Garage/Overhang | BD14: Attic | BE14: Attic 2 | BF14: Exterior Walls | BG14: Garage Overhang | BH14: Basement Ceiling | BJ14: 9 | BL14: Look up | BM14: Measure Code | BN14: Product Class | BO14: Product Line | BP14: Product Name
A15: 2204.6 | B15: lbs/metric ton | D15: …please select… | E15: …please select… | AJ15: 6 | AK15: 2.84 | AL15: 0.61 | AM15: 0.39 | AN15: 0.3 | AO15: 0.25 | AP15: 0.21 | AQ15: 0.19 | AR15: 0.67 | AS15: 0.47 | AT15: 0.37 | AU15: 0.32 | AV15: 0.28 | AW15: 0.25 | BH15: Rim Joist | BJ15: 10 | BL15: Conditioned Space | BM15: HPwES-100 | BN15: HPwES-Systems | BO15: HPwES-Systems | BP15: HPwES Duct Sealing
A16: 0.001 | B16: kg/metric ton | D16: Government | E16: Check to Customer | AA16: Variable | AB16: Value | AJ16: 8 | AK16: 3.64 | AL16: 0.77 | AM16: 0.49 | AN16: 0.37 | AO16: 0.3 | AP16: 0.26 | AQ16: 0.23 | AR16: 0.84 | AS16: 0.59 | AT16: 0.46 | AU16: 0.39 | AV16: 0.34 | AW16: 0.3
A17: 0.003412 | B17: MMBTU/kWh | D17: Incorporated | E17: Assigned to Contractor | X17: Duct Sealing - Attribute | AA17: Delta Temp, Cooling | AB17: 22.7
D18: Not Incorporated | X18: Unconditioned Basement | Y18: Unconditioned Crawl Space | AA18: Delta Temp, Heating | AB18: 64.9
A19: Rebate Cost Cap | X19: Select… | Y19: Select… | AA19: Specific heat capacity (Cp) | AB19: 0.018 | AE19: Variables | AF19: Value
A20: 0.8 | X20: Insulated | Y20: Insulated Floor | AA20: Latent Multiplier (LM) | AB20: 5.2 | AE20: Latent Multiplier | AF20: 4.2
X21: Uninsulated | Y21: Insulated Floor & Walls | AA21: Fh | AB21: =1^-0.3 -> 1 | AE21: Specific Heat Capacity | AF21: 0.018
Y22: Uninsulated | AA22: LM | AB22: 6.2 | AE22: cu.ft/min to cu.ft/hr | AF22: 60 | BH22: Foundation Walls | BJ22: =BJ15+1 -> 11 | BL22: Unconditioned Attic | BM22: HPwES-105 | BN22: HPwES-Systems | BO22: HPwES-Systems | BP22: HPwES Duct Sealing
AA23: CDD | AB23: 1160 | BH23: Flooring | BJ23: 12 | BL23: Unconditioned Basement | BM23: HPwES-106 | BN23: HPwES-Systems | BO23: HPwES-Systems | BP23: HPwES Duct Sealing
AA24: HDD | AB24: 4671 | AK24: Water Heater Equipment Type | AL24: Thermal Efficiency | AO24: Variable | AP24: Value | AQ24: Details | BB24: Location Attribute | BJ24: 13 | BL24: Unconditioned Garage | BM24: HPwES-107 | BN24: HPwES-Systems | BO24: HPwES-Systems | BP24: HPwES Duct Sealing
B25: Move table over 1 column and then add column 0 | X25: Duct Location | AE25: Season | AF25: Outdoor Temp | AK25: Electric Storage | AL25: 0.98 | AO25: hrs | AP25: 8760 | AQ25: DHW | BJ25: 14 | BL25: Unconditioned Crawl Space | BM25: HPwES-110 | BN25: HPwES-Systems | BO25: HPwES-Systems | BP25: HPwES Duct Sealing
B26: 0 | C26: 6000 | D26: 8000 | E26: 14000 | F26: 20000 | G26: 65000 | H26: 135000 | I26: 240000 | J26: 300000 | K26: 760000 | L26: 2500000 | M26: 1000000000 | X26: Unconditioned Attic | AE26: Cooling | AF26: 82.1 | AK26: Electric Instantaneous | AL26: 0.98 | AO26: T pipe | AP26: 125 | AQ26: degrees F DHW | BB26: Combustion Equipment | BD26: Venting | BF26: Fuel Type | BH26: Distribution | BJ26: 15 | BM26: HPwES-115 | BN26: HPwES-Systems | BO26: HPwES-Systems | BP26: HPwES Air Sealing
A27: Air Conditioners - Air Cooled Split | B27: < 5.4 tons | C27: < 5.4 tons | D27: < 5.4 tons | E27: < 5.4 tons | F27: < 5.4 tons | G27: < 5.4 tons | H27: > 5.4 & < 11.25 tons | I27: > 11.25 & < 20 tons | J27: > 20 & < 63 tons | K27: > 20 & < 63 tons | L27: > 63 tons | M27: > 63 tons | X27: Unconditioned Basement | AE27: Heating | AF27: 42 | AK27: Electric Heat Pump | AL27: 2.2 | AM27: *Should I add <55 gallons | AO27: Tamb | AP27: 70 | AQ27: degrees F DHW | BB27: Furnace | BD27: Natural | BF27: Oil | BH27: Forced Hot Air | BL27: Attic | BM27: HPwES-120 | BN27: HPwES-Systems | BO27: HPwES-Systems | BP27: HPwES Insulation
A28: Air Conditioners - Air Cooled Single Package | B28: < 5.4 tons | C28: < 5.4 tons | D28: < 5.4 tons | E28: < 5.4 tons | F28: < 5.4 tons | G28: < 5.4 tons | H28: > 5.4 & < 11.25 tons | I28: > 11.25 & < 20 tons | J28: > 20 & < 63 tons | K28: > 20 & < 63 tons | L28: > 63 tons | M28: > 63 tons | X28: Unconditioned Crawl Space | AE28: *From Bin Data. See Air Sealing analysis | AO28: Elec SF | AP28: 1 | AQ28: Electric Hot Water only | BB28: Boiler | BD28: Induced | BF28: Natural Gas | BH28: Baseboard | BL28: Exterior Walls | BM28: HPwES-125 | BN28: HPwES-Systems | BO28: HPwES-Systems | BP28: HPwES Insulation
A29: Air Conditioners - Water Cooled | B29: < 5.4 tons | C29: < 5.4 tons | D29: < 5.4 tons | E29: < 5.4 tons | F29: < 5.4 tons | G29: < 5.4 tons | H29: > 5.4 & < 11.25 tons | I29: > 11.25 & < 20 tons | J29: > 20 & < 63 tons | K29: > 20 & < 63 tons | L29: > 63 tons | M29: > 63 tons | X29: Unconditioned Garage | BB29: Heat Pump | BD29: Power Vented | BF29: Electric | BH29: Radiator | BL29: Garage/Overhang | BM29: HPwES-130 | BN29: HPwES-Systems | BO29: HPwES-Systems | BP29: HPwES Insulation
A30: Air Conditioners - Evaporatively Cooled | B30: < 5.4 tons | C30: < 5.4 tons | D30: < 5.4 tons | E30: < 5.4 tons | F30: < 5.4 tons | G30: < 5.4 tons | H30: > 5.4 & < 11.25 tons | I30: > 11.25 & < 20 tons | J30: > 20 & < 63 tons | K30: > 20 & < 63 tons | L30: > 63 tons | M30: > 63 tons | BB30: Geothermal | BD30: Sealed | BF30: Propane | BL30: Basement Ceiling | BM30: HPwES-135 | BN30: HPwES-Systems | BO30: HPwES-Systems | BP30: HPwES Insulation
A31: Air Source Heat Pumps | B31: < 5.4 tons | C31: < 5.4 tons | D31: < 5.4 tons | E31: < 5.4 tons | F31: < 5.4 tons | G31: < 5.4 tons | H31: > 5.4 & < 11.25 tons | I31: > 11.25 & < 20 tons | J31: > 20 tons | K31: > 20 tons | L31: > 20 tons | M31: > 63 tons | BB31: Electric Baseboard | BF31: Other
A32: Ductless Mini-Split AC
A33: Ductless Mini-Split Heat Pumps | X33: Building Type | Y33: Duct Total Leakage | Z33: Cooling Distribution Efficiency Baseline * | AA33: Heating Distribution Efficiency Baseline * | AB33: Cooling Distribution Efficiency EE * | AC33: Heating Distribution Efficiency EE * | AE33: Building type | AF33: Occupied Cooling Temp | AG33: Unoccupied Cooling Temp | AH33: Occupied Heating Temp | AI33: Unoccupied Heating Temp | AJ33: Average Cooling Temp | AK33: Average Heating Temp | BB33: DHW | BD33: Color | BF33: Attic | BI33: Bypass Codes
A34: Packaged Terminal Air Conditioners | BB34: Electric | BD34: Select… | BF34: Select… | BG34: - | BI34: Select… | BJ34: -
A35: Packaged Terminal Heat Pumps | X35: Assembly | Y35: 0 | Z35: 0.922 | AA35: 0.857 | AB35: 0.986 | AC35: 0.896 | AE35: Assembly | AF35: 76 | AG35: 79 | AH35: 72 | AI35: 69 | AJ35: =((AF35*AM35+AG35*(8760-AM35))/8760) -> 77.37945205 | AK35: =((AH35*AM35+AI35*(8760-AM35))/8760) -> 70.62054795 | AL35: *Mon-Sun 8am-9pm | AM35: =(13)*7*52 -> 4732 | BB35: Direct Storage | BD35: Black | BF35: I - Inaccessible | BG35: I | BI35: C - Chaseways | BJ35: C
A36: Room Air Conditioners | B36: < 1/2 tons | C36: < 1/2 tons | D36: > 1/2 & < 2/3 tons | E36: > 2/3 & < 1 1/6 tons | F36: > 1 1/6 & < 1 2/3 tons | G36: > 1 2/3 tons | H36: > 1 2/3 tons | I36: > 1 2/3 tons | J36: > 1 2/3 tons | K36: > 1 2/3 tons | L36: > 1 2/3 tons | M36: > 1 2/3 tons | X36: Assembly | Y36: 0.08 | Z36: 0.922 | AA36: 0.857 | AB36: 0.986 | AC36: 0.896 | AE36: Fast Food Restaurant | AF36: 77 | AG36: 80 | AH36: 72 | AI36: 69 | AJ36: =((AF36*AM36+AG36*(8760-AM36))/8760) -> 77.88082192 | AK36: =((AH36*AM36+AI36*(8760-AM36))/8760) -> 71.11917808 | AL36: *Mon-Sun 6am-11pm | AM36: =(17)*7*52 -> 6188 | BB36: Indirect Storage | BD36: White | BF36: F - Floored | BG36: F | BI36: F - Flue Stacks | BJ36: F
A37: VRF Air Cooled Heat Pumps | B37: < 5.4 tons | C37: < 5.4 tons | D37: < 5.4 tons | E37: < 5.4 tons | F37: < 5.4 tons | G37: < 5.4 tons | H37: > 5.4 & < 11.25 tons | I37: > 11.25 & < 20 tons | J37: > 20 tons | K37: > 20 tons | L37: > 20 tons | M37: > 20 tons | X37: Assembly | Y37: 0.09 | Z37: =((($Y37-$Y$36)*(Z$43-Z$36))/($Y$43-$Y$36))+Z$36 -> 0.92 | AA37: 0.853 | AB37: 0.9832857143 | AC37: 0.8912857143 | AE37: Full Service Restaurant | AF37: 77 | AG37: 80 | AH37: 72 | AI37: 69 | AJ37: 78.13013699 | AK37: 70.86986301 | AL37: *Mon-Sun 9am-12pm | AM37: =(15)*7*52 -> 5460 | BB37: Tankless | BD37: Bisque | BF37: O - Open/ Unfloored | BG37: O | BI37: P - Plumping Stacks | BJ37: P
A38: VRF Water Source Heat Pumps | B38: < 5.4 tons | C38: < 5.4 tons | D38: < 5.4 tons | E38: < 5.4 tons | F38: < 5.4 tons | G38: < 5.4 tons | H38: > 5.4 & < 11.25 tons | I38: > 11.25 & < 20 tons | J38: > 20 tons | K38: > 20 tons | L38: > 20 tons | M38: > 20 tons | X38: Assembly | Y38: 0.1 | Z38: 0.918 | AA38: 0.849 | AB38: 0.9805714286 | AC38: 0.8865714286 | AE38: Grocery | AF38: 74 | AG38: 79 | AH38: 70 | AI38: 65 | AJ38: 75.67579909 | AK38: 68.32420091 | AL38: *Mon-Sun 6am-10pm | AM38: =(16)*7*52 -> 5824 | BF38: S - Finished Slope | BG38: S | BI38: W - Open Wall Tops | BJ38: W
A39: Water Source Heat Pumps | X39: Assembly | Y39: 0.11 | Z39: 0.916 | AA39: 0.845 | AB39: 0.9778571429 | AC39: 0.8818571429 | AE39: Health | AJ39: =AJ45 -> 77.88589548 | AK39: =AK45 -> 69.66966007 | AL39: *Other | AM39: NA | BB39: Conditioned | BD39: Color 2 | BF39: K - Kneewall | BG39: K | BI39: D - Dropped Ceiling | BJ39: D
A40: Ground Source Heat Pump | X40: Assembly | Y40: 0.12 | Z40: 0.914 | AA40: 0.841 | AB40: 0.9751428571 | AC40: 0.8771428571 | AE40: Hotel | AF40: 76 | AG40: 81 | AH40: 72 | AI40: 67 | AJ40: =AF40*0.6+AG40*0.4 -> 78 | AK40: =AH40*0.6+AI40*0.4 -> 70 | AL40: *60% Occ, 40% unocc | AM40: NA | BB40: Select… | BD40: Select... | BF40: V - Overhang | BG40: V | BI40: H - Attic Hatch | BJ40: H
A41: Natural Gas Furnace | X41: Assembly | Y41: 0.13 | Z41: 0.912 | AA41: 0.837 | AB41: 0.9724285714 | AC41: 0.8724285714 | AE41: Religious | AF41: 76 | AG41: 82 | AH41: 70 | AI41: 64 | AJ41: =((AF41*AM41+AG41*(8760-AM41))/8760) -> 80.36164384 | AK41: =((AH41*AM41+AI41*(8760-AM41))/8760) -> 65.63835616 | AL41: *Mon-Sat 12pm-6pm, Sun 9am-7pm | AM41: =(6*6*52)+(10*52) -> 2392 | BB41: Conditioned | BD41: Black | BF41: G - Garage Ceiling | BG41: G | BI41: O - Other | BJ41: O
A42: Oil Furnace | X42: Assembly | Y42: 0.14 | Z42: 0.91 | AA42: 0.833 | AB42: 0.9697142857 | AC42: 0.8677142857 | AE42: School | AF42: 76 | AG42: 79 | AH42: 72 | AI42: 69 | AJ42: =((AF42*AM42+AG42*(8760-AM42))/8760) -> 77.96712329 | AK42: =((AH42*AM42+AI42*(8760-AM42))/8760) -> 70.03287671 | AL42: *Mon-Fri 8am-6pm, Sun 8am-4pm | AM42: =(10*5*52)+(8*52) -> 3016 | BB42: Unconditioned | BD42: White
A43: Propane Furnace | X43: Assembly | Y43: 0.15 | Z43: 0.908 | AA43: 0.829 | AB43: 0.967 | AC43: 0.863 | AE43: Small Office | AF43: 76 | AG43: 79 | AH43: 72 | AI43: 69 | AJ43: 78.03835616 | AK43: 69.96164384 | AL43: *Mon-Sat 9am-6pm | AM43: =(9)*6*52 -> 2808 | BD43: Bisque | BF43: Attic Insulation | BI43: Condition Codes
A44: Electric Furnace | X44: Assembly | Y44: 0.16 | Z44: =((($Y44-$Y$43)*(Z$48-Z$43))/($Y$48-$Y$43))+Z$43 -> 0.9058 | AA44: 0.8252 | AB44: 0.9644 | AC44: 0.8586 | AE44: Small Retail | AF44: 76 | AG44: 79 | AH44: 72 | AI44: 69 | AJ44: 77.53972603 | AK44: 70.46027397 | AL44: *Mon-Sat 10am-10pm, Sun 10am-8pm | AM44: =(12*6*52)+(10*52) -> 4264 | BB44: Conditoned/Unconditioned | BF44: Select… | BG44: - | BI44: Select… | BJ44: -
A45: Natural Gas Boiler | B45: < 25 tons | C45: < 25 tons | D45: < 25 tons | E45: < 25 tons | F45: < 25 tons | G45: < 25 tons | H45: < 25 tons | I45: < 25 tons | J45: < 25 tons | K45: > 25 & < 208 tons | L45: > 25 & < 208 tons | M45: > 208 tons | X45: Assembly | Y45: 0.17 | Z45: 0.9036 | AA45: 0.8214 | AB45: 0.9618 | AC45: 0.8542 | AE45: Other | AJ45: =AVERAGE(AJ35:AJ38,AJ40:AJ44) -> 77.88589548 | AK45: =AVERAGE(AK35:AK38,AK40:AK44) -> 69.66966007 | BB45: Select… | BD45: Condition | BF45: R-29 | BG45: > 12" | BI45: EX - Existing Leak | BJ45: EX
A46: Oil Boiler | B46: < 25 tons | C46: < 25 tons | D46: < 25 tons | E46: < 25 tons | F46: < 25 tons | G46: < 25 tons | H46: < 25 tons | I46: < 25 tons | J46: < 25 tons | K46: > 25 & < 208 tons | L46: > 25 & < 208 tons | M46: > 208 tons | X46: Assembly | Y46: 0.18 | Z46: 0.9014 | AA46: 0.8176 | AB46: 0.9592 | AC46: 0.8498 | AE46: =IF(B74="","",B74) ->  | AF46: =IF($AE$46="",0,_xlfn.IFNA(INDEX(AF35:AF45,MATCH(AE46,AE35:AE45,0)),AF45)) -> 0 | AG46: =IF($AE$46="",0,_xlfn.IFNA(INDEX(AG35:AG45,MATCH(AF46,AF35:AF45,0)),AG45)) -> 0 | AH46: 0 | AI46: 0 | AJ46: 0 | AK46: 0 | BB46: Conditioned | BD46: Select… | BF46: R-24 | BG46: 9 - 12" | BI46: P - Prior Leak | BJ46: P
A47: Electric Resistance | X47: Assembly | Y47: 0.19 | Z47: 0.8992 | AA47: 0.8138 | AB47: 0.9566 | AC47: 0.8454
X48: Assembly | Y48: 0.2 | Z48: 0.897 | AA48: 0.81 | AB48: 0.954 | AC48: 0.841
X49: Assembly | Y49: 0.21 | Z49: =((($Y49-$Y$48)*(Z$53-Z$48))/($Y$53-$Y$48))+Z$48 -> 0.8948 | AA49: 0.8066 | AB49: 0.951 | AC49: 0.837 | BB49: Unconditioned | BD49: Yes | BF49: R-19 | BG49: 6 - 9" | BI49: S - Structural Damage | BJ49: S
A50: Building Type | B50: Building Type | C50: Cooling ELFH | D50: Heating EFLH | F50: Cooling Equipment Type | G50: Heating Equipment Type | H50: Water Heater Equipment Type | J50: Equipemnt for Efficiency | K50: EER | L50: SEER | M50: HSPF | N50: COP | O50: CO2 lbs/unit | P50: FF T/F | R50: REM Cooling kWh | S50: REM Heating kWh | T50: REM Heating MMBTU | U50: REM Cooling kW | V50: REM Heating kW | X50: Assembly | Y50: 0.22 | Z50: 0.8926 | AA50: 0.8032 | AB50: 0.948 | AC50: 0.833 | BB50: Overheated | BD50: None | BF50: R-14 | BG50: 3 -5" | BI50: M - Minor Damage | BJ50: M
B51: … please select … | F51: Air Conditioners - Air Cooled Split | G51: Natural Gas Furnace | H51: Electric Storage | J51: Air Conditioners - Air Cooled Split < 5.4 tons | K51: =1.12*L51-0.02*L51^2 -> 11.18 | L51: 13 | O51: 1.1962 | P51: FALSE | R51: 1.059 | S51: 0 | T51: 0 | U51: 0.0023 | V51: 0 | X51: Assembly | Y51: 0.23 | Z51: 0.8904 | AA51: 0.7998 | AB51: 0.945 | AC51: 0.829 | BD51: No Access | BF51: R-9 | BG51: < 3" | BI51: O - Obstructions | BJ51: O
A52: 3 | B52: Assembly | C52: 669 | D52: 603 | F52: Air Conditioners - Air Cooled Single Package | G52: Oil Furnace | H52: Electric Instantaneous | J52: Air Conditioners - Air Cooled Single Package < 5.4 tons | K52: =1.12*L52-0.02*L52^2 -> 11.76 | L52: 14 | O52: 1.1962 | P52: FALSE | R52: 1.059 | S52: 0 | T52: 0 | U52: 0.0023 | V52: 0 | X52: Assembly | Y52: 0.24 | Z52: 0.8882 | AA52: 0.7964 | AB52: 0.942 | AC52: 0.825 | BB52: Hinge | BI52: C - Customer Will Clear | BJ52: C
B53: Auto Repair | C53: 426 | D53: 1910 | F53: Air Conditioners - Water Cooled | G53: Propane Furnace | H53: Electric Heat Pump | J53: Air Conditioners - Air Cooled Split > 5.4 & < 11.25 tons | K53: 11.2 | L53: 12.7 | O53: 1.1962 | P53: FALSE | R53: 1.059 | S53: 0 | T53: 0 | U53: 0.0023 | V53: 0 | X53: Assembly | Y53: 0.25 | Z53: 0.886 | AA53: 0.793 | AB53: 0.939 | AC53: 0.821 | BB53: Select... | BD53: Heating Source | BF53: Locations 2
B54: Big Box Retail | C54: 1276 | D54: 191 | F54: Air Conditioners - Evaporatively Cooled | G54: Electric Furnace | J54: Air Conditioners - Air Cooled Single Package > 5.4 & < 11.25 tons | K54: 11.2 | L54: 12.7 | O54: 1.1962 | P54: FALSE | R54: 1.059 | S54: 0 | T54: 0 | U54: 0.0023 | V54: 0 | X54: Assembly | Y54: 0.26 | Z54: =((($Y54-$Y$53)*(Z$58-Z$53))/($Y$58-$Y$53))+Z$53 -> 0.8834 | AA54: 0.7896 | AB54: 0.936 | AC54: 0.817 | BB54: Left | BD54: Gas | BF54: Select… | BH54: Locations
A55: 1 | B55: Community College | C55: 992 | D55: 1082 | F55: Air Source Heat Pumps | G55: Natural Gas Boiler | J55: Air Conditioners - Air Cooled Split > 11.25 & < 20 tons | K55: 10.8 | L55: 12.2 | O55: 1.1962 | P55: FALSE | R55: 1.059 | S55: 0 | T55: 0 | U55: 0.0023 | V55: 0 | X55: Assembly | Y55: 0.27 | Z55: 0.8808 | AA55: 0.7862 | AB55: 0.933 | AC55: 0.813 | BB55: Right | BD55: Oil | BF55: Front Door | BH55: Select…
B56: Fast Food Restaurant | C56: 645 | D56: 813 | F56: Ductless Mini-Split AC | G56: Oil Boiler | J56: Air Conditioners - Air Cooled Single Package > 11.25 & < 20 tons | K56: 10.8 | L56: 12.2 | O56: 1.1962 | P56: FALSE | R56: 1.059 | S56: 0 | T56: 0 | U56: 0.0023 | V56: 0 | X56: Assembly | Y56: 0.28 | Z56: 0.8782 | AA56: 0.7828 | AB56: 0.93 | AC56: 0.809 | BD56: Electric Resistance | BF56: Side/Rear Door | BH56: B - Bedroom
A57: 9 | B57: Full Service Restaurant | C57: 574 | D57: 821 | F57: Ductless Mini-Split Heat Pumps | G57: Electric Resistance | J57: Air Conditioners - Air Cooled Split > 20 & < 63 tons | K57: 9.8 | L57: 11.4 | O57: 1.1962 | P57: FALSE | R57: 1.059 | S57: 0 | T57: 0 | U57: 0.0023 | V57: 0 | X57: Assembly | Y57: 0.29 | Z57: 0.8756 | AA57: 0.7794 | AB57: 0.927 | AC57: 0.805 | BB57: AC Types | BD57: Electric Heat Pump | BF57: Interior Passageway | BH57: BC - Basement/Cellar
A58: 2 | B58: Grocery | C58: 1279 | D58: 191 | F58: Packaged Terminal Air Conditioners | G58: Air Source Heat Pumps | J58: Air Conditioners - Air Cooled Single Package > 20 & < 63 tons | K58: 9.8 | L58: 11.4 | O58: 1.1962 | P58: FALSE | R58: 1.059 | S58: 0 | T58: 0 | U58: 0.0023 | V58: 0 | X58: Assembly | Y58: 0.3 | Z58: 0.873 | AA58: 0.776 | AB58: 0.924 | AC58: 0.801 | BB58: Select… | BD58: Propane | BH58: D - Dining Room
B59: High School | C59: 704 | D59: 708 | F59: Packaged Terminal Heat Pumps | G59: Ductless Mini-Split Heat Pumps | J59: Air Conditioners - Air Cooled Split > 63 tons | K59: 9.5 | L59: 11 | O59: 1.1962 | P59: FALSE | R59: 1.059 | S59: 0 | T59: 0 | U59: 0.0023 | V59: 0 | X59: Fast Food Restaurant | Y59: 0 | Z59: 0.866 | AA59: 0.766 | AB59: 0.945 | AC59: 0.875 | BB59: Central AC | BD59: Wood | BF59: notes | BH59: E - Exterior
A60: 4 | B60: Hospital | C60: 1925 | D60: 2477 | F60: Room Air Conditioners | G60: Packaged Terminal Heat Pumps | J60: Air Conditioners - Air Cooled Single Package > 63 tons | K60: 9.5 | L60: 11 | O60: 1.1962 | P60: FALSE | R60: 1.059 | S60: 0 | T60: 0 | U60: 0.0023 | V60: 0 | X60: Fast Food Restaurant | Y60: 0.08 | Z60: 0.866 | AA60: 0.766 | AB60: 0.945 | AC60: 0.875 | BB60: Central HP | BD60: Other | BF60: Select… | BH60: F - Family Room/Den
A61: 5 | B61: Hotel | C61: 3049 | D61: 655 | F61: VRF Air Cooled Heat Pumps | G61: VRF Air Cooled Heat Pumps | J61: Air Conditioners - Water Cooled < 5.4 tons | K61: 12.1 | L61: 12.3 | O61: 1.1962 | P61: FALSE | R61: 1.059 | S61: 0 | T61: 0 | U61: 0.0023 | V61: 0 | X61: Fast Food Restaurant | Y61: 0.09 | Z61: =((($Y61-$Y$60)*(Z$67-Z$60))/($Y$67-$Y$60))+Z$60 -> 0.8641428571 | AA61: 0.7614285714 | AB61: 0.9421428571 | AC61: 0.8678571429 | BB61: Minisplit AC | BF61: Refrigerator Subcontractor | BH61: H - Hallway
B62: Large Office | C62: 1756 | D62: 1643 | F62: VRF Water Source Heat Pumps | G62: VRF Water Source Heat Pumps | J62: Air Conditioners - Water Cooled > 5.4 & < 11.25 tons | K62: 11.9 | L62: 13.7 | O62: 1.1962 | P62: FALSE | R62: 1.059 | S62: 0 | T62: 0 | U62: 0.0023 | V62: 0 | X62: Fast Food Restaurant | Y62: 0.1 | Z62: 0.8622857143 | AA62: 0.7568571429 | AB62: 0.9392857143 | AC62: 0.8607142857 | BB62: Minisplit HP | BD62: PASS/FAIL2 | BF62: Custom Measure Evaluation | BH62: K - Kitchen
B63: Large Retail | C63: 1487 | D63: 1711 | F63: Water Source Heat Pumps | G63: Water Source Heat Pumps | J63: Air Conditioners - Water Cooled > 11.25 & < 20 tons | K63: 12.3 | L63: 13.7 | O63: 1.1962 | P63: FALSE | R63: 1.059 | S63: 0 | T63: 0 | U63: 0.0023 | V63: 0 | X63: Fast Food Restaurant | Y63: 0.11 | Z63: 0.8604285714 | AA63: 0.7522857143 | AB63: 0.9364285714 | AC63: 0.8535714286 | BB63: Closed Loop Geo | BD63: Select… | BF63: File | BH63: L - Living Room
A64: 6 | B64: Light Industrial | C64: 549 | D64: 714 | F64: Ground Source Heat Pump | G64: Ground Source Heat Pump | J64: Air Conditioners - Water Cooled > 20 & < 63 tons | K64: 12.2 | L64: 13.4 | O64: 1.1962 | P64: FALSE | R64: 1.059 | S64: 0 | T64: 0 | U64: 0.0023 | V64: 0 | X64: Fast Food Restaurant | Y64: 0.12 | Z64: 0.8585714286 | AA64: 0.7477142857 | AB64: 0.9335714286 | AC64: 0.8464285714 | BB64: Open Loop Geo | BD64: Pass | BF64: Electrician | BH64: O - Office/Study
B65: Motel | C65: 1233 | D65: 619 | J65: Air Conditioners - Water Cooled > 63 tons | K65: 12 | L65: 13.3 | O65: 1.1962 | P65: FALSE | R65: 1.059 | S65: 0 | T65: 0 | U65: 0.0023 | V65: 0 | X65: Fast Food Restaurant | Y65: 0.13 | Z65: 0.8567142857 | AA65: 0.7431428571 | AB65: 0.9307142857 | AC65: 0.8392857143 | BD65: Fail | BF65: Plumber | BH65: T - Bathroom Toilet
A66: 11 | B66: Primary School | C66: 394 | D66: 840 | J66: Air Conditioners - Evaporatively Cooled < 5.4 tons | K66: 12.1 | L66: 12.3 | O66: 1.1962 | P66: FALSE | R66: 1.059 | S66: 0 | T66: 0 | U66: 0.0023 | V66: 0 | X66: Fast Food Restaurant | Y66: 0.14 | Z66: 0.8548571429 | AA66: 0.7385714286 | AB66: 0.9278571429 | AC66: 0.8321428571 | BF66: HVAC Subcontractor | BH66: U - Unlisted/Other
A67: 8 | B67: Religious | C67: 279 | D67: 722 | J67: Air Conditioners - Evaporatively Cooled > 5.4 & < 11.25 tons | K67: 11.9 | L67: 12.1 | O67: 1.1962 | P67: FALSE | R67: 1.059 | S67: 0 | T67: 0 | U67: 0.0023 | V67: 0 | X67: Fast Food Restaurant | Y67: 0.15 | Z67: 0.853 | AA67: 0.734 | AB67: 0.925 | AC67: 0.825 | BB67: Locations 3 | BF67: Other:
A68: 7 | B68: Small Office | C68: 955 | D68: 431 | J68: Air Conditioners - Evaporatively Cooled > 11.25 & < 20 tons | K68: 11.8 | L68: 12 | O68: 1.1962 | P68: FALSE | R68: 1.059 | S68: 0 | T68: 0 | U68: 0.0023 | V68: 0 | X68: Fast Food Restaurant | Y68: 0.16 | Z68: =((($Y68-$Y$67)*(Z$72-Z$67))/($Y$72-$Y$67))+Z$67 -> 0.8512 | AA68: 0.73 | AB68: 0.9222 | AC68: 0.8188 | BB68: Select… | BC68: -
A69: 10 | B69: Small Retail | C69: 882 | D69: 545 | J69: Air Conditioners - Evaporatively Cooled > 20 & < 63 tons | K69: 11.7 | L69: 11.9 | O69: 1.1962 | P69: FALSE | R69: 1.059 | S69: 0 | T69: 0 | U69: 0.0023 | V69: 0 | X69: Fast Food Restaurant | Y69: 0.17 | Z69: 0.8494 | AA69: 0.726 | AB69: 0.9194 | AC69: 0.8126 | BB69: A - Attic | BC69: Attic | BE69: Siding | BH69: R-Values | BK69: Existing R-Values | BL69: Installed R-Values
B70: University | C70: 1057 | D70: 1011 | J70: Air Conditioners - Evaporatively Cooled > 63 tons | K70: 11.5 | L70: 11.7 | O70: 1.1962 | P70: FALSE | R70: 1.059 | S70: 0 | T70: 0 | U70: 0.0023 | V70: 0 | X70: Fast Food Restaurant | Y70: 0.18 | Z70: 0.8476 | AA70: 0.722 | AB70: 0.9166 | AC70: 0.8064 | BB70: B - Bedroom | BC70: Bedroom | BE70: Select… | BF70: - | BH70: Select… | BI70: - | BK70: Select… | BL70: Select…
A71: 12 | B71: Warehouse | C71: 400 | D71: 452 | J71: Air Source Heat Pumps < 5.4 tons | K71: =1.12*L71-0.02*L71^2 -> 11.76 | L71: 14 | M71: 8.2 | N71: =M71/3.412 -> 2.403282532 | O71: 1.1962 | P71: FALSE | R71: 1.059 | S71: 3.847 | T71: 0 | U71: 0.0023 | V71: 0.0158 | X71: Fast Food Restaurant | Y71: 0.19 | Z71: 0.8458 | AA71: 0.718 | AB71: 0.9138 | AC71: 0.8002 | BB71: BC - Basement/Cellar | BE71: A - Asbestos | BF71: A | BH71: R-24 | BI71: > 10" | BK71: 0-5 | BL71: 11-12
A72: 13 | B72: Other | C72: 736 | D72: 681 | J72: Air Source Heat Pumps > 5.4 & < 11.25 tons | K72: 10.8 | L72: 12 | M72: =N72*3.412 -> 11.2596 | N72: 3.3 | O72: 1.1962 | P72: FALSE | R72: 1.059 | S72: 3.847 | T72: 0 | U72: 0.0023 | V72: 0.0158 | X72: Fast Food Restaurant | Y72: 0.2 | Z72: 0.844 | AA72: 0.714 | AB72: 0.911 | AC72: 0.794 | BB72: C - Cellar/Crawl | BC72: Cellar/Crawl | BE72: AL - Aluminum | BF72: AL | BH72: R-19 | BI72: 6 - 9" | BK72: 5-11 | BL72: 13-16
J73: Air Source Heat Pumps > 11.25 & < 20 tons | K73: 10.4 | L73: 11.4 | M73: =N73*3.412 -> 10.9184 | N73: 3.2 | O73: 1.1962 | P73: FALSE | R73: 1.059 | S73: 3.847 | T73: 0 | U73: 0.0023 | V73: 0.0158 | X73: Fast Food Restaurant | Y73: 0.21 | Z73: =((($Y73-$Y$72)*(Z$77-Z$72))/($Y$77-$Y$72))+Z$72 -> 0.842 | AA73: 0.7098 | AB73: 0.908 | AC73: 0.7882 | BB73: E - Exterior | BC73: Exterior | BE73: AS - Asphalt | BF73: AS | BH73: R-14 | BI73: 3 - 5" | BK73: 12-13 | BL73: 17-18
A74: 1 | B74: =IF(OR('Customer Information'!C17="",'Customer Information'!C17=B51),"",'Customer Information'!C17) ->  | C74: =INDEX(C$51:C$73,MATCH($B$74,$B$51:$B$73,0)) ->  | D74: =INDEX(D$51:D$73,MATCH($B$74,$B$51:$B$73,0)) ->  | J74: Air Source Heat Pumps > 20 tons | K74: 9.3 | L74: 10.4 | M74: 10.9184 | N74: 3.2 | O74: 1.1962 | P74: FALSE | R74: 1.059 | S74: 3.847 | T74: 0 | U74: 0.0023 | V74: 0.0158 | X74: Fast Food Restaurant | Y74: 0.22 | Z74: 0.84 | AA74: 0.7056 | AB74: 0.905 | AC74: 0.7824 | BB74: F - Family Room | BC74: Family Room | BE74: B - Brick | BF74: B | BH74: R-9 | BI74: < 3" | BK74: 14-17 | BL74: 19-20
J75: Ductless Mini-Split AC | K75: =1.12*L75-0.02*L75^2 -> 11.18 | L75: 13 | O75: 1.1962 | P75: FALSE | R75: 0 | S75: 0 | T75: 0 | U75: 0 | V75: 0 | X75: Fast Food Restaurant | Y75: 0.23 | Z75: 0.838 | AA75: 0.7014 | AB75: 0.902 | AC75: 0.7766 | BB75: K - Kitchen | BC75: Kitchen | BE75: M - Masonite | BF75: M | BK75: 18+ | BL75: 21-24
J76: Ductless Mini-Split Heat Pumps | K76: =1.12*L76-0.02*L76^2 -> 11.76 | L76: 14 | M76: 8.2 | N76: =M76/3.412 -> 2.403282532 | O76: 1.1962 | P76: FALSE | R76: 0 | S76: 0 | T76: 0 | U76: 0 | V76: 0 | X76: Fast Food Restaurant | Y76: 0.24 | Z76: 0.836 | AA76: 0.6972 | AB76: 0.899 | AC76: 0.7708 | BB76: L - Living Room | BC76: Living Room | BE76: S - Stucco | BF76: S | BL76: 25-26
J77: Packaged Terminal Air Conditioners | K77: =14-(0.3*(IF(Worksheet!$J$13=J77,Qualifying_Index!C93,0)+IF(Worksheet!$J$26=J77,Qualifying_Index!C94,0))/1000) -> 14 | L77: =K77 -> 14 | O77: 1.1962 | P77: FALSE | R77: 0 | S77: 0 | T77: 0 | U77: 0 | V77: 0 | X77: Fast Food Restaurant | Y77: 0.25 | Z77: 0.834 | AA77: 0.693 | AB77: 0.896 | AC77: 0.765 | BB77: S - Office/Study | BC77: Office/Study | BE77: W - Wood | BF77: W | BL77: 27+
J78: Packaged Terminal Heat Pumps | K78: =14-(0.3*(IF(Worksheet!$J$13=J78,Qualifying_Index!C93,0)+IF(Worksheet!$J$26=J78,Qualifying_Index!C94,0))/1000) -> 14 | L78: =K78 -> 14 | M78: =N78*3.412 -> 12.6244 | N78: =3.7-(0.052*(IF(Worksheet!D13=J78,Qualifying_Index!J93,0)+IF(Worksheet!D26=J78,Qualifying_Index!J94,0))/1000) -> 3.7 | O78: 1.1962 | P78: FALSE | R78: 0 | S78: 0 | T78: 0 | U78: 0 | V78: 0 | X78: Fast Food Restaurant | Y78: 0.26 | Z78: =((($Y78-$Y$77)*(Z$82-Z$77))/($Y$82-$Y$77))+Z$77 -> 0.8318 | AA78: 0.6894 | AB78: 0.893 | AC78: 0.7598 | BB78: O - Other | BC78: Other | BE78: V - Vinyl | BF78: V
J79: Room Air Conditioners < 1/2 tons | K79: =1.12*L79-0.02*L79^2 -> 8.9822 | L79: 9.7 | O79: 1.1962 | P79: FALSE | R79: 0 | S79: 0 | T79: 0 | U79: 0 | V79: 0 | X79: Fast Food Restaurant | Y79: 0.27 | Z79: 0.8296 | AA79: 0.6858 | AB79: 0.89 | AC79: 0.7546 | BB79: W - Work Area/Shop | BC79: Work Area/Shop | BE79: O - Other | BF79: O
J80: Room Air Conditioners > 1/2 & < 2/3 tons | K80: =1.12*L80-0.02*L80^2 -> 8.9822 | L80: 9.7 | O80: 1.1962 | P80: FALSE | R80: 0 | S80: 0 | T80: 0 | U80: 0 | V80: 0 | X80: Fast Food Restaurant | Y80: 0.28 | Z80: 0.8274 | AA80: 0.6822 | AB80: 0.887 | AC80: 0.7494
A81: ECCCNYS | B81: https://www.dos.ny.gov/DCEA/pdf/pdf/2020%20ECCCNYS%20November%202019.pdf | J81: Room Air Conditioners > 2/3 & < 1 1/6 tons | K81: 9.0552 | L81: 9.8 | O81: 1.1962 | P81: FALSE | R81: 0 | S81: 0 | T81: 0 | U81: 0 | V81: 0 | X81: Fast Food Restaurant | Y81: 0.29 | Z81: 0.8252 | AA81: 0.6786 | AB81: 0.884 | AC81: 0.7442
A82: Noted in NYS TRM that duct work must meet ECCCNYS compliance | J82: Room Air Conditioners > 1 1/6 & < 1 2/3 tons | K82: 8.9822 | L82: 9.7 | O82: 1.1962 | P82: FALSE | R82: 0 | S82: 0 | T82: 0 | U82: 0 | V82: 0 | X82: Fast Food Restaurant | Y82: 0.3 | Z82: 0.823 | AA82: 0.675 | AB82: 0.881 | AC82: 0.739
A83: IECC 2018 | B83: https://codes.iccsafe.org/content/IECC2018P4/chapter-4-ce-commercial-energy-efficiency | J83: Room Air Conditioners > 1 2/3 tons | K83: 8.075 | L83: 8.5 | O83: 1.1962 | P83: FALSE | R83: 0 | S83: 0 | T83: 0 | U83: 0 | V83: 0 | X83: Full Service Restaurant | Y83: 0 | Z83: 0.854 | AA83: 0.797 | AB83: 0.954 | AC83: 0.893
A84: Air Sealing 0.40 cfm/sft | J84: VRF Air Cooled Heat Pumps < 5.4 tons | K84: 11.18 | L84: 13 | M84: 7.7 | N84: =M84/3.412 -> 2.256740914 | O84: 1.1962 | P84: FALSE | R84: 1.059 | S84: 3.847 | T84: 0 | U84: 0.0023 | V84: 0.0158 | X84: Full Service Restaurant | Y84: 0.08 | Z84: 0.854 | AA84: 0.797 | AB84: 0.954 | AC84: 0.893 | BL84: Max | BM84: Min | BN84: Base/Measure R-Value
A85: ASHRAE 2016 | J85: VRF Air Cooled Heat Pumps > 5.4 & < 11.25 tons | K85: 11 | L85: 14.6 | M85: =N85*3.412 -> 11.2596 | N85: 3.3 | O85: 1.1962 | P85: FALSE | R85: 1.059 | S85: 3.847 | T85: 0 | U85: 0.0023 | V85: 0.0158 | X85: Full Service Restaurant | Y85: 0.09 | Z85: =((($Y85-$Y$84)*(Z$91-Z$84))/($Y$91-$Y$84))+Z$84 -> 0.8527142857 | AA85: 0.7924285714 | AB85: 0.9521428571 | AC85: 0.8865714286 | BL85: 10.999999 | BM85: 0 | BN85: 0
J86: VRF Air Cooled Heat Pumps > 11.25 & < 20 tons | K86: 10.6 | L86: 13.9 | M86: =N86*3.412 -> 10.9184 | N86: 3.2 | O86: 1.1962 | P86: FALSE | R86: 1.059 | S86: 3.847 | T86: 0 | U86: 0.0023 | V86: 0.0158 | X86: Full Service Restaurant | Y86: 0.1 | Z86: 0.8514285714 | AA86: 0.7878571429 | AB86: 0.9502857143 | AC86: 0.8801428571
J87: VRF Air Cooled Heat Pumps > 20 tons | K87: 9.5 | L87: 12.7 | M87: 10.9184 | N87: 3.2 | O87: 1.1962 | P87: FALSE | R87: 1.059 | S87: 3.847 | T87: 0 | U87: 0.0023 | V87: 0.0158 | X87: Full Service Restaurant | Y87: 0.11 | Z87: 0.8501428571 | AA87: 0.7832857143 | AB87: 0.9484285714 | AC87: 0.8737142857
J88: VRF Water Source Heat Pumps < 5.4 tons | K88: 12 | L88: 16 | M88: 14.6716 | N88: 4.3 | O88: 1.1962 | P88: FALSE | R88: 1.059 | S88: 2.564 | T88: 0 | U88: 0.0023 | V88: 0.0053 | X88: Full Service Restaurant | Y88: 0.12 | Z88: 0.8488571429 | AA88: 0.7787142857 | AB88: 0.9465714286 | AC88: 0.8672857143 | BL88: 12.999999 | BM88: 11 | BN88: 11
J89: VRF Water Source Heat Pumps > 5.4 & < 11.25 tons | K89: 12 | L89: 16 | M89: 14.6716 | N89: 4.3 | O89: 1.1962 | P89: FALSE | R89: 1.059 | S89: 2.564 | T89: 0 | U89: 0.0023 | V89: 0.0053 | X89: Full Service Restaurant | Y89: 0.13 | Z89: 0.8475714286 | AA89: 0.7741428571 | AB89: 0.9447142857 | AC89: 0.8608571429 | BL89: 16.999999 | BM89: 13 | BN89: 13
J90: VRF Water Source Heat Pumps > 11.25 & < 20 tons | K90: 10 | L90: 14 | M90: 13.648 | N90: 4 | O90: 1.1962 | P90: FALSE | R90: 1.059 | S90: 2.564 | T90: 0 | U90: 0.0023 | V90: 0.0053 | X90: Full Service Restaurant | Y90: 0.14 | Z90: 0.8462857143 | AA90: 0.7695714286 | AB90: 0.9428571429 | AC90: 0.8544285714 | BL90: 18.999999 | BM90: 17 | BN90: 17
J91: VRF Water Source Heat Pumps > 20 tons | K91: 10 | L91: 12 | M91: 13.3068 | N91: 3.9 | O91: 1.1962 | P91: FALSE | R91: 1.059 | S91: 2.564 | T91: 0 | U91: 0.0023 | V91: 0.0053 | X91: Full Service Restaurant | Y91: 0.15 | Z91: 0.845 | AA91: 0.765 | AB91: 0.941 | AC91: 0.848 | BL91: 20.999999 | BM91: 19 | BN91: 19
J92: Water Source Heat Pumps | K92: 18 | L92: =K92 -> 18 | M92: 12.6244 | N92: 3.7 | O92: 1.1962 | P92: FALSE | R92: 1.059 | S92: 2.564 | T92: 0 | U92: 0.0023 | V92: 0.0053 | X92: Full Service Restaurant | Y92: 0.16 | Z92: =((($Y92-$Y$91)*(Z$96-Z$91))/($Y$96-$Y$91))+Z$91 -> 0.8434 | AA92: 0.7606 | AB92: 0.939 | AC92: 0.842 | BL92: 24.999999 | BM92: 21 | BN92: 21
J93: Ground Source Heat Pump | K93: 14.1 | L93: =K93 -> 14.1 | M93: 10.9184 | N93: 3.2 | O93: 1.1962 | P93: FALSE | R93: 1.059 | S93: 2.564 | T93: 0 | U93: 0.0023 | V93: 0.0053 | X93: Full Service Restaurant | Y93: 0.17 | Z93: 0.8418 | AA93: 0.7562 | AB93: 0.937 | AC93: 0.836 | BL93: 26.999999 | BM93: 25 | BN93: 25
J94: Natural Gas Furnace | N94: 0.8 | O94: =0.05306*A15 -> 116.976076 | P94: TRUE | R94: 0 | S94: 1.1 | T94: 0.035 | U94: 0 | V94: 0 | X94: Full Service Restaurant | Y94: 0.18 | Z94: 0.8402 | AA94: 0.7518 | AB94: 0.935 | AC94: 0.83 | BL94: 1000000 | BM94: 27 | BN94: 27
J95: Oil Furnace | N95: 0.8 | O95: =0.07396*A15 -> 163.052216 | P95: TRUE | R95: 0 | S95: 1.1 | T95: 0.035 | U95: 0 | V95: 0 | X95: Full Service Restaurant | Y95: 0.19 | Z95: 0.8386 | AA95: 0.7474 | AB95: 0.933 | AC95: 0.824 | BB95: Heating & Cooling Type | BC95: kWh/CFM | BD95: kW/CFM | BE95: Therm/CFM | BG95: Air Sealing Corrections | BL95: 37.999999 | BM95: 30 | BN95: 30
J96: Propane Furnace | N96: 0.8 | O96: =0.06146*A15 -> 135.494716 | P96: TRUE | R96: 0 | S96: 1.1 | T96: 0.035 | U96: 0 | V96: 0 | X96: Full Service Restaurant | Y96: 0.2 | Z96: 0.837 | AA96: 0.743 | AB96: 0.931 | AC96: 0.818 | BB96: Heating & Cooling type | BC96: kWh/CFM | BD96: kW/CFM | BE96: Therm/CFM | BG96: Fn | BH96: 19 | BL96: 48.999999 | BM96: 38 | BN96: 38
J97: Electric Furnace | N97: 1 | O97: 1.1962 | P97: FALSE | R97: 0 | S97: 7.693 | T97: 0 | U97: 0 | V97: 0.0158 | X97: Full Service Restaurant | Y97: 0.21 | Z97: =((($Y97-$Y$96)*(Z$101-Z$96))/($Y$101-$Y$96))+Z$96 -> 0.8354 | AA97: 0.7386 | AB97: 0.9286 | AC97: 0.8122 | BB97: AC Fossil Fuel Heat | BC97: 2.3 | BD97: 0.004 | BE97: 1.7 | BG97: Fh | BH97: 0.9 | BL97: 59.999999 | BM97: 49 | BN97: 49
J98: Natural Gas Boiler < 25 tons | N98: 0.82 | O98: =0.05306 -> 0.05306 | P98: TRUE | R98: 0 | S98: 0 | T98: 0 | U98: 0 | V98: 0 | X98: Full Service Restaurant | Y98: 0.22 | Z98: 0.8338 | AA98: 0.7342 | AB98: 0.9262 | AC98: 0.8064 | BB98: Heat Pump | BC98: 21 | BD98: 0.003 | BE98: 0 | BL98: 1000000 | BM98: 60 | BN98: 60
J99: Natural Gas Boiler > 25 & < 208 tons | N99: 0.8 | O99: 0.05306 | P99: TRUE | R99: 0 | S99: 0 | T99: 0 | U99: 0 | V99: 0 | X99: Full Service Restaurant | Y99: 0.23 | Z99: 0.8322 | AA99: 0.7298 | AB99: 0.9238 | AC99: 0.8006 | BB99: AC Electric Heat | BC99: 39.8 | BD99: 0.004 | BE99: 0
J100: Natural Gas Boiler > 208 tons | N100: 0.82 | O100: 0.05306 | P100: TRUE | R100: 0 | S100: 0 | T100: 0 | U100: 0 | V100: 0 | X100: Full Service Restaurant | Y100: 0.24 | Z100: 0.8306 | AA100: 0.7254 | AB100: 0.9214 | AC100: 0.7948 | BB100: Fossil Fuel Only | BC100: 0.8 | BD100: 0 | BE100: 1.7
J101: Oil Boiler < 25 tons | N101: 0.84 | O101: =0.07396*A15 -> 163.052216 | P101: TRUE | R101: 0 | S101: 0 | T101: 0 | U101: 0 | V101: 0 | X101: Full Service Restaurant | Y101: 0.25 | Z101: 0.829 | AA101: 0.721 | AB101: 0.919 | AC101: 0.789 | BB101: Electric Heat | BC101: 38.4 | BD101: 0.004 | BE101: 0
J102: Oil Boiler > 25 & < 208 tons | N102: 0.82 | O102: =0.07396*A15 -> 163.052216 | P102: TRUE | R102: 0 | S102: 0 | T102: 0 | U102: 0 | V102: 0 | X102: Full Service Restaurant | Y102: 0.26 | Z102: =((($Y102-$Y$101)*(Z$106-Z$101))/($Y$106-$Y$101))+Z$101 -> 0.8272 | AA102: 0.717 | AB102: 0.9166 | AC102: 0.7838
J103: Oil Boiler > 208 tons | N103: 0.84 | O103: =0.07396*A15 -> 163.052216 | P103: TRUE | R103: 0 | S103: 0 | T103: 0 | U103: 0 | V103: 0 | X103: Full Service Restaurant | Y103: 0.27 | Z103: 0.8254 | AA103: 0.713 | AB103: 0.9142 | AC103: 0.7786
J104: Electric Resistance | M104: =N104*3.412 -> 3.412 | N104: 1 | O104: 1.1962 | P104: FALSE | R104: 0 | S104: 0 | T104: 0 | U104: 0 | V104: 0 | X104: Full Service Restaurant | Y104: 0.28 | Z104: 0.8236 | AA104: 0.709 | AB104: 0.9118 | AC104: 0.7734 | BB104: Wall Insulation - HVAC: AC with Gas Heat
X105: Full Service Restaurant | Y105: 0.29 | Z105: 0.8218 | AA105: 0.705 | AB105: 0.9094 | AC105: 0.7682 | BB105: Base | BC105: 0 | BF105: 11 | BI105: 13 | BL105: 17 | BO105: 19
X106: Full Service Restaurant | Y106: 0.3 | Z106: 0.82 | AA106: 0.701 | AB106: 0.907 | AC106: 0.763 | BB106: Measure | BC106: kWh/ kSF | BD106: kW/ kSF | BE106: therm/ kSF | BF106: kWh/ kSF | BG106: kW/ kSF | BH106: therm/ kSF | BI106: kWh/ kSF | BJ106: kW/ kSF | BK106: therm/ kSF | BL106: kWh/ kSF | BM106: kW/ kSF | BN106: therm/ kSF | BO106: kWh/ kSF | BP106: kW/ kSF | BQ106: therm/ kSF
X107: Small Retail | Y107: 0 | Z107: 0.838 | AA107: 0.614 | AB107: 0.931 | AC107: 0.767 | BB107: 11 | BC107: 60 | BD107: 0.054 | BE107: 36.6
X108: Small Retail | Y108: 0.08 | Z108: 0.838 | AA108: 0.614 | AB108: 0.931 | AC108: 0.767 | BB108: 12 | BC108: =((($BB$108-$BB$107)*(BC109-BC107))/($BB$109-$BB$107))+BC107 -> 63.35 | BD108: 0.0595 | BE108: 39.45 | BF108: 3.3 | BG108: 0.0055 | BH108: 2.8 | BI108: 0 | BJ108: 0 | BK108: 0 | BL108: 0 | BM108: 0 | BN108: 0 | BO108: 0 | BP108: 0 | BQ108: 0
X109: Small Retail | Y109: 0.09 | Z109: =((($Y109-$Y$108)*(Z$115-Z$108))/($Y$115-$Y$108))+Z$108 -> 0.8364285714 | AA109: 0.6092857143 | AB109: 0.9287142857 | AC109: 0.7594285714 | BB109: 13 | BC109: 66.7 | BD109: 0.065 | BE109: 42.3 | BF109: 6.6 | BG109: 0.011 | BH109: 5.6
X110: Small Retail | Y110: 0.1 | Z110: 0.8348571429 | AA110: 0.6045714286 | AB110: 0.9264285714 | AC110: 0.7518571429 | BB110: 14 | BC110: =((($BB110-$BB$109)*(BC$113-BC$109))/($BB$113-$BB$109))+BC$109 -> 70.175 | BD110: 0.06775 | BE110: 44.375 | BF110: 10.1 | BG110: 0.01375 | BH110: 7.7 | BI110: 3.5 | BJ110: 0.00275 | BK110: 2.075 | BL110: 0 | BM110: 0 | BN110: 0 | BO110: 0 | BP110: 0 | BQ110: 0
X111: Small Retail | Y111: 0.11 | Z111: 0.8332857143 | AA111: 0.5998571429 | AB111: 0.9241428571 | AC111: 0.7442857143 | BB111: 15 | BC111: 73.65 | BD111: 0.0705 | BE111: 46.45 | BF111: 13.6 | BG111: 0.0165 | BH111: 9.8 | BI111: 7 | BJ111: 0.0055 | BK111: 4.15 | BL111: 0 | BM111: 0 | BN111: 0 | BO111: 0 | BP111: 0 | BQ111: 0
X112: Small Retail | Y112: 0.12 | Z112: 0.8317142857 | AA112: 0.5951428571 | AB112: 0.9218571429 | AC112: 0.7367142857 | BB112: 16 | BC112: 77.125 | BD112: 0.07325 | BE112: 48.525 | BF112: 17.1 | BG112: 0.01925 | BH112: 11.9 | BI112: 10.5 | BJ112: 0.00825 | BK112: 6.225 | BL112: 0 | BM112: 0 | BN112: 0 | BO112: 0 | BP112: 0 | BQ112: 0
X113: Small Retail | Y113: 0.13 | Z113: 0.8301428571 | AA113: 0.5904285714 | AB113: 0.9195714286 | AC113: 0.7291428571 | BB113: 17 | BC113: 80.6 | BD113: 0.076 | BE113: 50.6 | BF113: 20.6 | BG113: 0.022 | BH113: 14 | BI113: 14 | BJ113: 0.011 | BK113: 8.3
X114: Small Retail | Y114: 0.14 | Z114: 0.8285714286 | AA114: 0.5857142857 | AB114: 0.9172857143 | AC114: 0.7215714286 | BB114: 18 | BC114: =((($BB$114-$BB$113)*(BC115-BC113))/($BB$115-$BB$113))+BC113 -> 83.2 | BD114: 0.076 | BE114: 52.15 | BF114: 23.2 | BG114: 0.022 | BH114: 15.5 | BI114: 16.6 | BJ114: 0.011 | BK114: 9.85 | BL114: 2.6 | BM114: 0 | BN114: 1.5 | BO114: 0 | BP114: 0 | BQ114: 0
X115: Small Retail | Y115: 0.15 | Z115: 0.827 | AA115: 0.581 | AB115: 0.915 | AC115: 0.714 | BB115: 19 | BC115: 85.8 | BD115: 0.076 | BE115: 53.7 | BF115: 25.8 | BG115: 0.022 | BH115: 17 | BI115: 19.2 | BJ115: 0.011 | BK115: 11.4 | BL115: 5.2 | BM115: 0 | BN115: 3
X116: Small Retail | Y116: 0.16 | Z116: =((($Y116-$Y$115)*(Z$120-Z$115))/($Y$120-$Y$115))+Z$115 -> 0.8252 | AA116: 0.5766 | AB116: 0.9128 | AC116: 0.707 | BB116: 20 | BC116: =((($BB$116-$BB$115)*(BC117-BC115))/($BB$117-$BB$115))+BC115 -> 87.95 | BD116: 0.076 | BE116: 54.9 | BF116: 27.9 | BG116: 0.022 | BH116: 18.25 | BI116: 21.3 | BJ116: 0.011 | BK116: 12.65 | BL116: 7.3 | BM116: 0 | BN116: 4.25 | BO116: 2.1 | BP116: 0 | BQ116: 1.25
X117: Small Retail | Y117: 0.17 | Z117: 0.8234 | AA117: 0.5722 | AB117: 0.9106 | AC117: 0.7 | BB117: 21 | BC117: 90.1 | BD117: 0.076 | BE117: 56.1 | BF117: 30 | BG117: 0.022 | BH117: 19.5 | BI117: 23.4 | BJ117: 0.011 | BK117: 13.9 | BL117: 9.4 | BM117: 0 | BN117: 5.5 | BO117: 4.2 | BP117: 0 | BQ117: 2.5
X118: Small Retail | Y118: 0.18 | Z118: 0.8216 | AA118: 0.5678 | AB118: 0.9084 | AC118: 0.693 | BB118: 22 | BC118: =((($BB118-$BB$117)*(BC$121-BC$117))/($BB$121-$BB$117))+BC$117 -> 91.45 | BD118: 0.07875 | BE118: 57.125 | BF118: 31.35 | BG118: 0.02475 | BH118: 20.5 | BI118: 24.75 | BJ118: 0.01375 | BK118: 14.9 | BL118: 10.75 | BM118: 0.00275 | BN118: 6.5 | BO118: 5.55 | BP118: 0.00275 | BQ118: 3.5
X119: Small Retail | Y119: 0.19 | Z119: 0.8198 | AA119: 0.5634 | AB119: 0.9062 | AC119: 0.686 | BB119: 23 | BC119: 92.8 | BD119: 0.0815 | BE119: 58.15 | BF119: 32.7 | BG119: 0.0275 | BH119: 21.5 | BI119: 26.1 | BJ119: 0.0165 | BK119: 15.9 | BL119: 12.1 | BM119: 0.0055 | BN119: 7.5 | BO119: 6.9 | BP119: 0.0055 | BQ119: 4.5
X120: Small Retail | Y120: 0.2 | Z120: 0.818 | AA120: 0.559 | AB120: 0.904 | AC120: 0.679 | BB120: 24 | BC120: 94.15 | BD120: 0.08425 | BE120: 59.175 | BF120: 34.05 | BG120: 0.03025 | BH120: 22.5 | BI120: 27.45 | BJ120: 0.01925 | BK120: 16.9 | BL120: 13.45 | BM120: 0.00825 | BN120: 8.5 | BO120: 8.25 | BP120: 0.00825 | BQ120: 5.5
X121: Small Retail | Y121: 0.21 | Z121: =((($Y121-$Y$120)*(Z$125-Z$120))/($Y$125-$Y$120))+Z$120 -> 0.8162 | AA121: 0.5548 | AB121: 0.9014 | AC121: 0.6728 | BB121: 25 | BC121: 95.5 | BD121: 0.087 | BE121: 60.2 | BF121: 35.4 | BG121: 0.033 | BH121: 23.5 | BI121: 28.8 | BJ121: 0.022 | BK121: 17.9 | BL121: 14.8 | BM121: 0.011 | BN121: 9.5 | BO121: 9.6 | BP121: 0.011 | BQ121: 6.5
X122: Small Retail | Y122: 0.22 | Z122: 0.8144 | AA122: 0.5506 | AB122: 0.8988 | AC122: 0.6666 | BB122: 26 | BC122: =((($BB$122-$BB$121)*(BC123-BC121))/($BB$123-$BB$121))+BC121 -> 96.65 | BD122: 0.087 | BE122: 60.95 | BF122: 36.55 | BG122: 0.033 | BH122: 24.25 | BI122: 29.95 | BJ122: 0.022 | BK122: 14.5 | BL122: 15.95 | BM122: 0.011 | BN122: 10.3 | BO122: 10.75 | BP122: 0.011 | BQ122: 7.25
X123: Small Retail | Y123: 0.23 | Z123: 0.8126 | AA123: 0.5464 | AB123: 0.8962 | AC123: 0.6604 | BB123: 27 | BC123: 97.8 | BD123: 0.087 | BE123: 61.7 | BF123: 37.7 | BG123: 0.033 | BH123: 25 | BI123: 31.1 | BJ123: 0.022 | BK123: 11.1 | BL123: 17.1 | BM123: 0.011 | BN123: 11.1 | BO123: 11.9 | BP123: 0.011 | BQ123: 8
X124: Small Retail | Y124: 0.24 | Z124: 0.8108 | AA124: 0.5422 | AB124: 0.8936 | AC124: 0.6542
X125: Small Retail | Y125: 0.25 | Z125: 0.809 | AA125: 0.538 | AB125: 0.891 | AC125: 0.648
X126: Small Retail | Y126: 0.26 | Z126: =((($Y126-$Y$125)*(Z$130-Z$125))/($Y$130-$Y$125))+Z$125 -> 0.807 | AA126: 0.5344 | AB126: 0.8886 | AC126: 0.6422
X127: Small Retail | Y127: 0.27 | Z127: 0.805 | AA127: 0.5308 | AB127: 0.8862 | AC127: 0.6364
X128: Small Retail | Y128: 0.28 | Z128: 0.803 | AA128: 0.5272 | AB128: 0.8838 | AC128: 0.6306 | BB128: Wall Insulation - HVAC: Heat Pump
X129: Small Retail | Y129: 0.29 | Z129: 0.801 | AA129: 0.5236 | AB129: 0.8814 | AC129: 0.6248 | BB129: Base | BC129: 0 | BF129: 11 | BI129: 13 | BL129: 17 | BO129: 19
X130: Small Retail | Y130: 0.3 | Z130: 0.799 | AA130: 0.52 | AB130: 0.879 | AC130: 0.619 | BB130: Measure | BC130: kWh/ kSF | BD130: kW/ kSF | BF130: kWh/ kSF | BG130: kW/ kSF | BI130: kWh/ kSF | BJ130: kW/ kSF | BL130: kWh/ kSF | BM130: kW/ kSF | BO130: kWh/ kSF | BP130: kW/ kSF
X131: Other | Y131: 0 | Z131: 0.87 | AA131: 0.759 | AB131: 0.954 | AC131: 0.858 | BB131: 11 | BC131: 430.4 | BD131: 0.076
X132: Other | Y132: 0.08 | Z132: 0.87 | AA132: 0.759 | AB132: 0.954 | AC132: 0.858 | BB132: 12 | BC132: =((($BB$132-$BB$131)*(BC133-BC131))/($BB$133-$BB$131))+BC131 -> 462.1 | BD132: =((($BB$132-$BB$131)*(BD133-BD131))/($BB$133-$BB$131))+BD131 -> 0.0815 | BF132: =((($BB$132-$BB$131)*(BF133-BF131))/($BB$133-$BB$131))+BF131 -> 31.7 | BG132: =((($BB$132-$BB$131)*(BG133-BG131))/($BB$133-$BB$131))+BG131 -> 0.0055 | BI132: =((($BB$132-$BB$131)*(BI133-BI131))/($BB$133-$BB$131))+BI131 -> 0 | BJ132: =((($BB$132-$BB$131)*(BJ133-BJ131))/($BB$133-$BB$131))+BJ131 -> 0 | BL132: =((($BB$132-$BB$131)*(BL133-BL131))/($BB$133-$BB$131))+BL131 -> 0 | BM132: =((($BB$132-$BB$131)*(BM133-BM131))/($BB$133-$BB$131))+BM131 -> 0 | BO132: =((($BB$132-$BB$131)*(BO133-BO131))/($BB$133-$BB$131))+BO131 -> 0 | BP132: =((($BB$132-$BB$131)*(BP133-BP131))/($BB$133-$BB$131))+BP131 -> 0
X133: Other | Y133: 0.09 | Z133: =((($Y133-$Y$132)*(Z$139-Z$132))/($Y$139-$Y$132))+Z$132 -> 0.8682857143 | AA133: 0.7544285714 | AB133: 0.9515714286 | AC133: 0.8515714286 | BB133: 13 | BC133: 493.8 | BD133: 0.087 | BF133: 63.4 | BG133: 0.011
X134: Other | Y134: 0.1 | Z134: 0.8665714286 | AA134: 0.7498571429 | AB134: 0.9491428571 | AC134: 0.8451428571 | BB134: 14 | BC134: =((($BB134-$BB$133)*(BC$137-BC$133))/($BB$137-$BB$133))+BC$133 -> 518 | BD134: 0.08975 | BF134: =((($BB134-$BB$133)*(BF$137-BF$133))/($BB$137-$BB$133))+BF$133 -> 87.6 | BG134: 0.01375 | BI134: =((($BB134-$BB$133)*(BI$137-BI$133))/($BB$137-$BB$133))+BI$133 -> 24.2 | BJ134: =((($BB134-$BB$133)*(BJ$137-BJ$133))/($BB$137-$BB$133))+BJ$133 -> 0.00275 | BL134: =((($BB134-$BB$133)*(BL$137-BL$133))/($BB$137-$BB$133))+BL$133 -> 0 | BM134: 0 | BO134: =((($BB134-$BB$133)*(BO$137-BO$133))/($BB$137-$BB$133))+BO$133 -> 0 | BP134: 0
X135: Other | Y135: 0.11 | Z135: 0.8648571429 | AA135: 0.7452857143 | AB135: 0.9467142857 | AC135: 0.8387142857 | BB135: 15 | BC135: 542.2 | BD135: 0.0925 | BF135: 111.8 | BG135: 0.0165 | BI135: =((($BB135-$BB$133)*(BI$137-BI$133))/($BB$137-$BB$133))+BI$133 -> 48.4 | BJ135: =((($BB135-$BB$133)*(BJ$137-BJ$133))/($BB$137-$BB$133))+BJ$133 -> 0.0055 | BL135: 0 | BM135: 0 | BO135: 0 | BP135: 0
X136: Other | Y136: 0.12 | Z136: 0.8631428571 | AA136: 0.7407142857 | AB136: 0.9442857143 | AC136: 0.8322857143 | BB136: 16 | BC136: 566.4 | BD136: 0.09525 | BF136: 136 | BG136: 0.01925 | BI136: =((($BB136-$BB$133)*(BI$137-BI$133))/($BB$137-$BB$133))+BI$133 -> 72.6 | BJ136: =((($BB136-$BB$133)*(BJ$137-AOV186))/($BB$137-$BB$133))+BJ$133 -> 0.00825 | BL136: 0 | BM136: 0 | BO136: 0 | BP136: 0
X137: Other | Y137: 0.13 | Z137: 0.8614285714 | AA137: 0.7361428571 | AB137: 0.9418571429 | AC137: 0.8258571429 | BB137: 17 | BC137: 590.6 | BD137: 0.098 | BF137: 160.2 | BG137: 0.022 | BI137: 96.8 | BJ137: 0.011
X138: Other | Y138: 0.14 | Z138: 0.8597142857 | AA138: 0.7315714286 | AB138: 0.9394285714 | AC138: 0.8194285714 | BB138: 18 | BC138: =((($BB$138-$BB$137)*(BC139-BC137))/($BB$139-$BB$137))+BC137 -> 608.35 | BD138: =((($BB$138-$BB$137)*(BD139-BD137))/($BB$139-$BB$137))+BD137 -> 0.103 | BF138: =((($BB$138-$BB$137)*(BF139-BF137))/($BB$139-$BB$137))+BF137 -> 177.9 | BG138: =((($BB$138-$BB$137)*(BG139-BG137))/($BB$139-$BB$137))+BG137 -> 0.0275 | BI138: =((($BB$138-$BB$137)*(BI139-BI137))/($BB$139-$BB$137))+BI137 -> 114.5 | BJ138: =((($BB$138-$BB$137)*(BJ139-BJ137))/($BB$139-$BB$137))+BJ137 -> 0.0165 | BL138: =((($BB$138-$BB$137)*(BL139-BL137))/($BB$139-$BB$137))+BL137 -> 27.15 | BM138: =((($BB$138-$BB$137)*(BM139-BM137))/($BB$139-$BB$137))+BM137 -> 0.0055 | BO138: =((($BB$138-$BB$137)*(BO139-BO137))/($BB$139-$BB$137))+BO137 -> 0 | BP138: =((($BB$138-$BB$137)*(BP139-BP137))/($BB$139-$BB$137))+BP137 -> 0
X139: Other | Y139: 0.15 | Z139: 0.858 | AA139: 0.727 | AB139: 0.937 | AC139: 0.813 | BB139: 19 | BC139: 626.1 | BD139: 0.108 | BF139: 195.6 | BG139: 0.033 | BI139: 132.2 | BJ139: 0.022 | BL139: 54.3 | BM139: 0.011
X140: Other | Y140: 0.16 | Z140: =((($Y140-$Y$139)*(Z$144-Z$139))/($Y$144-$Y$139))+Z$139 -> 0.8562 | AA140: 0.723 | AB140: 0.9346 | AC140: 0.807 | BB140: 20 | BC140: =((($BB$140-$BB$139)*(BC141-BC139))/($BB$141-$BB$139))+BC139 -> 640.45 | BD140: =((($BB$140-$BB$139)*(BD141-BD139))/($BB$141-$BB$139))+BD139 -> 0.108 | BF140: =((($BB$140-$BB$139)*(BF141-BF139))/($BB$141-$BB$139))+BF139 -> 210 | BG140: =((($BB$140-$BB$139)*(BG141-BG139))/($BB$141-$BB$139))+BG139 -> 0.033 | BI140: =((($BB$140-$BB$139)*(BI141-BI139))/($BB$141-$BB$139))+BI139 -> 146.6 | BJ140: =((($BB$140-$BB$139)*(BJ141-BJ139))/($BB$141-$BB$139))+BJ139 -> 0.022 | BL140: =((($BB$140-$BB$139)*(BL141-BL139))/($BB$141-$BB$139))+BL139 -> 59.25 | BM140: =((($BB$140-$BB$139)*(BM141-BM139))/($BB$141-$BB$139))+BM139 -> 0.011 | BO140: =((($BB$140-$BB$139)*(BO141-BO139))/($BB$141-$BB$139))+BO139 -> 14.35 | BP140: =((($BB$140-$BB$139)*(BP141-BP139))/($BB$141-$BB$139))+BP139 -> 0
X141: Other | Y141: 0.17 | Z141: 0.8544 | AA141: 0.719 | AB141: 0.9322 | AC141: 0.801 | BB141: 21 | BC141: 654.8 | BD141: 0.108 | BF141: 224.4 | BG141: 0.033 | BI141: 161 | BJ141: 0.022 | BL141: 64.2 | BM141: 0.011 | BO141: 28.7 | BP141: 0
X142: Other | Y142: 0.18 | Z142: 0.8526 | AA142: 0.715 | AB142: 0.9298 | AC142: 0.795 | BB142: 22 | BC142: =((($BB142-$BB$141)*(BC$145-BC$141))/($BB$145-$BB$141))+BC$141 -> 665.8 | BD142: 0.108 | BF142: =((($BB142-$BB$141)*(BF$145-BF$141))/($BB$145-$BB$141))+BF$141 -> 235.4 | BG142: 0.033 | BI142: =((($BB142-$BB$141)*(BI$145-BI$141))/($BB$145-$BB$141))+BI$141 -> 172 | BJ142: 0.022 | BL142: =((($BB142-$BB$141)*(BL$145-BL$141))/($BB$145-$BB$141))+BL$141 -> 75.2 | BM142: 0.011 | BO142: =((($BB142-$BB$141)*(BO$145-BO$141))/($BB$145-$BB$141))+BO$141 -> 39.7 | BP142: 0
X143: Other | Y143: 0.19 | Z143: 0.8508 | AA143: 0.711 | AB143: 0.9274 | AC143: 0.789 | BB143: 23 | BC143: 676.8 | BD143: 0.108 | BF143: 246.4 | BG143: 0.033 | BI143: 183 | BJ143: 0.022 | BL143: 86.2 | BM143: 0.011 | BO143: 50.7 | BP143: 0
X144: Other | Y144: 0.2 | Z144: 0.849 | AA144: 0.707 | AB144: 0.925 | AC144: 0.783 | BB144: 24 | BC144: 687.8 | BD144: 0.108 | BF144: 257.4 | BG144: 0.033 | BI144: 194 | BJ144: 0.022 | BL144: 97.2 | BM144: 0.011 | BO144: 61.7 | BP144: 0
X145: Other | Y145: 0.21 | Z145: =((($Y145-$Y$144)*(Z$149-Z$144))/($Y$149-$Y$144))+Z$144 -> 0.8472 | AA145: 0.7028 | AB145: 0.9222 | AC145: 0.7776 | BB145: 25 | BC145: 698.8 | BD145: 0.108 | BF145: 268.4 | BG145: 0.033 | BI145: 205 | BJ145: 0.022 | BL145: 108.2 | BM145: 0.011 | BO145: 72.7 | BP145: 0
X146: Other | Y146: 0.22 | Z146: 0.8454 | AA146: 0.6986 | AB146: 0.9194 | AC146: 0.7722 | BB146: 26 | BC146: =((($BB$146-$BB$145)*(BC147-BC145))/($BB$147-$BB$145))+BC145 -> 708 | BD146: =((($BB$146-$BB$145)*(BD147-BD145))/($BB$147-$BB$145))+BD145 -> 0.1135 | BF146: =((($BB$146-$BB$145)*(BF147-BF145))/($BB$147-$BB$145))+BF145 -> 277.6 | BG146: =((($BB$146-$BB$145)*(BG147-BG145))/($BB$147-$BB$145))+BG145 -> 0.038 | BI146: =((($BB$146-$BB$145)*(BI147-BI145))/($BB$147-$BB$145))+BI145 -> 165.5 | BJ146: =((($BB$146-$BB$145)*(BJ147-BJ145))/($BB$147-$BB$145))+BJ145 -> 0.0275 | BL146: =((($BB$146-$BB$145)*(BL147-BL145))/($BB$147-$BB$145))+BL145 -> 117.4 | BM146: =((($BB$146-$BB$145)*(BM147-BM145))/($BB$147-$BB$145))+BM145 -> 0.0165 | BO146: =((($BB$146-$BB$145)*(BO147-BO145))/($BB$147-$BB$145))+BO145 -> 81.95 | BP146: =((($BB$146-$BB$145)*(BP147-BP145))/($BB$147-$BB$145))+BP145 -> 0.0055
X147: Other | Y147: 0.23 | Z147: 0.8436 | AA147: 0.6944 | AB147: 0.9166 | AC147: 0.7668 | BB147: 27 | BC147: 717.2 | BD147: 0.119 | BF147: 286.8 | BG147: 0.043 | BI147: 126 | BJ147: 0.033 | BL147: 126.6 | BM147: 0.022 | BO147: 91.2 | BP147: 0.011
X148: Other | Y148: 0.24 | Z148: 0.8418 | AA148: 0.6902 | AB148: 0.9138 | AC148: 0.7614
X149: Other | Y149: 0.25 | Z149: 0.84 | AA149: 0.686 | AB149: 0.911 | AC149: 0.756
X150: Other | Y150: 0.26 | Z150: =((($Y150-$Y$149)*(Z$154-Z$149))/($Y$154-$Y$149))+Z$149 -> 0.8378 | AA150: 0.6824 | AB150: 0.9084 | AC150: 0.751
X151: Other | Y151: 0.27 | Z151: 0.8356 | AA151: 0.6788 | AB151: 0.9058 | AC151: 0.746
X152: Other | Y152: 0.28 | Z152: 0.8334 | AA152: 0.6752 | AB152: 0.9032 | AC152: 0.741 | BB152: Wall Insulation - HVAC: AC with Electric Heat
X153: Other | Y153: 0.29 | Z153: 0.8312 | AA153: 0.6716 | AB153: 0.9006 | AC153: 0.736 | BB153: Base | BC153: 0 | BF153: 11 | BI153: 13 | BL153: 17 | BO153: 19
X154: Other | Y154: 0.3 | Z154: 0.829 | AA154: 0.668 | AB154: 0.898 | AC154: 0.731 | BB154: Measure | BC154: kWh/ kSF | BD154: kW/ kSF | BF154: kWh/ kSF | BG154: kW/ kSF | BI154: kWh/ kSF | BJ154: kW/ kSF | BL154: kWh/ kSF | BM154: kW/ kSF | BO154: kWh/ kSF | BP154: kW/ kSF
BB155: 11 | BC155: 840.8 | BD155: 0.054
BB156: 12 | BC156: =((($BB$156-$BB$155)*(BC157-BC155))/($BB$157-$BB$155))+BC155 -> 904.4 | BD156: =((($BB$156-$BB$155)*(BD157-BD155))/($BB$157-$BB$155))+BD155 -> 0.0595 | BF156: =((($BB$156-$BB$155)*(BF157-BF155))/($BB$157-$BB$155))+BF155 -> 63.6 | BG156: =((($BB$156-$BB$155)*(BG157-BG155))/($BB$157-$BB$155))+BG155 -> 0.0055 | BI156: =((($BB$156-$BB$155)*(BI157-BI155))/($BB$157-$BB$155))+BI155 -> 0 | BJ156: =((($BB$156-$BB$155)*(BJ157-BJ155))/($BB$157-$BB$155))+BJ155 -> 0 | BL156: =((($BB$156-$BB$155)*(BL157-BL155))/($BB$157-$BB$155))+BL155 -> 0 | BM156: =((($BB$156-$BB$155)*(BM157-BM155))/($BB$157-$BB$155))+BM155 -> 0 | BO156: =((($BB$156-$BB$155)*(BO157-BO155))/($BB$157-$BB$155))+BO155 -> 0 | BP156: =((($BB$156-$BB$155)*(BP157-BP155))/($BB$157-$BB$155))+BP155 -> 0
BB157: 13 | BC157: 968 | BD157: 0.065 | BF157: 127.2 | BG157: 0.011
BB158: 14 | BC158: =((($BB158-$BB$157)*(BC$161-BC$157))/($BB$161-$BB$157))+BC$157 -> 1015.5 | BD158: 0.06775 | BF158: =((($BB158-$BB$157)*(BF$161-BF$157))/($BB$161-$BB$157))+BF$157 -> 174.725 | BG158: =((($BB158-$BB$157)*(BG$161-BG$157))/($BB$161-$BB$157))+BG$157 -> 0.01375 | BI158: =((($BB158-$BB$157)*(BI$161-BI$157))/($BB$161-$BB$157))+BI$157 -> 47.5 | BJ158: 0.00275 | BL158: =((($BB158-$BB$157)*(BL$161-BL$157))/($BB$161-$BB$157))+BL$157 -> 0 | BM158: 0 | BO158: =((($BB158-$BB$157)*(BO$161-BO$157))/($BB$161-$BB$157))+BO$157 -> 0 | BP158: 0
BB159: 15 | BC159: 1063 | BD159: 0.0705 | BF159: =((($BB159-$BB$157)*(BF$161-BF$157))/($BB$161-$BB$157))+BF$157 -> 222.25 | BG159: =((($BB159-$BB$157)*(BG$161-BG$157))/($BB$161-$BB$157))+BG$157 -> 0.0165 | BI159: 95 | BJ159: 0.0055 | BL159: 0 | BM159: 0 | BO159: 0 | BP159: 0
BB160: 16 | BC160: 1110.5 | BD160: 0.07325 | BF160: 269.775 | BG160: =((($BB160-$BB$157)*(BG$161-BG$157))/($BB$161-$BB$157))+BG$157 -> 0.01925 | BI160: 142.5 | BJ160: 0.00825 | BL160: 0 | BM160: 0 | BO160: 0 | BP160: 0
BB161: 17 | BC161: 1158 | BD161: 0.076 | BF161: 317.3 | BG161: 0.022 | BI161: 190 | BJ161: 0.011
BB162: 18 | BC162: =((($BB$162-$BB$161)*(BC163-BC161))/($BB$163-$BB$161))+BC161 -> 1192.7 | BD162: =((($BB$162-$BB$161)*(BD163-BD161))/($BB$163-$BB$161))+BD161 -> 0.076 | BF162: =((($BB$162-$BB$161)*(BF163-BF161))/($BB$163-$BB$161))+BF$161 -> 351.95 | BG162: =((($BB$162-$BB$161)*(BG163-BG161))/($BB$163-$BB$161))+BG161 -> 0.022 | BI162: =((($BB$162-$BB$161)*(BI163-BI161))/($BB$163-$BB$161))+BI161 -> 224.7 | BJ162: =((($BB$162-$BB$161)*(BJ163-BJ161))/($BB$163-$BB$161))+BJ161 -> 0.011 | BL162: =((($BB$162-$BB$161)*(BL163-BL161))/($BB$163-$BB$161))+BL161 -> 34.7 | BM162: =((($BB$162-$BB$161)*(BM163-BM161))/($BB$163-$BB$161))+BM161 -> 0 | BO162: =((($BB$162-$BB$161)*(BO163-BO161))/($BB$163-$BB$161))+BO161 -> 0 | BP162: =((($BB$162-$BB$161)*(BP163-BP161))/($BB$163-$BB$161))+BP161 -> 0
BB163: 19 | BC163: 1227.4 | BD163: 0.076 | BF163: 386.6 | BG163: 0.022 | BI163: 259.4 | BJ163: 0.011 | BL163: 69.4 | BM163: 0 | BO163: 0 | BP163: 0
BB164: 20 | BC164: =((($BB$164-$BB$163)*(BC165-BC163))/($BB$165-$BB$163))+BC163 -> 1256.1 | BD164: =((($BB$164-$BB$163)*(BD165-BD163))/($BB$165-$BB$163))+BD163 -> 0.076 | BF164: =((($BB$164-$BB$163)*(BF165-BF163))/($BB$165-$BB$163))+BF163 -> 415.35 | BG164: =((($BB$164-$BB$163)*(BG165-BG163))/($BB$165-$BB$163))+BG163 -> 0.022 | BI164: =((($BB$164-$BB$163)*(BI165-BI163))/($BB$165-$BB$163))+BI163 -> 288.1 | BJ164: =((($BB$164-$BB$163)*(BJ165-BJ163))/($BB$165-$BB$163))+BJ163 -> 0.011 | BL164: =((($BB$164-$BB$163)*(BL165-BL163))/($BB$165-$BB$163))+BL163 -> 98.1 | BM164: =((($BB$164-$BB$163)*(BM165-BM163))/($BB$165-$BB$163))+BM163 -> 0 | BO164: =((($BB$164-$BB$163)*(BO165-BO163))/($BB$165-$BB$163))+BO163 -> 28.7 | BP164: =((($BB$164-$BB$163)*(BP165-BP163))/($BB$165-$BB$163))+BP163 -> 0
BB165: 21 | BC165: 1284.8 | BD165: 0.076 | BF165: 444.1 | BG165: 0.022 | BI165: 316.8 | BJ165: 0.011 | BL165: 126.8 | BM165: 0 | BO165: 57.4 | BP165: 0
BB166: 22 | BC166: =((($BB166-$BB$165)*(BC$169-BC$165))/($BB$169-$BB$165))+BC$165 -> 1307.175 | BD166: 0.07875 | BF166: =((($BB166-$BB$165)*(BF$169-BF$165))/($BB$169-$BB$165))+BF$165 -> 466.45 | BG166: 0.02475 | BI166: =((($BB166-$BB$165)*(BI$169-BI$165))/($BB$169-$BB$165))+BI$165 -> 339.15 | BJ166: 0.01375 | BL166: =((($BB166-$BB$165)*(BJ$169-BJ$165))/($BB$169-$BB$165))+BJ$165 -> 0.01375 | BM166: =((($BB166-$BB$165)*(BM$169-BM$165))/($BB$169-$BB$165))+BM$165 -> 0.00275 | BO166: =((($BB166-$BB$165)*(BO$169-BO$165))/($BB$169-$BB$165))+BO$165 -> 79.775 | BP166: 0
BB167: 23 | BC167: 1329.55 | BD167: 0.0815 | BF167: 488.8 | BG167: 0.0275 | BI167: 361.5 | BJ167: 0.0165 | BL167: =((($BB167-$BB$165)*(BL$169-BL$165))/($BB$169-$BB$165))+BL$165 -> 171.5 | BM167: =((($BB167-$BB$165)*(BM$169-BM$165))/($BB$169-$BB$165))+BM$165 -> 0.0055 | BO167: 102.15 | BP167: 0
BB168: 24 | BC168: 1351.925 | BD168: 0.08425 | BF168: 511.15 | BG168: 0.03025 | BI168: 383.85 | BJ168: 0.01925 | BL168: =((($BB168-$BB$165)*(BL$169-BL$165))/($BB$169-$BB$165))+BL$165 -> 193.85 | BM168: =((($BB168-$BB$165)*(BM$169-BM$165))/($BB$169-$BB$165))+BM$165 -> 0.00825 | BO168: 124.525 | BP168: 0
BB169: 25 | BC169: 1374.3 | BD169: 0.087 | BF169: 533.5 | BG169: 0.033 | BI169: 406.2 | BJ169: 0.022 | BL169: 216.2 | BM169: 0.011 | BO169: 146.9 | BP169: 0
BB170: 26 | BC170: =((($BB$170-$BB$169)*(BC171-BC169))/($BB$171-$BB$169))+BC169 -> 1392.2 | BD170: =((($BB$170-$BB$169)*(BD171-BD169))/($BB$171-$BB$169))+BD169 -> 0.087 | BF170: =((($BB$170-$BB$169)*(BF171-BF169))/($BB$171-$BB$169))+BF169 -> 551.45 | BG170: =((($BB$170-$BB$169)*(BG171-BG169))/($BB$171-$BB$169))+BG169 -> 0.033 | BI170: =((($BB$170-$BB$169)*(BI171-BI169))/($BB$171-$BB$169))+BI169 -> 424.15 | BJ170: =((($BB$170-$BB$169)*(BJ171-BJ169))/($BB$171-$BB$169))+BJ169 -> 0.022 | BL170: =((($BB$170-$BB$169)*(BL171-BL169))/($BB$171-$BB$169))+BL169 -> 234.15 | BM170: =((($BB$170-$BB$169)*(BM171-BM169))/($BB$171-$BB$169))+BM169 -> 0.011 | BO170: =((($BB$170-$BB$169)*(BO171-BO169))/($BB$171-$BB$169))+BO169 -> 164.8 | BP170: =((($BB$170-$BB$169)*(BP171-BP169))/($BB$171-$BB$169))+BP169 -> 0.0055
BB171: 27 | BC171: 1410.1 | BD171: 0.087 | BF171: 569.4 | BG171: 0.033 | BI171: 442.1 | BJ171: 0.022 | BL171: 252.1 | BM171: 0.011 | BO171: 182.7 | BP171: 0.011
BB176: Wall Insulation - HVAC: Electric Heat No AC
BB177: Base | BC177: 0 | BF177: 11 | BI177: 13 | BL177: 17 | BO177: 19
BB178: Measure | BC178: kWh/ kSF | BD178: kW/ kSF | BF178: kWh/ kSF | BG178: kW/ kSF | BI178: kWh/ kSF | BJ178: kW/ kSF | BL178: kWh/ kSF | BM178: kW/ kSF | BO178: kWh/ kSF | BP178: kW/ kSF
BB179: 11 | BC179: 798.1 | BD179: 0
BB180: 12 | BC180: =(((BB180-BB181)*(BC181-BC179))/($BB$181-BB179))+BC179 -> 736.35 | BD180: =(((BC180-BC181)*(BD181-BD179))/($BB$181-BC179))+BD179 -> 0 | BF180: =((($BB$180-$BB$179)*(BF181-BF179))/($BB$181-$BB$179))+BF179 -> 61.8 | BG180: =((($BB$180-$BB$179)*(BG181-BG179))/($BB$181-$BB$179))+BG179 -> 0 | BI180: =((($BB$180-$BB$179)*(BI181-BI179))/($BB$181-$BB$179))+BI179 -> 0 | BJ180: =((($BB$180-$BB$179)*(BJ181-BJ179))/($BB$181-$BB$179))+BJ179 -> 0 | BL180: =((($BB$180-$BB$179)*(BL181-BL179))/($BB$181-$BB$179))+BL179 -> 0 | BM180: =((($BB$180-$BB$179)*(BM181-BM179))/($BB$181-$BB$179))+BM179 -> 0 | BO180: =((($BB$180-$BB$179)*(BO181-BO179))/($BB$181-$BB$179))+BO179 -> 0 | BP180: =((($BB$180-$BB$179)*(BP181-BP179))/($BB$181-$BB$179))+BP179 -> 0
BB181: 13 | BC181: 921.6 | BD181: 0 | BF181: 123.6 | BG181: 0 | BI181: 0 | BJ181: 0 | BL181: 0 | BM181: 0 | BO181: 0 | BP181: 0
BB182: 14 | BC182: =((($BB182-$BB$181)*(BC$185-BC$181))/($BB$185-$BB$181))+BC$181 -> 966.5 | BD182: 0 | BF182: =((($BB182-$BB$181)*(BF$185-BF$181))/($BB$185-$BB$181))+BF$181 -> 168.5 | BG182: 0 | BI182: =((($BB182-$BB$181)*(BI$185-BI$181))/($BB$185-$BB$181))+BI$181 -> 44.9 | BJ182: 0 | BL182: =((($BB182-$BB$181)*(BL$185-BL$181))/($BB$185-$BB$181))+BL$181 -> 0 | BM182: 0 | BO182: =((($BB182-$BB$181)*(BO$185-BO$181))/($BB$185-$BB$181))+BO$181 -> 0 | BP182: 0
BB183: 15 | BC183: 1011.4 | BD183: 0 | BF183: 213.4 | BG183: 0 | BI183: 89.8 | BJ183: 0 | BL183: 0 | BM183: 0 | BO183: 0 | BP183: 0
BB184: 16 | BC184: 1056.3 | BD184: 0 | BF184: 258.3 | BG184: 0 | BI184: 134.7 | BJ184: 0 | BL184: 0 | BM184: 0 | BO184: 0 | BP184: 0
BB185: 17 | BC185: 1101.2 | BD185: 0 | BF185: 303.2 | BG185: 0 | BI185: 179.6 | BJ185: 0 | BL185: 0 | BM185: 0 | BO185: 0 | BP185: 0
BB186: 18 | BC186: =((($BB$186-$BB$185)*(BC187-BC185))/($BB$187-$BB$185))+BC185 -> 1133.95 | BD186: =((($BB$186-$BB$185)*(BD187-BD185))/($BB$187-$BB$185))+BD185 -> 0 | BF186: =((($BB$186-$BB$185)*(BF187-BF185))/($BB$187-$BB$185))+BF185 -> 335.9 | BG186: =((($BB$186-$BB$185)*(BG187-BG185))/($BB$187-$BB$185))+BG185 -> 0 | BI186: =((($BB$186-$BB$185)*(BI187-BI185))/($BB$187-$BB$185))+BI185 -> 212.35 | BJ186: =((($BB$186-$BB$185)*(BJ187-BJ185))/($BB$187-$BB$185))+BJ185 -> 0 | BL186: =((($BB$186-$BB$185)*(BL187-BL185))/($BB$187-$BB$185))+BL185 -> 32.75 | BM186: =((($BB$186-$BB$185)*(BM187-BM185))/($BB$187-$BB$185))+BM185 -> 0 | BO186: =((($BB$186-$BB$185)*(BO187-BO185))/($BB$187-$BB$185))+BO185 -> 0 | BP186: =((($BB$186-$BB$185)*(BP187-BP185))/($BB$187-$BB$185))+BP185 -> 0
BB187: 19 | BC187: 1166.7 | BD187: 0 | BF187: 368.6 | BG187: 0 | BI187: 245.1 | BJ187: 0 | BL187: 65.5 | BM187: 0 | BO187: 0 | BP187: 0
BB188: 20 | BC188: =((($BB$188-$BB$187)*(BC189-BC187))/($BB$189-$BB$187))+BC187 -> 1194.1 | BD188: =((($BB$188-$BB$187)*(BD189-BD187))/($BB$189-$BB$187))+BD187 -> 0 | BF188: =((($BB$188-$BB$187)*(BF189-BF187))/($BB$189-$BB$187))+BF187 -> 396.05 | BG188: =((($BB$188-$BB$187)*(BG189-BG187))/($BB$189-$BB$187))+BG187 -> 0 | BI188: =((($BB$188-$BB$187)*(BI189-BI187))/($BB$189-$BB$187))+BI187 -> 272.5 | BJ188: =((($BB$188-$BB$187)*(BJ189-BJ187))/($BB$189-$BB$187))+BJ187 -> 0 | BL188: =((($BB$188-$BB$187)*(BL189-BL187))/($BB$189-$BB$187))+BL187 -> 92.9 | BM188: =((($BB$188-$BB$187)*(BM189-BM187))/($BB$189-$BB$187))+BM187 -> 0 | BO188: =((($BB$188-$BB$187)*(BO189-BO187))/($BB$189-$BB$187))+BO187 -> 27.4 | BP188: =((($BB$188-$BB$187)*(BP189-BP187))/($BB$189-$BB$187))+BP187 -> 0
BB189: 21 | BC189: 1221.5 | BD189: 0 | BF189: 423.5 | BG189: 0 | BI189: 299.9 | BJ189: 0 | BL189: 120.3 | BM189: 0 | BO189: 54.8 | BP189: 0
BB190: 22 | BC190: =((($BB190-$BB$189)*(BC$193-BC$189))/($BB$193-$BB$189))+BC$189 -> 1243.025 | BD190: 0 | BF190: =((($BB190-$BB$189)*(BF$193-BF$189))/($BB$193-$BB$189))+BF$189 -> 445 | BG190: 0 | BI190: =((($BB190-$BB$189)*(BI$193-BI$189))/($BB$193-$BB$189))+BI$189 -> 321.425 | BJ190: 0 | BL190: =((($BB190-$BB$189)*(BL$193-BL$189))/($BB$193-$BB$189))+BL$189 -> 141.825 | BM190: 0 | BO190: =((($BB190-$BB$189)*(BO$193-BO$189))/($BB$193-$BB$189))+BO$189 -> 76.325 | BP190: =((($BB190-$BB$189)*(BP$193-BP$189))/($BB$193-$BB$189))+BP189 -> 0
BB191: 23 | BC191: 1264.55 | BD191: 0 | BF191: 466.5 | BG191: 0 | BI191: 342.95 | BJ191: 0 | BL191: 163.35 | BM191: 0 | BO191: =((($BB191-$BB$189)*(BO$193-BO$189))/($BB$193-$BB$189))+BO$189 -> 97.85 | BP191: =((($BB191-$BB$189)*(BP$193-BP$189))/($BB$193-$BB$189))+BP190 -> 0
BB192: 24 | BC192: 1286.075 | BD192: 0 | BF192: 488 | BG192: 0 | BI192: 364.475 | BJ192: 0 | BL192: 184.875 | BM192: 0 | BO192: =((($BB192-$BB$189)*(BO$193-BO$189))/($BB$193-$BB$189))+BO$189 -> 119.375 | BP192: =((($BB192-$BB$189)*(BP$193-BP$189))/($BB$193-$BB$189))+BP191 -> 0
BB193: 25 | BC193: 1307.6 | BD193: 0 | BF193: 509.5 | BG193: 0 | BI193: 386 | BJ193: 0 | BL193: 206.4 | BM193: 0 | BO193: 140.9 | BP193: 0
BB194: 26 | BC194: =((($BB$194-$BB$193)*(BC195-BC193))/($BB$195-$BB$193))+BC193 -> 1324.6 | BD194: =((($BB$194-$BB$193)*(BD195-BD193))/($BB$195-$BB$193))+BD193 -> 0 | BF194: =((($BB$194-$BB$193)*(BF195-BF193))/($BB$195-$BB$193))+BF193 -> 526.55 | BG194: =((($BB$194-$BB$193)*(BG195-BG193))/($BB$195-$BB$193))+BG193 -> 0 | BI194: =((($BB$194-$BB$193)*(BI195-BI193))/($BB$195-$BB$193))+BI193 -> 403 | BJ194: =((($BB$194-$BB$193)*(BJ195-BJ193))/($BB$195-$BB$193))+BJ193 -> 0 | BL194: =((($BB$194-$BB$193)*(BL195-BL193))/($BB$195-$BB$193))+BL193 -> 223.4 | BM194: =((($BB$194-$BB$193)*(BM195-BM193))/($BB$195-$BB$193))+BM193 -> 0 | BO194: =((($BB$194-$BB$193)*(BO195-BO193))/($BB$195-$BB$193))+BO193 -> 157.9 | BP194: =((($BB$194-$BB$193)*(BP195-BP193))/($BB$195-$BB$193))+BP193 -> 0
BB195: 27 | BC195: 1341.6 | BD195: 0 | BF195: 543.6 | BG195: 0 | BI195: 420 | BJ195: 0 | BL195: 240.4 | BM195: 0 | BO195: 174.9 | BP195: 0
BB200: Wall Insulation - HVAC: Gas Heat No AC
BB201: Base | BC201: 0 | BF201: 11 | BI201: 13 | BL201: 17 | BO201: 19
BB202: Measure | BC202: kWh/ kSF | BD202: kW/ kSF | BE202: therm/ kSF | BF202: kWh/ kSF | BG202: kW/ kSF | BH202: therm/ kSF | BI202: kWh/ kSF | BJ202: kW/ kSF | BK202: therm/ kSF | BL202: kWh/ kSF | BM202: kW/ kSF | BN202: therm/ kSF | BO202: kWh/ kSF | BP202: kW/ kSF | BQ202: therm/ kSF
BB203: 11 | BC203: 17.2 | BD203: 0 | BE203: 36.7
BB204: 12 | BC204: =(((BB204-BB203)*(BC205-BC203))/($BB$205-BB203))+BC203 -> 18.5 | BD204: =(((BB204-BB203)*(BD205-BD203))/($BB$205-BB203))+BD203 -> 0 | BE204: =(((BB204-BB203)*(BE205-BE203))/($BB$205-BB203))+BE203 -> 39.55 | BF204: =(((BB204-BB203)*(BF205-BF203))/($BB$205-BB203))+BF203 -> 1.3 | BG204: =(((BB204-BB203)*(BG205-BG203))/($BB$205-BB203))+BG203 -> 0 | BH204: =(((BB204-BB203)*(BH205-BH203))/($BB$205-BB203))+BH203 -> 2.8 | BI204: =(((BB204-BB203)*(BI205-BI203))/($BB$205-BB203))+BI203 -> 0 | BJ204: =(((BB204-BB203)*(BJ205-BJ203))/($BB$205-BB203))+BJ203 -> 0 | BK204: =(((BB204-BB203)*(BK205-BK203))/($BB$205-BB203))+BK203 -> 0 | BL204: =(((BB204-BB203)*(BL205-BL203))/($BB$205-BB203))+BL203 -> 0 | BM204: =(((BB204-BB203)*(BM205-BM203))/($BB$205-BB203))+BM203 -> 0 | BN204: =(((BB204-BB203)*(BN205-BN203))/($BB$205-BB203))+BN203 -> 0 | BO204: =(((BB204-BB203)*(BO205-BO203))/($BB$205-BB203))+BO203 -> 0 | BP204: =(((BB204-BB203)*(BP205-BP203))/($BB$205-BB203))+BP203 -> 0 | BQ204: =(((BB204-BB203)*(BQ205-BQ203))/($BB$205-BB203))+BQ203 -> 0
BB205: 13 | BC205: 19.8 | BD205: 0 | BE205: 42.4 | BF205: 2.6 | BG205: 0 | BH205: 5.6 | BI205: 0 | BJ205: 0 | BK205: 0 | BL205: 0 | BM205: 0 | BN205: 0 | BO205: 0 | BP205: 0 | BQ205: 0
BB206: 14 | BC206: =((($BB206-$BB$205)*(BC$209-BC$205))/($BB$209-$BB$205))+BC$205 -> 20.775 | BD206: 0 | BE206: 44.45 | BF206: 3.575 | BG206: 0 | BH206: 7.675 | BI206: 0.975 | BJ206: 0 | BK206: 2.05 | BL206: 0 | BM206: 0 | BN206: 0 | BO206: 0 | BP206: 0 | BQ206: 0
BB207: 15 | BC207: 21.75 | BD207: 0 | BE207: 46.5 | BF207: 4.55 | BG207: 0 | BH207: 9.75 | BI207: 1.95 | BJ207: 0 | BK207: 4.1 | BL207: 0 | BM207: 0 | BN207: 0 | BO207: 0 | BP207: 0 | BQ207: 0
BB208: 16 | BC208: 22.725 | BD208: 0 | BE208: 48.55 | BF208: 5.525 | BG208: 0 | BH208: 11.825 | BI208: 2.925 | BJ208: 0 | BK208: 6.15 | BL208: 0 | BM208: 0 | BN208: 0 | BO208: 0 | BP208: 0 | BQ208: 0
... 276 more rows

Sheet Air Flow References (hidden)
A1: Air Flow Tabs
A3: Air Flow Tab - Airflow Inputs | B3: Range | C3: Pass/Fail Check | E3: Air Flow Tab 2 - Airflow Inputs | F3: Range | G3: Pass/Fail Check | I3: Air Flow Tab 3 - Airflow Inputs | J3: Range | K3: Pass/Fail Check | N3: Air Flow Tab 4 - Airflow Inputs | O3: Range | P3: Pass/Fail Check | S3: Air Flow Tab 5 - Airflow Inputs | T3: Range | U3: Pass/Fail Check | X3: Air Flow Tab 6 - Airflow Inputs | Y3: Range | Z3: Pass/Fail Check | AC3: Air Flow Tab 7 - Airflow Inputs | AD3: Range | AE3: Pass/Fail Check | AH3: Air Flow Tab 8 - Airflow Inputs | AI3: Range | AJ3: Pass/Fail Check | AM3: Air Flow Tab 9 - Airflow Inputs | AN3: Range | AO3: Pass/Fail Check | AR3: Air Flow Tab 10 - Airflow Inputs | AS3: Range | AT3: Pass/Fail Check
A4: Rated Cooling Capacity | B4: .5-11.3 | C4: =IF(AND('AIRFLOW FORM'!$E$16>=0.5,'AIRFLOW FORM'!$E$16<=11.3),"","FAIL") -> FAIL | E4: Rated Cooling Capacity | F4: .5-11.3 | G4: =IF(AND('AIRFLOW FORM 2'!$E$15>=0.5,'AIRFLOW FORM 2'!$E$15<=11.3),"","FAIL") -> FAIL | I4: Rated Cooling Capacity | J4: .5-11.3 | K4: =IF(AND('AIRFLOW FORM 3'!$E$15>=0.5,'AIRFLOW FORM 3'!$E$15<=11.3),"","FAIL") -> FAIL | N4: Rated Cooling Capacity | O4: .5-11.3 | P4: =IF(AND('AIRFLOW FORM 4'!$E$15>=0.5,'AIRFLOW FORM 4'!$E$15<=11.3),"","FAIL") -> FAIL | S4: Rated Cooling Capacity | T4: .5-11.3 | U4: =IF(AND('AIRFLOW FORM 5'!$E$15>=0.5,'AIRFLOW FORM 5'!$E$15<=11.3),"","FAIL") -> FAIL | X4: Rated Cooling Capacity | Y4: .5-11.3 | Z4: =IF(AND('AIRFLOW FORM 6'!$E$15>=0.5,'AIRFLOW FORM 6'!$E$15<=11.3),"","FAIL") -> FAIL | AC4: Rated Cooling Capacity | AD4: .5-11.3 | AE4: =IF(AND('AIRFLOW FORM 7'!$E$15>=0.5,'AIRFLOW FORM 7'!$E$15<=11.3),"","FAIL") -> FAIL | AH4: Rated Cooling Capacity | AI4: .5-11.3 | AJ4: =IF(AND('AIRFLOW FORM 8'!$E$15>=0.5,'AIRFLOW FORM 8'!$E$15<=11.3),"","FAIL") -> FAIL | AM4: Rated Cooling Capacity | AN4: .5-11.3 | AO4: =IF(AND('AIRFLOW FORM 9'!$E$15>=0.5,'AIRFLOW FORM 9'!$E$15<=11.3),"","FAIL") -> FAIL | AR4: Rated Cooling Capacity | AS4: .5-11.3 | AT4: =IF(AND('AIRFLOW FORM 10'!$E$15>=0.5,'AIRFLOW FORM 10'!$E$15<=11.3),"","FAIL") -> FAIL
A5: Static Pressure Drop | B5: .1-.8 | C5: =IF(AND('AIRFLOW FORM'!$E$19>=0.1,'AIRFLOW FORM'!$E$19<=0.8),"","FAIL") -> FAIL | E5: Static Pressure Drop | F5: .1-.8 | G5: =IF(AND('AIRFLOW FORM 2'!$E$18>=0.1,'AIRFLOW FORM 2'!$E$18<=0.8),"","FAIL") -> FAIL | I5: Static Pressure Drop | J5: .1-.8 | K5: =IF(AND('AIRFLOW FORM 3'!$E$18>=0.1,'AIRFLOW FORM 3'!$E$18<=0.8),"","FAIL") -> FAIL | N5: Static Pressure Drop | O5: .1-.8 | P5: =IF(AND('AIRFLOW FORM 4'!$E$18>=0.1,'AIRFLOW FORM 4'!$E$18<=0.8),"","FAIL") -> FAIL | S5: Static Pressure Drop | T5: .1-.8 | U5: =IF(AND('AIRFLOW FORM 5'!$E$18>=0.1,'AIRFLOW FORM 5'!$E$18<=0.8),"","FAIL") -> FAIL | X5: Static Pressure Drop | Y5: .1-.8 | Z5: =IF(AND('AIRFLOW FORM 6'!$E$18>=0.1,'AIRFLOW FORM 6'!$E$18<=0.8),"","FAIL") -> FAIL | AC5: Static Pressure Drop | AD5: .1-.8 | AE5: =IF(AND('AIRFLOW FORM 7'!$E$18>=0.1,'AIRFLOW FORM 7'!$E$18<=0.8),"","FAIL") -> FAIL | AH5: Static Pressure Drop | AI5: .1-.8 | AJ5: =IF(AND('AIRFLOW FORM 8'!$E$18>=0.1,'AIRFLOW FORM 8'!$E$18<=0.8),"","FAIL") -> FAIL | AM5: Static Pressure Drop | AN5: .1-.8 | AO5: =IF(AND('AIRFLOW FORM 9'!$E$18>=0.1,'AIRFLOW FORM 9'!$E$18<=0.8),"","FAIL") -> FAIL | AR5: Static Pressure Drop | AS5: .1-.8 | AT5: =IF(AND('AIRFLOW FORM 10'!$E$18>=0.1,'AIRFLOW FORM 10'!$E$18<=0.8),"","FAIL") -> FAIL
A6: CFM Per Ton | B6: 325-450 | C6: =IF(AND('AIRFLOW FORM'!$M$16>=325,'AIRFLOW FORM'!$M$16<=450),"","FAIL") -> FAIL | E6: CFM Per Ton | F6: 325-450 | G6: =IF(AND('AIRFLOW FORM 2'!$M$15>=325,'AIRFLOW FORM 2'!$M$15<=450),"","FAIL") -> FAIL | I6: CFM Per Ton | J6: 325-450 | K6: =IF(AND('AIRFLOW FORM 3'!$M$15>=325,'AIRFLOW FORM 3'!$M$15<=450),"","FAIL") -> FAIL | N6: CFM Per Ton | O6: 325-450 | P6: =IF(AND('AIRFLOW FORM 4'!$M$15>=325,'AIRFLOW FORM 4'!$M$15<=450),"","FAIL") -> FAIL | S6: CFM Per Ton | T6: 325-450 | U6: =IF(AND('AIRFLOW FORM 5'!$M$15>=325,'AIRFLOW FORM 5'!$M$15<=450),"","FAIL") -> FAIL | X6: CFM Per Ton | Y6: 325-450 | Z6: =IF(AND('AIRFLOW FORM 6'!$M$15>=325,'AIRFLOW FORM 6'!$M$15<=450),"","FAIL") -> FAIL | AC6: CFM Per Ton | AD6: 325-450 | AE6: =IF(AND('AIRFLOW FORM 7'!$M$15>=325,'AIRFLOW FORM 7'!$M$15<=450),"","FAIL") -> FAIL | AH6: CFM Per Ton | AI6: 325-450 | AJ6: =IF(AND('AIRFLOW FORM 8'!$M$15>=325,'AIRFLOW FORM 8'!$M$15<=450),"","FAIL") -> FAIL | AM6: CFM Per Ton | AN6: 325-450 | AO6: =IF(AND('AIRFLOW FORM 9'!$M$15>=325,'AIRFLOW FORM 9'!$M$15<=450),"","FAIL") -> FAIL | AR6: CFM Per Ton | AS6: 325-450 | AT6: =IF(AND('AIRFLOW FORM 10'!$M$15>=325,'AIRFLOW FORM 10'!$M$15<=450),"","FAIL") -> FAIL
A7: External Static Pressure | B7: .1-.8 | C7: =IF(AND('AIRFLOW FORM'!$M$19>=0.1,'AIRFLOW FORM'!$M$19<=0.8),"","FAIL") -> FAIL | E7: External Static Pressure | F7: .1-.8 | G7: =IF(AND('AIRFLOW FORM 2'!$M$18>=0.1,'AIRFLOW FORM 2'!$M$18<=0.8),"","FAIL") -> FAIL | I7: External Static Pressure | J7: .1-.8 | K7: =IF(AND('AIRFLOW FORM 3'!$M$18>=0.1,'AIRFLOW FORM 3'!$M$18<=0.8),"","FAIL") -> FAIL | N7: External Static Pressure | O7: .1-.8 | P7: =IF(AND('AIRFLOW FORM 4'!$M$18>=0.1,'AIRFLOW FORM 4'!$M$18<=0.8),"","FAIL") -> FAIL | S7: External Static Pressure | T7: .1-.8 | U7: =IF(AND('AIRFLOW FORM 5'!$M$18>=0.1,'AIRFLOW FORM 5'!$M$18<=0.8),"","FAIL") -> FAIL | X7: External Static Pressure | Y7: .1-.8 | Z7: =IF(AND('AIRFLOW FORM 6'!$M$18>=0.1,'AIRFLOW FORM 6'!$M$18<=0.8),"","FAIL") -> FAIL | AC7: External Static Pressure | AD7: .1-.8 | AE7: =IF(AND('AIRFLOW FORM 7'!$M$18>=0.1,'AIRFLOW FORM 7'!$M$18<=0.8),"","FAIL") -> FAIL | AH7: External Static Pressure | AI7: .1-.8 | AJ7: =IF(AND('AIRFLOW FORM 8'!$M$18>=0.1,'AIRFLOW FORM 8'!$M$18<=0.8),"","FAIL") -> FAIL | AM7: External Static Pressure | AN7: .1-.8 | AO7: =IF(AND('AIRFLOW FORM 9'!$M$18>=0.1,'AIRFLOW FORM 9'!$M$18<=0.8),"","FAIL") -> FAIL | AR7: External Static Pressure | AS7: .1-.8 | AT7: =IF(AND('AIRFLOW FORM 10'!$M$18>=0.1,'AIRFLOW FORM 10'!$M$18<=0.8),"","FAIL") -> FAIL
A8: True Flow CFM Measured | B8: ANSI/ACCA Standard 5 | C8: =IF(AND('AIRFLOW FORM'!$E$26>=('AIRFLOW FORM'!E16*'AIRFLOW FORM'!M16*0.85),'AIRFLOW FORM'!$E$26<=('AIRFLOW FORM'!E16*'AIRFLOW FORM'!M16*1.15)),"","FAIL") ->  | E8: True Flow CFM Measured | F8: ANSI/ACCA Standard 5 | G8: =IF(AND('AIRFLOW FORM 2'!$E$25>=('AIRFLOW FORM 2'!E15*'AIRFLOW FORM 2'!M15*0.85),'AIRFLOW FORM 2'!$E$25<=('AIRFLOW FORM 2'!E15*'AIRFLOW FORM 2'!M15*1.15)),"","FAIL") ->  | I8: True Flow CFM Measured | J8: ANSI/ACCA Standard 5 | K8: =IF(AND('AIRFLOW FORM 3'!$E$25>=('AIRFLOW FORM 3'!E15*'AIRFLOW FORM 3'!M15*0.85),'AIRFLOW FORM 3'!$E$25<=('AIRFLOW FORM 3'!E15*'AIRFLOW FORM 3'!M15*1.15)),"","FAIL") ->  | N8: True Flow CFM Measured | O8: ANSI/ACCA Standard 5 | P8: =IF(AND('AIRFLOW FORM 4'!$E$25>=('AIRFLOW FORM 4'!$E$15*'AIRFLOW FORM 4'!$M$15*0.85),'AIRFLOW FORM 4'!$E$25<=('AIRFLOW FORM 4'!$E$15*'AIRFLOW FORM 4'!$M$15*1.15)),"","FAIL") ->  | S8: True Flow CFM Measured | T8: ANSI/ACCA Standard 5 | U8: =IF(AND('AIRFLOW FORM 5'!$E$25>=('AIRFLOW FORM 5'!$E$15*'AIRFLOW FORM 5'!$M$15*0.85),'AIRFLOW FORM 5'!$E$25<=('AIRFLOW FORM 5'!$E$15*'AIRFLOW FORM 5'!$M$15*1.15)),"","FAIL") ->  | X8: True Flow CFM Measured | Y8: ANSI/ACCA Standard 5 | Z8: =IF(AND('AIRFLOW FORM 6'!$E$25>=('AIRFLOW FORM 6'!$E$15*'AIRFLOW FORM 6'!$M$15*0.85),'AIRFLOW FORM 6'!$E$25<=('AIRFLOW FORM 6'!$E$15*'AIRFLOW FORM 6'!$M$15*1.15)),"","FAIL") ->  | AC8: True Flow CFM Measured | AD8: ANSI/ACCA Standard 5 | AE8: =IF(AND('AIRFLOW FORM 7'!$E$25>=('AIRFLOW FORM 7'!$E$15*'AIRFLOW FORM 7'!$M$15*0.85),'AIRFLOW FORM 7'!$E$25<=('AIRFLOW FORM 7'!$E$15*'AIRFLOW FORM 7'!$M$15*1.15)),"","FAIL") ->  | AH8: True Flow CFM Measured | AI8: ANSI/ACCA Standard 5 | AJ8: =IF(AND('AIRFLOW FORM 8'!$E$25>=('AIRFLOW FORM 8'!$E$15*'AIRFLOW FORM 8'!$M$15*0.85),'AIRFLOW FORM 8'!$E$25<=('AIRFLOW FORM 8'!$E$15*'AIRFLOW FORM 8'!$M$15*1.15)),"","FAIL") ->  | AM8: True Flow CFM Measured | AN8: ANSI/ACCA Standard 5 | AO8: =IF(AND('AIRFLOW FORM 9'!$E$25>=('AIRFLOW FORM 9'!$E$15*'AIRFLOW FORM 9'!$M$15*0.85),'AIRFLOW FORM 9'!$E$25<=('AIRFLOW FORM 9'!$E$15*'AIRFLOW FORM 9'!$M$15*1.15)),"","FAIL") ->  | AR8: True Flow CFM Measured | AS8: ANSI/ACCA Standard 5 | AT8: =IF(AND('AIRFLOW FORM 10'!$E$25>=('AIRFLOW FORM 10'!$E$15*'AIRFLOW FORM 10'!$M$15*0.85),'AIRFLOW FORM 10'!$E$25<=('AIRFLOW FORM 10'!$E$15*'AIRFLOW FORM 10'!$M$15*1.15)),"","FAIL") -> 
A9: CFM Air Flow Estimated | B9: ANSI/ACCA Standard 6 | C9: =IF(AND('AIRFLOW FORM'!$E$23>=('AIRFLOW FORM'!E16*'AIRFLOW FORM'!M16*0.85),'AIRFLOW FORM'!$E$23<=('AIRFLOW FORM'!E16*'AIRFLOW FORM'!M16*1.15)),"","FAIL") ->  | E9: CFM Air Flow Estimated | F9: ANSI/ACCA Standard 6 | G9: =IF(AND('AIRFLOW FORM 2'!$E$22>=('AIRFLOW FORM 2'!E15*'AIRFLOW FORM 2'!M15*0.85),'AIRFLOW FORM 2'!$E$22<=('AIRFLOW FORM 2'!E15*'AIRFLOW FORM 2'!M15*1.15)),"","FAIL") ->  | I9: CFM Air Flow Estimated | J9: ANSI/ACCA Standard 6 | K9: =IF(AND('AIRFLOW FORM 3'!$E$22>=('AIRFLOW FORM 3'!E15*'AIRFLOW FORM 3'!M15*0.85),'AIRFLOW FORM 3'!$E$22<=('AIRFLOW FORM 3'!E15*'AIRFLOW FORM 3'!M15*1.15)),"","FAIL") ->  | N9: CFM Air Flow Estimated | O9: ANSI/ACCA Standard 6 | P9: =IF(AND('AIRFLOW FORM 4'!$E$22>=('AIRFLOW FORM 4'!E15*'AIRFLOW FORM 4'!M15*0.85),'AIRFLOW FORM 4'!$E$22<=('AIRFLOW FORM 4'!E15*'AIRFLOW FORM 4'!M15*1.15)),"","FAIL") ->  | S9: CFM Air Flow Estimated | T9: ANSI/ACCA Standard 6 | U9: =IF(AND('AIRFLOW FORM 5'!$E$22>=('AIRFLOW FORM 5'!E15*'AIRFLOW FORM 5'!M15*0.85),'AIRFLOW FORM 5'!$E$22<=('AIRFLOW FORM 5'!E15*'AIRFLOW FORM 5'!M15*1.15)),"","FAIL") ->  | X9: CFM Air Flow Estimated | Y9: ANSI/ACCA Standard 6 | Z9: =IF(AND('AIRFLOW FORM 6'!$E$22>=('AIRFLOW FORM 6'!E15*'AIRFLOW FORM 6'!M15*0.85),'AIRFLOW FORM 6'!$E$22<=('AIRFLOW FORM 6'!E15*'AIRFLOW FORM 6'!M15*1.15)),"","FAIL") ->  | AC9: CFM Air Flow Estimated | AD9: ANSI/ACCA Standard 6 | AE9: =IF(AND('AIRFLOW FORM 7'!$E$22>=('AIRFLOW FORM 7'!E15*'AIRFLOW FORM 7'!M15*0.85),'AIRFLOW FORM 7'!$E$22<=('AIRFLOW FORM 7'!E15*'AIRFLOW FORM 7'!M15*1.15)),"","FAIL") ->  | AH9: CFM Air Flow Estimated | AI9: ANSI/ACCA Standard 6 | AJ9: =IF(AND('AIRFLOW FORM 8'!$E$22>=('AIRFLOW FORM 8'!E15*'AIRFLOW FORM 8'!M15*0.85),'AIRFLOW FORM 8'!$E$22<=('AIRFLOW FORM 8'!E15*'AIRFLOW FORM 8'!M15*1.15)),"","FAIL") ->  | AM9: CFM Air Flow Estimated | AN9: ANSI/ACCA Standard 6 | AO9: =IF(AND('AIRFLOW FORM 9'!$E$22>=('AIRFLOW FORM 9'!E15*'AIRFLOW FORM 9'!M15*0.85),'AIRFLOW FORM 9'!$E$22<=('AIRFLOW FORM 9'!E15*'AIRFLOW FORM 9'!M15*1.15)),"","FAIL") ->  | AR9: CFM Air Flow Estimated | AS9: ANSI/ACCA Standard 6 | AT9: =IF(AND('AIRFLOW FORM 10'!$E$22>=('AIRFLOW FORM 10'!E15*'AIRFLOW FORM 10'!M15*0.85),'AIRFLOW FORM 10'!$E$22<=('AIRFLOW FORM 10'!E15*'AIRFLOW FORM 10'!M15*1.15)),"","FAIL") -> 
A15: Air Flow Tab - Refrigerant Inputs Subcooling | B15: Range | C15: Pass/Fail Check | E15: Air Flow Tab 2 - Refrigerant Inputs Subcooling | F15: Range | G15: Pass/Fail Check | I15: Air Flow Tab 3 - Refrigerant Inputs Subcooling | J15: Range | K15: Pass/Fail Check | N15: Air Flow Tab 4 - Refrigerant Inputs Subcooling | O15: Range | P15: Pass/Fail Check | S15: Air Flow Tab 5 - Refrigerant Inputs Subcooling | T15: Range | U15: Pass/Fail Check | X15: Air Flow Tab 6 - Refrigerant Inputs Subcooling | Y15: Range | Z15: Pass/Fail Check | AC15: Air Flow Tab 7 - Refrigerant Inputs Subcooling | AD15: Range | AE15: Pass/Fail Check | AH15: Air Flow Tab 8 - Refrigerant Inputs Subcooling | AI15: Range | AJ15: Pass/Fail Check | AM15: Air Flow Tab 9 - Refrigerant Inputs Subcooling | AN15: Range | AO15: Pass/Fail Check | AR15: Air Flow Tab 10 - Refrigerant Inputs Subcooling | AS15: Range | AT15: Pass/Fail Check
A16: Required Subcooling | B16: 6-14 | C16: =IF(AND('AIRFLOW FORM'!$E$50>=6,'AIRFLOW FORM'!$E$50<=14),"","FAIL") -> FAIL | E16: Required Subcooling | F16: 6-14 | G16: =IF(AND('AIRFLOW FORM 2'!$E$49>=6,'AIRFLOW FORM 2'!$E$49<=14),"","FAIL") -> FAIL | I16: Required Subcooling | J16: 6-14 | K16: =IF(AND('AIRFLOW FORM 3'!$E$49>=6,'AIRFLOW FORM 3'!$E$49<=14),"","FAIL") -> FAIL | N16: Required Subcooling | O16: 6-14 | P16: =IF(AND('AIRFLOW FORM 4'!$E$49>=6,'AIRFLOW FORM 4'!$E$49<=14),"","FAIL") -> FAIL | S16: Required Subcooling | T16: 6-14 | U16: =IF(AND('AIRFLOW FORM 5'!$E$49>=6,'AIRFLOW FORM 5'!$E$49<=14),"","FAIL") -> FAIL | X16: Required Subcooling | Y16: 6-14 | Z16: =IF(AND('AIRFLOW FORM 6'!$E$49>=6,'AIRFLOW FORM 6'!$E$49<=14),"","FAIL") -> FAIL | AC16: Required Subcooling | AD16: 6-14 | AE16: =IF(AND('AIRFLOW FORM 7'!$E$49>=6,'AIRFLOW FORM 7'!$E$49<=14),"","FAIL") -> FAIL | AH16: Required Subcooling | AI16: 6-14 | AJ16: =IF(AND('AIRFLOW FORM 8'!$E$49>=6,'AIRFLOW FORM 8'!$E$49<=14),"","FAIL") -> FAIL | AM16: Required Subcooling | AN16: 6-14 | AO16: =IF(AND('AIRFLOW FORM 9'!$E$49>=6,'AIRFLOW FORM 9'!$E$49<=14),"","FAIL") -> FAIL | AR16: Required Subcooling | AS16: 6-14 | AT16: =IF(AND('AIRFLOW FORM 10'!$E$49>=6,'AIRFLOW FORM 10'!$E$49<=14),"","FAIL") -> FAIL
A17: Outdoor Dry Bulb Temp | B17: 60-114 | C17: =IF(AND('AIRFLOW FORM'!$E$52>=60,'AIRFLOW FORM'!$E$52<=114),"","FAIL") -> FAIL | E17: Outdoor Dry Bulb Temp | F17: 60-114 | G17: =IF(AND('AIRFLOW FORM 2'!$E$51>=60,'AIRFLOW FORM 2'!$E$51<=114),"","FAIL") -> FAIL | I17: Outdoor Dry Bulb Temp | J17: 60-114 | K17: =IF(AND('AIRFLOW FORM 3'!$E$51>=60,'AIRFLOW FORM 3'!$E$51<=114),"","FAIL") -> FAIL | N17: Outdoor Dry Bulb Temp | O17: 60-114 | P17: =IF(AND('AIRFLOW FORM 4'!$E$51>=60,'AIRFLOW FORM 4'!$E$51<=114),"","FAIL") -> FAIL | S17: Outdoor Dry Bulb Temp | T17: 60-114 | U17: =IF(AND('AIRFLOW FORM 5'!$E$51>=60,'AIRFLOW FORM 5'!$E$51<=114),"","FAIL") -> FAIL | X17: Outdoor Dry Bulb Temp | Y17: 60-114 | Z17: =IF(AND('AIRFLOW FORM 6'!$E$51>=60,'AIRFLOW FORM 6'!$E$51<=114),"","FAIL") -> FAIL | AC17: Outdoor Dry Bulb Temp | AD17: 60-114 | AE17: =IF(AND('AIRFLOW FORM 7'!$E$51>=60,'AIRFLOW FORM 7'!$E$51<=114),"","FAIL") -> FAIL | AH17: Outdoor Dry Bulb Temp | AI17: 60-114 | AJ17: =IF(AND('AIRFLOW FORM 8'!$E$51>=60,'AIRFLOW FORM 8'!$E$51<=114),"","FAIL") -> FAIL | AM17: Outdoor Dry Bulb Temp | AN17: 60-114 | AO17: =IF(AND('AIRFLOW FORM 9'!$E$51>=60,'AIRFLOW FORM 9'!$E$51<=114),"","FAIL") -> FAIL | AR17: Outdoor Dry Bulb Temp | AS17: 60-114 | AT17: =IF(AND('AIRFLOW FORM 10'!$E$51>=60,'AIRFLOW FORM 10'!$E$51<=114),"","FAIL") -> FAIL
A18: Liquid Line Pressure | B18: 195-475 | C18: =IF(AND('AIRFLOW FORM'!$E$56>=195,'AIRFLOW FORM'!$E$56<=475),"","FAIL") -> FAIL | E18: Liquid Line Pressure | F18: 195-475 | G18: =IF(AND('AIRFLOW FORM 2'!$E$55>=195,'AIRFLOW FORM 2'!$E$55<=475),"","FAIL") -> FAIL | I18: Liquid Line Pressure | J18: 195-475 | K18: =IF(AND('AIRFLOW FORM 3'!$E$55>=195,'AIRFLOW FORM 3'!$E$55<=475),"","FAIL") -> FAIL | N18: Liquid Line Pressure | O18: 195-475 | P18: =IF(AND('AIRFLOW FORM 4'!$E$55>=195,'AIRFLOW FORM 4'!$E$55<=475),"","FAIL") -> FAIL | S18: Liquid Line Pressure | T18: 195-475 | U18: =IF(AND('AIRFLOW FORM 5'!$E$55>=195,'AIRFLOW FORM 5'!$E$55<=475),"","FAIL") -> FAIL | X18: Liquid Line Pressure | Y18: 195-475 | Z18: =IF(AND('AIRFLOW FORM 6'!$E$55>=195,'AIRFLOW FORM 6'!$E$55<=475),"","FAIL") -> FAIL | AC18: Liquid Line Pressure | AD18: 195-475 | AE18: =IF(AND('AIRFLOW FORM 7'!$E$55>=195,'AIRFLOW FORM 7'!$E$55<=475),"","FAIL") -> FAIL | AH18: Liquid Line Pressure | AI18: 195-475 | AJ18: =IF(AND('AIRFLOW FORM 8'!$E$55>=195,'AIRFLOW FORM 8'!$E$55<=475),"","FAIL") -> FAIL | AM18: Liquid Line Pressure | AN18: 195-475 | AO18: =IF(AND('AIRFLOW FORM 9'!$E$55>=195,'AIRFLOW FORM 9'!$E$55<=475),"","FAIL") -> FAIL | AR18: Liquid Line Pressure | AS18: 195-475 | AT18: =IF(AND('AIRFLOW FORM 10'!$E$55>=195,'AIRFLOW FORM 10'!$E$55<=475),"","FAIL") -> FAIL
A19: Saturation Temp | B19: 71-130 | C19: =IF(AND('AIRFLOW FORM'!$E$58>=71,'AIRFLOW FORM'!$E$58<=130),"","FAIL") -> FAIL | E19: Saturation Temp | F19: 71-130 | G19: =IF(AND('AIRFLOW FORM 2'!$E$57>=71,'AIRFLOW FORM 2'!$E$57<=130),"","FAIL") -> FAIL | I19: Saturation Temp | J19: 71-130 | K19: =IF(AND('AIRFLOW FORM 3'!$E$57>=71,'AIRFLOW FORM 3'!$E$57<=130),"","FAIL") -> FAIL | N19: Saturation Temp | O19: 71-130 | P19: =IF(AND('AIRFLOW FORM 4'!$E$57>=71,'AIRFLOW FORM 4'!$E$57<=130),"","FAIL") -> FAIL | S19: Saturation Temp | T19: 71-130 | U19: =IF(AND('AIRFLOW FORM 5'!$E$57>=71,'AIRFLOW FORM 5'!$E$57<=130),"","FAIL") -> FAIL | X19: Saturation Temp | Y19: 71-130 | Z19: =IF(AND('AIRFLOW FORM 6'!$E$57>=71,'AIRFLOW FORM 6'!$E$57<=130),"","FAIL") -> FAIL | AC19: Saturation Temp | AD19: 71-130 | AE19: =IF(AND('AIRFLOW FORM 7'!$E$57>=71,'AIRFLOW FORM 7'!$E$57<=130),"","FAIL") -> FAIL | AH19: Saturation Temp | AI19: 71-130 | AJ19: =IF(AND('AIRFLOW FORM 8'!$E$57>=71,'AIRFLOW FORM 8'!$E$57<=130),"","FAIL") -> FAIL | AM19: Saturation Temp | AN19: 71-130 | AO19: =IF(AND('AIRFLOW FORM 9'!$E$57>=71,'AIRFLOW FORM 9'!$E$57<=130),"","FAIL") -> FAIL | AR19: Saturation Temp | AS19: 71-130 | AT19: =IF(AND('AIRFLOW FORM 10'!$E$57>=71,'AIRFLOW FORM 10'!$E$57<=130),"","FAIL") -> FAIL
A20: Liquid Line Temp | B20: 57-116 | C20: =IF(AND('AIRFLOW FORM'!$E$60>=57,'AIRFLOW FORM'!$E$60<=116),"","FAIL") -> FAIL | E20: Liquid Line Temp | F20: 57-116 | G20: =IF(AND('AIRFLOW FORM 2'!$E$59>=57,'AIRFLOW FORM 2'!$E$59<=116),"","FAIL") -> FAIL | I20: Liquid Line Temp | J20: 57-116 | K20: =IF(AND('AIRFLOW FORM 3'!$E$59>=57,'AIRFLOW FORM 3'!$E$59<=116),"","FAIL") -> FAIL | N20: Liquid Line Temp | O20: 57-116 | P20: =IF(AND('AIRFLOW FORM 4'!$E$59>=57,'AIRFLOW FORM 4'!$E$59<=116),"","FAIL") -> FAIL | S20: Liquid Line Temp | T20: 57-116 | U20: =IF(AND('AIRFLOW FORM 5'!$E$59>=57,'AIRFLOW FORM 5'!$E$59<=116),"","FAIL") -> FAIL | X20: Liquid Line Temp | Y20: 57-116 | Z20: =IF(AND('AIRFLOW FORM 6'!$E$59>=57,'AIRFLOW FORM 6'!$E$59<=116),"","FAIL") -> FAIL | AC20: Liquid Line Temp | AD20: 57-116 | AE20: =IF(AND('AIRFLOW FORM 7'!$E$59>=57,'AIRFLOW FORM 7'!$E$59<=116),"","FAIL") -> FAIL | AH20: Liquid Line Temp | AI20: 57-116 | AJ20: =IF(AND('AIRFLOW FORM 8'!$E$59>=57,'AIRFLOW FORM 8'!$E$59<=116),"","FAIL") -> FAIL | AM20: Liquid Line Temp | AN20: 57-116 | AO20: =IF(AND('AIRFLOW FORM 9'!$E$59>=57,'AIRFLOW FORM 9'!$E$59<=116),"","FAIL") -> FAIL | AR20: Liquid Line Temp | AS20: 57-116 | AT20: =IF(AND('AIRFLOW FORM 10'!$E$59>=57,'AIRFLOW FORM 10'!$E$59<=116),"","FAIL") -> FAIL
A21: Measured Subcooling | B21: +-3 | C21: =IF('AIRFLOW FORM'!E62="","",IF(AND('AIRFLOW FORM'!E62<='AIRFLOW FORM'!E50+3,'AIRFLOW FORM'!E62>='AIRFLOW FORM'!E50-3),"","FAIL")) ->  | E21: Measured Subcooling | F21: +-3 | G21: =IF('AIRFLOW FORM 2'!E61="","",IF(AND('AIRFLOW FORM 2'!E61<='AIRFLOW FORM 2'!E49+3,'AIRFLOW FORM 2'!E61>='AIRFLOW FORM 2'!E49-3),"","FAIL")) ->  | I21: Measured Subcooling | J21: +-3 | K21: =IF('AIRFLOW FORM 3'!E61="","",IF(AND('AIRFLOW FORM 3'!E61<='AIRFLOW FORM 3'!E49+3,'AIRFLOW FORM 3'!E61>='AIRFLOW FORM 3'!E49-3),"","FAIL")) ->  | N21: Measured Subcooling | O21: +-3 | P21: =IF('AIRFLOW FORM 4'!E61="","",IF(AND('AIRFLOW FORM 4'!E61<='AIRFLOW FORM 4'!E49+3,'AIRFLOW FORM 4'!E61>='AIRFLOW FORM 4'!E49-3),"","FAIL")) ->  | S21: Measured Subcooling | T21: +-3 | U21: =IF('AIRFLOW FORM 5'!E61="","",IF(AND('AIRFLOW FORM 5'!E61<='AIRFLOW FORM 5'!E49+3,'AIRFLOW FORM 5'!E61>='AIRFLOW FORM 5'!E49-3),"","FAIL")) ->  | X21: Measured Subcooling | Y21: +-3 | Z21: =IF('AIRFLOW FORM 6'!E61="","",IF(AND('AIRFLOW FORM 6'!E61<='AIRFLOW FORM 6'!E49+3,'AIRFLOW FORM 6'!E61>='AIRFLOW FORM 6'!E49-3),"","FAIL")) ->  | AC21: Measured Subcooling | AD21: +-3 | AE21: =IF('AIRFLOW FORM 7'!E61="","",IF(AND('AIRFLOW FORM 7'!E61<='AIRFLOW FORM 7'!E49+3,'AIRFLOW FORM 7'!E61>='AIRFLOW FORM 7'!E49-3),"","FAIL")) ->  | AH21: Measured Subcooling | AI21: +-3 | AJ21: =IF('AIRFLOW FORM 8'!E61="","",IF(AND('AIRFLOW FORM 8'!E61<='AIRFLOW FORM 8'!E49+3,'AIRFLOW FORM 8'!E61>='AIRFLOW FORM 8'!E49-3),"","FAIL")) ->  | AM21: Measured Subcooling | AN21: +-3 | AO21: =IF('AIRFLOW FORM 9'!E61="","",IF(AND('AIRFLOW FORM 9'!E61<='AIRFLOW FORM 9'!E49+3,'AIRFLOW FORM 9'!E61>='AIRFLOW FORM 9'!E49-3),"","FAIL")) ->  | AR21: Measured Subcooling | AS21: +-3 | AT21: =IF('AIRFLOW FORM 10'!E61="","",IF(AND('AIRFLOW FORM 10'!E61<='AIRFLOW FORM 10'!E49+3,'AIRFLOW FORM 10'!E61>='AIRFLOW FORM 10'!E49-3),"","FAIL")) -> 
A27: Air Flow Tab - Refrigerant Inputs Super Heat | B27: Range | C27: Pass/Fail Check | E27: Air Flow Tab 2 - Refrigerant Inputs Super Heat | F27: Range | G27: Pass/Fail Check | I27: Air Flow Tab 3 - Refrigerant Inputs Super Heat | J27: Range | K27: Pass/Fail Check | N27: Air Flow Tab 4 - Refrigerant Inputs Super Heat | O27: Range | P27: Pass/Fail Check | S27: Air Flow Tab 5 - Refrigerant Inputs Super Heat | T27: Range | U27: Pass/Fail Check | X27: Air Flow Tab 6 - Refrigerant Inputs Super Heat | Y27: Range | Z27: Pass/Fail Check | AC27: Air Flow Tab 7 - Refrigerant Inputs Super Heat | AD27: Range | AE27: Pass/Fail Check | AH27: Air Flow Tab 8 - Refrigerant Inputs Super Heat | AI27: Range | AJ27: Pass/Fail Check | AM27: Air Flow Tab 9 - Refrigerant Inputs Super Heat | AN27: Range | AO27: Pass/Fail Check | AR27: Air Flow Tab 10 - Refrigerant Inputs Super Heat | AS27: Range | AT27: Pass/Fail Check
A28: Manufactured Spec Superheat | B28: 5-30 | C28: =IF(AND('AIRFLOW FORM'!$E$75>=5,'AIRFLOW FORM'!$E$75<=30),"","FAIL") -> FAIL | E28: Manufactured Spec Superheat | F28: 5-30 | G28: =IF(AND('AIRFLOW FORM 2'!$E$74>=5,'AIRFLOW FORM 2'!$E$74<=30),"","FAIL") -> FAIL | I28: Manufactured Spec Superheat | J28: 5-30 | K28: =IF(AND('AIRFLOW FORM 3'!$E$74>=5,'AIRFLOW FORM 3'!$E$74<=30),"","FAIL") -> FAIL | N28: Manufactured Spec Superheat | O28: 5-30 | P28: =IF(AND('AIRFLOW FORM 4'!$E$74>=5,'AIRFLOW FORM 4'!$E$74<=30),"","FAIL") -> FAIL | S28: Manufactured Spec Superheat | T28: 5-30 | U28: =IF(AND('AIRFLOW FORM 5'!$E$74>=5,'AIRFLOW FORM 5'!$E$74<=30),"","FAIL") -> FAIL | X28: Manufactured Spec Superheat | Y28: 5-30 | Z28: =IF(AND('AIRFLOW FORM 6'!$E$74>=5,'AIRFLOW FORM 6'!$E$74<=30),"","FAIL") -> FAIL | AC28: Manufactured Spec Superheat | AD28: 5-30 | AE28: =IF(AND('AIRFLOW FORM 7'!$E$74>=5,'AIRFLOW FORM 7'!$E$74<=30),"","FAIL") -> FAIL | AH28: Manufactured Spec Superheat | AI28: 5-30 | AJ28: =IF(AND('AIRFLOW FORM 8'!$E$74>=5,'AIRFLOW FORM 8'!$E$74<=30),"","FAIL") -> FAIL | AM28: Manufactured Spec Superheat | AN28: 5-30 | AO28: =IF(AND('AIRFLOW FORM 9'!$E$74>=5,'AIRFLOW FORM 9'!$E$74<=30),"","FAIL") -> FAIL | AR28: Manufactured Spec Superheat | AS28: 5-30 | AT28: =IF(AND('AIRFLOW FORM 10'!$E$74>=5,'AIRFLOW FORM 10'!$E$74<=30),"","FAIL") -> FAIL
A29: Indoor Wet Bulb Temp | B29: 50-80 | C29: =IF(AND('AIRFLOW FORM'!$E$78>=50,'AIRFLOW FORM'!$E$78<=80),"","FAIL") -> FAIL | E29: Indoor Wet Bulb Temp | F29: 50-80 | G29: =IF(AND('AIRFLOW FORM 2'!$E$77>=50,'AIRFLOW FORM 2'!$E$77<=80),"","FAIL") -> FAIL | I29: Indoor Wet Bulb Temp | J29: 50-80 | K29: =IF(AND('AIRFLOW FORM 3'!$E$77>=50,'AIRFLOW FORM 3'!$E$77<=80),"","FAIL") -> FAIL | N29: Indoor Wet Bulb Temp | O29: 50-80 | P29: =IF(AND('AIRFLOW FORM 4'!$E$77>=50,'AIRFLOW FORM 4'!$E$77<=80),"","FAIL") -> FAIL | S29: Indoor Wet Bulb Temp | T29: 50-80 | U29: =IF(AND('AIRFLOW FORM 5'!$E$77>=50,'AIRFLOW FORM 5'!$E$77<=80),"","FAIL") -> FAIL | X29: Indoor Wet Bulb Temp | Y29: 50-80 | Z29: =IF(AND('AIRFLOW FORM 6'!$E$77>=50,'AIRFLOW FORM 6'!$E$77<=80),"","FAIL") -> FAIL | AC29: Indoor Wet Bulb Temp | AD29: 50-80 | AE29: =IF(AND('AIRFLOW FORM 7'!$E$77>=50,'AIRFLOW FORM 7'!$E$77<=80),"","FAIL") -> FAIL | AH29: Indoor Wet Bulb Temp | AI29: 50-80 | AJ29: =IF(AND('AIRFLOW FORM 8'!$E$77>=50,'AIRFLOW FORM 8'!$E$77<=80),"","FAIL") -> FAIL | AM29: Indoor Wet Bulb Temp | AN29: 50-80 | AO29: =IF(AND('AIRFLOW FORM 9'!$E$77>=50,'AIRFLOW FORM 9'!$E$77<=80),"","FAIL") -> FAIL | AR29: Indoor Wet Bulb Temp | AS29: 50-80 | AT29: =IF(AND('AIRFLOW FORM 10'!$E$77>=50,'AIRFLOW FORM 10'!$E$77<=80),"","FAIL") -> FAIL
A30: Outdoor Dry Bulb Temp | B30: 50-114 | C30: =IF(AND('AIRFLOW FORM'!$E$80>=50,'AIRFLOW FORM'!$E$80<=114),"","FAIL") -> FAIL | E30: Outdoor Dry Bulb Temp | F30: 50-114 | G30: =IF(AND('AIRFLOW FORM 2'!$E$79>=50,'AIRFLOW FORM 2'!$E$79<=114),"","FAIL") -> FAIL | I30: Outdoor Dry Bulb Temp | J30: 50-114 | K30: =IF(AND('AIRFLOW FORM 3'!$E$79>=50,'AIRFLOW FORM 3'!$E$79<=114),"","FAIL") -> FAIL | N30: Outdoor Dry Bulb Temp | O30: 50-114 | P30: =IF(AND('AIRFLOW FORM 4'!$E$79>=50,'AIRFLOW FORM 4'!$E$79<=114),"","FAIL") -> FAIL | S30: Outdoor Dry Bulb Temp | T30: 50-114 | U30: =IF(AND('AIRFLOW FORM 5'!$E$79>=50,'AIRFLOW FORM 5'!$E$79<=114),"","FAIL") -> FAIL | X30: Outdoor Dry Bulb Temp | Y30: 50-114 | Z30: =IF(AND('AIRFLOW FORM 6'!$E$79>=50,'AIRFLOW FORM 6'!$E$79<=114),"","FAIL") -> FAIL | AC30: Outdoor Dry Bulb Temp | AD30: 50-114 | AE30: =IF(AND('AIRFLOW FORM 7'!$E$79>=50,'AIRFLOW FORM 7'!$E$79<=114),"","FAIL") -> FAIL | AH30: Outdoor Dry Bulb Temp | AI30: 50-114 | AJ30: =IF(AND('AIRFLOW FORM 8'!$E$79>=50,'AIRFLOW FORM 8'!$E$79<=114),"","FAIL") -> FAIL | AM30: Outdoor Dry Bulb Temp | AN30: 50-114 | AO30: =IF(AND('AIRFLOW FORM 9'!$E$79>=50,'AIRFLOW FORM 9'!$E$79<=114),"","FAIL") -> FAIL | AR30: Outdoor Dry Bulb Temp | AS30: 50-114 | AT30: =IF(AND('AIRFLOW FORM 10'!$E$79>=50,'AIRFLOW FORM 10'!$E$79<=114),"","FAIL") -> FAIL
A31: Vapor Pressure | B31: 110-160 | C31: =IF(AND('AIRFLOW FORM'!$E$85>=110,'AIRFLOW FORM'!$E$85<=160),"","FAIL") -> FAIL | E31: Vapor Pressure | F31: 110-160 | G31: =IF(AND('AIRFLOW FORM 2'!$E$84>=110,'AIRFLOW FORM 2'!$E$84<=160),"","FAIL") -> FAIL | I31: Vapor Pressure | J31: 110-160 | K31: =IF(AND('AIRFLOW FORM 3'!$E$84>=110,'AIRFLOW FORM 3'!$E$84<=160),"","FAIL") -> FAIL | N31: Vapor Pressure | O31: 110-160 | P31: =IF(AND('AIRFLOW FORM 4'!$E$84>=110,'AIRFLOW FORM 4'!$E$84<=160),"","FAIL") -> FAIL | S31: Vapor Pressure | T31: 110-160 | U31: =IF(AND('AIRFLOW FORM 5'!$E$84>=110,'AIRFLOW FORM 5'!$E$84<=160),"","FAIL") -> FAIL | X31: Vapor Pressure | Y31: 110-160 | Z31: =IF(AND('AIRFLOW FORM 6'!$E$84>=110,'AIRFLOW FORM 6'!$E$84<=160),"","FAIL") -> FAIL | AC31: Vapor Pressure | AD31: 110-160 | AE31: =IF(AND('AIRFLOW FORM 7'!$E$84>=110,'AIRFLOW FORM 7'!$E$84<=160),"","FAIL") -> FAIL | AH31: Vapor Pressure | AI31: 110-160 | AJ31: =IF(AND('AIRFLOW FORM 8'!$E$84>=110,'AIRFLOW FORM 8'!$E$84<=160),"","FAIL") -> FAIL | AM31: Vapor Pressure | AN31: 110-160 | AO31: =IF(AND('AIRFLOW FORM 9'!$E$84>=110,'AIRFLOW FORM 9'!$E$84<=160),"","FAIL") -> FAIL | AR31: Vapor Pressure | AS31: 110-160 | AT31: =IF(AND('AIRFLOW FORM 10'!$E$84>=110,'AIRFLOW FORM 10'!$E$84<=160),"","FAIL") -> FAIL
A32: Saturation Temp | B32: 35-95 | C32: =IF(AND('AIRFLOW FORM'!$E$87>=35,'AIRFLOW FORM'!$E$87<=95),"","FAIL") -> FAIL | E32: Saturation Temp | F32: 35-95 | G32: =IF(AND('AIRFLOW FORM 2'!$E$86>=35,'AIRFLOW FORM 2'!$E$86<=95),"","FAIL") -> FAIL | I32: Saturation Temp | J32: 35-95 | K32: =IF(AND('AIRFLOW FORM 3'!$E$86>=35,'AIRFLOW FORM 3'!$E$86<=95),"","FAIL") -> FAIL | N32: Saturation Temp | O32: 35-95 | P32: =IF(AND('AIRFLOW FORM 4'!$E$86>=35,'AIRFLOW FORM 4'!$E$86<=95),"","FAIL") -> FAIL | S32: Saturation Temp | T32: 35-95 | U32: =IF(AND('AIRFLOW FORM 5'!$E$86>=35,'AIRFLOW FORM 5'!$E$86<=95),"","FAIL") -> FAIL | X32: Saturation Temp | Y32: 35-95 | Z32: =IF(AND('AIRFLOW FORM 6'!$E$86>=35,'AIRFLOW FORM 6'!$E$86<=95),"","FAIL") -> FAIL | AC32: Saturation Temp | AD32: 35-95 | AE32: =IF(AND('AIRFLOW FORM 7'!$E$86>=35,'AIRFLOW FORM 7'!$E$86<=95),"","FAIL") -> FAIL | AH32: Saturation Temp | AI32: 35-95 | AJ32: =IF(AND('AIRFLOW FORM 8'!$E$86>=35,'AIRFLOW FORM 8'!$E$86<=95),"","FAIL") -> FAIL | AM32: Saturation Temp | AN32: 35-95 | AO32: =IF(AND('AIRFLOW FORM 9'!$E$86>=35,'AIRFLOW FORM 9'!$E$86<=95),"","FAIL") -> FAIL | AR32: Saturation Temp | AS32: 35-95 | AT32: =IF(AND('AIRFLOW FORM 10'!$E$86>=35,'AIRFLOW FORM 10'!$E$86<=95),"","FAIL") -> FAIL
A33: Vapor Line Temp | B33: 40-90 | C33: =IF(AND('AIRFLOW FORM'!$E$89>=40,'AIRFLOW FORM'!$E$89<=90),"","FAIL") -> FAIL | E33: Vapor Line Temp | F33: 40-90 | G33: =IF(AND('AIRFLOW FORM 2'!$E$88>=40,'AIRFLOW FORM 2'!$E$88<=90),"","FAIL") -> FAIL | I33: Vapor Line Temp | J33: 40-90 | K33: =IF(AND('AIRFLOW FORM 3'!$E$88>=40,'AIRFLOW FORM 3'!$E$88<=90),"","FAIL") -> FAIL | N33: Vapor Line Temp | O33: 40-90 | P33: =IF(AND('AIRFLOW FORM 4'!$E$88>=40,'AIRFLOW FORM 4'!$E$88<=90),"","FAIL") -> FAIL | S33: Vapor Line Temp | T33: 40-90 | U33: =IF(AND('AIRFLOW FORM 5'!$E$88>=40,'AIRFLOW FORM 5'!$E$88<=90),"","FAIL") -> FAIL | X33: Vapor Line Temp | Y33: 40-90 | Z33: =IF(AND('AIRFLOW FORM 6'!$E$88>=40,'AIRFLOW FORM 6'!$E$88<=90),"","FAIL") -> FAIL | AC33: Vapor Line Temp | AD33: 40-90 | AE33: =IF(AND('AIRFLOW FORM 7'!$E$88>=40,'AIRFLOW FORM 7'!$E$88<=90),"","FAIL") -> FAIL | AH33: Vapor Line Temp | AI33: 40-90 | AJ33: =IF(AND('AIRFLOW FORM 8'!$E$88>=40,'AIRFLOW FORM 8'!$E$88<=90),"","FAIL") -> FAIL | AM33: Vapor Line Temp | AN33: 40-90 | AO33: =IF(AND('AIRFLOW FORM 9'!$E$88>=40,'AIRFLOW FORM 9'!$E$88<=90),"","FAIL") -> FAIL | AR33: Vapor Line Temp | AS33: 40-90 | AT33: =IF(AND('AIRFLOW FORM 10'!$E$88>=40,'AIRFLOW FORM 10'!$E$88<=90),"","FAIL") -> FAIL
A34: Measured Super Heat | B34: +-5 | C34: =IF('AIRFLOW FORM'!E91="","",IF(AND('AIRFLOW FORM'!E91<='AIRFLOW FORM'!E75+5,'AIRFLOW FORM'!E91>='AIRFLOW FORM'!E75-5),"","FAIL")) ->  | E34: Measured Super Heat | F34: +-5 | G34: =IF('AIRFLOW FORM 2'!E90="","",IF(AND('AIRFLOW FORM 2'!E90<='AIRFLOW FORM 2'!E74+5,'AIRFLOW FORM 2'!E90>='AIRFLOW FORM 2'!E74-5),"","FAIL")) ->  | I34: Measured Super Heat | J34: +-5 | K34: =IF('AIRFLOW FORM 3'!E90="","",IF(AND('AIRFLOW FORM 3'!E90<='AIRFLOW FORM 3'!E74+5,'AIRFLOW FORM 3'!E90>='AIRFLOW FORM 3'!E74-5),"","FAIL")) ->  | N34: Measured Super Heat | O34: +-5 | P34: =IF('AIRFLOW FORM 4'!E90="","",IF(AND('AIRFLOW FORM 4'!E90<='AIRFLOW FORM 4'!E74+5,'AIRFLOW FORM 4'!E90>='AIRFLOW FORM 4'!E74-5),"","FAIL")) ->  | S34: Measured Super Heat | T34: +-5 | U34: =IF('AIRFLOW FORM 5'!E90="","",IF(AND('AIRFLOW FORM 5'!E90<='AIRFLOW FORM 5'!E74+5,'AIRFLOW FORM 5'!E90>='AIRFLOW FORM 5'!E74-5),"","FAIL")) ->  | X34: Measured Super Heat | Y34: +-5 | Z34: =IF('AIRFLOW FORM 6'!E90="","",IF(AND('AIRFLOW FORM 6'!E90<='AIRFLOW FORM 6'!E74+5,'AIRFLOW FORM 6'!E90>='AIRFLOW FORM 6'!E74-5),"","FAIL")) ->  | AC34: Measured Super Heat | AD34: +-5 | AE34: =IF('AIRFLOW FORM 7'!E90="","",IF(AND('AIRFLOW FORM 7'!E90<='AIRFLOW FORM 7'!E74+5,'AIRFLOW FORM 7'!E90>='AIRFLOW FORM 7'!E74-5),"","FAIL")) ->  | AH34: Measured Super Heat | AI34: +-5 | AJ34: =IF('AIRFLOW FORM 8'!E90="","",IF(AND('AIRFLOW FORM 8'!E90<='AIRFLOW FORM 8'!E74+5,'AIRFLOW FORM 8'!E90>='AIRFLOW FORM 8'!E74-5),"","FAIL")) ->  | AM34: Measured Super Heat | AN34: +-5 | AO34: =IF('AIRFLOW FORM 9'!E90="","",IF(AND('AIRFLOW FORM 9'!E90<='AIRFLOW FORM 9'!E74+5,'AIRFLOW FORM 9'!E90>='AIRFLOW FORM 9'!E74-5),"","FAIL")) ->  | AR34: Measured Super Heat | AS34: +-5 | AT34: =IF('AIRFLOW FORM 10'!E90="","",IF(AND('AIRFLOW FORM 10'!E90<='AIRFLOW FORM 10'!E74+5,'AIRFLOW FORM 10'!E90>='AIRFLOW FORM 10'!E74-5),"","FAIL")) -> 

Sheet Tables (hidden)
B3: Electric Resistance Heating Replacement | O3: Whole House Projects | AG3: Partial House Projects | AW3: Whole House Projects - Income Eligible | BP3: Electric Resistance Heating Replacement - Income Eligible
B4: Eligible Equipment | F4: Efficiency Requirements | J4: Customer Incentive (per ton) | L4: Contractor Incentive (per project) | O4: Eligible Equipment | S4: Efficiency Requirements | W4: Customer Incentive (per ton) | AC4: Contractor Incentive (per project) | AG4: Eligible Equipment | AK4: Efficiency Requirements | AP4: Customer Incentive (per ton) | AR4: Contractor Incentive (per project) | AW4: Eligible Equipment | BA4: Efficiency Requirements | BE4: Customer Incentive (per ton) | BK4: Contractor Incentive (per project) | BP4: Eligible Equipment | BT4: Efficiency Requirements | BX4: Customer Incentive (per ton) | BZ4: Contractor Incentive (per project)
F5: Tier I SEER | G5: Tier I HSPF | H5: Tier II SEER | I5: Tier II HSPF | J5: Tier I | K5: Tier II | L5: Tier I | M5: Tier II | S5: Tier I SEER | T5: Tier I HSPF | U5: Tier II SEER | V5: Tier II HSPF | W5: Tier I New Construction | X5: Tier II New Construction | Y5: Tier I Existing Oil w/ no CAC | Z5: Tier II Existing Oil w/ no CAC | AA5: Tier I All Others | AB5: Tier II All Others | AC5: Tier I | AD5: Tier II | AK5: Tier I SEER | AL5: Tier I EER | AM5: Tier I HSPF/COP | AN5: Tier II SEER | AO5: Tier II HSPF | AP5: Tier I | AQ5: Tier II | AR5: Tier I | AS5: Tier II | BA5: Tier I SEER | BB5: Tier I HSPF | BC5: Tier II SEER | BD5: Tier II HSPF | BE5: Tier I New Construction | BF5: Tier II New Construction | BG5: Tier I Existing Oil w/ no CAC | BH5: Tier II Existing Oil w/ no CAC | BI5: Tier I All Others | BJ5: Tier II All Others | BK5: Tier I | BL5: Tier II | BT5: Tier I SEER | BU5: Tier I HSPF | BV5: Tier II SEER | BW5: Tier II HSPF | BX5: Tier I | BY5: Tier II | BZ5: Tier I | CA5: Tier II
AG6: Ducted Air Source Heat Pumps | AK6: 15 | AL6: n/a | AM6: 8.5 | AN6: 16 | AO6: 8.5 | AP6: 300 | AQ6: 325 | AR6: 200 | AS6: 200
B7: Ducted ASHP | F7: 16 | G7: 8.5 | H7: 17 | I7: 10 | J7: 800 | K7: 1000 | L7: 500 | M7: 500 | O7: Ducted Cold Climate ASHP | S7: n/a | T7: n/a | U7: 17 | V7: 10 | W7: n/a | X7: 1000 | Y7: n/a | Z7: 800 | AA7: n/a | AB7: 600 | AC7: n/a | AD7: 500 | AG7: Ducted Cold Climate Air Source Heat Pumps | AK7: n/a | AL7: n/a | AM7: n/a | AN7: 17 | AO7: 10 | AP7: n/a | AQ7: 350 | AR7: n/a | AS7: 250 | AW7: Ducted Cold Climate ASHP | BA7: n/a | BB7: n/a | BC7: 17 | BD7: 10 | BE7: n/a | BF7: 1500 | BG7: n/a | BH7: 1200 | BI7: n/a | BJ7: 900 | BK7: n/a | BL7: 500 | BP7: Ducted ASHP | BT7: 16 | BU7: 8.5 | BV7: 17 | BW7: 10 | BX7: 1200 | BY7: 1500 | BZ7: 500 | CA7: 500
B8: Ducted Cold Climate ASHP | F8: n/a | G8: n/a | H8: 17 | I8: 10 | J8: n/a | K8: 1000 | L8: n/a | M8: 500 | O8: Ductless Mini Split Systems - Cold Climate ASHP | S8: n/a | T8: n/a | U8: 18 | V8: 10 | W8: n/a | X8: 1000 | Y8: n/a | Z8: 800 | AA8: n/a | AB8: 600 | AC8: n/a | AD8: 500 | AG8: Ductless Mini Split Systems - Air Source Heat Pumps | AK8: 18 | AL8: n/a | AM8: 8.5 | AN8: n/a | AO8: n/a | AP8: 300 | AQ8: n/a | AR8: 200 | AS8: n/a | AW8: Ductless Mini Split Systems - Cold Climate ASHP | BA8: n/a | BB8: n/a | BC8: 18 | BD8: 10 | BE8: n/a | BF8: 1500 | BG8: n/a | BH8: 1200 | BI8: n/a | BJ8: 900 | BK8: n/a | BL8: 500 | BP8: Ducted Cold Climate ASHP | BT8: n/a | BU8: n/a | BV8: 17 | BW8: 10 | BX8: n/a | BY8: 1500 | BZ8: n/a | CA8: 500
B9: Ductless Mini Split Systems - ASHP | F9: 18 | G9: 8.5 | H9: 18 | I9: 10 | J9: 800 | K9: 1000 | L9: 500 | M9: 500 | AG9: Ductless Mini Split Systems - Cold Climate Air Source Heat Pumps | AK9: n/a | AL9: n/a | AM9: n/a | AN9: 18 | AO9: 10 | AP9: n/a | AQ9: 300 | AR9: n/a | AS9: 250 | BP9: Ductless Mini Split Systems - ASHP | BT9: 18 | BU9: 8.5 | BV9: 18 | BW9: 10 | BX9: 1200 | BY9: 1500 | BZ9: 500 | CA9: 500
B10: Ductless Mini Split Systems - Cold Climate ASHP | F10: n/a | G10: n/a | H10: 18 | I10: 10 | J10: n/a | K10: 1000 | L10: n/a | M10: 500 | AG10: Packaged Terminal Heat Pumps | AK10: n/a | AL10: 11.4 | AM10: 3.3 | AN10: n/a | AO10: n/a | AP10: 100 | AQ10: n/a | AR10: 200 | AS10: n/a | BP10: Ductless Mini Split Systems - Cold Climate ASHP | BT10: n/a | BU10: n/a | BV10: 18 | BW10: 10 | BX10: n/a | BY10: 1500 | BZ10: n/a | CA10: 500
R20: Contractor Incentive (per project) | U20: Contractor Incentive (per project)
R21: Tier I | S21: Tier II | U21: Tier I | V21: Tier II
R23: n/a | S23: 500 | U23: n/a | V23: 500
R24: n/a | S24: 500 | U24: n/a | V24: 500
R25: n/a | S25: n/a | U25: n/a | V25: n/a

Sheet ProposedEquipment0 (hidden)
